Workbook

Sheet Contents

Sheet InputC
D2: Scenario | E2: =scenario -> 4 | F2: Project IRR | G2: ='Financial Model'!G1 ->  | J2: 4
F3: Equity IRR | G3: ='Financial Model'!G194 -> 
F4: Debt IRR | G4: ='Financial Model'!G196 -> 
B5: General
C6: Project Number | I6: 1 | J6: 2 | K6: 3 | L6: 4 | M6: 5 | N6: 6 | O6: 7 | P6: 8 | Q6: 9 | R6: 10 | S6: 11 | T6: 12
C7: Flag for Include | I7: TRUE | J7: TRUE | K7: TRUE | L7: TRUE | M7: TRUE | N7: TRUE | O7: TRUE | P7: TRUE | Q7: TRUE | R7: TRUE | S7: TRUE | T7: TRUE
C8: Project Name | F8: =INDEX(I8:XFD8,InputC!J2) -> Project 4 - Solar 2 | I8: Project 1 - Solar | J8: Project 2 - Wind | K8: Project 3 - BESS | L8: Project 4 - Solar 2 | M8: Project 5 - Wind 2 | N8: Project 6 - BESS 2 | O8: Project 7 - Solar 3 | P8: Project 8 - Wind 3 | Q8: Project 9 - BESS 3 | R8: Project 10 - Solar 4 | S8: Project 11 - Wind 4 | T8: Project 12 - BESS 4
B10: Timeline
D11: Construction Start | E11: Date | F11: =INDEX(I11:AG11,InputC!$J$2) -> 2026-09-01 | I11: 2025-01-01 | J11: 2026-03-01 | K11: =EDATE(J11,2) -> 2026-05-01 | L11: =EDATE(K11,4) -> 2026-09-01 | M11: =EDATE(L11,6) -> 2027-03-01 | N11: =EDATE(M11,3) -> 2027-06-01 | O11: 2027-09-01 | P11: =EDATE(O11,2) -> 2027-11-01 | Q11: =EDATE(P11,4) -> 2028-03-01 | R11: =EDATE(Q11,6) -> 2028-09-01 | S11: =EDATE(R11,2) -> 2028-11-01 | T11: =EDATE(S11,4) -> 2029-03-01
D12: Construction months | E12: months | F12: =INDEX(I12:AG12,InputC!$J$2) -> 9 | I12: 12 | J12: 18 | K12: 8 | L12: 9 | M12: 16 | N12: 7 | O12: 11 | P12: 17 | Q12: 5 | R12: 12 | S12: 18 | T12: 8
D14: Commercial Operation Date | E14: date | F14: =INDEX(I14:AG14,InputC!$J$2) -> 2027-06-01 | I14: =EDATE(I11,I12) -> 2026-01-01 | J14: 2027-09-01 | K14: 2027-01-01 | L14: 2027-06-01 | M14: 2028-07-01 | N14: 2028-01-01 | O14: 2028-08-01 | P14: 2029-04-01 | Q14: 2028-08-01 | R14: 2029-09-01 | S14: 2030-05-01 | T14: 2029-11-01
D15: Months in period - construction | E15: months | F15: =INDEX(I15:AG15,InputC!$J$2) -> 1 | I15: 1 | J15: 1 | K15: 1 | L15: 1 | M15: 1 | N15: 1 | O15: 1 | P15: 1 | Q15: 1 | R15: 1 | S15: 1 | T15: 1
D16: Months in period - operations | E16: months | F16: =INDEX(I16:AG16,InputC!$J$2) -> 1 | I16: 1 | J16: 1 | K16: 1 | L16: 1 | M16: 1 | N16: 1 | O16: 1 | P16: 1 | Q16: 1 | R16: 1 | S16: 1 | T16: 1
D18: Operations Period | E18: years | F18: =INDEX(I18:AG18,InputC!$J$2) -> 32 | I18: 35 | J18: 30 | K18: 20 | L18: 32 | M18: 33 | N18: 18 | O18: 35 | P18: 28 | Q18: 17 | R18: 35 | S18: 30 | T18: 20
D19: Operations End Date | E19: date | F19: =INDEX(I19:AG19,InputC!$J$2) -> 2059-06-01 | I19: =EDATE(I14,I18*months) -> 2061-01-01 | J19: =EDATE(J14,J18*months) -> 2057-09-01 | K19: =EDATE(K14,K18*months) -> 2047-01-01 | L19: =EDATE(L14,L18*months) -> 2059-06-01 | M19: =EDATE(M14,M18*months) -> 2061-07-01 | N19: =EDATE(N14,N18*months) -> 2046-01-01 | O19: =EDATE(O14,O18*months) -> 2063-08-01 | P19: =EDATE(P14,P18*months) -> 2057-04-01 | Q19: =EDATE(Q14,Q18*months) -> 2045-08-01 | R19: =EDATE(R14,R18*months) -> 2064-09-01 | S19: =EDATE(S14,S18*months) -> 2060-05-01 | T19: =EDATE(T14,T18*months) -> 2049-11-01
B21: Operations - Capacity and Production
C23: Solar
D24: Capacity - DC | E24: kWp | F24: =INDEX(I24:AG24,InputC!$J$2) -> 2000 | I24: 1200 | L24: 2000 | O24: 800 | R24: 1500
D25: DC/AC Ratio | E25: Ratio | F25: =INDEX(I25:AG25,InputC!$J$2) -> 1.2 | I25: 1.2 | L25: 1.2 | O25: 1.2 | R25: 1.2
D26: Capacity - AC | E26: kWac | F26: =INDEX(I26:AG26,InputC!$J$2) -> 1666.666667 | I26: =I24/I25 -> 1000 | L26: =L24/L25 -> 1666.666667 | O26: 666.6666667 | R26: 1250
D27: Yield | E27: kWh/kWp | F27: =INDEX(I27:AG27,InputC!$J$2) -> 2014.8 | I27: =8760*0.24 -> 2102.4 | L27: =8760*0.23 -> 2014.8 | O27: =8760*0.21 -> 1839.6 | R27: =8760*0.23 -> 2014.8
C29: Wind
D30: Capacity | E30: kW | F30: =INDEX(I30:AG30,InputC!$J$2) -> 0 | J30: 800 | M30: 1400 | P30: 900 | S30: 1800
D31: Capacity Factor | E31: % | F31: =INDEX(I31:AG31,InputC!$J$2) -> 0 | J31: 0.35 | M31: 0.25 | P31: 0.36 | S31: 0.41
C33: Battery
D34: Inverter Capacity | E34: kW | F34: =INDEX(I34:AG34,InputC!$J$2) -> 0 | K34: 400 | N34: 600 | Q34: 550 | T34: 300
D35: Duration | E35: Hours | F35: =INDEX(I35:AG35,InputC!$J$2) -> 0 | K35: 2 | N35: 1 | Q35: 4 | T35: 4
D36: Storage Capacity | E36: kWh | F36: =INDEX(I36:AG36,InputC!$J$2) -> 0 | K36: =K34*K35 -> 800 | N36: =N34*N35 -> 600 | Q36: =Q34*Q35 -> 2200 | T36: =T34*T35 -> 1200
D37: Availability Factor | E37: % | F37: =INDEX(I37:AG37,InputC!$J$2) -> 0 | K37: 0.97 | N37: 0.95 | Q37: 0.98 | T37: 0.98
C39: Degradation | E39: % p.a | F39: =INDEX(I39:AG39,InputC!$J$2) -> 0.004 | I39: 0.005 | J39: 0 | K39: 0.023 | L39: 0.004 | M39: 0 | N39: 0.023 | O39: 0.005 | P39: 0 | Q39: 0.023 | R39: 0.005 | S39: 0 | T39: 0.023
B41: Operating Cash Flows
C43: Inflation Code | E43: Code | F43: =INDEX(I43:AG43,InputC!$J$2) -> 1 | I43: 1 | J43: 1 | K43: 1 | L43: 1 | M43: 1 | N43: 1 | O43: 1 | P43: 1 | Q43: 1 | R43: 1 | S43: 1 | T43: 1
C45: Capital Expenditure
D46: Capital Expenditure - Solar | E46: USD/kWp | F46: =INDEX(I46:AG46,InputC!$J$2) -> 400 | I46: 360 | L46: 400 | O46: 380 | R46: 450
D47: Capital Expenditure - Wind | E47: USD/kW | F47: =INDEX(I47:AG47,InputC!$J$2) -> 0 | J47: 850 | M47: 800 | P47: 900 | S47: 700
D48: Capital Expenditure - BESS | E48: USD/kWh | F48: =INDEX(I48:AG48,InputC!$J$2) -> 0 | K48: 350 | N48: 250 | Q48: 100 | T48: 85
C50: Price
D51: Price per kWh - Solar/Wind | E51: USD/kWh | F51: =INDEX(I51:AG51,InputC!$J$2) -> 0.016 | I51: 0.014 | J51: 0.027 | L51: 0.016 | M51: 0.04 | O51: 0.016 | P51: 0.03 | R51: 0.015 | S51: 0.025
D52: Price per kWh - Battery | E52: USD/kWh | F52: =INDEX(I52:AG52,InputC!$J$2) -> 0 | K52: 0.0055 | N52: 0.0032 | Q52: 0.0018 | T52: 0.0014
D53: Inflate PPA | E53: Flag | F53: =INDEX(I53:AG53,InputC!$J$2) -> TRUE | I53: TRUE | J53: TRUE | K53: FALSE | L53: TRUE | M53: FALSE | N53: TRUE | O53: TRUE | P53: FALSE | Q53: TRUE | R53: TRUE | S53: FALSE | T53: TRUE
C55: Operating and Maintenance
D56: Solar O&M | E56: USD/kWy | F56: =INDEX(I56:AG56,InputC!$J$2) -> 5 | I56: 6 | L56: 5 | O56: 4 | R56: 4
D57: Wind O&M | E57: USD/kWy | F57: =INDEX(I57:AG57,InputC!$J$2) -> 0 | J57: 16 | M57: 16 | P57: 18 | S57: 15
D58: Battery O&M | E58: USD/kwhy | F58: =INDEX(I58:AG58,InputC!$J$2) -> 0 | K58: 3 | N58: 2 | Q58: 4 | T58: 3
B61: Valuation
D62: Risk Free Rate | E62: % p.a. | F62: =INDEX(I62:AG62,InputC!$J$2) -> 0.035 | I62: 0.035 | J62: 0.035 | K62: 0.035 | L62: 0.035 | M62: 0.035 | N62: 0.035 | O62: 0.035 | P62: 0.035 | Q62: 0.035 | R62: 0.035 | S62: 0.035 | T62: 0.035
D63: Valuation Discount Rate | E63: % p.a. | F63: =INDEX(I63:AG63,InputC!$J$2) -> 0.06 | I63: 0.06 | J63: 0.06 | K63: 0.06 | L63: 0.06 | M63: 0.06 | N63: 0.06 | O63: 0.06 | P63: 0.06 | Q63: 0.06 | R63: 0.06 | S63: 0.06 | T63: 0.06
B65: Debt Structuring
C66: Max Debt to Capital | E66: % | F66: =INDEX(I66:AG66,InputC!$J$2) -> 0.8 | I66: 0.8 | J66: 0.8 | K66: 0.8 | L66: 0.8 | M66: 0.8 | N66: 0.8 | O66: 0.8 | P66: 0.8 | Q66: 0.8 | R66: 0.8 | S66: 0.8 | T66: 0.8
C67: Min DSCR | E67: x | F67: =INDEX(I67:AG67,InputC!$J$2) -> 1.3 | I67: 1.2 | J67: 1.3 | K67: 1.4 | L67: 1.3 | M67: 1.4 | N67: 1.4 | O67: 1.4 | P67: 1.4 | Q67: 1.4 | R67: 1.4 | S67: 1.4 | T67: 1.4
C69: Debt Tenure | E69: Years | F69: =INDEX(I69:AG69,InputC!$J$2) -> 24 | I69: 23 | J69: 20 | K69: 12 | L69: 24 | M69: 20 | N69: 10 | O69: 25 | P69: 22 | Q69: 12 | R69: 21 | S69: 15 | T69: 11
C71: Base SOFR Swap Rate | E71: % p.a. | F71: =INDEX(I71:AG71,InputC!$J$2) -> 0.04 | I71: 0.04 | J71: 0.04 | K71: 0.04 | L71: 0.04 | M71: 0.04 | N71: 0.04 | O71: 0.04 | P71: 0.04 | Q71: 0.04 | R71: 0.04 | S71: 0.04 | T71: 0.04
C72: Credit Spread | E72: % p.a. | F72: =INDEX(I72:AG72,InputC!$J$2) -> 0.011 | I72: 0.01 | J72: 0.012 | K72: 0.015 | L72: 0.011 | M72: 0.011 | N72: 0.011 | O72: 0.011 | P72: 0.011 | Q72: 0.011 | R72: 0.01 | S72: 0.012 | T72: 0.015
C74: Pro-Rata Funding | E74: Flag | F74: =INDEX(I74:AG74,InputC!$J$2) -> TRUE | I74: TRUE | J74: TRUE | K74: TRUE | L74: TRUE | M74: TRUE | N74: TRUE | O74: TRUE | P74: TRUE | Q74: TRUE | R74: TRUE | S74: TRUE | T74: TRUE
C75: Equity Up-front | E75: Flag | F75: =INDEX(I75:AG75,InputC!$J$2) -> FALSE | I75: =NOT(I74) -> FALSE | J75: FALSE | K75: FALSE | L75: FALSE | M75: FALSE | N75: FALSE | O75: FALSE | P75: FALSE | Q75: FALSE | R75: FALSE | S75: FALSE | T75: FALSE
B77: Constants
D78: Months in a year | F78: 12 | G78: months
D79: One Range Name | F79: 1 | G79: One
D136: =TRANSPOSE(I8:AK8) -> Project 1 - Solar
D137: Project 2 - Wind
D138: Project 3 - BESS
D139: Project 4 - Solar 2
D140: Project 5 - Wind 2
D141: Project 6 - BESS 2
D142: Project 7 - Solar 3
D143: Project 8 - Wind 3
D144: Project 9 - BESS 3
D145: Project 10 - Solar 4
D146: Project 11 - Wind 4
D147: Project 12 - BESS 4
D148: 0
D149: 0
D150: 0
D151: 0
D152: 0
D153: 0
D154: 0
D155: 0
D156: 0
D157: 0
D158: 0
D159: 0
D160: 0
D161: 0
D162: 0
D163: 0
D164: 0

Sheet InputS
B3: General
C4: Start of Timeline | E4: Date | F4: 2025-01-01
C6: Year | F6: 2025 | G6: 2026 | H6: 2027 | I6: 2028 | J6: 2029 | K6: 2030 | L6: 2031 | M6: 2032 | N6: 2033 | O6: 2034 | P6: 2035 | Q6: 2036 | R6: 2037
C8: Inflation Code | E8: =InputC!F43 -> 1
C10: Inflation Rate 1 | F10: 0.03 | G10: 0.027 | H10: 0.025 | I10: 0.026 | J10: 0.02 | K10: 0.02 | L10: 0.02 | M10: 0.02 | N10: 0.02 | O10: 0.02 | P10: 0.02 | Q10: 0.02 | R10: 0.02
C11: Inflation Rate 2 | F11: 0.03 | G11: 0.03 | H11: 0.03 | I11: 0.03 | J11: 0.03 | K11: 0.03 | L11: 0.03 | M11: 0.03 | N11: 0.03 | O11: 0.03 | P11: 0.03 | Q11: 0.03 | R11: 0.03
C12: Inflation Rate 3 | F12: 0.02 | G12: 0.02 | H12: 0.02 | I12: 0.02 | J12: 0.02 | K12: 0.02 | L12: 0.02 | M12: 0.02 | N12: 0.02 | O12: 0.02 | P12: 0.02 | Q12: 0.02 | R12: 0.02
C14: =INDEX(C10:C12,$E$8) -> Inflation Rate 1 | F14: =INDEX(F10:F12,$E$8) -> 0.03 | G14: =INDEX(G10:G12,$E$8) -> 0.027 | H14: =INDEX(H10:H12,$E$8) -> 0.025 | I14: =INDEX(I10:I12,$E$8) -> 0.026 | J14: =INDEX(J10:J12,$E$8) -> 0.02 | K14: =INDEX(K10:K12,$E$8) -> 0.02 | L14: =INDEX(L10:L12,$E$8) -> 0.02 | M14: =INDEX(M10:M12,$E$8) -> 0.02 | N14: =INDEX(N10:N12,$E$8) -> 0.02 | O14: =INDEX(O10:O12,$E$8) -> 0.02 | P14: =INDEX(P10:P12,$E$8) -> 0.02 | Q14: =INDEX(Q10:Q12,$E$8) -> 0.02 | R14: =INDEX(R10:R12,$E$8) -> 0.02
C17: Month | F17: 1 | G17: 2 | H17: 3 | I17: 4 | J17: 5 | K17: 6 | L17: 7 | M17: 8 | N17: 9 | O17: 10 | P17: 11 | Q17: 12
C19: Seasonal Code
C21: Seasonal Factor 1 | F21: 1 | G21: 1 | H21: 1 | I21: 1 | J21: 1 | K21: 1 | L21: 1 | M21: 1 | N21: 1 | O21: 1 | P21: 1 | Q21: 1
C22: Seasonal Factor 2 | F22: 1.010228864 | G22: 1.085098322 | H22: 1.120939167 | I22: 1.128255791 | J22: 1.066213276 | K22: 0.9469052647 | L22: 0.8225408548 | M22: 0.8149307676 | N22: 0.9326991802 | O22: 1.058163157 | P22: 1.015033325 | Q22: 0.9989920294

Sheet Financial Model
F1: PIRR | G1: =G71 -> 
B2: Timeline | E2: Input Units | F2: Constants | G2: Constants | H2: Sum | I2: Model Units | J2: Initial
D3: Time Period | I3: Period | K3: 1 | L3: 2 | M3: 3 | N3: 4 | O3: 5 | P3: 6 | Q3: 7 | R3: 8 | S3: 9 | T3: 10 | U3: 11 | V3: 12 | W3: 13 | X3: 14 | Y3: 15 | Z3: 16 | AA3: 17 | AB3: 18 | AC3: 19 | AD3: 20 | AE3: 21 | AF3: 22 | AG3: 23 | AH3: 24 | AI3: 25 | AJ3: 26 | AK3: 27 | AL3: 28 | AM3: 29 | AN3: 30 | AO3: 31 | AP3: 32 | AQ3: 33 | AR3: 34 | AS3: 35 | AT3: 36 | AU3: 37 | AV3: 38 | AW3: 39 | AX3: 40 | AY3: 41 | AZ3: 42 | BA3: 43 | BB3: 44 | BC3: 45 | BD3: 46 | BE3: 47 | BF3: 48 | BG3: 49 | BH3: 50 | BI3: 51 | BJ3: 52 | BK3: 53 | BL3: 54 | BM3: 55 | BN3: 56 | BO3: 57 | BP3: 58 | BQ3: 59 | BR3: 60 | BS3: 61 | BT3: 62 | BU3: 63 | BV3: 64 | BW3: 65 | BX3: 66 | BY3: 67 | BZ3: 68 | CA3: 69 | CB3: 70 | CC3: 71 | CD3: 72 | CE3: 73 | CF3: 74 | CG3: 75 | CH3: 76 | CI3: 77 | CJ3: 78 | CK3: 79 | CL3: 80 | CM3: 81 | CN3: 82 | CO3: 83 | CP3: 84 | CQ3: 85 | CR3: 86 | CS3: 87 | CT3: 88 | CU3: 89 | CV3: 90 | CW3: 91 | CX3: 92 | CY3: 93 | CZ3: 94 | DA3: 95 | DB3: 96 | DC3: 97 | DD3: 98 | DE3: 99 | DF3: 100 | DG3: 101 | DH3: 102 | DI3: 103 | DJ3: 104 | DK3: 105 | DL3: 106 | DM3: 107 | DN3: 108 | DO3: 109 | DP3: 110 | DQ3: 111 | DR3: 112 | DS3: 113 | DT3: 114 | DU3: 115 | DV3: 116 | DW3: 117 | DX3: 118 | DY3: 119 | DZ3: 120 | EA3: 121 | EB3: 122 | EC3: 123 | ED3: 124 | EE3: 125 | EF3: 126 | EG3: 127 | EH3: 128 | EI3: 129 | EJ3: 130 | EK3: 131 | EL3: 132 | EM3: 133 | EN3: 134 | EO3: 135 | EP3: 136 | EQ3: 137 | ER3: 138 | ES3: 139 | ET3: 140 | EU3: 141 | EV3: 142 | EW3: 143 | EX3: 144 | EY3: 145 | EZ3: 146 | FA3: 147 | FB3: 148 | FC3: 149 | FD3: 150 | FE3: 151 | FF3: 152 | FG3: 153 | FH3: 154 | FI3: 155 | FJ3: 156 | FK3: 157 | FL3: 158 | FM3: 159 | FN3: 160 | FO3: 161 | FP3: 162 | FQ3: 163 | FR3: 164 | FS3: 165 | FT3: 166 | FU3: 167 | FV3: 168 | FW3: 169 | FX3: 170 | FY3: 171 | FZ3: 172 | GA3: 173 | GB3: 174 | GC3: 175 | GD3: 176 | GE3: 177 | GF3: 178 | GG3: 179 | GH3: 180 | GI3: 181 | GJ3: 182 | GK3: 183 | GL3: 184 | GM3: 185 | GN3: 186 | GO3: 187 | GP3: 188 | GQ3: 189 | GR3: 190 | GS3: 191 | GT3: 192 | GU3: 193 | GV3: 194 | GW3: 195 | GX3: 196 | GY3: 197 | GZ3: 198 | HA3: 199 | HB3: 200 | HC3: 201 | HD3: 202 | HE3: 203 | HF3: 204 | HG3: 205 | HH3: 206 | HI3: 207 | HJ3: 208 | HK3: 209 | HL3: 210 | HM3: 211 | HN3: 212 | HO3: 213 | HP3: 214 | HQ3: 215 | HR3: 216 | HS3: 217 | HT3: 218 | HU3: 219 | HV3: 220 | HW3: 221 | HX3: 222 | HY3: 223 | HZ3: 224 | IA3: 225 | IB3: 226 | IC3: 227 | ID3: 228 | IE3: 229 | IF3: 230 | IG3: 231 | IH3: 232 | II3: 233 | IJ3: 234 | IK3: 235 | IL3: 236 | IM3: 237 | IN3: 238 | IO3: 239 | IP3: 240 | IQ3: 241 | IR3: 242 | IS3: 243 | IT3: 244 | IU3: 245 | IV3: 246 | IW3: 247 | IX3: 248 | IY3: 249 | IZ3: 250 | JA3: 251 | JB3: 252 | JC3: 253 | JD3: 254 | JE3: 255 | JF3: 256 | JG3: 257 | JH3: 258 | JI3: 259 | JJ3: 260 | JK3: 261 | JL3: 262 | JM3: 263 | JN3: 264 | JO3: 265 | JP3: 266 | JQ3: 267 | JR3: 268 | JS3: 269 | JT3: 270 | JU3: 271 | JV3: 272 | JW3: 273 | JX3: 274 | JY3: 275 | JZ3: 276 | KA3: 277 | KB3: 278 | KC3: 279 | KD3: 280 | KE3: 281 | KF3: 282 | KG3: 283 | KH3: 284 | KI3: 285 | KJ3: 286 | KK3: 287 | KL3: 288 | KM3: 289 | KN3: 290 | KO3: 291 | KP3: 292 | KQ3: 293 | KR3: 294 | KS3: 295 | KT3: 296 | KU3: 297 | KV3: 298 | KW3: 299 | KX3: 300 | KY3: 301 | KZ3: 302 | LA3: 303 | LB3: 304 | LC3: 305 | LD3: 306 | LE3: 307 | LF3: 308 | LG3: 309 | LH3: 310 | LI3: 311 | LJ3: 312 | LK3: 313 | LL3: 314 | LM3: 315 | LN3: 316 | LO3: 317 | LP3: 318 | LQ3: 319 | LR3: 320 | LS3: 321 | LT3: 322 | LU3: 323 | LV3: 324 | LW3: 325 | LX3: 326 | LY3: 327 | LZ3: 328 | MA3: 329 | MB3: 330 | MC3: 331 | MD3: 332 | ME3: 333 | MF3: 334 | MG3: 335 | MH3: 336 | MI3: 337 | MJ3: 338 | MK3: 339 | ML3: 340 | MM3: 341 | MN3: 342 | MO3: 343 | MP3: 344 | MQ3: 345 | MR3: 346 | MS3: 347 | MT3: 348 | MU3: 349 | MV3: 350 | MW3: 351 | MX3: 352 | MY3: 353 | MZ3: 354 | NA3: 355 | NB3: 356 | NC3: 357 | ND3: 358 | NE3: 359 | NF3: 360 | NG3: 361 | NH3: 362 | NI3: 363 | NJ3: 364 | NK3: 365 | NL3: 366 | NM3: 367 | NN3: 368 | NO3: 369 | NP3: 370 | NQ3: 371 | NR3: 372 | NS3: 373 | NT3: 374 | NU3: 375 | NV3: 376 | NW3: 377 | NX3: 378 | NY3: 379 | NZ3: 380 | OA3: 381 | OB3: 382 | OC3: 383 | OD3: 384 | OE3: 385 | OF3: 386 | OG3: 387 | OH3: 388 | OI3: 389 | OJ3: 390 | OK3: 391 | OL3: 392 | OM3: 393 | ON3: 394 | OO3: 395 | OP3: 396 | OQ3: 397 | OR3: 398 | OS3: 399 | OT3: 400 | OU3: 401 | OV3: 402 | OW3: 403 | OX3: 404 | OY3: 405 | OZ3: 406 | PA3: 407 | PB3: 408 | PC3: 409 | PD3: 410 | PE3: 411 | PF3: 412 | PG3: 413 | PH3: 414 | PI3: 415 | PJ3: 416 | PK3: 417 | PL3: 418 | PM3: 419 | PN3: 420 | PO3: 421 | PP3: 422 | PQ3: 423 | PR3: 424 | PS3: 425 | PT3: 426 | PU3: 427 | PV3: 428 | PW3: 429 | PX3: 430 | PY3: 431 | PZ3: 432 | QA3: 433 | QB3: 434 | QC3: 435 | QD3: 436 | QE3: 437 | QF3: 438 | QG3: 439 | QH3: 440 | QI3: 441 | QJ3: 442 | QK3: 443 | QL3: 444 | QM3: 445 | QN3: 446 | QO3: 447 | QP3: 448 | QQ3: 449 | QR3: 450 | QS3: 451 | QT3: 452 | QU3: 453 | QV3: 454 | QW3: 455 | QX3: 456 | QY3: 457 | QZ3: 458 | RA3: 459 | RB3: 460 | RC3: 461 | RD3: 462 | RE3: 463 | RF3: 464 | RG3: 465 | RH3: 466 | RI3: 467 | RJ3: 468 | RK3: 469 | RL3: 470 | RM3: 471 | RN3: 472 | RO3: 473 | RP3: 474 | RQ3: 475 | RR3: 476 | RS3: 477 | RT3: 478 | RU3: 479 | RV3: 480 | RW3: 481 | RX3: 482 | RY3: 483 | RZ3: 484 | SA3: 485 | SB3: 486 | SC3: 487 | SD3: 488 | SE3: 489 | SF3: 490 | SG3: 491 | SH3: 492 | SI3: 493 | SJ3: 494 | SK3: 495 | SL3: 496 | SM3: 497 | SN3: 498 | SO3: 499 | SP3: 500 | SQ3: 501 | SR3: 502 | SS3: 503 | ST3: 504 | SU3: 505 | SV3: 506 | SW3: 507 | SX3: 508 | SY3: 509 | SZ3: 510 | TA3: 511 | TB3: 512 | TC3: 513 | TD3: 514 | TE3: 515 | TF3: 516 | TG3: 517 | TH3: 518 | TI3: 519 | TJ3: 520 | TK3: 521 | TL3: 522 | TM3: 523 | TN3: 524 | TO3: 525 | TP3: 526 | TQ3: 527 | TR3: 528 | TS3: 529 | TT3: 530 | TU3: 531 | TV3: 532 | TW3: 533 | TX3: 534 | TY3: 535 | TZ3: 536 | UA3: 537 | UB3: 538 | UC3: 539 | UD3: 540 | UE3: 541 | UF3: 542 | UG3: 543 | UH3: 544 | UI3: 545 | UJ3: 546 | UK3: 547 | UL3: 548 | UM3: 549 | UN3: 550 | UO3: 551 | UP3: 552 | UQ3: 553 | UR3: 554 | US3: 555 | UT3: 556 | UU3: 557 | UV3: 558 | UW3: 559 | UX3: 560 | UY3: 561 | UZ3: 562 | VA3: 563 | VB3: 564 | VC3: 565 | VD3: 566 | VE3: 567 | VF3: 568 | VG3: 569 | VH3: 570 | VI3: 571 | VJ3: 572 | VK3: 573 | VL3: 574 | VM3: 575 | VN3: 576 | VO3: 577 | VP3: 578 | VQ3: 579 | VR3: 580 | VS3: 581 | VT3: 582 | VU3: 583 | VV3: 584 | VW3: 585 | VX3: 586 | VY3: 587 | VZ3: 588 | WA3: 589 | WB3: 590 | WC3: 591 | WD3: 592 | WE3: 593 | WF3: 594 | WG3: 595 | WH3: 596 | WI3: 597 | WJ3: 598 | WK3: 599 | WL3: 600 | WM3: 601 | WN3: 602 | WO3: 603 | WP3: 604 | WQ3: 605 | WR3: 606 | WS3: 607 | WT3: 608 | WU3: 609 | WV3: 610 | WW3: 611 | WX3: 612 | WY3: 613 | WZ3: 614 | XA3: 615 | XB3: 616 | XC3: 617 | XD3: 618 | XE3: 619 | XF3: 620 | XG3: 621 | XH3: 622 | XI3: 623 | XJ3: 624 | XK3: 625 | XL3: 626 | XM3: 627 | XN3: 628 | XO3: 629 | XP3: 630 | XQ3: 631 | XR3: 632 | XS3: 633 | XT3: 634 | XU3: 635 | XV3: 636 | XW3: 637 | XX3: 638 | XY3: 639 | XZ3: 640 | YA3: 641 | YB3: 642 | YC3: 643 | YD3: 644 | YE3: 645 | YF3: 646 | YG3: 647 | YH3: 648 | YI3: 649 | YJ3: 650 | YK3: 651 | YL3: 652 | YM3: 653 | YN3: 654 | YO3: 655 | YP3: 656 | YQ3: 657 | YR3: 658 | YS3: 659 | YT3: 660 | YU3: 661 | YV3: 662 | YW3: 663 | YX3: 664 | YY3: 665 | YZ3: 666 | ZA3: 667 | ZB3: 668 | ZC3: 669 | ZD3: 670 | ZE3: 671 | ZF3: 672 | ZG3: 673 | ZH3: 674 | ZI3: 675 | ZJ3: 676 | ZK3: 677 | ZL3: 678 | ZM3: 679 | ZN3: 680 | ZO3: 681 | ZP3: 682 | ZQ3: 683 | ZR3: 684 | ZS3: 685 | ZT3: 686 | ZU3: 687 | ZV3: 688 | ZW3: 689 | ZX3: 690 | ZY3: 691 | ZZ3: 692 | AAA3: 693 | AAB3: 694 | AAC3: 695 | AAD3: 696 | AAE3: 697 | AAF3: 698 | AAG3: 699 | AAH3: 700 | AAI3: 701 | AAJ3: 702 | AAK3: 703 | AAL3: 704 | AAM3: 705 | AAN3: 706 | AAO3: 707 | AAP3: 708 | AAQ3: 709 | AAR3: 710 | AAS3: 711 | AAT3: 712 | AAU3: 713 | AAV3: 714 | AAW3: 715 | AAX3: 716 | AAY3: 717 | AAZ3: 718 | ABA3: 719 | ABB3: 720 | ABC3: 721 | ABD3: 722 | ABE3: 723 | ABF3: 724 | ABG3: 725 | ABH3: 726 | ABI3: 727 | ABJ3: 728 | ABK3: 729 | ABL3: 730 | ABM3: 731 | ABN3: 732 | ABO3: 733 | ABP3: 734 | ABQ3: 735 | ABR3: 736 | ABS3: 737 | ABT3: 738 | ABU3: 739 | ABV3: 740 | ABW3: 741 | ABX3: 742 | ABY3: 743 | ABZ3: 744
D4: Start of period | E4: Date | I4: Date | K4: =J5+1 -> 2025-01-01 | L4: =K5+1 -> 1900-01-01 | M4: 1900-01-01 | N4: 1900-01-01 | O4: 1900-01-01 | P4: 1900-01-01 | Q4: 1900-01-01 | R4: 1900-01-01 | S4: 1900-01-01 | T4: 1900-01-01 | U4: 1900-01-01 | V4: 1900-01-01 | W4: 1900-01-01 | X4: 1900-01-01 | Y4: 1900-01-01 | Z4: 1900-01-01 | AA4: 1900-01-01 | AB4: 1900-01-01 | AC4: 1900-01-01 | AD4: 1900-01-01 | AE4: 1900-01-01 | AF4: 1900-01-01 | AG4: 1900-01-01 | AH4: 1900-01-01 | AI4: 1900-01-01 | AJ4: 1900-01-01 | AK4: 1900-01-01 | AL4: 1900-01-01 | AM4: 1900-01-01 | AN4: 1900-01-01 | AO4: 1900-01-01 | AP4: 1900-01-01 | AQ4: 1900-01-01 | AR4: 1900-01-01 | AS4: 1900-01-01 | AT4: 1900-01-01 | AU4: 1900-01-01 | AV4: 1900-01-01 | AW4: 1900-01-01 | AX4: 1900-01-01 | AY4: 1900-01-01 | AZ4: 1900-01-01 | BA4: 1900-01-01 | BB4: 1900-01-01 | BC4: 1900-01-01 | BD4: 1900-01-01 | BE4: 1900-01-01 | BF4: 1900-01-01 | BG4: 1900-01-01 | BH4: 1900-01-01 | BI4: 1900-01-01 | BJ4: 1900-01-01 | BK4: 1900-01-01 | BL4: 1900-01-01 | BM4: 1900-01-01 | BN4: 1900-01-01 | BO4: 1900-01-01 | BP4: 1900-01-01 | BQ4: 1900-01-01 | BR4: 1900-01-01 | BS4: 1900-01-01 | BT4: 1900-01-01 | BU4: 1900-01-01 | BV4: 1900-01-01 | BW4: 1900-01-01 | BX4: =BW5+1 -> 1900-01-01 | BY4: 1900-01-01 | BZ4: 1900-01-01 | CA4: 1900-01-01 | CB4: 1900-01-01 | CC4: 1900-01-01 | CD4: 1900-01-01 | CE4: 1900-01-01 | CF4: 1900-01-01 | CG4: 1900-01-01 | CH4: 1900-01-01 | CI4: 1900-01-01 | CJ4: 1900-01-01 | CK4: 1900-01-01 | CL4: 1900-01-01 | CM4: 1900-01-01 | CN4: 1900-01-01 | CO4: 1900-01-01 | CP4: 1900-01-01 | CQ4: 1900-01-01 | CR4: 1900-01-01 | CS4: 1900-01-01 | CT4: 1900-01-01 | CU4: 1900-01-01 | CV4: 1900-01-01 | CW4: 1900-01-01 | CX4: 1900-01-01 | CY4: 1900-01-01 | CZ4: 1900-01-01 | DA4: 1900-01-01 | DB4: 1900-01-01 | DC4: 1900-01-01 | DD4: 1900-01-01 | DE4: 1900-01-01 | DF4: 1900-01-01 | DG4: 1900-01-01 | DH4: 1900-01-01 | DI4: 1900-01-01 | DJ4: 1900-01-01 | DK4: 1900-01-01 | DL4: 1900-01-01 | DM4: 1900-01-01 | DN4: 1900-01-01 | DO4: 1900-01-01 | DP4: 1900-01-01 | DQ4: 1900-01-01 | DR4: 1900-01-01 | DS4: 1900-01-01 | DT4: 1900-01-01 | DU4: 1900-01-01 | DV4: 1900-01-01 | DW4: 1900-01-01 | DX4: 1900-01-01 | DY4: 1900-01-01 | DZ4: 1900-01-01 | EA4: 1900-01-01 | EB4: 1900-01-01 | EC4: 1900-01-01 | ED4: 1900-01-01 | EE4: 1900-01-01 | EF4: 1900-01-01 | EG4: 1900-01-01 | EH4: 1900-01-01 | EI4: 1900-01-01 | EJ4: =EI5+1 -> 1900-01-01 | EK4: 1900-01-01 | EL4: 1900-01-01 | EM4: 1900-01-01 | EN4: 1900-01-01 | EO4: 1900-01-01 | EP4: 1900-01-01 | EQ4: 1900-01-01 | ER4: 1900-01-01 | ES4: 1900-01-01 | ET4: 1900-01-01 | EU4: 1900-01-01 | EV4: 1900-01-01 | EW4: 1900-01-01 | EX4: 1900-01-01 | EY4: 1900-01-01 | EZ4: 1900-01-01 | FA4: 1900-01-01 | FB4: 1900-01-01 | FC4: 1900-01-01 | FD4: 1900-01-01 | FE4: 1900-01-01 | FF4: 1900-01-01 | FG4: 1900-01-01 | FH4: 1900-01-01 | FI4: 1900-01-01 | FJ4: 1900-01-01 | FK4: 1900-01-01 | FL4: 1900-01-01 | FM4: 1900-01-01 | FN4: 1900-01-01 | FO4: 1900-01-01 | FP4: 1900-01-01 | FQ4: 1900-01-01 | FR4: 1900-01-01 | FS4: 1900-01-01 | FT4: 1900-01-01 | FU4: 1900-01-01 | FV4: 1900-01-01 | FW4: 1900-01-01 | FX4: 1900-01-01 | FY4: 1900-01-01 | FZ4: 1900-01-01 | GA4: 1900-01-01 | GB4: 1900-01-01 | GC4: 1900-01-01 | GD4: 1900-01-01 | GE4: 1900-01-01 | GF4: 1900-01-01 | GG4: 1900-01-01 | GH4: 1900-01-01 | GI4: 1900-01-01 | GJ4: 1900-01-01 | GK4: 1900-01-01 | GL4: 1900-01-01 | GM4: 1900-01-01 | GN4: 1900-01-01 | GO4: 1900-01-01 | GP4: 1900-01-01 | GQ4: 1900-01-01 | GR4: 1900-01-01 | GS4: 1900-01-01 | GT4: 1900-01-01 | GU4: 1900-01-01 | GV4: =GU5+1 -> 1900-01-01 | GW4: 1900-01-01 | GX4: 1900-01-01 | GY4: 1900-01-01 | GZ4: 1900-01-01 | HA4: 1900-01-01 | HB4: 1900-01-01 | HC4: 1900-01-01 | HD4: 1900-01-01 | HE4: 1900-01-01 | HF4: 1900-01-01 | HG4: 1900-01-01 | HH4: 1900-01-01 | HI4: 1900-01-01 | HJ4: 1900-01-01 | HK4: 1900-01-01 | HL4: 1900-01-01 | HM4: 1900-01-01 | HN4: 1900-01-01 | HO4: 1900-01-01 | HP4: 1900-01-01 | HQ4: 1900-01-01 | HR4: 1900-01-01 | HS4: 1900-01-01 | HT4: 1900-01-01 | HU4: 1900-01-01 | HV4: 1900-01-01 | HW4: 1900-01-01 | HX4: 1900-01-01 | HY4: 1900-01-01 | HZ4: 1900-01-01 | IA4: 1900-01-01 | IB4: 1900-01-01 | IC4: 1900-01-01 | ID4: 1900-01-01 | IE4: 1900-01-01 | IF4: 1900-01-01 | IG4: 1900-01-01 | IH4: 1900-01-01 | II4: 1900-01-01 | IJ4: 1900-01-01 | IK4: 1900-01-01 | IL4: 1900-01-01 | IM4: 1900-01-01 | IN4: 1900-01-01 | IO4: 1900-01-01 | IP4: 1900-01-01 | IQ4: 1900-01-01 | IR4: 1900-01-01 | IS4: 1900-01-01 | IT4: 1900-01-01 | IU4: 1900-01-01 | IV4: 1900-01-01 | IW4: 1900-01-01 | IX4: 1900-01-01 | IY4: 1900-01-01 | IZ4: 1900-01-01 | JA4: =IZ5+1 -> 1900-01-01 | JB4: =JA5+1 -> 1900-01-01 | JC4: =JB5+1 -> 1900-01-01 | JD4: =JC5+1 -> 1900-01-01 | JE4: =JD5+1 -> 1900-01-01 | JF4: =JE5+1 -> 1900-01-01 | JG4: =JF5+1 -> 1900-01-01 | JH4: =JG5+1 -> 1900-01-01 | JI4: =JH5+1 -> 1900-01-01 | JJ4: =JI5+1 -> 1900-01-01 | JK4: =JJ5+1 -> 1900-01-01 | JL4: =JK5+1 -> 1900-01-01 | JM4: =JL5+1 -> 1900-01-01 | JN4: =JM5+1 -> 1900-01-01 | JO4: =JN5+1 -> 1900-01-01 | JP4: =JO5+1 -> 1900-01-01 | JQ4: =JP5+1 -> 1900-01-01 | JR4: =JQ5+1 -> 1900-01-01 | JS4: =JR5+1 -> 1900-01-01 | JT4: =JS5+1 -> 1900-01-01 | JU4: =JT5+1 -> 1900-01-01 | JV4: =JU5+1 -> 1900-01-01 | JW4: =JV5+1 -> 1900-01-01 | JX4: =JW5+1 -> 1900-01-01 | JY4: =JX5+1 -> 1900-01-01 | JZ4: =JY5+1 -> 1900-01-01 | KA4: =JZ5+1 -> 1900-01-01 | KB4: =KA5+1 -> 1900-01-01 | KC4: =KB5+1 -> 1900-01-01 | KD4: =KC5+1 -> 1900-01-01 | KE4: =KD5+1 -> 1900-01-01 | KF4: =KE5+1 -> 1900-01-01 | KG4: =KF5+1 -> 1900-01-01 | KH4: =KG5+1 -> 1900-01-01 | KI4: =KH5+1 -> 1900-01-01 | KJ4: =KI5+1 -> 1900-01-01 | KK4: =KJ5+1 -> 1900-01-01 | KL4: =KK5+1 -> 1900-01-01 | KM4: =KL5+1 -> 1900-01-01 | KN4: =KM5+1 -> 1900-01-01 | KO4: =KN5+1 -> 1900-01-01 | KP4: =KO5+1 -> 1900-01-01 | KQ4: =KP5+1 -> 1900-01-01 | KR4: =KQ5+1 -> 1900-01-01 | KS4: =KR5+1 -> 1900-01-01 | KT4: =KS5+1 -> 1900-01-01 | KU4: =KT5+1 -> 1900-01-01 | KV4: =KU5+1 -> 1900-01-01 | KW4: =KV5+1 -> 1900-01-01 | KX4: =KW5+1 -> 1900-01-01 | KY4: =KX5+1 -> 1900-01-01 | KZ4: =KY5+1 -> 1900-01-01 | LA4: =KZ5+1 -> 1900-01-01 | LB4: =LA5+1 -> 1900-01-01 | LC4: =LB5+1 -> 1900-01-01 | LD4: =LC5+1 -> 1900-01-01 | LE4: =LD5+1 -> 1900-01-01 | LF4: =LE5+1 -> 1900-01-01 | LG4: =LF5+1 -> 1900-01-01 | LH4: =LG5+1 -> 1900-01-01 | LI4: =LH5+1 -> 1900-01-01 | LJ4: =LI5+1 -> 1900-01-01 | LK4: =LJ5+1 -> 1900-01-01 | LL4: =LK5+1 -> 1900-01-01 | LM4: =LL5+1 -> 1900-01-01 | LN4: =LM5+1 -> 1900-01-01 | LO4: =LN5+1 -> 1900-01-01 | LP4: =LO5+1 -> 1900-01-01 | LQ4: =LP5+1 -> 1900-01-01 | LR4: =LQ5+1 -> 1900-01-01 | LS4: =LR5+1 -> 1900-01-01 | LT4: =LS5+1 -> 1900-01-01 | LU4: =LT5+1 -> 1900-01-01 | LV4: =LU5+1 -> 1900-01-01 | LW4: =LV5+1 -> 1900-01-01 | LX4: =LW5+1 -> 1900-01-01 | LY4: =LX5+1 -> 1900-01-01 | LZ4: =LY5+1 -> 1900-01-01 | MA4: =LZ5+1 -> 1900-01-01 | MB4: =MA5+1 -> 1900-01-01 | MC4: =MB5+1 -> 1900-01-01 | MD4: =MC5+1 -> 1900-01-01 | ME4: =MD5+1 -> 1900-01-01 | MF4: =ME5+1 -> 1900-01-01 | MG4: =MF5+1 -> 1900-01-01 | MH4: =MG5+1 -> 1900-01-01 | MI4: =MH5+1 -> 1900-01-01 | MJ4: =MI5+1 -> 1900-01-01 | MK4: =MJ5+1 -> 1900-01-01 | ML4: =MK5+1 -> 1900-01-01 | MM4: =ML5+1 -> 1900-01-01 | MN4: =MM5+1 -> 1900-01-01 | MO4: =MN5+1 -> 1900-01-01 | MP4: =MO5+1 -> 1900-01-01 | MQ4: =MP5+1 -> 1900-01-01 | MR4: =MQ5+1 -> 1900-01-01 | MS4: =MR5+1 -> 1900-01-01 | MT4: =MS5+1 -> 1900-01-01 | MU4: =MT5+1 -> 1900-01-01 | MV4: =MU5+1 -> 1900-01-01 | MW4: =MV5+1 -> 1900-01-01 | MX4: =MW5+1 -> 1900-01-01 | MY4: =MX5+1 -> 1900-01-01 | MZ4: =MY5+1 -> 1900-01-01 | NA4: =MZ5+1 -> 1900-01-01 | NB4: =NA5+1 -> 1900-01-01 | NC4: =NB5+1 -> 1900-01-01 | ND4: =NC5+1 -> 1900-01-01 | NE4: =ND5+1 -> 1900-01-01 | NF4: =NE5+1 -> 1900-01-01 | NG4: =NF5+1 -> 1900-01-01 | NH4: =NG5+1 -> 1900-01-01 | NI4: =NH5+1 -> 1900-01-01 | NJ4: =NI5+1 -> 1900-01-01 | NK4: =NJ5+1 -> 1900-01-01 | NL4: =NK5+1 -> 1900-01-01 | NM4: =NL5+1 -> 1900-01-01 | NN4: =NM5+1 -> 1900-01-01 | NO4: =NN5+1 -> 1900-01-01 | NP4: =NO5+1 -> 1900-01-01 | NQ4: =NP5+1 -> 1900-01-01 | NR4: =NQ5+1 -> 1900-01-01 | NS4: =NR5+1 -> 1900-01-01 | NT4: =NS5+1 -> 1900-01-01 | NU4: =NT5+1 -> 1900-01-01 | NV4: =NU5+1 -> 1900-01-01 | NW4: =NV5+1 -> 1900-01-01 | NX4: =NW5+1 -> 1900-01-01 | NY4: =NX5+1 -> 1900-01-01 | NZ4: =NY5+1 -> 1900-01-01 | OA4: =NZ5+1 -> 1900-01-01 | OB4: =OA5+1 -> 1900-01-01 | OC4: =OB5+1 -> 1900-01-01 | OD4: =OC5+1 -> 1900-01-01 | OE4: =OD5+1 -> 1900-01-01 | OF4: =OE5+1 -> 1900-01-01 | OG4: =OF5+1 -> 1900-01-01 | OH4: =OG5+1 -> 1900-01-01 | OI4: =OH5+1 -> 1900-01-01 | OJ4: =OI5+1 -> 1900-01-01 | OK4: =OJ5+1 -> 1900-01-01 | OL4: =OK5+1 -> 1900-01-01 | OM4: =OL5+1 -> 1900-01-01 | ON4: =OM5+1 -> 1900-01-01 | OO4: =ON5+1 -> 1900-01-01 | OP4: =OO5+1 -> 1900-01-01 | OQ4: =OP5+1 -> 1900-01-01 | OR4: =OQ5+1 -> 1900-01-01 | OS4: =OR5+1 -> 1900-01-01 | OT4: =OS5+1 -> 1900-01-01 | OU4: =OT5+1 -> 1900-01-01 | OV4: =OU5+1 -> 1900-01-01 | OW4: =OV5+1 -> 1900-01-01 | OX4: =OW5+1 -> 1900-01-01 | OY4: =OX5+1 -> 1900-01-01 | OZ4: =OY5+1 -> 1900-01-01 | PA4: =OZ5+1 -> 1900-01-01 | PB4: =PA5+1 -> 1900-01-01 | PC4: =PB5+1 -> 1900-01-01 | PD4: =PC5+1 -> 1900-01-01 | PE4: =PD5+1 -> 1900-01-01 | PF4: =PE5+1 -> 1900-01-01 | PG4: =PF5+1 -> 1900-01-01 | PH4: =PG5+1 -> 1900-01-01 | PI4: =PH5+1 -> 1900-01-01 | PJ4: =PI5+1 -> 1900-01-01 | PK4: =PJ5+1 -> 1900-01-01 | PL4: =PK5+1 -> 1900-01-01 | PM4: =PL5+1 -> 1900-01-01 | PN4: =PM5+1 -> 1900-01-01 | PO4: =PN5+1 -> 1900-01-01 | PP4: =PO5+1 -> 1900-01-01 | PQ4: =PP5+1 -> 1900-01-01 | PR4: =PQ5+1 -> 1900-01-01 | PS4: =PR5+1 -> 1900-01-01 | PT4: =PS5+1 -> 1900-01-01 | PU4: =PT5+1 -> 1900-01-01 | PV4: =PU5+1 -> 1900-01-01 | PW4: =PV5+1 -> 1900-01-01 | PX4: =PW5+1 -> 1900-01-01 | PY4: =PX5+1 -> 1900-01-01 | PZ4: =PY5+1 -> 1900-01-01 | QA4: =PZ5+1 -> 1900-01-01 | QB4: =QA5+1 -> 1900-01-01 | QC4: =QB5+1 -> 1900-01-01 | QD4: =QC5+1 -> 1900-01-01 | QE4: =QD5+1 -> 1900-01-01 | QF4: =QE5+1 -> 1900-01-01 | QG4: =QF5+1 -> 1900-01-01 | QH4: =QG5+1 -> 1900-01-01 | QI4: =QH5+1 -> 1900-01-01 | QJ4: =QI5+1 -> 1900-01-01 | QK4: =QJ5+1 -> 1900-01-01 | QL4: =QK5+1 -> 1900-01-01 | QM4: =QL5+1 -> 1900-01-01 | QN4: =QM5+1 -> 1900-01-01 | QO4: =QN5+1 -> 1900-01-01 | QP4: =QO5+1 -> 1900-01-01 | QQ4: =QP5+1 -> 1900-01-01 | QR4: =QQ5+1 -> 1900-01-01 | QS4: =QR5+1 -> 1900-01-01 | QT4: =QS5+1 -> 1900-01-01 | QU4: =QT5+1 -> 1900-01-01 | QV4: =QU5+1 -> 1900-01-01 | QW4: =QV5+1 -> 1900-01-01 | QX4: =QW5+1 -> 1900-01-01 | QY4: =QX5+1 -> 1900-01-01 | QZ4: =QY5+1 -> 1900-01-01 | RA4: =QZ5+1 -> 1900-01-01 | RB4: =RA5+1 -> 1900-01-01 | RC4: =RB5+1 -> 1900-01-01 | RD4: =RC5+1 -> 1900-01-01 | RE4: =RD5+1 -> 1900-01-01 | RF4: =RE5+1 -> 1900-01-01 | RG4: =RF5+1 -> 1900-01-01 | RH4: =RG5+1 -> 1900-01-01 | RI4: =RH5+1 -> 1900-01-01 | RJ4: =RI5+1 -> 1900-01-01 | RK4: =RJ5+1 -> 1900-01-01 | RL4: =RK5+1 -> 1900-01-01 | RM4: =RL5+1 -> 1900-01-01 | RN4: =RM5+1 -> 1900-01-01 | RO4: =RN5+1 -> 1900-01-01 | RP4: =RO5+1 -> 1900-01-01 | RQ4: =RP5+1 -> 1900-01-01 | RR4: =RQ5+1 -> 1900-01-01 | RS4: =RR5+1 -> 1900-01-01 | RT4: =RS5+1 -> 1900-01-01 | RU4: =RT5+1 -> 1900-01-01 | RV4: =RU5+1 -> 1900-01-01 | RW4: =RV5+1 -> 1900-01-01 | RX4: =RW5+1 -> 1900-01-01 | RY4: =RX5+1 -> 1900-01-01 | RZ4: =RY5+1 -> 1900-01-01 | SA4: =RZ5+1 -> 1900-01-01 | SB4: =SA5+1 -> 1900-01-01 | SC4: =SB5+1 -> 1900-01-01 | SD4: =SC5+1 -> 1900-01-01 | SE4: =SD5+1 -> 1900-01-01 | SF4: =SE5+1 -> 1900-01-01 | SG4: =SF5+1 -> 1900-01-01 | SH4: =SG5+1 -> 1900-01-01 | SI4: =SH5+1 -> 1900-01-01 | SJ4: =SI5+1 -> 1900-01-01 | SK4: =SJ5+1 -> 1900-01-01 | SL4: =SK5+1 -> 1900-01-01 | SM4: =SL5+1 -> 1900-01-01 | SN4: =SM5+1 -> 1900-01-01 | SO4: =SN5+1 -> 1900-01-01 | SP4: =SO5+1 -> 1900-01-01 | SQ4: =SP5+1 -> 1900-01-01 | SR4: =SQ5+1 -> 1900-01-01 | SS4: =SR5+1 -> 1900-01-01 | ST4: =SS5+1 -> 1900-01-01 | SU4: =ST5+1 -> 1900-01-01 | SV4: =SU5+1 -> 1900-01-01 | SW4: =SV5+1 -> 1900-01-01 | SX4: =SW5+1 -> 1900-01-01 | SY4: =SX5+1 -> 1900-01-01 | SZ4: =SY5+1 -> 1900-01-01 | TA4: =SZ5+1 -> 1900-01-01 | TB4: =TA5+1 -> 1900-01-01 | TC4: =TB5+1 -> 1900-01-01 | TD4: =TC5+1 -> 1900-01-01 | TE4: =TD5+1 -> 1900-01-01 | TF4: =TE5+1 -> 1900-01-01 | TG4: =TF5+1 -> 1900-01-01 | TH4: =TG5+1 -> 1900-01-01 | TI4: =TH5+1 -> 1900-01-01 | TJ4: =TI5+1 -> 1900-01-01 | TK4: =TJ5+1 -> 1900-01-01 | TL4: =TK5+1 -> 1900-01-01 | TM4: =TL5+1 -> 1900-01-01 | TN4: =TM5+1 -> 1900-01-01 | TO4: =TN5+1 -> 1900-01-01 | TP4: =TO5+1 -> 1900-01-01 | TQ4: =TP5+1 -> 1900-01-01 | TR4: =TQ5+1 -> 1900-01-01 | TS4: =TR5+1 -> 1900-01-01 | TT4: =TS5+1 -> 1900-01-01 | TU4: =TT5+1 -> 1900-01-01 | TV4: =TU5+1 -> 1900-01-01 | TW4: =TV5+1 -> 1900-01-01 | TX4: =TW5+1 -> 1900-01-01 | TY4: =TX5+1 -> 1900-01-01 | TZ4: =TY5+1 -> 1900-01-01 | UA4: =TZ5+1 -> 1900-01-01 | UB4: =UA5+1 -> 1900-01-01 | UC4: =UB5+1 -> 1900-01-01 | UD4: =UC5+1 -> 1900-01-01 | UE4: =UD5+1 -> 1900-01-01 | UF4: =UE5+1 -> 1900-01-01 | UG4: =UF5+1 -> 1900-01-01 | UH4: =UG5+1 -> 1900-01-01 | UI4: =UH5+1 -> 1900-01-01 | UJ4: =UI5+1 -> 1900-01-01 | UK4: =UJ5+1 -> 1900-01-01 | UL4: =UK5+1 -> 1900-01-01 | UM4: =UL5+1 -> 1900-01-01 | UN4: =UM5+1 -> 1900-01-01 | UO4: =UN5+1 -> 1900-01-01 | UP4: =UO5+1 -> 1900-01-01 | UQ4: =UP5+1 -> 1900-01-01 | UR4: =UQ5+1 -> 1900-01-01 | US4: =UR5+1 -> 1900-01-01 | UT4: =US5+1 -> 1900-01-01 | UU4: =UT5+1 -> 1900-01-01 | UV4: =UU5+1 -> 1900-01-01 | UW4: =UV5+1 -> 1900-01-01 | UX4: =UW5+1 -> 1900-01-01 | UY4: =UX5+1 -> 1900-01-01 | UZ4: =UY5+1 -> 1900-01-01 | VA4: =UZ5+1 -> 1900-01-01 | VB4: =VA5+1 -> 1900-01-01 | VC4: =VB5+1 -> 1900-01-01 | VD4: =VC5+1 -> 1900-01-01 | VE4: =VD5+1 -> 1900-01-01 | VF4: =VE5+1 -> 1900-01-01 | VG4: =VF5+1 -> 1900-01-01 | VH4: =VG5+1 -> 1900-01-01 | VI4: =VH5+1 -> 1900-01-01 | VJ4: =VI5+1 -> 1900-01-01 | VK4: =VJ5+1 -> 1900-01-01 | VL4: =VK5+1 -> 1900-01-01 | VM4: =VL5+1 -> 1900-01-01 | VN4: =VM5+1 -> 1900-01-01 | VO4: =VN5+1 -> 1900-01-01 | VP4: =VO5+1 -> 1900-01-01 | VQ4: =VP5+1 -> 1900-01-01 | VR4: =VQ5+1 -> 1900-01-01 | VS4: =VR5+1 -> 1900-01-01 | VT4: =VS5+1 -> 1900-01-01 | VU4: =VT5+1 -> 1900-01-01 | VV4: =VU5+1 -> 1900-01-01 | VW4: =VV5+1 -> 1900-01-01 | VX4: =VW5+1 -> 1900-01-01 | VY4: =VX5+1 -> 1900-01-01 | VZ4: =VY5+1 -> 1900-01-01 | WA4: =VZ5+1 -> 1900-01-01 | WB4: =WA5+1 -> 1900-01-01 | WC4: =WB5+1 -> 1900-01-01 | WD4: =WC5+1 -> 1900-01-01 | WE4: =WD5+1 -> 1900-01-01 | WF4: =WE5+1 -> 1900-01-01 | WG4: =WF5+1 -> 1900-01-01 | WH4: =WG5+1 -> 1900-01-01 | WI4: =WH5+1 -> 1900-01-01 | WJ4: =WI5+1 -> 1900-01-01 | WK4: =WJ5+1 -> 1900-01-01 | WL4: =WK5+1 -> 1900-01-01 | WM4: =WL5+1 -> 1900-01-01 | WN4: =WM5+1 -> 1900-01-01 | WO4: =WN5+1 -> 1900-01-01 | WP4: =WO5+1 -> 1900-01-01 | WQ4: =WP5+1 -> 1900-01-01 | WR4: =WQ5+1 -> 1900-01-01 | WS4: =WR5+1 -> 1900-01-01 | WT4: =WS5+1 -> 1900-01-01 | WU4: =WT5+1 -> 1900-01-01 | WV4: =WU5+1 -> 1900-01-01 | WW4: =WV5+1 -> 1900-01-01 | WX4: =WW5+1 -> 1900-01-01 | WY4: =WX5+1 -> 1900-01-01 | WZ4: =WY5+1 -> 1900-01-01 | XA4: =WZ5+1 -> 1900-01-01 | XB4: =XA5+1 -> 1900-01-01 | XC4: =XB5+1 -> 1900-01-01 | XD4: =XC5+1 -> 1900-01-01 | XE4: =XD5+1 -> 1900-01-01 | XF4: =XE5+1 -> 1900-01-01 | XG4: =XF5+1 -> 1900-01-01 | XH4: =XG5+1 -> 1900-01-01 | XI4: =XH5+1 -> 1900-01-01 | XJ4: =XI5+1 -> 1900-01-01 | XK4: =XJ5+1 -> 1900-01-01 | XL4: =XK5+1 -> 1900-01-01 | XM4: =XL5+1 -> 1900-01-01 | XN4: =XM5+1 -> 1900-01-01 | XO4: =XN5+1 -> 1900-01-01 | XP4: =XO5+1 -> 1900-01-01 | XQ4: =XP5+1 -> 1900-01-01 | XR4: =XQ5+1 -> 1900-01-01 | XS4: =XR5+1 -> 1900-01-01 | XT4: =XS5+1 -> 1900-01-01 | XU4: =XT5+1 -> 1900-01-01 | XV4: =XU5+1 -> 1900-01-01 | XW4: =XV5+1 -> 1900-01-01 | XX4: =XW5+1 -> 1900-01-01 | XY4: =XX5+1 -> 1900-01-01 | XZ4: =XY5+1 -> 1900-01-01 | YA4: =XZ5+1 -> 1900-01-01 | YB4: =YA5+1 -> 1900-01-01 | YC4: =YB5+1 -> 1900-01-01 | YD4: =YC5+1 -> 1900-01-01 | YE4: =YD5+1 -> 1900-01-01 | YF4: =YE5+1 -> 1900-01-01 | YG4: =YF5+1 -> 1900-01-01 | YH4: =YG5+1 -> 1900-01-01 | YI4: =YH5+1 -> 1900-01-01 | YJ4: =YI5+1 -> 1900-01-01 | YK4: =YJ5+1 -> 1900-01-01 | YL4: =YK5+1 -> 1900-01-01 | YM4: =YL5+1 -> 1900-01-01 | YN4: =YM5+1 -> 1900-01-01 | YO4: =YN5+1 -> 1900-01-01 | YP4: =YO5+1 -> 1900-01-01 | YQ4: =YP5+1 -> 1900-01-01 | YR4: =YQ5+1 -> 1900-01-01 | YS4: =YR5+1 -> 1900-01-01 | YT4: =YS5+1 -> 1900-01-01 | YU4: =YT5+1 -> 1900-01-01 | YV4: =YU5+1 -> 1900-01-01 | YW4: =YV5+1 -> 1900-01-01 | YX4: =YW5+1 -> 1900-01-01 | YY4: =YX5+1 -> 1900-01-01 | YZ4: =YY5+1 -> 1900-01-01 | ZA4: =YZ5+1 -> 1900-01-01 | ZB4: =ZA5+1 -> 1900-01-01 | ZC4: =ZB5+1 -> 1900-01-01 | ZD4: =ZC5+1 -> 1900-01-01 | ZE4: =ZD5+1 -> 1900-01-01 | ZF4: =ZE5+1 -> 1900-01-01 | ZG4: =ZF5+1 -> 1900-01-01 | ZH4: =ZG5+1 -> 1900-01-01 | ZI4: =ZH5+1 -> 1900-01-01 | ZJ4: =ZI5+1 -> 1900-01-01 | ZK4: =ZJ5+1 -> 1900-01-01 | ZL4: =ZK5+1 -> 1900-01-01 | ZM4: =ZL5+1 -> 1900-01-01 | ZN4: =ZM5+1 -> 1900-01-01 | ZO4: =ZN5+1 -> 1900-01-01 | ZP4: =ZO5+1 -> 1900-01-01 | ZQ4: =ZP5+1 -> 1900-01-01 | ZR4: =ZQ5+1 -> 1900-01-01 | ZS4: =ZR5+1 -> 1900-01-01 | ZT4: =ZS5+1 -> 1900-01-01 | ZU4: =ZT5+1 -> 1900-01-01 | ZV4: =ZU5+1 -> 1900-01-01 | ZW4: =ZV5+1 -> 1900-01-01 | ZX4: =ZW5+1 -> 1900-01-01 | ZY4: =ZX5+1 -> 1900-01-01 | ZZ4: =ZY5+1 -> 1900-01-01 | AAA4: =ZZ5+1 -> 1900-01-01 | AAB4: =AAA5+1 -> 1900-01-01 | AAC4: =AAB5+1 -> 1900-01-01 | AAD4: =AAC5+1 -> 1900-01-01 | AAE4: =AAD5+1 -> 1900-01-01 | AAF4: =AAE5+1 -> 1900-01-01 | AAG4: =AAF5+1 -> 1900-01-01 | AAH4: =AAG5+1 -> 1900-01-01 | AAI4: =AAH5+1 -> 1900-01-01 | AAJ4: =AAI5+1 -> 1900-01-01 | AAK4: =AAJ5+1 -> 1900-01-01 | AAL4: =AAK5+1 -> 1900-01-01 | AAM4: =AAL5+1 -> 1900-01-01 | AAN4: =AAM5+1 -> 1900-01-01 | AAO4: =AAN5+1 -> 1900-01-01 | AAP4: =AAO5+1 -> 1900-01-01 | AAQ4: =AAP5+1 -> 1900-01-01 | AAR4: =AAQ5+1 -> 1900-01-01 | AAS4: =AAR5+1 -> 1900-01-01 | AAT4: =AAS5+1 -> 1900-01-01 | AAU4: =AAT5+1 -> 1900-01-01 | AAV4: =AAU5+1 -> 1900-01-01 | AAW4: =AAV5+1 -> 1900-01-01 | AAX4: =AAW5+1 -> 1900-01-01 | AAY4: =AAX5+1 -> 1900-01-01 | AAZ4: =AAY5+1 -> 1900-01-01 | ABA4: =AAZ5+1 -> 1900-01-01 | ABB4: =ABA5+1 -> 1900-01-01 | ABC4: =ABB5+1 -> 1900-01-01 | ABD4: =ABC5+1 -> 1900-01-01 | ABE4: =ABD5+1 -> 1900-01-01 | ABF4: =ABE5+1 -> 1900-01-01 | ABG4: =ABF5+1 -> 1900-01-01 | ABH4: =ABG5+1 -> 1900-01-01 | ABI4: =ABH5+1 -> 1900-01-01 | ABJ4: =ABI5+1 -> 1900-01-01 | ABK4: =ABJ5+1 -> 1900-01-01 | ABL4: =ABK5+1 -> 1900-01-01 | ABM4: =ABL5+1 -> 1900-01-01 | ABN4: =ABM5+1 -> 1900-01-01 | ABO4: =ABN5+1 -> 1900-01-01 | ABP4: =ABO5+1 -> 1900-01-01 | ABQ4: =ABP5+1 -> 1900-01-01 | ABR4: =ABQ5+1 -> 1900-01-01 | ABS4: =ABR5+1 -> 1900-01-01 | ABT4: =ABS5+1 -> 1900-01-01 | ABU4: =ABT5+1 -> 1900-01-01 | ABV4: =ABU5+1 -> 1900-01-01 | ABW4: =ABV5+1 -> 1900-01-01 | ABX4: =ABW5+1 -> 1900-01-01 | ABY4: =ABX5+1 -> 1900-01-01 | ABZ4: =ABY5+1 -> 1900-01-01
D5: End of period | E5: Date | F5: =InputC!I16 -> 1 | I5: Date | J5: =InputS!F4-1 -> 2024-12-31
D6: Construction in Periods | E6: Periods | F6: =InputC!F11 -> 2026-09-01 | G6: =InputC!F14 -> 2027-06-01 | H6: =SUM(K6:XFD6) -> 0 | I6: Flag
D7: Operation period | E7: Flag | F7: =InputC!F14 -> 2027-06-01 | G7: =InputC!F19 -> 2059-06-01 | H7: =SUM(K7:XFD7) -> 0 | I7: Flag
D8: Operating Life in Periods | I8: Counter | K8: =J8+K7 -> 0 | L8: =K8+L7 -> 0 | M8: 0 | N8: 0 | O8: 0 | P8: 0 | Q8: 0 | R8: 0 | S8: 0 | T8: 0 | U8: 0 | V8: 0 | W8: 0 | X8: 0 | Y8: 0 | Z8: 0 | AA8: 0 | AB8: 0 | AC8: 0 | AD8: 0 | AE8: 0 | AF8: 0 | AG8: 0 | AH8: 0 | AI8: 0 | AJ8: 0 | AK8: 0 | AL8: 0 | AM8: 0 | AN8: 0 | AO8: 0 | AP8: 0 | AQ8: 0 | AR8: 0 | AS8: 0 | AT8: 0 | AU8: 0 | AV8: 0 | AW8: 0 | AX8: 0 | AY8: 0 | AZ8: 0 | BA8: 0 | BB8: 0 | BC8: 0 | BD8: 0 | BE8: 0 | BF8: 0 | BG8: 0 | BH8: 0 | BI8: 0 | BJ8: 0 | BK8: 0 | BL8: 0 | BM8: 0 | BN8: 0 | BO8: 0 | BP8: 0 | BQ8: 0 | BR8: 0 | BS8: 0 | BT8: 0 | BU8: 0 | BV8: 0 | BW8: 0 | BX8: =BW8+BX7 -> 0 | BY8: 0 | BZ8: 0 | CA8: 0 | CB8: 0 | CC8: 0 | CD8: 0 | CE8: 0 | CF8: 0 | CG8: 0 | CH8: 0 | CI8: 0 | CJ8: 0 | CK8: 0 | CL8: 0 | CM8: 0 | CN8: 0 | CO8: 0 | CP8: 0 | CQ8: 0 | CR8: 0 | CS8: 0 | CT8: 0 | CU8: 0 | CV8: 0 | CW8: 0 | CX8: 0 | CY8: 0 | CZ8: 0 | DA8: 0 | DB8: 0 | DC8: 0 | DD8: 0 | DE8: 0 | DF8: 0 | DG8: 0 | DH8: 0 | DI8: 0 | DJ8: 0 | DK8: 0 | DL8: 0 | DM8: 0 | DN8: 0 | DO8: 0 | DP8: 0 | DQ8: 0 | DR8: 0 | DS8: 0 | DT8: 0 | DU8: 0 | DV8: 0 | DW8: 0 | DX8: 0 | DY8: 0 | DZ8: 0 | EA8: 0 | EB8: 0 | EC8: 0 | ED8: 0 | EE8: 0 | EF8: 0 | EG8: 0 | EH8: 0 | EI8: 0 | EJ8: =EI8+EJ7 -> 0 | EK8: 0 | EL8: 0 | EM8: 0 | EN8: 0 | EO8: 0 | EP8: 0 | EQ8: 0 | ER8: 0 | ES8: 0 | ET8: 0 | EU8: 0 | EV8: 0 | EW8: 0 | EX8: 0 | EY8: 0 | EZ8: 0 | FA8: 0 | FB8: 0 | FC8: 0 | FD8: 0 | FE8: 0 | FF8: 0 | FG8: 0 | FH8: 0 | FI8: 0 | FJ8: 0 | FK8: 0 | FL8: 0 | FM8: 0 | FN8: 0 | FO8: 0 | FP8: 0 | FQ8: 0 | FR8: 0 | FS8: 0 | FT8: 0 | FU8: 0 | FV8: 0 | FW8: 0 | FX8: 0 | FY8: 0 | FZ8: 0 | GA8: 0 | GB8: 0 | GC8: 0 | GD8: 0 | GE8: 0 | GF8: 0 | GG8: 0 | GH8: 0 | GI8: 0 | GJ8: 0 | GK8: 0 | GL8: 0 | GM8: 0 | GN8: 0 | GO8: 0 | GP8: 0 | GQ8: 0 | GR8: 0 | GS8: 0 | GT8: 0 | GU8: 0 | GV8: =GU8+GV7 -> 0 | GW8: 0 | GX8: 0 | GY8: 0 | GZ8: 0 | HA8: 0 | HB8: 0 | HC8: 0 | HD8: 0 | HE8: 0 | HF8: 0 | HG8: 0 | HH8: 0 | HI8: 0 | HJ8: 0 | HK8: 0 | HL8: 0 | HM8: 0 | HN8: 0 | HO8: 0 | HP8: 0 | HQ8: 0 | HR8: 0 | HS8: 0 | HT8: 0 | HU8: 0 | HV8: 0 | HW8: 0 | HX8: 0 | HY8: 0 | HZ8: 0 | IA8: 0 | IB8: 0 | IC8: 0 | ID8: 0 | IE8: 0 | IF8: 0 | IG8: 0 | IH8: 0 | II8: 0 | IJ8: 0 | IK8: 0 | IL8: 0 | IM8: 0 | IN8: 0 | IO8: 0 | IP8: 0 | IQ8: 0 | IR8: 0 | IS8: 0 | IT8: 0 | IU8: 0 | IV8: 0 | IW8: 0 | IX8: 0 | IY8: 0 | IZ8: 0 | JA8: =IZ8+JA7 -> 0 | JB8: =JA8+JB7 -> 0 | JC8: =JB8+JC7 -> 0 | JD8: =JC8+JD7 -> 0 | JE8: =JD8+JE7 -> 0 | JF8: =JE8+JF7 -> 0 | JG8: =JF8+JG7 -> 0 | JH8: =JG8+JH7 -> 0 | JI8: =JH8+JI7 -> 0 | JJ8: =JI8+JJ7 -> 0 | JK8: =JJ8+JK7 -> 0 | JL8: =JK8+JL7 -> 0 | JM8: =JL8+JM7 -> 0 | JN8: =JM8+JN7 -> 0 | JO8: =JN8+JO7 -> 0 | JP8: =JO8+JP7 -> 0 | JQ8: =JP8+JQ7 -> 0 | JR8: =JQ8+JR7 -> 0 | JS8: =JR8+JS7 -> 0 | JT8: =JS8+JT7 -> 0 | JU8: =JT8+JU7 -> 0 | JV8: =JU8+JV7 -> 0 | JW8: =JV8+JW7 -> 0 | JX8: =JW8+JX7 -> 0 | JY8: =JX8+JY7 -> 0 | JZ8: =JY8+JZ7 -> 0 | KA8: =JZ8+KA7 -> 0 | KB8: =KA8+KB7 -> 0 | KC8: =KB8+KC7 -> 0 | KD8: =KC8+KD7 -> 0 | KE8: =KD8+KE7 -> 0 | KF8: =KE8+KF7 -> 0 | KG8: =KF8+KG7 -> 0 | KH8: =KG8+KH7 -> 0 | KI8: =KH8+KI7 -> 0 | KJ8: =KI8+KJ7 -> 0 | KK8: =KJ8+KK7 -> 0 | KL8: =KK8+KL7 -> 0 | KM8: =KL8+KM7 -> 0 | KN8: =KM8+KN7 -> 0 | KO8: =KN8+KO7 -> 0 | KP8: =KO8+KP7 -> 0 | KQ8: =KP8+KQ7 -> 0 | KR8: =KQ8+KR7 -> 0 | KS8: =KR8+KS7 -> 0 | KT8: =KS8+KT7 -> 0 | KU8: =KT8+KU7 -> 0 | KV8: =KU8+KV7 -> 0 | KW8: =KV8+KW7 -> 0 | KX8: =KW8+KX7 -> 0 | KY8: =KX8+KY7 -> 0 | KZ8: =KY8+KZ7 -> 0 | LA8: =KZ8+LA7 -> 0 | LB8: =LA8+LB7 -> 0 | LC8: =LB8+LC7 -> 0 | LD8: =LC8+LD7 -> 0 | LE8: =LD8+LE7 -> 0 | LF8: =LE8+LF7 -> 0 | LG8: =LF8+LG7 -> 0 | LH8: =LG8+LH7 -> 0 | LI8: =LH8+LI7 -> 0 | LJ8: =LI8+LJ7 -> 0 | LK8: =LJ8+LK7 -> 0 | LL8: =LK8+LL7 -> 0 | LM8: =LL8+LM7 -> 0 | LN8: =LM8+LN7 -> 0 | LO8: =LN8+LO7 -> 0 | LP8: =LO8+LP7 -> 0 | LQ8: =LP8+LQ7 -> 0 | LR8: =LQ8+LR7 -> 0 | LS8: =LR8+LS7 -> 0 | LT8: =LS8+LT7 -> 0 | LU8: =LT8+LU7 -> 0 | LV8: =LU8+LV7 -> 0 | LW8: =LV8+LW7 -> 0 | LX8: =LW8+LX7 -> 0 | LY8: =LX8+LY7 -> 0 | LZ8: =LY8+LZ7 -> 0 | MA8: =LZ8+MA7 -> 0 | MB8: =MA8+MB7 -> 0 | MC8: =MB8+MC7 -> 0 | MD8: =MC8+MD7 -> 0 | ME8: =MD8+ME7 -> 0 | MF8: =ME8+MF7 -> 0 | MG8: =MF8+MG7 -> 0 | MH8: =MG8+MH7 -> 0 | MI8: =MH8+MI7 -> 0 | MJ8: =MI8+MJ7 -> 0 | MK8: =MJ8+MK7 -> 0 | ML8: =MK8+ML7 -> 0 | MM8: =ML8+MM7 -> 0 | MN8: =MM8+MN7 -> 0 | MO8: =MN8+MO7 -> 0 | MP8: =MO8+MP7 -> 0 | MQ8: =MP8+MQ7 -> 0 | MR8: =MQ8+MR7 -> 0 | MS8: =MR8+MS7 -> 0 | MT8: =MS8+MT7 -> 0 | MU8: =MT8+MU7 -> 0 | MV8: =MU8+MV7 -> 0 | MW8: =MV8+MW7 -> 0 | MX8: =MW8+MX7 -> 0 | MY8: =MX8+MY7 -> 0 | MZ8: =MY8+MZ7 -> 0 | NA8: =MZ8+NA7 -> 0 | NB8: =NA8+NB7 -> 0 | NC8: =NB8+NC7 -> 0 | ND8: =NC8+ND7 -> 0 | NE8: =ND8+NE7 -> 0 | NF8: =NE8+NF7 -> 0 | NG8: =NF8+NG7 -> 0 | NH8: =NG8+NH7 -> 0 | NI8: =NH8+NI7 -> 0 | NJ8: =NI8+NJ7 -> 0 | NK8: =NJ8+NK7 -> 0 | NL8: =NK8+NL7 -> 0 | NM8: =NL8+NM7 -> 0 | NN8: =NM8+NN7 -> 0 | NO8: =NN8+NO7 -> 0 | NP8: =NO8+NP7 -> 0 | NQ8: =NP8+NQ7 -> 0 | NR8: =NQ8+NR7 -> 0 | NS8: =NR8+NS7 -> 0 | NT8: =NS8+NT7 -> 0 | NU8: =NT8+NU7 -> 0 | NV8: =NU8+NV7 -> 0 | NW8: =NV8+NW7 -> 0 | NX8: =NW8+NX7 -> 0 | NY8: =NX8+NY7 -> 0 | NZ8: =NY8+NZ7 -> 0 | OA8: =NZ8+OA7 -> 0 | OB8: =OA8+OB7 -> 0 | OC8: =OB8+OC7 -> 0 | OD8: =OC8+OD7 -> 0 | OE8: =OD8+OE7 -> 0 | OF8: =OE8+OF7 -> 0 | OG8: =OF8+OG7 -> 0 | OH8: =OG8+OH7 -> 0 | OI8: =OH8+OI7 -> 0 | OJ8: =OI8+OJ7 -> 0 | OK8: =OJ8+OK7 -> 0 | OL8: =OK8+OL7 -> 0 | OM8: =OL8+OM7 -> 0 | ON8: =OM8+ON7 -> 0 | OO8: =ON8+OO7 -> 0 | OP8: =OO8+OP7 -> 0 | OQ8: =OP8+OQ7 -> 0 | OR8: =OQ8+OR7 -> 0 | OS8: =OR8+OS7 -> 0 | OT8: =OS8+OT7 -> 0 | OU8: =OT8+OU7 -> 0 | OV8: =OU8+OV7 -> 0 | OW8: =OV8+OW7 -> 0 | OX8: =OW8+OX7 -> 0 | OY8: =OX8+OY7 -> 0 | OZ8: =OY8+OZ7 -> 0 | PA8: =OZ8+PA7 -> 0 | PB8: =PA8+PB7 -> 0 | PC8: =PB8+PC7 -> 0 | PD8: =PC8+PD7 -> 0 | PE8: =PD8+PE7 -> 0 | PF8: =PE8+PF7 -> 0 | PG8: =PF8+PG7 -> 0 | PH8: =PG8+PH7 -> 0 | PI8: =PH8+PI7 -> 0 | PJ8: =PI8+PJ7 -> 0 | PK8: =PJ8+PK7 -> 0 | PL8: =PK8+PL7 -> 0 | PM8: =PL8+PM7 -> 0 | PN8: =PM8+PN7 -> 0 | PO8: =PN8+PO7 -> 0 | PP8: =PO8+PP7 -> 0 | PQ8: =PP8+PQ7 -> 0 | PR8: =PQ8+PR7 -> 0 | PS8: =PR8+PS7 -> 0 | PT8: =PS8+PT7 -> 0 | PU8: =PT8+PU7 -> 0 | PV8: =PU8+PV7 -> 0 | PW8: =PV8+PW7 -> 0 | PX8: =PW8+PX7 -> 0 | PY8: =PX8+PY7 -> 0 | PZ8: =PY8+PZ7 -> 0 | QA8: =PZ8+QA7 -> 0 | QB8: =QA8+QB7 -> 0 | QC8: =QB8+QC7 -> 0 | QD8: =QC8+QD7 -> 0 | QE8: =QD8+QE7 -> 0 | QF8: =QE8+QF7 -> 0 | QG8: =QF8+QG7 -> 0 | QH8: =QG8+QH7 -> 0 | QI8: =QH8+QI7 -> 0 | QJ8: =QI8+QJ7 -> 0 | QK8: =QJ8+QK7 -> 0 | QL8: =QK8+QL7 -> 0 | QM8: =QL8+QM7 -> 0 | QN8: =QM8+QN7 -> 0 | QO8: =QN8+QO7 -> 0 | QP8: =QO8+QP7 -> 0 | QQ8: =QP8+QQ7 -> 0 | QR8: =QQ8+QR7 -> 0 | QS8: =QR8+QS7 -> 0 | QT8: =QS8+QT7 -> 0 | QU8: =QT8+QU7 -> 0 | QV8: =QU8+QV7 -> 0 | QW8: =QV8+QW7 -> 0 | QX8: =QW8+QX7 -> 0 | QY8: =QX8+QY7 -> 0 | QZ8: =QY8+QZ7 -> 0 | RA8: =QZ8+RA7 -> 0 | RB8: =RA8+RB7 -> 0 | RC8: =RB8+RC7 -> 0 | RD8: =RC8+RD7 -> 0 | RE8: =RD8+RE7 -> 0 | RF8: =RE8+RF7 -> 0 | RG8: =RF8+RG7 -> 0 | RH8: =RG8+RH7 -> 0 | RI8: =RH8+RI7 -> 0 | RJ8: =RI8+RJ7 -> 0 | RK8: =RJ8+RK7 -> 0 | RL8: =RK8+RL7 -> 0 | RM8: =RL8+RM7 -> 0 | RN8: =RM8+RN7 -> 0 | RO8: =RN8+RO7 -> 0 | RP8: =RO8+RP7 -> 0 | RQ8: =RP8+RQ7 -> 0 | RR8: =RQ8+RR7 -> 0 | RS8: =RR8+RS7 -> 0 | RT8: =RS8+RT7 -> 0 | RU8: =RT8+RU7 -> 0 | RV8: =RU8+RV7 -> 0 | RW8: =RV8+RW7 -> 0 | RX8: =RW8+RX7 -> 0 | RY8: =RX8+RY7 -> 0 | RZ8: =RY8+RZ7 -> 0 | SA8: =RZ8+SA7 -> 0 | SB8: =SA8+SB7 -> 0 | SC8: =SB8+SC7 -> 0 | SD8: =SC8+SD7 -> 0 | SE8: =SD8+SE7 -> 0 | SF8: =SE8+SF7 -> 0 | SG8: =SF8+SG7 -> 0 | SH8: =SG8+SH7 -> 0 | SI8: =SH8+SI7 -> 0 | SJ8: =SI8+SJ7 -> 0 | SK8: =SJ8+SK7 -> 0 | SL8: =SK8+SL7 -> 0 | SM8: =SL8+SM7 -> 0 | SN8: =SM8+SN7 -> 0 | SO8: =SN8+SO7 -> 0 | SP8: =SO8+SP7 -> 0 | SQ8: =SP8+SQ7 -> 0 | SR8: =SQ8+SR7 -> 0 | SS8: =SR8+SS7 -> 0 | ST8: =SS8+ST7 -> 0 | SU8: =ST8+SU7 -> 0 | SV8: =SU8+SV7 -> 0 | SW8: =SV8+SW7 -> 0 | SX8: =SW8+SX7 -> 0 | SY8: =SX8+SY7 -> 0 | SZ8: =SY8+SZ7 -> 0 | TA8: =SZ8+TA7 -> 0 | TB8: =TA8+TB7 -> 0 | TC8: =TB8+TC7 -> 0 | TD8: =TC8+TD7 -> 0 | TE8: =TD8+TE7 -> 0 | TF8: =TE8+TF7 -> 0 | TG8: =TF8+TG7 -> 0 | TH8: =TG8+TH7 -> 0 | TI8: =TH8+TI7 -> 0 | TJ8: =TI8+TJ7 -> 0 | TK8: =TJ8+TK7 -> 0 | TL8: =TK8+TL7 -> 0 | TM8: =TL8+TM7 -> 0 | TN8: =TM8+TN7 -> 0 | TO8: =TN8+TO7 -> 0 | TP8: =TO8+TP7 -> 0 | TQ8: =TP8+TQ7 -> 0 | TR8: =TQ8+TR7 -> 0 | TS8: =TR8+TS7 -> 0 | TT8: =TS8+TT7 -> 0 | TU8: =TT8+TU7 -> 0 | TV8: =TU8+TV7 -> 0 | TW8: =TV8+TW7 -> 0 | TX8: =TW8+TX7 -> 0 | TY8: =TX8+TY7 -> 0 | TZ8: =TY8+TZ7 -> 0 | UA8: =TZ8+UA7 -> 0 | UB8: =UA8+UB7 -> 0 | UC8: =UB8+UC7 -> 0 | UD8: =UC8+UD7 -> 0 | UE8: =UD8+UE7 -> 0 | UF8: =UE8+UF7 -> 0 | UG8: =UF8+UG7 -> 0 | UH8: =UG8+UH7 -> 0 | UI8: =UH8+UI7 -> 0 | UJ8: =UI8+UJ7 -> 0 | UK8: =UJ8+UK7 -> 0 | UL8: =UK8+UL7 -> 0 | UM8: =UL8+UM7 -> 0 | UN8: =UM8+UN7 -> 0 | UO8: =UN8+UO7 -> 0 | UP8: =UO8+UP7 -> 0 | UQ8: =UP8+UQ7 -> 0 | UR8: =UQ8+UR7 -> 0 | US8: =UR8+US7 -> 0 | UT8: =US8+UT7 -> 0 | UU8: =UT8+UU7 -> 0 | UV8: =UU8+UV7 -> 0 | UW8: =UV8+UW7 -> 0 | UX8: =UW8+UX7 -> 0 | UY8: =UX8+UY7 -> 0 | UZ8: =UY8+UZ7 -> 0 | VA8: =UZ8+VA7 -> 0 | VB8: =VA8+VB7 -> 0 | VC8: =VB8+VC7 -> 0 | VD8: =VC8+VD7 -> 0 | VE8: =VD8+VE7 -> 0 | VF8: =VE8+VF7 -> 0 | VG8: =VF8+VG7 -> 0 | VH8: =VG8+VH7 -> 0 | VI8: =VH8+VI7 -> 0 | VJ8: =VI8+VJ7 -> 0 | VK8: =VJ8+VK7 -> 0 | VL8: =VK8+VL7 -> 0 | VM8: =VL8+VM7 -> 0 | VN8: =VM8+VN7 -> 0 | VO8: =VN8+VO7 -> 0 | VP8: =VO8+VP7 -> 0 | VQ8: =VP8+VQ7 -> 0 | VR8: =VQ8+VR7 -> 0 | VS8: =VR8+VS7 -> 0 | VT8: =VS8+VT7 -> 0 | VU8: =VT8+VU7 -> 0 | VV8: =VU8+VV7 -> 0 | VW8: =VV8+VW7 -> 0 | VX8: =VW8+VX7 -> 0 | VY8: =VX8+VY7 -> 0 | VZ8: =VY8+VZ7 -> 0 | WA8: =VZ8+WA7 -> 0 | WB8: =WA8+WB7 -> 0 | WC8: =WB8+WC7 -> 0 | WD8: =WC8+WD7 -> 0 | WE8: =WD8+WE7 -> 0 | WF8: =WE8+WF7 -> 0 | WG8: =WF8+WG7 -> 0 | WH8: =WG8+WH7 -> 0 | WI8: =WH8+WI7 -> 0 | WJ8: =WI8+WJ7 -> 0 | WK8: =WJ8+WK7 -> 0 | WL8: =WK8+WL7 -> 0 | WM8: =WL8+WM7 -> 0 | WN8: =WM8+WN7 -> 0 | WO8: =WN8+WO7 -> 0 | WP8: =WO8+WP7 -> 0 | WQ8: =WP8+WQ7 -> 0 | WR8: =WQ8+WR7 -> 0 | WS8: =WR8+WS7 -> 0 | WT8: =WS8+WT7 -> 0 | WU8: =WT8+WU7 -> 0 | WV8: =WU8+WV7 -> 0 | WW8: =WV8+WW7 -> 0 | WX8: =WW8+WX7 -> 0 | WY8: =WX8+WY7 -> 0 | WZ8: =WY8+WZ7 -> 0 | XA8: =WZ8+XA7 -> 0 | XB8: =XA8+XB7 -> 0 | XC8: =XB8+XC7 -> 0 | XD8: =XC8+XD7 -> 0 | XE8: =XD8+XE7 -> 0 | XF8: =XE8+XF7 -> 0 | XG8: =XF8+XG7 -> 0 | XH8: =XG8+XH7 -> 0 | XI8: =XH8+XI7 -> 0 | XJ8: =XI8+XJ7 -> 0 | XK8: =XJ8+XK7 -> 0 | XL8: =XK8+XL7 -> 0 | XM8: =XL8+XM7 -> 0 | XN8: =XM8+XN7 -> 0 | XO8: =XN8+XO7 -> 0 | XP8: =XO8+XP7 -> 0 | XQ8: =XP8+XQ7 -> 0 | XR8: =XQ8+XR7 -> 0 | XS8: =XR8+XS7 -> 0 | XT8: =XS8+XT7 -> 0 | XU8: =XT8+XU7 -> 0 | XV8: =XU8+XV7 -> 0 | XW8: =XV8+XW7 -> 0 | XX8: =XW8+XX7 -> 0 | XY8: =XX8+XY7 -> 0 | XZ8: =XY8+XZ7 -> 0 | YA8: =XZ8+YA7 -> 0 | YB8: =YA8+YB7 -> 0 | YC8: =YB8+YC7 -> 0 | YD8: =YC8+YD7 -> 0 | YE8: =YD8+YE7 -> 0 | YF8: =YE8+YF7 -> 0 | YG8: =YF8+YG7 -> 0 | YH8: =YG8+YH7 -> 0 | YI8: =YH8+YI7 -> 0 | YJ8: =YI8+YJ7 -> 0 | YK8: =YJ8+YK7 -> 0 | YL8: =YK8+YL7 -> 0 | YM8: =YL8+YM7 -> 0 | YN8: =YM8+YN7 -> 0 | YO8: =YN8+YO7 -> 0 | YP8: =YO8+YP7 -> 0 | YQ8: =YP8+YQ7 -> 0 | YR8: =YQ8+YR7 -> 0 | YS8: =YR8+YS7 -> 0 | YT8: =YS8+YT7 -> 0 | YU8: =YT8+YU7 -> 0 | YV8: =YU8+YV7 -> 0 | YW8: =YV8+YW7 -> 0 | YX8: =YW8+YX7 -> 0 | YY8: =YX8+YY7 -> 0 | YZ8: =YY8+YZ7 -> 0 | ZA8: =YZ8+ZA7 -> 0 | ZB8: =ZA8+ZB7 -> 0 | ZC8: =ZB8+ZC7 -> 0 | ZD8: =ZC8+ZD7 -> 0 | ZE8: =ZD8+ZE7 -> 0 | ZF8: =ZE8+ZF7 -> 0 | ZG8: =ZF8+ZG7 -> 0 | ZH8: =ZG8+ZH7 -> 0 | ZI8: =ZH8+ZI7 -> 0 | ZJ8: =ZI8+ZJ7 -> 0 | ZK8: =ZJ8+ZK7 -> 0 | ZL8: =ZK8+ZL7 -> 0 | ZM8: =ZL8+ZM7 -> 0 | ZN8: =ZM8+ZN7 -> 0 | ZO8: =ZN8+ZO7 -> 0 | ZP8: =ZO8+ZP7 -> 0 | ZQ8: =ZP8+ZQ7 -> 0 | ZR8: =ZQ8+ZR7 -> 0 | ZS8: =ZR8+ZS7 -> 0 | ZT8: =ZS8+ZT7 -> 0 | ZU8: =ZT8+ZU7 -> 0 | ZV8: =ZU8+ZV7 -> 0 | ZW8: =ZV8+ZW7 -> 0 | ZX8: =ZW8+ZX7 -> 0 | ZY8: =ZX8+ZY7 -> 0 | ZZ8: =ZY8+ZZ7 -> 0 | AAA8: =ZZ8+AAA7 -> 0 | AAB8: =AAA8+AAB7 -> 0 | AAC8: =AAB8+AAC7 -> 0 | AAD8: =AAC8+AAD7 -> 0 | AAE8: =AAD8+AAE7 -> 0 | AAF8: =AAE8+AAF7 -> 0 | AAG8: =AAF8+AAG7 -> 0 | AAH8: =AAG8+AAH7 -> 0 | AAI8: =AAH8+AAI7 -> 0 | AAJ8: =AAI8+AAJ7 -> 0 | AAK8: =AAJ8+AAK7 -> 0 | AAL8: =AAK8+AAL7 -> 0 | AAM8: =AAL8+AAM7 -> 0 | AAN8: =AAM8+AAN7 -> 0 | AAO8: =AAN8+AAO7 -> 0 | AAP8: =AAO8+AAP7 -> 0 | AAQ8: =AAP8+AAQ7 -> 0 | AAR8: =AAQ8+AAR7 -> 0 | AAS8: =AAR8+AAS7 -> 0 | AAT8: =AAS8+AAT7 -> 0 | AAU8: =AAT8+AAU7 -> 0 | AAV8: =AAU8+AAV7 -> 0 | AAW8: =AAV8+AAW7 -> 0 | AAX8: =AAW8+AAX7 -> 0 | AAY8: =AAX8+AAY7 -> 0 | AAZ8: =AAY8+AAZ7 -> 0 | ABA8: =AAZ8+ABA7 -> 0 | ABB8: =ABA8+ABB7 -> 0 | ABC8: =ABB8+ABC7 -> 0 | ABD8: =ABC8+ABD7 -> 0 | ABE8: =ABD8+ABE7 -> 0 | ABF8: =ABE8+ABF7 -> 0 | ABG8: =ABF8+ABG7 -> 0 | ABH8: =ABG8+ABH7 -> 0 | ABI8: =ABH8+ABI7 -> 0 | ABJ8: =ABI8+ABJ7 -> 0 | ABK8: =ABJ8+ABK7 -> 0 | ABL8: =ABK8+ABL7 -> 0 | ABM8: =ABL8+ABM7 -> 0 | ABN8: =ABM8+ABN7 -> 0 | ABO8: =ABN8+ABO7 -> 0 | ABP8: =ABO8+ABP7 -> 0 | ABQ8: =ABP8+ABQ7 -> 0 | ABR8: =ABQ8+ABR7 -> 0 | ABS8: =ABR8+ABS7 -> 0 | ABT8: =ABS8+ABT7 -> 0 | ABU8: =ABT8+ABU7 -> 0 | ABV8: =ABU8+ABV7 -> 0 | ABW8: =ABV8+ABW7 -> 0 | ABX8: =ABW8+ABX7 -> 0 | ABY8: =ABX8+ABY7 -> 0 | ABZ8: =ABY8+ABZ7 -> 0
D9: Label
B11: Volumes and Production
C12: Capacity
D13: Solar Capacity | E13: kWac | F13: =InputC!F26 -> 1666.666667
D14: Solar Capacity | E14: kWp | F14: =InputC!F24 -> 2000 | K14: =$F14*K$7 -> 0 | L14: =$F14*L$7 -> 0 | M14: 0 | N14: 0 | O14: 0 | P14: 0 | Q14: 0 | R14: 0 | S14: 0 | T14: 0 | U14: 0 | V14: 0 | W14: 0 | X14: 0 | Y14: 0 | Z14: 0 | AA14: 0 | AB14: 0 | AC14: 0 | AD14: 0 | AE14: 0 | AF14: 0 | AG14: 0 | AH14: 0 | AI14: 0 | AJ14: 0 | AK14: 0 | AL14: 0 | AM14: 0 | AN14: 0 | AO14: 0 | AP14: 0 | AQ14: 0 | AR14: 0 | AS14: 0 | AT14: 0 | AU14: 0 | AV14: 0 | AW14: 0 | AX14: 0 | AY14: 0 | AZ14: 0 | BA14: 0 | BB14: 0 | BC14: 0 | BD14: 0 | BE14: 0 | BF14: 0 | BG14: 0 | BH14: 0 | BI14: 0 | BJ14: 0 | BK14: 0 | BL14: 0 | BM14: 0 | BN14: 0 | BO14: 0 | BP14: 0 | BQ14: 0 | BR14: 0 | BS14: 0 | BT14: 0 | BU14: 0 | BV14: 0 | BW14: 0 | BX14: =$F14*BX$7 -> 0 | BY14: 0 | BZ14: 0 | CA14: 0 | CB14: 0 | CC14: 0 | CD14: 0 | CE14: 0 | CF14: 0 | CG14: 0 | CH14: 0 | CI14: 0 | CJ14: 0 | CK14: 0 | CL14: 0 | CM14: 0 | CN14: 0 | CO14: 0 | CP14: 0 | CQ14: 0 | CR14: 0 | CS14: 0 | CT14: 0 | CU14: 0 | CV14: 0 | CW14: 0 | CX14: 0 | CY14: 0 | CZ14: 0 | DA14: 0 | DB14: 0 | DC14: 0 | DD14: 0 | DE14: 0 | DF14: 0 | DG14: 0 | DH14: 0 | DI14: 0 | DJ14: 0 | DK14: 0 | DL14: 0 | DM14: 0 | DN14: 0 | DO14: 0 | DP14: 0 | DQ14: 0 | DR14: 0 | DS14: 0 | DT14: 0 | DU14: 0 | DV14: 0 | DW14: 0 | DX14: 0 | DY14: 0 | DZ14: 0 | EA14: 0 | EB14: 0 | EC14: 0 | ED14: 0 | EE14: 0 | EF14: 0 | EG14: 0 | EH14: 0 | EI14: 0 | EJ14: =$F14*EJ$7 -> 0 | EK14: 0 | EL14: 0 | EM14: 0 | EN14: 0 | EO14: 0 | EP14: 0 | EQ14: 0 | ER14: 0 | ES14: 0 | ET14: 0 | EU14: 0 | EV14: 0 | EW14: 0 | EX14: 0 | EY14: 0 | EZ14: 0 | FA14: 0 | FB14: 0 | FC14: 0 | FD14: 0 | FE14: 0 | FF14: 0 | FG14: 0 | FH14: 0 | FI14: 0 | FJ14: 0 | FK14: 0 | FL14: 0 | FM14: 0 | FN14: 0 | FO14: 0 | FP14: 0 | FQ14: 0 | FR14: 0 | FS14: 0 | FT14: 0 | FU14: 0 | FV14: 0 | FW14: 0 | FX14: 0 | FY14: 0 | FZ14: 0 | GA14: 0 | GB14: 0 | GC14: 0 | GD14: 0 | GE14: 0 | GF14: 0 | GG14: 0 | GH14: 0 | GI14: 0 | GJ14: 0 | GK14: 0 | GL14: 0 | GM14: 0 | GN14: 0 | GO14: 0 | GP14: 0 | GQ14: 0 | GR14: 0 | GS14: 0 | GT14: 0 | GU14: 0 | GV14: =$F14*GV$7 -> 0 | GW14: 0 | GX14: 0 | GY14: 0 | GZ14: 0 | HA14: 0 | HB14: 0 | HC14: 0 | HD14: 0 | HE14: 0 | HF14: 0 | HG14: 0 | HH14: 0 | HI14: 0 | HJ14: 0 | HK14: 0 | HL14: 0 | HM14: 0 | HN14: 0 | HO14: 0 | HP14: 0 | HQ14: 0 | HR14: 0 | HS14: 0 | HT14: 0 | HU14: 0 | HV14: 0 | HW14: 0 | HX14: 0 | HY14: 0 | HZ14: 0 | IA14: 0 | IB14: 0 | IC14: 0 | ID14: 0 | IE14: 0 | IF14: 0 | IG14: 0 | IH14: 0 | II14: 0 | IJ14: 0 | IK14: 0 | IL14: 0 | IM14: 0 | IN14: 0 | IO14: 0 | IP14: 0 | IQ14: 0 | IR14: 0 | IS14: 0 | IT14: 0 | IU14: 0 | IV14: 0 | IW14: 0 | IX14: 0 | IY14: 0 | IZ14: 0 | JA14: 0 | JB14: 0 | JC14: 0 | JD14: 0 | JE14: 0 | JF14: 0 | JG14: 0 | JH14: =$F14*JH$7 -> 0 | JI14: 0 | JJ14: 0 | JK14: 0 | JL14: 0 | JM14: 0 | JN14: 0 | JO14: 0 | JP14: 0 | JQ14: 0 | JR14: 0 | JS14: 0 | JT14: 0 | JU14: 0 | JV14: 0 | JW14: 0 | JX14: 0 | JY14: 0 | JZ14: 0 | KA14: 0 | KB14: 0 | KC14: 0 | KD14: 0 | KE14: 0 | KF14: 0 | KG14: 0 | KH14: 0 | KI14: 0 | KJ14: 0 | KK14: 0 | KL14: 0 | KM14: 0 | KN14: 0 | KO14: 0 | KP14: 0 | KQ14: 0 | KR14: 0 | KS14: 0 | KT14: 0 | KU14: 0 | KV14: 0 | KW14: 0 | KX14: 0 | KY14: 0 | KZ14: 0 | LA14: 0 | LB14: 0 | LC14: 0 | LD14: 0 | LE14: 0 | LF14: 0 | LG14: 0 | LH14: 0 | LI14: 0 | LJ14: 0 | LK14: 0 | LL14: 0 | LM14: 0 | LN14: 0 | LO14: 0 | LP14: 0 | LQ14: 0 | LR14: 0 | LS14: 0 | LT14: =$F14*LT$7 -> 0 | LU14: 0 | LV14: 0 | LW14: 0 | LX14: 0 | LY14: 0 | LZ14: 0 | MA14: 0 | MB14: 0 | MC14: 0 | MD14: 0 | ME14: 0 | MF14: 0 | MG14: 0 | MH14: 0 | MI14: 0 | MJ14: 0 | MK14: 0 | ML14: 0 | MM14: 0 | MN14: 0 | MO14: 0 | MP14: 0 | MQ14: 0 | MR14: 0 | MS14: 0 | MT14: 0 | MU14: 0 | MV14: 0 | MW14: 0 | MX14: 0 | MY14: 0 | MZ14: 0 | NA14: 0 | NB14: 0 | NC14: 0 | ND14: 0 | NE14: 0 | NF14: 0 | NG14: 0 | NH14: 0 | NI14: 0 | NJ14: 0 | NK14: 0 | NL14: 0 | NM14: 0 | NN14: 0 | NO14: 0 | NP14: 0 | NQ14: 0 | NR14: 0 | NS14: 0 | NT14: 0 | NU14: 0 | NV14: 0 | NW14: 0 | NX14: 0 | NY14: 0 | NZ14: 0 | OA14: 0 | OB14: 0 | OC14: 0 | OD14: 0 | OE14: 0 | OF14: =$F14*OF$7 -> 0 | OG14: 0 | OH14: 0 | OI14: 0 | OJ14: 0 | OK14: 0 | OL14: 0 | OM14: 0 | ON14: 0 | OO14: 0 | OP14: 0 | OQ14: 0 | OR14: 0 | OS14: 0 | OT14: 0 | OU14: 0 | OV14: 0 | OW14: 0 | OX14: 0 | OY14: 0 | OZ14: 0 | PA14: 0 | PB14: 0 | PC14: 0 | PD14: 0 | PE14: 0 | PF14: 0 | PG14: 0 | PH14: 0 | PI14: 0 | PJ14: 0 | PK14: 0 | PL14: 0 | PM14: 0 | PN14: 0 | PO14: 0 | PP14: 0 | PQ14: 0 | PR14: 0 | PS14: 0 | PT14: 0 | PU14: 0 | PV14: 0 | PW14: 0 | PX14: 0 | PY14: 0 | PZ14: 0 | QA14: 0 | QB14: 0 | QC14: 0 | QD14: 0 | QE14: 0 | QF14: 0 | QG14: 0 | QH14: 0 | QI14: 0 | QJ14: 0 | QK14: 0 | QL14: 0 | QM14: 0 | QN14: 0 | QO14: 0 | QP14: 0 | QQ14: 0 | QR14: =$F14*QR$7 -> 0 | QS14: 0 | QT14: 0 | QU14: 0 | QV14: 0 | QW14: 0 | QX14: 0 | QY14: 0 | QZ14: 0 | RA14: 0 | RB14: 0 | RC14: 0 | RD14: 0 | RE14: 0 | RF14: 0 | RG14: 0 | RH14: 0 | RI14: 0 | RJ14: 0 | RK14: 0 | RL14: 0 | RM14: 0 | RN14: 0 | RO14: 0 | RP14: 0 | RQ14: 0 | RR14: 0 | RS14: 0 | RT14: 0 | RU14: 0 | RV14: 0 | RW14: 0 | RX14: 0 | RY14: 0 | RZ14: 0 | SA14: 0 | SB14: 0 | SC14: 0 | SD14: 0 | SE14: 0 | SF14: 0 | SG14: 0 | SH14: 0 | SI14: 0 | SJ14: 0 | SK14: 0 | SL14: 0 | SM14: 0 | SN14: 0 | SO14: 0 | SP14: 0 | SQ14: 0 | SR14: 0 | SS14: 0 | ST14: 0 | SU14: 0 | SV14: 0 | SW14: 0 | SX14: 0 | SY14: 0 | SZ14: 0 | TA14: 0 | TB14: 0 | TC14: 0 | TD14: =$F14*TD$7 -> 0 | TE14: 0 | TF14: 0 | TG14: 0 | TH14: 0 | TI14: 0 | TJ14: 0 | TK14: 0 | TL14: 0 | TM14: 0 | TN14: 0 | TO14: 0 | TP14: 0 | TQ14: 0 | TR14: 0 | TS14: 0 | TT14: 0 | TU14: 0 | TV14: 0 | TW14: 0 | TX14: 0 | TY14: 0 | TZ14: 0 | UA14: 0 | UB14: 0 | UC14: 0 | UD14: 0 | UE14: 0 | UF14: 0 | UG14: 0 | UH14: 0 | UI14: 0 | UJ14: 0 | UK14: 0 | UL14: 0 | UM14: 0 | UN14: 0 | UO14: 0 | UP14: 0 | UQ14: 0 | UR14: 0 | US14: 0 | UT14: 0 | UU14: 0 | UV14: 0 | UW14: 0 | UX14: 0 | UY14: 0 | UZ14: 0 | VA14: 0 | VB14: 0 | VC14: 0 | VD14: 0 | VE14: 0 | VF14: 0 | VG14: 0 | VH14: 0 | VI14: 0 | VJ14: 0 | VK14: 0 | VL14: 0 | VM14: 0 | VN14: 0 | VO14: 0 | VP14: =$F14*VP$7 -> 0 | VQ14: 0 | VR14: 0 | VS14: 0 | VT14: 0 | VU14: 0 | VV14: 0 | VW14: 0 | VX14: 0 | VY14: 0 | VZ14: 0 | WA14: 0 | WB14: 0 | WC14: 0 | WD14: 0 | WE14: 0 | WF14: 0 | WG14: 0 | WH14: 0 | WI14: 0 | WJ14: 0 | WK14: 0 | WL14: 0 | WM14: 0 | WN14: 0 | WO14: 0 | WP14: 0 | WQ14: 0 | WR14: 0 | WS14: 0 | WT14: 0 | WU14: 0 | WV14: 0 | WW14: 0 | WX14: 0 | WY14: 0 | WZ14: 0 | XA14: 0 | XB14: 0 | XC14: 0 | XD14: 0 | XE14: 0 | XF14: 0 | XG14: 0 | XH14: 0 | XI14: 0 | XJ14: 0 | XK14: 0 | XL14: 0 | XM14: 0 | XN14: 0 | XO14: 0 | XP14: 0 | XQ14: 0 | XR14: 0 | XS14: 0 | XT14: 0 | XU14: 0 | XV14: 0 | XW14: 0 | XX14: 0 | XY14: 0 | XZ14: 0 | YA14: 0 | YB14: =$F14*YB$7 -> 0 | YC14: 0 | YD14: 0 | YE14: 0 | YF14: 0 | YG14: 0 | YH14: 0 | YI14: 0 | YJ14: 0 | YK14: 0 | YL14: 0 | YM14: 0 | YN14: 0 | YO14: 0 | YP14: 0 | YQ14: 0 | YR14: 0 | YS14: 0 | YT14: 0 | YU14: 0 | YV14: 0 | YW14: 0 | YX14: 0 | YY14: 0 | YZ14: 0 | ZA14: 0 | ZB14: 0 | ZC14: 0 | ZD14: 0 | ZE14: 0 | ZF14: 0 | ZG14: 0 | ZH14: 0 | ZI14: 0 | ZJ14: 0 | ZK14: 0 | ZL14: 0 | ZM14: 0 | ZN14: 0 | ZO14: 0 | ZP14: 0 | ZQ14: 0 | ZR14: 0 | ZS14: 0 | ZT14: 0 | ZU14: 0 | ZV14: 0 | ZW14: 0 | ZX14: 0 | ZY14: 0 | ZZ14: 0 | AAA14: 0 | AAB14: 0 | AAC14: 0 | AAD14: 0 | AAE14: 0 | AAF14: 0 | AAG14: 0 | AAH14: 0 | AAI14: 0 | AAJ14: 0 | AAK14: 0 | AAL14: 0 | AAM14: 0 | AAN14: =$F14*AAN$7 -> 0 | AAO14: 0 | AAP14: 0 | AAQ14: 0 | AAR14: 0 | AAS14: 0 | AAT14: 0 | AAU14: 0 | AAV14: 0 | AAW14: 0 | AAX14: 0 | AAY14: 0 | AAZ14: 0 | ABA14: 0 | ABB14: 0 | ABC14: 0 | ABD14: 0 | ABE14: 0 | ABF14: 0 | ABG14: 0 | ABH14: 0 | ABI14: 0 | ABJ14: 0 | ABK14: 0 | ABL14: 0 | ABM14: 0 | ABN14: 0 | ABO14: 0 | ABP14: 0 | ABQ14: 0 | ABR14: 0 | ABS14: 0 | ABT14: 0 | ABU14: 0 | ABV14: 0 | ABW14: 0 | ABX14: 0 | ABY14: 0 | ABZ14: 0
D15: Wind Capacity | E15: kW | F15: =InputC!F30 -> 0 | K15: 0 | L15: 0 | M15: 0 | N15: 0 | O15: 0 | P15: 0 | Q15: 0 | R15: 0 | S15: 0 | T15: 0 | U15: 0 | V15: 0 | W15: 0 | X15: 0 | Y15: 0 | Z15: 0 | AA15: 0 | AB15: 0 | AC15: 0 | AD15: 0 | AE15: 0 | AF15: 0 | AG15: 0 | AH15: 0 | AI15: 0 | AJ15: 0 | AK15: 0 | AL15: 0 | AM15: 0 | AN15: 0 | AO15: 0 | AP15: 0 | AQ15: 0 | AR15: 0 | AS15: 0 | AT15: 0 | AU15: 0 | AV15: 0 | AW15: 0 | AX15: 0 | AY15: 0 | AZ15: 0 | BA15: 0 | BB15: 0 | BC15: 0 | BD15: 0 | BE15: 0 | BF15: 0 | BG15: 0 | BH15: 0 | BI15: 0 | BJ15: 0 | BK15: 0 | BL15: 0 | BM15: 0 | BN15: 0 | BO15: 0 | BP15: 0 | BQ15: 0 | BR15: 0 | BS15: 0 | BT15: 0 | BU15: 0 | BV15: 0 | BW15: 0 | BX15: 0 | BY15: 0 | BZ15: 0 | CA15: 0 | CB15: 0 | CC15: 0 | CD15: 0 | CE15: 0 | CF15: 0 | CG15: 0 | CH15: 0 | CI15: 0 | CJ15: 0 | CK15: 0 | CL15: 0 | CM15: 0 | CN15: 0 | CO15: 0 | CP15: 0 | CQ15: 0 | CR15: 0 | CS15: 0 | CT15: 0 | CU15: 0 | CV15: 0 | CW15: 0 | CX15: 0 | CY15: 0 | CZ15: 0 | DA15: 0 | DB15: 0 | DC15: 0 | DD15: 0 | DE15: 0 | DF15: 0 | DG15: 0 | DH15: 0 | DI15: 0 | DJ15: 0 | DK15: 0 | DL15: 0 | DM15: 0 | DN15: 0 | DO15: 0 | DP15: 0 | DQ15: 0 | DR15: 0 | DS15: 0 | DT15: 0 | DU15: 0 | DV15: 0 | DW15: 0 | DX15: 0 | DY15: 0 | DZ15: 0 | EA15: 0 | EB15: 0 | EC15: 0 | ED15: 0 | EE15: 0 | EF15: 0 | EG15: 0 | EH15: 0 | EI15: 0 | EJ15: 0 | EK15: 0 | EL15: 0 | EM15: 0 | EN15: 0 | EO15: 0 | EP15: 0 | EQ15: 0 | ER15: 0 | ES15: 0 | ET15: 0 | EU15: 0 | EV15: 0 | EW15: 0 | EX15: 0 | EY15: 0 | EZ15: 0 | FA15: 0 | FB15: 0 | FC15: 0 | FD15: 0 | FE15: 0 | FF15: 0 | FG15: 0 | FH15: 0 | FI15: 0 | FJ15: 0 | FK15: 0 | FL15: 0 | FM15: 0 | FN15: 0 | FO15: 0 | FP15: 0 | FQ15: 0 | FR15: 0 | FS15: 0 | FT15: 0 | FU15: 0 | FV15: 0 | FW15: 0 | FX15: 0 | FY15: 0 | FZ15: 0 | GA15: 0 | GB15: 0 | GC15: 0 | GD15: 0 | GE15: 0 | GF15: 0 | GG15: 0 | GH15: 0 | GI15: 0 | GJ15: 0 | GK15: 0 | GL15: 0 | GM15: 0 | GN15: 0 | GO15: 0 | GP15: 0 | GQ15: 0 | GR15: 0 | GS15: 0 | GT15: 0 | GU15: 0 | GV15: 0 | GW15: 0 | GX15: 0 | GY15: 0 | GZ15: 0 | HA15: 0 | HB15: 0 | HC15: 0 | HD15: 0 | HE15: 0 | HF15: 0 | HG15: 0 | HH15: 0 | HI15: 0 | HJ15: 0 | HK15: 0 | HL15: 0 | HM15: 0 | HN15: 0 | HO15: 0 | HP15: 0 | HQ15: 0 | HR15: 0 | HS15: 0 | HT15: 0 | HU15: 0 | HV15: 0 | HW15: 0 | HX15: 0 | HY15: 0 | HZ15: 0 | IA15: 0 | IB15: 0 | IC15: 0 | ID15: 0 | IE15: 0 | IF15: 0 | IG15: 0 | IH15: 0 | II15: 0 | IJ15: 0 | IK15: 0 | IL15: 0 | IM15: 0 | IN15: 0 | IO15: 0 | IP15: 0 | IQ15: 0 | IR15: 0 | IS15: 0 | IT15: 0 | IU15: 0 | IV15: 0 | IW15: 0 | IX15: 0 | IY15: 0 | IZ15: 0 | JA15: 0 | JB15: 0 | JC15: 0 | JD15: 0 | JE15: 0 | JF15: 0 | JG15: 0 | JH15: 0 | JI15: 0 | JJ15: 0 | JK15: 0 | JL15: 0 | JM15: 0 | JN15: 0 | JO15: 0 | JP15: 0 | JQ15: 0 | JR15: 0 | JS15: 0 | JT15: 0 | JU15: 0 | JV15: 0 | JW15: 0 | JX15: 0 | JY15: 0 | JZ15: 0 | KA15: 0 | KB15: 0 | KC15: 0 | KD15: 0 | KE15: 0 | KF15: 0 | KG15: 0 | KH15: 0 | KI15: 0 | KJ15: 0 | KK15: 0 | KL15: 0 | KM15: 0 | KN15: 0 | KO15: 0 | KP15: 0 | KQ15: 0 | KR15: 0 | KS15: 0 | KT15: 0 | KU15: 0 | KV15: 0 | KW15: 0 | KX15: 0 | KY15: 0 | KZ15: 0 | LA15: 0 | LB15: 0 | LC15: 0 | LD15: 0 | LE15: 0 | LF15: 0 | LG15: 0 | LH15: 0 | LI15: 0 | LJ15: 0 | LK15: 0 | LL15: 0 | LM15: 0 | LN15: 0 | LO15: 0 | LP15: 0 | LQ15: 0 | LR15: 0 | LS15: 0 | LT15: 0 | LU15: 0 | LV15: 0 | LW15: 0 | LX15: 0 | LY15: 0 | LZ15: 0 | MA15: 0 | MB15: 0 | MC15: 0 | MD15: 0 | ME15: 0 | MF15: 0 | MG15: 0 | MH15: 0 | MI15: 0 | MJ15: 0 | MK15: 0 | ML15: 0 | MM15: 0 | MN15: 0 | MO15: 0 | MP15: 0 | MQ15: 0 | MR15: 0 | MS15: 0 | MT15: 0 | MU15: 0 | MV15: 0 | MW15: 0 | MX15: 0 | MY15: 0 | MZ15: 0 | NA15: 0 | NB15: 0 | NC15: 0 | ND15: 0 | NE15: 0 | NF15: 0 | NG15: 0 | NH15: 0 | NI15: 0 | NJ15: 0 | NK15: 0 | NL15: 0 | NM15: 0 | NN15: 0 | NO15: 0 | NP15: 0 | NQ15: 0 | NR15: 0 | NS15: 0 | NT15: 0 | NU15: 0 | NV15: 0 | NW15: 0 | NX15: 0 | NY15: 0 | NZ15: 0 | OA15: 0 | OB15: 0 | OC15: 0 | OD15: 0 | OE15: 0 | OF15: 0 | OG15: 0 | OH15: 0 | OI15: 0 | OJ15: 0 | OK15: 0 | OL15: 0 | OM15: 0 | ON15: 0 | OO15: 0 | OP15: 0 | OQ15: 0 | OR15: 0 | OS15: 0 | OT15: 0 | OU15: 0 | OV15: 0 | OW15: 0 | OX15: 0 | OY15: 0 | OZ15: 0 | PA15: 0 | PB15: 0 | PC15: 0 | PD15: 0 | PE15: 0 | PF15: 0 | PG15: 0 | PH15: 0 | PI15: 0 | PJ15: 0 | PK15: 0 | PL15: 0 | PM15: 0 | PN15: 0 | PO15: 0 | PP15: 0 | PQ15: 0 | PR15: 0 | PS15: 0 | PT15: 0 | PU15: 0 | PV15: 0 | PW15: 0 | PX15: 0 | PY15: 0 | PZ15: 0 | QA15: 0 | QB15: 0 | QC15: 0 | QD15: 0 | QE15: 0 | QF15: 0 | QG15: 0 | QH15: 0 | QI15: 0 | QJ15: 0 | QK15: 0 | QL15: 0 | QM15: 0 | QN15: 0 | QO15: 0 | QP15: 0 | QQ15: 0 | QR15: 0 | QS15: 0 | QT15: 0 | QU15: 0 | QV15: 0 | QW15: 0 | QX15: 0 | QY15: 0 | QZ15: 0 | RA15: 0 | RB15: 0 | RC15: 0 | RD15: 0 | RE15: 0 | RF15: 0 | RG15: 0 | RH15: 0 | RI15: 0 | RJ15: 0 | RK15: 0 | RL15: 0 | RM15: 0 | RN15: 0 | RO15: 0 | RP15: 0 | RQ15: 0 | RR15: 0 | RS15: 0 | RT15: 0 | RU15: 0 | RV15: 0 | RW15: 0 | RX15: 0 | RY15: 0 | RZ15: 0 | SA15: 0 | SB15: 0 | SC15: 0 | SD15: 0 | SE15: 0 | SF15: 0 | SG15: 0 | SH15: 0 | SI15: 0 | SJ15: 0 | SK15: 0 | SL15: 0 | SM15: 0 | SN15: 0 | SO15: 0 | SP15: 0 | SQ15: 0 | SR15: 0 | SS15: 0 | ST15: 0 | SU15: 0 | SV15: 0 | SW15: 0 | SX15: 0 | SY15: 0 | SZ15: 0 | TA15: 0 | TB15: 0 | TC15: 0 | TD15: 0 | TE15: 0 | TF15: 0 | TG15: 0 | TH15: 0 | TI15: 0 | TJ15: 0 | TK15: 0 | TL15: 0 | TM15: 0 | TN15: 0 | TO15: 0 | TP15: 0 | TQ15: 0 | TR15: 0 | TS15: 0 | TT15: 0 | TU15: 0 | TV15: 0 | TW15: 0 | TX15: 0 | TY15: 0 | TZ15: 0 | UA15: 0 | UB15: 0 | UC15: 0 | UD15: 0 | UE15: 0 | UF15: 0 | UG15: 0 | UH15: 0 | UI15: 0 | UJ15: 0 | UK15: 0 | UL15: 0 | UM15: 0 | UN15: 0 | UO15: 0 | UP15: 0 | UQ15: 0 | UR15: 0 | US15: 0 | UT15: 0 | UU15: 0 | UV15: 0 | UW15: 0 | UX15: 0 | UY15: 0 | UZ15: 0 | VA15: 0 | VB15: 0 | VC15: 0 | VD15: 0 | VE15: 0 | VF15: 0 | VG15: 0 | VH15: 0 | VI15: 0 | VJ15: 0 | VK15: 0 | VL15: 0 | VM15: 0 | VN15: 0 | VO15: 0 | VP15: 0 | VQ15: 0 | VR15: 0 | VS15: 0 | VT15: 0 | VU15: 0 | VV15: 0 | VW15: 0 | VX15: 0 | VY15: 0 | VZ15: 0 | WA15: 0 | WB15: 0 | WC15: 0 | WD15: 0 | WE15: 0 | WF15: 0 | WG15: 0 | WH15: 0 | WI15: 0 | WJ15: 0 | WK15: 0 | WL15: 0 | WM15: 0 | WN15: 0 | WO15: 0 | WP15: 0 | WQ15: 0 | WR15: 0 | WS15: 0 | WT15: 0 | WU15: 0 | WV15: 0 | WW15: 0 | WX15: 0 | WY15: 0 | WZ15: 0 | XA15: 0 | XB15: 0 | XC15: 0 | XD15: 0 | XE15: 0 | XF15: 0 | XG15: 0 | XH15: 0 | XI15: 0 | XJ15: 0 | XK15: 0 | XL15: 0 | XM15: 0 | XN15: 0 | XO15: 0 | XP15: 0 | XQ15: 0 | XR15: 0 | XS15: 0 | XT15: 0 | XU15: 0 | XV15: 0 | XW15: 0 | XX15: 0 | XY15: 0 | XZ15: 0 | YA15: 0 | YB15: 0 | YC15: 0 | YD15: 0 | YE15: 0 | YF15: 0 | YG15: 0 | YH15: 0 | YI15: 0 | YJ15: 0 | YK15: 0 | YL15: 0 | YM15: 0 | YN15: 0 | YO15: 0 | YP15: 0 | YQ15: 0 | YR15: 0 | YS15: 0 | YT15: 0 | YU15: 0 | YV15: 0 | YW15: 0 | YX15: 0 | YY15: 0 | YZ15: 0 | ZA15: 0 | ZB15: 0 | ZC15: 0 | ZD15: 0 | ZE15: 0 | ZF15: 0 | ZG15: 0 | ZH15: 0 | ZI15: 0 | ZJ15: 0 | ZK15: 0 | ZL15: 0 | ZM15: 0 | ZN15: 0 | ZO15: 0 | ZP15: 0 | ZQ15: 0 | ZR15: 0 | ZS15: 0 | ZT15: 0 | ZU15: 0 | ZV15: 0 | ZW15: 0 | ZX15: 0 | ZY15: 0 | ZZ15: 0 | AAA15: 0 | AAB15: 0 | AAC15: 0 | AAD15: 0 | AAE15: 0 | AAF15: 0 | AAG15: 0 | AAH15: 0 | AAI15: 0 | AAJ15: 0 | AAK15: 0 | AAL15: 0 | AAM15: 0 | AAN15: 0 | AAO15: 0 | AAP15: 0 | AAQ15: 0 | AAR15: 0 | AAS15: 0 | AAT15: 0 | AAU15: 0 | AAV15: 0 | AAW15: 0 | AAX15: 0 | AAY15: 0 | AAZ15: 0 | ABA15: 0 | ABB15: 0 | ABC15: 0 | ABD15: 0 | ABE15: 0 | ABF15: 0 | ABG15: 0 | ABH15: 0 | ABI15: 0 | ABJ15: 0 | ABK15: 0 | ABL15: 0 | ABM15: 0 | ABN15: 0 | ABO15: 0 | ABP15: 0 | ABQ15: 0 | ABR15: 0 | ABS15: 0 | ABT15: 0 | ABU15: 0 | ABV15: 0 | ABW15: 0 | ABX15: 0 | ABY15: 0 | ABZ15: 0
D16: Battery Capacity | E16: kWh | F16: =InputC!F36 -> 0 | K16: 0 | L16: 0 | M16: 0 | N16: 0 | O16: 0 | P16: 0 | Q16: 0 | R16: 0 | S16: 0 | T16: 0 | U16: 0 | V16: 0 | W16: 0 | X16: 0 | Y16: 0 | Z16: 0 | AA16: 0 | AB16: 0 | AC16: 0 | AD16: 0 | AE16: 0 | AF16: 0 | AG16: 0 | AH16: 0 | AI16: 0 | AJ16: 0 | AK16: 0 | AL16: 0 | AM16: 0 | AN16: 0 | AO16: 0 | AP16: 0 | AQ16: 0 | AR16: 0 | AS16: 0 | AT16: 0 | AU16: 0 | AV16: 0 | AW16: 0 | AX16: 0 | AY16: 0 | AZ16: 0 | BA16: 0 | BB16: 0 | BC16: 0 | BD16: 0 | BE16: 0 | BF16: 0 | BG16: 0 | BH16: 0 | BI16: 0 | BJ16: 0 | BK16: 0 | BL16: 0 | BM16: 0 | BN16: 0 | BO16: 0 | BP16: 0 | BQ16: 0 | BR16: 0 | BS16: 0 | BT16: 0 | BU16: 0 | BV16: 0 | BW16: =$F16*BW$7 -> 0 | BX16: 0 | BY16: 0 | BZ16: 0 | CA16: 0 | CB16: 0 | CC16: 0 | CD16: 0 | CE16: 0 | CF16: 0 | CG16: 0 | CH16: 0 | CI16: 0 | CJ16: 0 | CK16: 0 | CL16: 0 | CM16: 0 | CN16: 0 | CO16: 0 | CP16: 0 | CQ16: 0 | CR16: 0 | CS16: 0 | CT16: 0 | CU16: 0 | CV16: 0 | CW16: 0 | CX16: 0 | CY16: 0 | CZ16: 0 | DA16: 0 | DB16: 0 | DC16: 0 | DD16: 0 | DE16: 0 | DF16: 0 | DG16: 0 | DH16: 0 | DI16: 0 | DJ16: 0 | DK16: 0 | DL16: 0 | DM16: 0 | DN16: 0 | DO16: 0 | DP16: 0 | DQ16: 0 | DR16: 0 | DS16: 0 | DT16: 0 | DU16: 0 | DV16: 0 | DW16: 0 | DX16: 0 | DY16: 0 | DZ16: 0 | EA16: 0 | EB16: 0 | EC16: 0 | ED16: 0 | EE16: 0 | EF16: 0 | EG16: 0 | EH16: 0 | EI16: =$F16*EI$7 -> 0 | EJ16: 0 | EK16: 0 | EL16: 0 | EM16: 0 | EN16: 0 | EO16: 0 | EP16: 0 | EQ16: 0 | ER16: 0 | ES16: 0 | ET16: 0 | EU16: 0 | EV16: 0 | EW16: 0 | EX16: 0 | EY16: 0 | EZ16: 0 | FA16: 0 | FB16: 0 | FC16: 0 | FD16: 0 | FE16: 0 | FF16: 0 | FG16: 0 | FH16: 0 | FI16: 0 | FJ16: 0 | FK16: 0 | FL16: 0 | FM16: 0 | FN16: 0 | FO16: 0 | FP16: 0 | FQ16: 0 | FR16: 0 | FS16: 0 | FT16: 0 | FU16: 0 | FV16: 0 | FW16: 0 | FX16: 0 | FY16: 0 | FZ16: 0 | GA16: 0 | GB16: 0 | GC16: 0 | GD16: 0 | GE16: 0 | GF16: 0 | GG16: 0 | GH16: 0 | GI16: 0 | GJ16: 0 | GK16: 0 | GL16: 0 | GM16: 0 | GN16: 0 | GO16: 0 | GP16: 0 | GQ16: 0 | GR16: 0 | GS16: 0 | GT16: 0 | GU16: =$F16*GU$7 -> 0 | GV16: 0 | GW16: 0 | GX16: 0 | GY16: 0 | GZ16: 0 | HA16: 0 | HB16: 0 | HC16: 0 | HD16: 0 | HE16: 0 | HF16: 0 | HG16: 0 | HH16: 0 | HI16: 0 | HJ16: 0 | HK16: 0 | HL16: 0 | HM16: 0 | HN16: 0 | HO16: 0 | HP16: 0 | HQ16: 0 | HR16: 0 | HS16: 0 | HT16: 0 | HU16: 0 | HV16: 0 | HW16: 0 | HX16: 0 | HY16: 0 | HZ16: 0 | IA16: 0 | IB16: 0 | IC16: 0 | ID16: 0 | IE16: 0 | IF16: 0 | IG16: 0 | IH16: 0 | II16: 0 | IJ16: 0 | IK16: 0 | IL16: 0 | IM16: 0 | IN16: 0 | IO16: 0 | IP16: 0 | IQ16: 0 | IR16: 0 | IS16: 0 | IT16: 0 | IU16: 0 | IV16: 0 | IW16: 0 | IX16: 0 | IY16: 0 | IZ16: 0 | JA16: 0 | JB16: 0 | JC16: 0 | JD16: 0 | JE16: 0 | JF16: 0 | JG16: =$F16*JG$7 -> 0 | JH16: 0 | JI16: 0 | JJ16: 0 | JK16: 0 | JL16: 0 | JM16: 0 | JN16: 0 | JO16: 0 | JP16: 0 | JQ16: 0 | JR16: 0 | JS16: 0 | JT16: 0 | JU16: 0 | JV16: 0 | JW16: 0 | JX16: 0 | JY16: 0 | JZ16: 0 | KA16: 0 | KB16: 0 | KC16: 0 | KD16: 0 | KE16: 0 | KF16: 0 | KG16: 0 | KH16: 0 | KI16: 0 | KJ16: 0 | KK16: 0 | KL16: 0 | KM16: 0 | KN16: 0 | KO16: 0 | KP16: 0 | KQ16: 0 | KR16: 0 | KS16: 0 | KT16: 0 | KU16: 0 | KV16: 0 | KW16: 0 | KX16: 0 | KY16: 0 | KZ16: 0 | LA16: 0 | LB16: 0 | LC16: 0 | LD16: 0 | LE16: 0 | LF16: 0 | LG16: 0 | LH16: 0 | LI16: 0 | LJ16: 0 | LK16: 0 | LL16: 0 | LM16: 0 | LN16: 0 | LO16: 0 | LP16: 0 | LQ16: 0 | LR16: 0 | LS16: =$F16*LS$7 -> 0 | LT16: 0 | LU16: 0 | LV16: 0 | LW16: 0 | LX16: 0 | LY16: 0 | LZ16: 0 | MA16: 0 | MB16: 0 | MC16: 0 | MD16: 0 | ME16: 0 | MF16: 0 | MG16: 0 | MH16: 0 | MI16: 0 | MJ16: 0 | MK16: 0 | ML16: 0 | MM16: 0 | MN16: 0 | MO16: 0 | MP16: 0 | MQ16: 0 | MR16: 0 | MS16: 0 | MT16: 0 | MU16: 0 | MV16: 0 | MW16: 0 | MX16: 0 | MY16: 0 | MZ16: 0 | NA16: 0 | NB16: 0 | NC16: 0 | ND16: 0 | NE16: 0 | NF16: 0 | NG16: 0 | NH16: 0 | NI16: 0 | NJ16: 0 | NK16: 0 | NL16: 0 | NM16: 0 | NN16: 0 | NO16: 0 | NP16: 0 | NQ16: 0 | NR16: 0 | NS16: 0 | NT16: 0 | NU16: 0 | NV16: 0 | NW16: 0 | NX16: 0 | NY16: 0 | NZ16: 0 | OA16: 0 | OB16: 0 | OC16: 0 | OD16: 0 | OE16: =$F16*OE$7 -> 0 | OF16: 0 | OG16: 0 | OH16: 0 | OI16: 0 | OJ16: 0 | OK16: 0 | OL16: 0 | OM16: 0 | ON16: 0 | OO16: 0 | OP16: 0 | OQ16: 0 | OR16: 0 | OS16: 0 | OT16: 0 | OU16: 0 | OV16: 0 | OW16: 0 | OX16: 0 | OY16: 0 | OZ16: 0 | PA16: 0 | PB16: 0 | PC16: 0 | PD16: 0 | PE16: 0 | PF16: 0 | PG16: 0 | PH16: 0 | PI16: 0 | PJ16: 0 | PK16: 0 | PL16: 0 | PM16: 0 | PN16: 0 | PO16: 0 | PP16: 0 | PQ16: 0 | PR16: 0 | PS16: 0 | PT16: 0 | PU16: 0 | PV16: 0 | PW16: 0 | PX16: 0 | PY16: 0 | PZ16: 0 | QA16: 0 | QB16: 0 | QC16: 0 | QD16: 0 | QE16: 0 | QF16: 0 | QG16: 0 | QH16: 0 | QI16: 0 | QJ16: 0 | QK16: 0 | QL16: 0 | QM16: 0 | QN16: 0 | QO16: 0 | QP16: 0 | QQ16: =$F16*QQ$7 -> 0 | QR16: 0 | QS16: 0 | QT16: 0 | QU16: 0 | QV16: 0 | QW16: 0 | QX16: 0 | QY16: 0 | QZ16: 0 | RA16: 0 | RB16: 0 | RC16: 0 | RD16: 0 | RE16: 0 | RF16: 0 | RG16: 0 | RH16: 0 | RI16: 0 | RJ16: 0 | RK16: 0 | RL16: 0 | RM16: 0 | RN16: 0 | RO16: 0 | RP16: 0 | RQ16: 0 | RR16: 0 | RS16: 0 | RT16: 0 | RU16: 0 | RV16: 0 | RW16: 0 | RX16: 0 | RY16: 0 | RZ16: 0 | SA16: 0 | SB16: 0 | SC16: 0 | SD16: 0 | SE16: 0 | SF16: 0 | SG16: 0 | SH16: 0 | SI16: 0 | SJ16: 0 | SK16: 0 | SL16: 0 | SM16: 0 | SN16: 0 | SO16: 0 | SP16: 0 | SQ16: 0 | SR16: 0 | SS16: 0 | ST16: 0 | SU16: 0 | SV16: 0 | SW16: 0 | SX16: 0 | SY16: 0 | SZ16: 0 | TA16: 0 | TB16: 0 | TC16: =$F16*TC$7 -> 0 | TD16: 0 | TE16: 0 | TF16: 0 | TG16: 0 | TH16: 0 | TI16: 0 | TJ16: 0 | TK16: 0 | TL16: 0 | TM16: 0 | TN16: 0 | TO16: 0 | TP16: 0 | TQ16: 0 | TR16: 0 | TS16: 0 | TT16: 0 | TU16: 0 | TV16: 0 | TW16: 0 | TX16: 0 | TY16: 0 | TZ16: 0 | UA16: 0 | UB16: 0 | UC16: 0 | UD16: 0 | UE16: 0 | UF16: 0 | UG16: 0 | UH16: 0 | UI16: 0 | UJ16: 0 | UK16: 0 | UL16: 0 | UM16: 0 | UN16: 0 | UO16: 0 | UP16: 0 | UQ16: 0 | UR16: 0 | US16: 0 | UT16: 0 | UU16: 0 | UV16: 0 | UW16: 0 | UX16: 0 | UY16: 0 | UZ16: 0 | VA16: 0 | VB16: 0 | VC16: 0 | VD16: 0 | VE16: 0 | VF16: 0 | VG16: 0 | VH16: 0 | VI16: 0 | VJ16: 0 | VK16: 0 | VL16: 0 | VM16: 0 | VN16: 0 | VO16: =$F16*VO$7 -> 0 | VP16: 0 | VQ16: 0 | VR16: 0 | VS16: 0 | VT16: 0 | VU16: 0 | VV16: 0 | VW16: 0 | VX16: 0 | VY16: 0 | VZ16: 0 | WA16: 0 | WB16: 0 | WC16: 0 | WD16: 0 | WE16: 0 | WF16: 0 | WG16: 0 | WH16: 0 | WI16: 0 | WJ16: 0 | WK16: 0 | WL16: 0 | WM16: 0 | WN16: 0 | WO16: 0 | WP16: 0 | WQ16: 0 | WR16: 0 | WS16: 0 | WT16: 0 | WU16: 0 | WV16: 0 | WW16: 0 | WX16: 0 | WY16: 0 | WZ16: 0 | XA16: 0 | XB16: 0 | XC16: 0 | XD16: 0 | XE16: 0 | XF16: 0 | XG16: 0 | XH16: 0 | XI16: 0 | XJ16: 0 | XK16: 0 | XL16: 0 | XM16: 0 | XN16: 0 | XO16: 0 | XP16: 0 | XQ16: 0 | XR16: 0 | XS16: 0 | XT16: 0 | XU16: 0 | XV16: 0 | XW16: 0 | XX16: 0 | XY16: 0 | XZ16: 0 | YA16: =$F16*YA$7 -> 0 | YB16: 0 | YC16: 0 | YD16: 0 | YE16: 0 | YF16: 0 | YG16: 0 | YH16: 0 | YI16: 0 | YJ16: 0 | YK16: 0 | YL16: 0 | YM16: 0 | YN16: 0 | YO16: 0 | YP16: 0 | YQ16: 0 | YR16: 0 | YS16: 0 | YT16: 0 | YU16: 0 | YV16: 0 | YW16: 0 | YX16: 0 | YY16: 0 | YZ16: 0 | ZA16: 0 | ZB16: 0 | ZC16: 0 | ZD16: 0 | ZE16: 0 | ZF16: 0 | ZG16: 0 | ZH16: 0 | ZI16: 0 | ZJ16: 0 | ZK16: 0 | ZL16: 0 | ZM16: 0 | ZN16: 0 | ZO16: 0 | ZP16: 0 | ZQ16: 0 | ZR16: 0 | ZS16: 0 | ZT16: 0 | ZU16: 0 | ZV16: 0 | ZW16: 0 | ZX16: 0 | ZY16: 0 | ZZ16: 0 | AAA16: 0 | AAB16: 0 | AAC16: 0 | AAD16: 0 | AAE16: 0 | AAF16: 0 | AAG16: 0 | AAH16: 0 | AAI16: 0 | AAJ16: 0 | AAK16: 0 | AAL16: 0 | AAM16: =$F16*AAM$7 -> 0 | AAN16: 0 | AAO16: 0 | AAP16: 0 | AAQ16: 0 | AAR16: 0 | AAS16: 0 | AAT16: 0 | AAU16: 0 | AAV16: 0 | AAW16: 0 | AAX16: 0 | AAY16: 0 | AAZ16: 0 | ABA16: 0 | ABB16: 0 | ABC16: 0 | ABD16: 0 | ABE16: 0 | ABF16: 0 | ABG16: 0 | ABH16: 0 | ABI16: 0 | ABJ16: 0 | ABK16: 0 | ABL16: 0 | ABM16: 0 | ABN16: 0 | ABO16: 0 | ABP16: 0 | ABQ16: 0 | ABR16: 0 | ABS16: 0 | ABT16: 0 | ABU16: 0 | ABV16: 0 | ABW16: 0 | ABX16: 0 | ABY16: 0 | ABZ16: 0
C18: Annual Yield/Capacity Factor
D19: Solar Yield | E19: kWh/kWp | F19: =InputC!F27 -> 2014.8 | K19: =$F19*K$7 -> 0 | L19: =$F19*L$7 -> 0 | M19: 0 | N19: 0 | O19: 0 | P19: 0 | Q19: 0 | R19: 0 | S19: 0 | T19: 0 | U19: 0 | V19: 0 | W19: 0 | X19: 0 | Y19: 0 | Z19: 0 | AA19: 0 | AB19: 0 | AC19: 0 | AD19: 0 | AE19: 0 | AF19: 0 | AG19: 0 | AH19: 0 | AI19: 0 | AJ19: 0 | AK19: 0 | AL19: 0 | AM19: 0 | AN19: 0 | AO19: 0 | AP19: 0 | AQ19: 0 | AR19: 0 | AS19: 0 | AT19: 0 | AU19: 0 | AV19: 0 | AW19: 0 | AX19: 0 | AY19: 0 | AZ19: 0 | BA19: 0 | BB19: 0 | BC19: 0 | BD19: 0 | BE19: 0 | BF19: 0 | BG19: 0 | BH19: 0 | BI19: 0 | BJ19: 0 | BK19: 0 | BL19: 0 | BM19: 0 | BN19: 0 | BO19: 0 | BP19: 0 | BQ19: 0 | BR19: 0 | BS19: 0 | BT19: 0 | BU19: 0 | BV19: 0 | BW19: 0 | BX19: =$F19*BX$7 -> 0 | BY19: 0 | BZ19: 0 | CA19: 0 | CB19: 0 | CC19: 0 | CD19: 0 | CE19: 0 | CF19: 0 | CG19: 0 | CH19: 0 | CI19: 0 | CJ19: 0 | CK19: 0 | CL19: 0 | CM19: 0 | CN19: 0 | CO19: 0 | CP19: 0 | CQ19: 0 | CR19: 0 | CS19: 0 | CT19: 0 | CU19: 0 | CV19: 0 | CW19: 0 | CX19: 0 | CY19: 0 | CZ19: 0 | DA19: 0 | DB19: 0 | DC19: 0 | DD19: 0 | DE19: 0 | DF19: 0 | DG19: 0 | DH19: 0 | DI19: 0 | DJ19: 0 | DK19: 0 | DL19: 0 | DM19: 0 | DN19: 0 | DO19: 0 | DP19: 0 | DQ19: 0 | DR19: 0 | DS19: 0 | DT19: 0 | DU19: 0 | DV19: 0 | DW19: 0 | DX19: 0 | DY19: 0 | DZ19: 0 | EA19: 0 | EB19: 0 | EC19: 0 | ED19: 0 | EE19: 0 | EF19: 0 | EG19: 0 | EH19: 0 | EI19: 0 | EJ19: =$F19*EJ$7 -> 0 | EK19: 0 | EL19: 0 | EM19: 0 | EN19: 0 | EO19: 0 | EP19: 0 | EQ19: 0 | ER19: 0 | ES19: 0 | ET19: 0 | EU19: 0 | EV19: 0 | EW19: 0 | EX19: 0 | EY19: 0 | EZ19: 0 | FA19: 0 | FB19: 0 | FC19: 0 | FD19: 0 | FE19: 0 | FF19: 0 | FG19: 0 | FH19: 0 | FI19: 0 | FJ19: 0 | FK19: 0 | FL19: 0 | FM19: 0 | FN19: 0 | FO19: 0 | FP19: 0 | FQ19: 0 | FR19: 0 | FS19: 0 | FT19: 0 | FU19: 0 | FV19: 0 | FW19: 0 | FX19: 0 | FY19: 0 | FZ19: 0 | GA19: 0 | GB19: 0 | GC19: 0 | GD19: 0 | GE19: 0 | GF19: 0 | GG19: 0 | GH19: 0 | GI19: 0 | GJ19: 0 | GK19: 0 | GL19: 0 | GM19: 0 | GN19: 0 | GO19: 0 | GP19: 0 | GQ19: 0 | GR19: 0 | GS19: 0 | GT19: 0 | GU19: 0 | GV19: =$F19*GV$7 -> 0 | GW19: 0 | GX19: 0 | GY19: 0 | GZ19: 0 | HA19: 0 | HB19: 0 | HC19: 0 | HD19: 0 | HE19: 0 | HF19: 0 | HG19: 0 | HH19: 0 | HI19: 0 | HJ19: 0 | HK19: 0 | HL19: 0 | HM19: 0 | HN19: 0 | HO19: 0 | HP19: 0 | HQ19: 0 | HR19: 0 | HS19: 0 | HT19: 0 | HU19: 0 | HV19: 0 | HW19: 0 | HX19: 0 | HY19: 0 | HZ19: 0 | IA19: 0 | IB19: 0 | IC19: 0 | ID19: 0 | IE19: 0 | IF19: 0 | IG19: 0 | IH19: 0 | II19: 0 | IJ19: 0 | IK19: 0 | IL19: 0 | IM19: 0 | IN19: 0 | IO19: 0 | IP19: 0 | IQ19: 0 | IR19: 0 | IS19: 0 | IT19: 0 | IU19: 0 | IV19: 0 | IW19: 0 | IX19: 0 | IY19: 0 | IZ19: 0 | JA19: 0 | JB19: 0 | JC19: 0 | JD19: 0 | JE19: 0 | JF19: 0 | JG19: 0 | JH19: =$F19*JH$7 -> 0 | JI19: 0 | JJ19: 0 | JK19: 0 | JL19: 0 | JM19: 0 | JN19: 0 | JO19: 0 | JP19: 0 | JQ19: 0 | JR19: 0 | JS19: 0 | JT19: 0 | JU19: 0 | JV19: 0 | JW19: 0 | JX19: 0 | JY19: 0 | JZ19: 0 | KA19: 0 | KB19: 0 | KC19: 0 | KD19: 0 | KE19: 0 | KF19: 0 | KG19: 0 | KH19: 0 | KI19: 0 | KJ19: 0 | KK19: 0 | KL19: 0 | KM19: 0 | KN19: 0 | KO19: 0 | KP19: 0 | KQ19: 0 | KR19: 0 | KS19: 0 | KT19: 0 | KU19: 0 | KV19: 0 | KW19: 0 | KX19: 0 | KY19: 0 | KZ19: 0 | LA19: 0 | LB19: 0 | LC19: 0 | LD19: 0 | LE19: 0 | LF19: 0 | LG19: 0 | LH19: 0 | LI19: 0 | LJ19: 0 | LK19: 0 | LL19: 0 | LM19: 0 | LN19: 0 | LO19: 0 | LP19: 0 | LQ19: 0 | LR19: 0 | LS19: 0 | LT19: =$F19*LT$7 -> 0 | LU19: 0 | LV19: 0 | LW19: 0 | LX19: 0 | LY19: 0 | LZ19: 0 | MA19: 0 | MB19: 0 | MC19: 0 | MD19: 0 | ME19: 0 | MF19: 0 | MG19: 0 | MH19: 0 | MI19: 0 | MJ19: 0 | MK19: 0 | ML19: 0 | MM19: 0 | MN19: 0 | MO19: 0 | MP19: 0 | MQ19: 0 | MR19: 0 | MS19: 0 | MT19: 0 | MU19: 0 | MV19: 0 | MW19: 0 | MX19: 0 | MY19: 0 | MZ19: 0 | NA19: 0 | NB19: 0 | NC19: 0 | ND19: 0 | NE19: 0 | NF19: 0 | NG19: 0 | NH19: 0 | NI19: 0 | NJ19: 0 | NK19: 0 | NL19: 0 | NM19: 0 | NN19: 0 | NO19: 0 | NP19: 0 | NQ19: 0 | NR19: 0 | NS19: 0 | NT19: 0 | NU19: 0 | NV19: 0 | NW19: 0 | NX19: 0 | NY19: 0 | NZ19: 0 | OA19: 0 | OB19: 0 | OC19: 0 | OD19: 0 | OE19: 0 | OF19: =$F19*OF$7 -> 0 | OG19: 0 | OH19: 0 | OI19: 0 | OJ19: 0 | OK19: 0 | OL19: 0 | OM19: 0 | ON19: 0 | OO19: 0 | OP19: 0 | OQ19: 0 | OR19: 0 | OS19: 0 | OT19: 0 | OU19: 0 | OV19: 0 | OW19: 0 | OX19: 0 | OY19: 0 | OZ19: 0 | PA19: 0 | PB19: 0 | PC19: 0 | PD19: 0 | PE19: 0 | PF19: 0 | PG19: 0 | PH19: 0 | PI19: 0 | PJ19: 0 | PK19: 0 | PL19: 0 | PM19: 0 | PN19: 0 | PO19: 0 | PP19: 0 | PQ19: 0 | PR19: 0 | PS19: 0 | PT19: 0 | PU19: 0 | PV19: 0 | PW19: 0 | PX19: 0 | PY19: 0 | PZ19: 0 | QA19: 0 | QB19: 0 | QC19: 0 | QD19: 0 | QE19: 0 | QF19: 0 | QG19: 0 | QH19: 0 | QI19: 0 | QJ19: 0 | QK19: 0 | QL19: 0 | QM19: 0 | QN19: 0 | QO19: 0 | QP19: 0 | QQ19: 0 | QR19: =$F19*QR$7 -> 0 | QS19: 0 | QT19: 0 | QU19: 0 | QV19: 0 | QW19: 0 | QX19: 0 | QY19: 0 | QZ19: 0 | RA19: 0 | RB19: 0 | RC19: 0 | RD19: 0 | RE19: 0 | RF19: 0 | RG19: 0 | RH19: 0 | RI19: 0 | RJ19: 0 | RK19: 0 | RL19: 0 | RM19: 0 | RN19: 0 | RO19: 0 | RP19: 0 | RQ19: 0 | RR19: 0 | RS19: 0 | RT19: 0 | RU19: 0 | RV19: 0 | RW19: 0 | RX19: 0 | RY19: 0 | RZ19: 0 | SA19: 0 | SB19: 0 | SC19: 0 | SD19: 0 | SE19: 0 | SF19: 0 | SG19: 0 | SH19: 0 | SI19: 0 | SJ19: 0 | SK19: 0 | SL19: 0 | SM19: 0 | SN19: 0 | SO19: 0 | SP19: 0 | SQ19: 0 | SR19: 0 | SS19: 0 | ST19: 0 | SU19: 0 | SV19: 0 | SW19: 0 | SX19: 0 | SY19: 0 | SZ19: 0 | TA19: 0 | TB19: 0 | TC19: 0 | TD19: =$F19*TD$7 -> 0 | TE19: 0 | TF19: 0 | TG19: 0 | TH19: 0 | TI19: 0 | TJ19: 0 | TK19: 0 | TL19: 0 | TM19: 0 | TN19: 0 | TO19: 0 | TP19: 0 | TQ19: 0 | TR19: 0 | TS19: 0 | TT19: 0 | TU19: 0 | TV19: 0 | TW19: 0 | TX19: 0 | TY19: 0 | TZ19: 0 | UA19: 0 | UB19: 0 | UC19: 0 | UD19: 0 | UE19: 0 | UF19: 0 | UG19: 0 | UH19: 0 | UI19: 0 | UJ19: 0 | UK19: 0 | UL19: 0 | UM19: 0 | UN19: 0 | UO19: 0 | UP19: 0 | UQ19: 0 | UR19: 0 | US19: 0 | UT19: 0 | UU19: 0 | UV19: 0 | UW19: 0 | UX19: 0 | UY19: 0 | UZ19: 0 | VA19: 0 | VB19: 0 | VC19: 0 | VD19: 0 | VE19: 0 | VF19: 0 | VG19: 0 | VH19: 0 | VI19: 0 | VJ19: 0 | VK19: 0 | VL19: 0 | VM19: 0 | VN19: 0 | VO19: 0 | VP19: =$F19*VP$7 -> 0 | VQ19: 0 | VR19: 0 | VS19: 0 | VT19: 0 | VU19: 0 | VV19: 0 | VW19: 0 | VX19: 0 | VY19: 0 | VZ19: 0 | WA19: 0 | WB19: 0 | WC19: 0 | WD19: 0 | WE19: 0 | WF19: 0 | WG19: 0 | WH19: 0 | WI19: 0 | WJ19: 0 | WK19: 0 | WL19: 0 | WM19: 0 | WN19: 0 | WO19: 0 | WP19: 0 | WQ19: 0 | WR19: 0 | WS19: 0 | WT19: 0 | WU19: 0 | WV19: 0 | WW19: 0 | WX19: 0 | WY19: 0 | WZ19: 0 | XA19: 0 | XB19: 0 | XC19: 0 | XD19: 0 | XE19: 0 | XF19: 0 | XG19: 0 | XH19: 0 | XI19: 0 | XJ19: 0 | XK19: 0 | XL19: 0 | XM19: 0 | XN19: 0 | XO19: 0 | XP19: 0 | XQ19: 0 | XR19: 0 | XS19: 0 | XT19: 0 | XU19: 0 | XV19: 0 | XW19: 0 | XX19: 0 | XY19: 0 | XZ19: 0 | YA19: 0 | YB19: =$F19*YB$7 -> 0 | YC19: 0 | YD19: 0 | YE19: 0 | YF19: 0 | YG19: 0 | YH19: 0 | YI19: 0 | YJ19: 0 | YK19: 0 | YL19: 0 | YM19: 0 | YN19: 0 | YO19: 0 | YP19: 0 | YQ19: 0 | YR19: 0 | YS19: 0 | YT19: 0 | YU19: 0 | YV19: 0 | YW19: 0 | YX19: 0 | YY19: 0 | YZ19: 0 | ZA19: 0 | ZB19: 0 | ZC19: 0 | ZD19: 0 | ZE19: 0 | ZF19: 0 | ZG19: 0 | ZH19: 0 | ZI19: 0 | ZJ19: 0 | ZK19: 0 | ZL19: 0 | ZM19: 0 | ZN19: 0 | ZO19: 0 | ZP19: 0 | ZQ19: 0 | ZR19: 0 | ZS19: 0 | ZT19: 0 | ZU19: 0 | ZV19: 0 | ZW19: 0 | ZX19: 0 | ZY19: 0 | ZZ19: 0 | AAA19: 0 | AAB19: 0 | AAC19: 0 | AAD19: 0 | AAE19: 0 | AAF19: 0 | AAG19: 0 | AAH19: 0 | AAI19: 0 | AAJ19: 0 | AAK19: 0 | AAL19: 0 | AAM19: 0 | AAN19: =$F19*AAN$7 -> 0 | AAO19: 0 | AAP19: 0 | AAQ19: 0 | AAR19: 0 | AAS19: 0 | AAT19: 0 | AAU19: 0 | AAV19: 0 | AAW19: 0 | AAX19: 0 | AAY19: 0 | AAZ19: 0 | ABA19: 0 | ABB19: 0 | ABC19: 0 | ABD19: 0 | ABE19: 0 | ABF19: 0 | ABG19: 0 | ABH19: 0 | ABI19: 0 | ABJ19: 0 | ABK19: 0 | ABL19: 0 | ABM19: 0 | ABN19: 0 | ABO19: 0 | ABP19: 0 | ABQ19: 0 | ABR19: 0 | ABS19: 0 | ABT19: 0 | ABU19: 0 | ABV19: 0 | ABW19: 0 | ABX19: 0 | ABY19: 0 | ABZ19: 0
D20: Wind Capacity Factor | E20: % | F20: =InputC!F31 -> 0 | K20: =$F20*K$7 -> 0 | L20: 0 | M20: 0 | N20: 0 | O20: 0 | P20: 0 | Q20: 0 | R20: 0 | S20: 0 | T20: 0 | U20: 0 | V20: 0 | W20: 0 | X20: 0 | Y20: 0 | Z20: 0 | AA20: 0 | AB20: 0 | AC20: 0 | AD20: 0 | AE20: 0 | AF20: 0 | AG20: 0 | AH20: 0 | AI20: 0 | AJ20: 0 | AK20: 0 | AL20: 0 | AM20: 0 | AN20: 0 | AO20: 0 | AP20: 0 | AQ20: 0 | AR20: 0 | AS20: 0 | AT20: 0 | AU20: 0 | AV20: 0 | AW20: 0 | AX20: 0 | AY20: 0 | AZ20: 0 | BA20: 0 | BB20: 0 | BC20: 0 | BD20: 0 | BE20: 0 | BF20: 0 | BG20: 0 | BH20: 0 | BI20: 0 | BJ20: 0 | BK20: 0 | BL20: 0 | BM20: 0 | BN20: 0 | BO20: 0 | BP20: 0 | BQ20: 0 | BR20: 0 | BS20: 0 | BT20: 0 | BU20: 0 | BV20: 0 | BW20: 0 | BX20: 0 | BY20: 0 | BZ20: 0 | CA20: 0 | CB20: 0 | CC20: 0 | CD20: 0 | CE20: 0 | CF20: 0 | CG20: 0 | CH20: 0 | CI20: 0 | CJ20: 0 | CK20: 0 | CL20: 0 | CM20: 0 | CN20: 0 | CO20: 0 | CP20: 0 | CQ20: 0 | CR20: 0 | CS20: 0 | CT20: 0 | CU20: 0 | CV20: 0 | CW20: 0 | CX20: 0 | CY20: 0 | CZ20: 0 | DA20: 0 | DB20: 0 | DC20: 0 | DD20: 0 | DE20: 0 | DF20: 0 | DG20: 0 | DH20: 0 | DI20: 0 | DJ20: 0 | DK20: 0 | DL20: 0 | DM20: 0 | DN20: 0 | DO20: 0 | DP20: 0 | DQ20: 0 | DR20: 0 | DS20: 0 | DT20: 0 | DU20: 0 | DV20: 0 | DW20: 0 | DX20: 0 | DY20: 0 | DZ20: 0 | EA20: 0 | EB20: 0 | EC20: 0 | ED20: 0 | EE20: 0 | EF20: 0 | EG20: 0 | EH20: 0 | EI20: 0 | EJ20: 0 | EK20: 0 | EL20: 0 | EM20: 0 | EN20: 0 | EO20: 0 | EP20: 0 | EQ20: 0 | ER20: 0 | ES20: 0 | ET20: 0 | EU20: 0 | EV20: 0 | EW20: 0 | EX20: 0 | EY20: 0 | EZ20: 0 | FA20: 0 | FB20: 0 | FC20: 0 | FD20: 0 | FE20: 0 | FF20: 0 | FG20: 0 | FH20: 0 | FI20: 0 | FJ20: 0 | FK20: 0 | FL20: 0 | FM20: 0 | FN20: 0 | FO20: 0 | FP20: 0 | FQ20: 0 | FR20: 0 | FS20: 0 | FT20: 0 | FU20: 0 | FV20: 0 | FW20: 0 | FX20: 0 | FY20: 0 | FZ20: 0 | GA20: 0 | GB20: 0 | GC20: 0 | GD20: 0 | GE20: 0 | GF20: 0 | GG20: 0 | GH20: 0 | GI20: 0 | GJ20: 0 | GK20: 0 | GL20: 0 | GM20: 0 | GN20: 0 | GO20: 0 | GP20: 0 | GQ20: 0 | GR20: 0 | GS20: 0 | GT20: 0 | GU20: 0 | GV20: 0 | GW20: 0 | GX20: 0 | GY20: 0 | GZ20: 0 | HA20: 0 | HB20: 0 | HC20: 0 | HD20: 0 | HE20: 0 | HF20: 0 | HG20: 0 | HH20: 0 | HI20: 0 | HJ20: 0 | HK20: 0 | HL20: 0 | HM20: 0 | HN20: 0 | HO20: 0 | HP20: 0 | HQ20: 0 | HR20: 0 | HS20: 0 | HT20: 0 | HU20: 0 | HV20: 0 | HW20: 0 | HX20: 0 | HY20: 0 | HZ20: 0 | IA20: 0 | IB20: 0 | IC20: 0 | ID20: 0 | IE20: 0 | IF20: 0 | IG20: 0 | IH20: 0 | II20: 0 | IJ20: 0 | IK20: 0 | IL20: 0 | IM20: 0 | IN20: 0 | IO20: 0 | IP20: 0 | IQ20: 0 | IR20: 0 | IS20: 0 | IT20: 0 | IU20: 0 | IV20: 0 | IW20: 0 | IX20: 0 | IY20: 0 | IZ20: 0 | JA20: 0 | JB20: 0 | JC20: 0 | JD20: 0 | JE20: 0 | JF20: 0 | JG20: 0 | JH20: 0 | JI20: 0 | JJ20: 0 | JK20: 0 | JL20: 0 | JM20: 0 | JN20: 0 | JO20: 0 | JP20: 0 | JQ20: 0 | JR20: 0 | JS20: 0 | JT20: 0 | JU20: 0 | JV20: 0 | JW20: 0 | JX20: 0 | JY20: 0 | JZ20: 0 | KA20: 0 | KB20: 0 | KC20: 0 | KD20: 0 | KE20: 0 | KF20: 0 | KG20: 0 | KH20: 0 | KI20: 0 | KJ20: 0 | KK20: 0 | KL20: 0 | KM20: 0 | KN20: 0 | KO20: 0 | KP20: 0 | KQ20: 0 | KR20: 0 | KS20: 0 | KT20: 0 | KU20: 0 | KV20: 0 | KW20: 0 | KX20: 0 | KY20: 0 | KZ20: 0 | LA20: 0 | LB20: 0 | LC20: 0 | LD20: 0 | LE20: 0 | LF20: 0 | LG20: 0 | LH20: 0 | LI20: 0 | LJ20: 0 | LK20: 0 | LL20: 0 | LM20: 0 | LN20: 0 | LO20: 0 | LP20: 0 | LQ20: 0 | LR20: 0 | LS20: 0 | LT20: 0 | LU20: 0 | LV20: 0 | LW20: 0 | LX20: 0 | LY20: 0 | LZ20: 0 | MA20: 0 | MB20: 0 | MC20: 0 | MD20: 0 | ME20: 0 | MF20: 0 | MG20: 0 | MH20: 0 | MI20: 0 | MJ20: 0 | MK20: 0 | ML20: 0 | MM20: 0 | MN20: 0 | MO20: 0 | MP20: 0 | MQ20: 0 | MR20: 0 | MS20: 0 | MT20: 0 | MU20: 0 | MV20: 0 | MW20: 0 | MX20: 0 | MY20: 0 | MZ20: 0 | NA20: 0 | NB20: 0 | NC20: 0 | ND20: 0 | NE20: 0 | NF20: 0 | NG20: 0 | NH20: 0 | NI20: 0 | NJ20: 0 | NK20: 0 | NL20: 0 | NM20: 0 | NN20: 0 | NO20: 0 | NP20: 0 | NQ20: 0 | NR20: 0 | NS20: 0 | NT20: 0 | NU20: 0 | NV20: 0 | NW20: 0 | NX20: 0 | NY20: 0 | NZ20: 0 | OA20: 0 | OB20: 0 | OC20: 0 | OD20: 0 | OE20: 0 | OF20: 0 | OG20: 0 | OH20: 0 | OI20: 0 | OJ20: 0 | OK20: 0 | OL20: 0 | OM20: 0 | ON20: 0 | OO20: 0 | OP20: 0 | OQ20: 0 | OR20: 0 | OS20: 0 | OT20: 0 | OU20: 0 | OV20: 0 | OW20: 0 | OX20: 0 | OY20: 0 | OZ20: 0 | PA20: 0 | PB20: 0 | PC20: 0 | PD20: 0 | PE20: 0 | PF20: 0 | PG20: 0 | PH20: 0 | PI20: 0 | PJ20: 0 | PK20: 0 | PL20: 0 | PM20: 0 | PN20: 0 | PO20: 0 | PP20: 0 | PQ20: 0 | PR20: 0 | PS20: 0 | PT20: 0 | PU20: 0 | PV20: 0 | PW20: 0 | PX20: 0 | PY20: 0 | PZ20: 0 | QA20: 0 | QB20: 0 | QC20: 0 | QD20: 0 | QE20: 0 | QF20: 0 | QG20: 0 | QH20: 0 | QI20: 0 | QJ20: 0 | QK20: 0 | QL20: 0 | QM20: 0 | QN20: 0 | QO20: 0 | QP20: 0 | QQ20: 0 | QR20: 0 | QS20: 0 | QT20: 0 | QU20: 0 | QV20: 0 | QW20: 0 | QX20: 0 | QY20: 0 | QZ20: 0 | RA20: 0 | RB20: 0 | RC20: 0 | RD20: 0 | RE20: 0 | RF20: 0 | RG20: 0 | RH20: 0 | RI20: 0 | RJ20: 0 | RK20: 0 | RL20: 0 | RM20: 0 | RN20: 0 | RO20: 0 | RP20: 0 | RQ20: 0 | RR20: 0 | RS20: 0 | RT20: 0 | RU20: 0 | RV20: 0 | RW20: 0 | RX20: 0 | RY20: 0 | RZ20: 0 | SA20: 0 | SB20: 0 | SC20: 0 | SD20: 0 | SE20: 0 | SF20: 0 | SG20: 0 | SH20: 0 | SI20: 0 | SJ20: 0 | SK20: 0 | SL20: 0 | SM20: 0 | SN20: 0 | SO20: 0 | SP20: 0 | SQ20: 0 | SR20: 0 | SS20: 0 | ST20: 0 | SU20: 0 | SV20: 0 | SW20: 0 | SX20: 0 | SY20: 0 | SZ20: 0 | TA20: 0 | TB20: 0 | TC20: 0 | TD20: 0 | TE20: 0 | TF20: 0 | TG20: 0 | TH20: 0 | TI20: 0 | TJ20: 0 | TK20: 0 | TL20: 0 | TM20: 0 | TN20: 0 | TO20: 0 | TP20: 0 | TQ20: 0 | TR20: 0 | TS20: 0 | TT20: 0 | TU20: 0 | TV20: 0 | TW20: 0 | TX20: 0 | TY20: 0 | TZ20: 0 | UA20: 0 | UB20: 0 | UC20: 0 | UD20: 0 | UE20: 0 | UF20: 0 | UG20: 0 | UH20: 0 | UI20: 0 | UJ20: 0 | UK20: 0 | UL20: 0 | UM20: 0 | UN20: 0 | UO20: 0 | UP20: 0 | UQ20: 0 | UR20: 0 | US20: 0 | UT20: 0 | UU20: 0 | UV20: 0 | UW20: 0 | UX20: 0 | UY20: 0 | UZ20: 0 | VA20: 0 | VB20: 0 | VC20: 0 | VD20: 0 | VE20: 0 | VF20: 0 | VG20: 0 | VH20: 0 | VI20: 0 | VJ20: 0 | VK20: 0 | VL20: 0 | VM20: 0 | VN20: 0 | VO20: 0 | VP20: 0 | VQ20: 0 | VR20: 0 | VS20: 0 | VT20: 0 | VU20: 0 | VV20: 0 | VW20: 0 | VX20: 0 | VY20: 0 | VZ20: 0 | WA20: 0 | WB20: 0 | WC20: 0 | WD20: 0 | WE20: 0 | WF20: 0 | WG20: 0 | WH20: 0 | WI20: 0 | WJ20: 0 | WK20: 0 | WL20: 0 | WM20: 0 | WN20: 0 | WO20: 0 | WP20: 0 | WQ20: 0 | WR20: 0 | WS20: 0 | WT20: 0 | WU20: 0 | WV20: 0 | WW20: 0 | WX20: 0 | WY20: 0 | WZ20: 0 | XA20: 0 | XB20: 0 | XC20: 0 | XD20: 0 | XE20: 0 | XF20: 0 | XG20: 0 | XH20: 0 | XI20: 0 | XJ20: 0 | XK20: 0 | XL20: 0 | XM20: 0 | XN20: 0 | XO20: 0 | XP20: 0 | XQ20: 0 | XR20: 0 | XS20: 0 | XT20: 0 | XU20: 0 | XV20: 0 | XW20: 0 | XX20: 0 | XY20: 0 | XZ20: 0 | YA20: 0 | YB20: 0 | YC20: 0 | YD20: 0 | YE20: 0 | YF20: 0 | YG20: 0 | YH20: 0 | YI20: 0 | YJ20: 0 | YK20: 0 | YL20: 0 | YM20: 0 | YN20: 0 | YO20: 0 | YP20: 0 | YQ20: 0 | YR20: 0 | YS20: 0 | YT20: 0 | YU20: 0 | YV20: 0 | YW20: 0 | YX20: 0 | YY20: 0 | YZ20: 0 | ZA20: 0 | ZB20: 0 | ZC20: 0 | ZD20: 0 | ZE20: 0 | ZF20: 0 | ZG20: 0 | ZH20: 0 | ZI20: 0 | ZJ20: 0 | ZK20: 0 | ZL20: 0 | ZM20: 0 | ZN20: 0 | ZO20: 0 | ZP20: 0 | ZQ20: 0 | ZR20: 0 | ZS20: 0 | ZT20: 0 | ZU20: 0 | ZV20: 0 | ZW20: 0 | ZX20: 0 | ZY20: 0 | ZZ20: 0 | AAA20: 0 | AAB20: 0 | AAC20: 0 | AAD20: 0 | AAE20: 0 | AAF20: 0 | AAG20: 0 | AAH20: 0 | AAI20: 0 | AAJ20: 0 | AAK20: 0 | AAL20: 0 | AAM20: 0 | AAN20: 0 | AAO20: 0 | AAP20: 0 | AAQ20: 0 | AAR20: 0 | AAS20: 0 | AAT20: 0 | AAU20: 0 | AAV20: 0 | AAW20: 0 | AAX20: 0 | AAY20: 0 | AAZ20: 0 | ABA20: 0 | ABB20: 0 | ABC20: 0 | ABD20: 0 | ABE20: 0 | ABF20: 0 | ABG20: 0 | ABH20: 0 | ABI20: 0 | ABJ20: 0 | ABK20: 0 | ABL20: 0 | ABM20: 0 | ABN20: 0 | ABO20: 0 | ABP20: 0 | ABQ20: 0 | ABR20: 0 | ABS20: 0 | ABT20: 0 | ABU20: 0 | ABV20: 0 | ABW20: 0 | ABX20: 0 | ABY20: 0 | ABZ20: 0
D21: Battery Availability | E21: % | F21: =InputC!F37 -> 0 | K21: 0 | L21: 0 | M21: 0 | N21: 0 | O21: 0 | P21: 0 | Q21: 0 | R21: 0 | S21: 0 | T21: 0 | U21: 0 | V21: 0 | W21: 0 | X21: 0 | Y21: 0 | Z21: 0 | AA21: 0 | AB21: 0 | AC21: 0 | AD21: 0 | AE21: 0 | AF21: 0 | AG21: 0 | AH21: 0 | AI21: 0 | AJ21: 0 | AK21: 0 | AL21: 0 | AM21: 0 | AN21: 0 | AO21: 0 | AP21: 0 | AQ21: 0 | AR21: 0 | AS21: 0 | AT21: 0 | AU21: 0 | AV21: 0 | AW21: 0 | AX21: 0 | AY21: 0 | AZ21: 0 | BA21: 0 | BB21: 0 | BC21: 0 | BD21: 0 | BE21: 0 | BF21: 0 | BG21: 0 | BH21: 0 | BI21: 0 | BJ21: 0 | BK21: 0 | BL21: 0 | BM21: 0 | BN21: 0 | BO21: 0 | BP21: 0 | BQ21: 0 | BR21: 0 | BS21: 0 | BT21: 0 | BU21: 0 | BV21: 0 | BW21: 0 | BX21: 0 | BY21: 0 | BZ21: 0 | CA21: 0 | CB21: 0 | CC21: 0 | CD21: 0 | CE21: 0 | CF21: 0 | CG21: 0 | CH21: 0 | CI21: 0 | CJ21: 0 | CK21: 0 | CL21: 0 | CM21: 0 | CN21: 0 | CO21: 0 | CP21: 0 | CQ21: 0 | CR21: 0 | CS21: 0 | CT21: 0 | CU21: 0 | CV21: 0 | CW21: 0 | CX21: 0 | CY21: 0 | CZ21: 0 | DA21: 0 | DB21: 0 | DC21: 0 | DD21: 0 | DE21: 0 | DF21: 0 | DG21: 0 | DH21: 0 | DI21: 0 | DJ21: 0 | DK21: 0 | DL21: 0 | DM21: 0 | DN21: 0 | DO21: 0 | DP21: 0 | DQ21: 0 | DR21: 0 | DS21: 0 | DT21: 0 | DU21: 0 | DV21: 0 | DW21: 0 | DX21: 0 | DY21: 0 | DZ21: 0 | EA21: 0 | EB21: 0 | EC21: 0 | ED21: 0 | EE21: 0 | EF21: 0 | EG21: 0 | EH21: 0 | EI21: 0 | EJ21: 0 | EK21: 0 | EL21: 0 | EM21: 0 | EN21: 0 | EO21: 0 | EP21: 0 | EQ21: 0 | ER21: 0 | ES21: 0 | ET21: 0 | EU21: 0 | EV21: 0 | EW21: 0 | EX21: 0 | EY21: 0 | EZ21: 0 | FA21: 0 | FB21: 0 | FC21: 0 | FD21: 0 | FE21: 0 | FF21: 0 | FG21: 0 | FH21: 0 | FI21: 0 | FJ21: 0 | FK21: 0 | FL21: 0 | FM21: 0 | FN21: 0 | FO21: 0 | FP21: 0 | FQ21: 0 | FR21: 0 | FS21: 0 | FT21: 0 | FU21: 0 | FV21: 0 | FW21: 0 | FX21: 0 | FY21: 0 | FZ21: 0 | GA21: 0 | GB21: 0 | GC21: 0 | GD21: 0 | GE21: 0 | GF21: 0 | GG21: 0 | GH21: 0 | GI21: 0 | GJ21: 0 | GK21: 0 | GL21: 0 | GM21: 0 | GN21: 0 | GO21: 0 | GP21: 0 | GQ21: 0 | GR21: 0 | GS21: 0 | GT21: 0 | GU21: 0 | GV21: 0 | GW21: 0 | GX21: 0 | GY21: 0 | GZ21: 0 | HA21: 0 | HB21: 0 | HC21: 0 | HD21: 0 | HE21: 0 | HF21: 0 | HG21: 0 | HH21: 0 | HI21: 0 | HJ21: 0 | HK21: 0 | HL21: 0 | HM21: 0 | HN21: 0 | HO21: 0 | HP21: 0 | HQ21: 0 | HR21: 0 | HS21: 0 | HT21: 0 | HU21: 0 | HV21: 0 | HW21: 0 | HX21: 0 | HY21: 0 | HZ21: 0 | IA21: 0 | IB21: 0 | IC21: 0 | ID21: 0 | IE21: 0 | IF21: 0 | IG21: 0 | IH21: 0 | II21: 0 | IJ21: 0 | IK21: 0 | IL21: 0 | IM21: 0 | IN21: 0 | IO21: 0 | IP21: 0 | IQ21: 0 | IR21: 0 | IS21: 0 | IT21: 0 | IU21: 0 | IV21: 0 | IW21: 0 | IX21: 0 | IY21: 0 | IZ21: 0 | JA21: 0 | JB21: 0 | JC21: 0 | JD21: 0 | JE21: 0 | JF21: 0 | JG21: 0 | JH21: 0 | JI21: 0 | JJ21: 0 | JK21: 0 | JL21: 0 | JM21: 0 | JN21: 0 | JO21: 0 | JP21: 0 | JQ21: 0 | JR21: 0 | JS21: 0 | JT21: 0 | JU21: 0 | JV21: 0 | JW21: 0 | JX21: 0 | JY21: 0 | JZ21: 0 | KA21: 0 | KB21: 0 | KC21: 0 | KD21: 0 | KE21: 0 | KF21: 0 | KG21: 0 | KH21: 0 | KI21: 0 | KJ21: 0 | KK21: 0 | KL21: 0 | KM21: 0 | KN21: 0 | KO21: 0 | KP21: 0 | KQ21: 0 | KR21: 0 | KS21: 0 | KT21: 0 | KU21: 0 | KV21: 0 | KW21: 0 | KX21: 0 | KY21: 0 | KZ21: 0 | LA21: 0 | LB21: 0 | LC21: 0 | LD21: 0 | LE21: 0 | LF21: 0 | LG21: 0 | LH21: 0 | LI21: 0 | LJ21: 0 | LK21: 0 | LL21: 0 | LM21: 0 | LN21: 0 | LO21: 0 | LP21: 0 | LQ21: 0 | LR21: 0 | LS21: 0 | LT21: 0 | LU21: 0 | LV21: 0 | LW21: 0 | LX21: 0 | LY21: 0 | LZ21: 0 | MA21: 0 | MB21: 0 | MC21: 0 | MD21: 0 | ME21: 0 | MF21: 0 | MG21: 0 | MH21: 0 | MI21: 0 | MJ21: 0 | MK21: 0 | ML21: 0 | MM21: 0 | MN21: 0 | MO21: 0 | MP21: 0 | MQ21: 0 | MR21: 0 | MS21: 0 | MT21: 0 | MU21: 0 | MV21: 0 | MW21: 0 | MX21: 0 | MY21: 0 | MZ21: 0 | NA21: 0 | NB21: 0 | NC21: 0 | ND21: 0 | NE21: 0 | NF21: 0 | NG21: 0 | NH21: 0 | NI21: 0 | NJ21: 0 | NK21: 0 | NL21: 0 | NM21: 0 | NN21: 0 | NO21: 0 | NP21: 0 | NQ21: 0 | NR21: 0 | NS21: 0 | NT21: 0 | NU21: 0 | NV21: 0 | NW21: 0 | NX21: 0 | NY21: 0 | NZ21: 0 | OA21: 0 | OB21: 0 | OC21: 0 | OD21: 0 | OE21: 0 | OF21: 0 | OG21: 0 | OH21: 0 | OI21: 0 | OJ21: 0 | OK21: 0 | OL21: 0 | OM21: 0 | ON21: 0 | OO21: 0 | OP21: 0 | OQ21: 0 | OR21: 0 | OS21: 0 | OT21: 0 | OU21: 0 | OV21: 0 | OW21: 0 | OX21: 0 | OY21: 0 | OZ21: 0 | PA21: 0 | PB21: 0 | PC21: 0 | PD21: 0 | PE21: 0 | PF21: 0 | PG21: 0 | PH21: 0 | PI21: 0 | PJ21: 0 | PK21: 0 | PL21: 0 | PM21: 0 | PN21: 0 | PO21: 0 | PP21: 0 | PQ21: 0 | PR21: 0 | PS21: 0 | PT21: 0 | PU21: 0 | PV21: 0 | PW21: 0 | PX21: 0 | PY21: 0 | PZ21: 0 | QA21: 0 | QB21: 0 | QC21: 0 | QD21: 0 | QE21: 0 | QF21: 0 | QG21: 0 | QH21: 0 | QI21: 0 | QJ21: 0 | QK21: 0 | QL21: 0 | QM21: 0 | QN21: 0 | QO21: 0 | QP21: 0 | QQ21: 0 | QR21: 0 | QS21: 0 | QT21: 0 | QU21: 0 | QV21: 0 | QW21: 0 | QX21: 0 | QY21: 0 | QZ21: 0 | RA21: 0 | RB21: 0 | RC21: 0 | RD21: 0 | RE21: 0 | RF21: 0 | RG21: 0 | RH21: 0 | RI21: 0 | RJ21: 0 | RK21: 0 | RL21: 0 | RM21: 0 | RN21: 0 | RO21: 0 | RP21: 0 | RQ21: 0 | RR21: 0 | RS21: 0 | RT21: 0 | RU21: 0 | RV21: 0 | RW21: 0 | RX21: 0 | RY21: 0 | RZ21: 0 | SA21: 0 | SB21: 0 | SC21: 0 | SD21: 0 | SE21: 0 | SF21: 0 | SG21: 0 | SH21: 0 | SI21: 0 | SJ21: 0 | SK21: 0 | SL21: 0 | SM21: 0 | SN21: 0 | SO21: 0 | SP21: 0 | SQ21: 0 | SR21: 0 | SS21: 0 | ST21: 0 | SU21: 0 | SV21: 0 | SW21: 0 | SX21: 0 | SY21: 0 | SZ21: 0 | TA21: 0 | TB21: 0 | TC21: 0 | TD21: 0 | TE21: 0 | TF21: 0 | TG21: 0 | TH21: 0 | TI21: 0 | TJ21: 0 | TK21: 0 | TL21: 0 | TM21: 0 | TN21: 0 | TO21: 0 | TP21: 0 | TQ21: 0 | TR21: 0 | TS21: 0 | TT21: 0 | TU21: 0 | TV21: 0 | TW21: 0 | TX21: 0 | TY21: 0 | TZ21: 0 | UA21: 0 | UB21: 0 | UC21: 0 | UD21: 0 | UE21: 0 | UF21: 0 | UG21: 0 | UH21: 0 | UI21: 0 | UJ21: 0 | UK21: 0 | UL21: 0 | UM21: 0 | UN21: 0 | UO21: 0 | UP21: 0 | UQ21: 0 | UR21: 0 | US21: 0 | UT21: 0 | UU21: 0 | UV21: 0 | UW21: 0 | UX21: 0 | UY21: 0 | UZ21: 0 | VA21: 0 | VB21: 0 | VC21: 0 | VD21: 0 | VE21: 0 | VF21: 0 | VG21: 0 | VH21: 0 | VI21: 0 | VJ21: 0 | VK21: 0 | VL21: 0 | VM21: 0 | VN21: 0 | VO21: 0 | VP21: 0 | VQ21: 0 | VR21: 0 | VS21: 0 | VT21: 0 | VU21: 0 | VV21: 0 | VW21: 0 | VX21: 0 | VY21: 0 | VZ21: 0 | WA21: 0 | WB21: 0 | WC21: 0 | WD21: 0 | WE21: 0 | WF21: 0 | WG21: 0 | WH21: 0 | WI21: 0 | WJ21: 0 | WK21: 0 | WL21: 0 | WM21: 0 | WN21: 0 | WO21: 0 | WP21: 0 | WQ21: 0 | WR21: 0 | WS21: 0 | WT21: 0 | WU21: 0 | WV21: 0 | WW21: 0 | WX21: 0 | WY21: 0 | WZ21: 0 | XA21: 0 | XB21: 0 | XC21: 0 | XD21: 0 | XE21: 0 | XF21: 0 | XG21: 0 | XH21: 0 | XI21: 0 | XJ21: 0 | XK21: 0 | XL21: 0 | XM21: 0 | XN21: 0 | XO21: 0 | XP21: 0 | XQ21: 0 | XR21: 0 | XS21: 0 | XT21: 0 | XU21: 0 | XV21: 0 | XW21: 0 | XX21: 0 | XY21: 0 | XZ21: 0 | YA21: 0 | YB21: 0 | YC21: 0 | YD21: 0 | YE21: 0 | YF21: 0 | YG21: 0 | YH21: 0 | YI21: 0 | YJ21: 0 | YK21: 0 | YL21: 0 | YM21: 0 | YN21: 0 | YO21: 0 | YP21: 0 | YQ21: 0 | YR21: 0 | YS21: 0 | YT21: 0 | YU21: 0 | YV21: 0 | YW21: 0 | YX21: 0 | YY21: 0 | YZ21: 0 | ZA21: 0 | ZB21: 0 | ZC21: 0 | ZD21: 0 | ZE21: 0 | ZF21: 0 | ZG21: 0 | ZH21: 0 | ZI21: 0 | ZJ21: 0 | ZK21: 0 | ZL21: 0 | ZM21: 0 | ZN21: 0 | ZO21: 0 | ZP21: 0 | ZQ21: 0 | ZR21: 0 | ZS21: 0 | ZT21: 0 | ZU21: 0 | ZV21: 0 | ZW21: 0 | ZX21: 0 | ZY21: 0 | ZZ21: 0 | AAA21: 0 | AAB21: 0 | AAC21: 0 | AAD21: 0 | AAE21: 0 | AAF21: 0 | AAG21: 0 | AAH21: 0 | AAI21: 0 | AAJ21: 0 | AAK21: 0 | AAL21: 0 | AAM21: 0 | AAN21: 0 | AAO21: 0 | AAP21: 0 | AAQ21: 0 | AAR21: 0 | AAS21: 0 | AAT21: 0 | AAU21: 0 | AAV21: 0 | AAW21: 0 | AAX21: 0 | AAY21: 0 | AAZ21: 0 | ABA21: 0 | ABB21: 0 | ABC21: 0 | ABD21: 0 | ABE21: 0 | ABF21: 0 | ABG21: 0 | ABH21: 0 | ABI21: 0 | ABJ21: 0 | ABK21: 0 | ABL21: 0 | ABM21: 0 | ABN21: 0 | ABO21: 0 | ABP21: 0 | ABQ21: 0 | ABR21: 0 | ABS21: 0 | ABT21: 0 | ABU21: 0 | ABV21: 0 | ABW21: 0 | ABX21: 0 | ABY21: 0 | ABZ21: 0
C23: Generation and Availability
D24: Hours in Period | E24: Hours | K24: =(K5-K4+1)*24 -> -1095768 | L24: =(L5-L4+1)*24 -> 0 | M24: =(M5-M4+1)*24 -> 0 | N24: =(N5-N4+1)*24 -> 0 | O24: =(O5-O4+1)*24 -> 0 | P24: =(P5-P4+1)*24 -> 0 | Q24: =(Q5-Q4+1)*24 -> 0 | R24: =(R5-R4+1)*24 -> 0 | S24: =(S5-S4+1)*24 -> 0 | T24: =(T5-T4+1)*24 -> 0 | U24: =(U5-U4+1)*24 -> 0 | V24: =(V5-V4+1)*24 -> 0 | W24: =(W5-W4+1)*24 -> 0 | X24: =(X5-X4+1)*24 -> 0 | Y24: =(Y5-Y4+1)*24 -> 0 | Z24: =(Z5-Z4+1)*24 -> 0 | AA24: =(AA5-AA4+1)*24 -> 0 | AB24: =(AB5-AB4+1)*24 -> 0 | AC24: =(AC5-AC4+1)*24 -> 0 | AD24: =(AD5-AD4+1)*24 -> 0 | AE24: =(AE5-AE4+1)*24 -> 0 | AF24: =(AF5-AF4+1)*24 -> 0 | AG24: =(AG5-AG4+1)*24 -> 0 | AH24: =(AH5-AH4+1)*24 -> 0 | AI24: =(AI5-AI4+1)*24 -> 0 | AJ24: =(AJ5-AJ4+1)*24 -> 0 | AK24: =(AK5-AK4+1)*24 -> 0 | AL24: =(AL5-AL4+1)*24 -> 0 | AM24: =(AM5-AM4+1)*24 -> 0 | AN24: =(AN5-AN4+1)*24 -> 0 | AO24: =(AO5-AO4+1)*24 -> 0 | AP24: =(AP5-AP4+1)*24 -> 0 | AQ24: =(AQ5-AQ4+1)*24 -> 0 | AR24: =(AR5-AR4+1)*24 -> 0 | AS24: =(AS5-AS4+1)*24 -> 0 | AT24: =(AT5-AT4+1)*24 -> 0 | AU24: =(AU5-AU4+1)*24 -> 0 | AV24: =(AV5-AV4+1)*24 -> 0 | AW24: =(AW5-AW4+1)*24 -> 0 | AX24: =(AX5-AX4+1)*24 -> 0 | AY24: =(AY5-AY4+1)*24 -> 0 | AZ24: =(AZ5-AZ4+1)*24 -> 0 | BA24: =(BA5-BA4+1)*24 -> 0 | BB24: =(BB5-BB4+1)*24 -> 0 | BC24: =(BC5-BC4+1)*24 -> 0 | BD24: =(BD5-BD4+1)*24 -> 0 | BE24: =(BE5-BE4+1)*24 -> 0 | BF24: =(BF5-BF4+1)*24 -> 0 | BG24: =(BG5-BG4+1)*24 -> 0 | BH24: =(BH5-BH4+1)*24 -> 0 | BI24: =(BI5-BI4+1)*24 -> 0 | BJ24: =(BJ5-BJ4+1)*24 -> 0 | BK24: =(BK5-BK4+1)*24 -> 0 | BL24: =(BL5-BL4+1)*24 -> 0 | BM24: =(BM5-BM4+1)*24 -> 0 | BN24: =(BN5-BN4+1)*24 -> 0 | BO24: =(BO5-BO4+1)*24 -> 0 | BP24: =(BP5-BP4+1)*24 -> 0 | BQ24: =(BQ5-BQ4+1)*24 -> 0 | BR24: =(BR5-BR4+1)*24 -> 0 | BS24: =(BS5-BS4+1)*24 -> 0 | BT24: =(BT5-BT4+1)*24 -> 0 | BU24: =(BU5-BU4+1)*24 -> 0 | BV24: =(BV5-BV4+1)*24 -> 0 | BW24: =(BW5-BW4+1)*24 -> 0 | BX24: =(BX5-BX4+1)*24 -> 0 | BY24: =(BY5-BY4+1)*24 -> 0 | BZ24: =(BZ5-BZ4+1)*24 -> 0 | CA24: =(CA5-CA4+1)*24 -> 0 | CB24: =(CB5-CB4+1)*24 -> 0 | CC24: =(CC5-CC4+1)*24 -> 0 | CD24: =(CD5-CD4+1)*24 -> 0 | CE24: =(CE5-CE4+1)*24 -> 0 | CF24: =(CF5-CF4+1)*24 -> 0 | CG24: =(CG5-CG4+1)*24 -> 0 | CH24: =(CH5-CH4+1)*24 -> 0 | CI24: =(CI5-CI4+1)*24 -> 0 | CJ24: =(CJ5-CJ4+1)*24 -> 0 | CK24: =(CK5-CK4+1)*24 -> 0 | CL24: =(CL5-CL4+1)*24 -> 0 | CM24: =(CM5-CM4+1)*24 -> 0 | CN24: =(CN5-CN4+1)*24 -> 0 | CO24: =(CO5-CO4+1)*24 -> 0 | CP24: =(CP5-CP4+1)*24 -> 0 | CQ24: =(CQ5-CQ4+1)*24 -> 0 | CR24: =(CR5-CR4+1)*24 -> 0 | CS24: =(CS5-CS4+1)*24 -> 0 | CT24: =(CT5-CT4+1)*24 -> 0 | CU24: =(CU5-CU4+1)*24 -> 0 | CV24: =(CV5-CV4+1)*24 -> 0 | CW24: =(CW5-CW4+1)*24 -> 0 | CX24: =(CX5-CX4+1)*24 -> 0 | CY24: =(CY5-CY4+1)*24 -> 0 | CZ24: =(CZ5-CZ4+1)*24 -> 0 | DA24: =(DA5-DA4+1)*24 -> 0 | DB24: =(DB5-DB4+1)*24 -> 0 | DC24: =(DC5-DC4+1)*24 -> 0 | DD24: =(DD5-DD4+1)*24 -> 0 | DE24: =(DE5-DE4+1)*24 -> 0 | DF24: =(DF5-DF4+1)*24 -> 0 | DG24: =(DG5-DG4+1)*24 -> 0 | DH24: =(DH5-DH4+1)*24 -> 0 | DI24: =(DI5-DI4+1)*24 -> 0 | DJ24: =(DJ5-DJ4+1)*24 -> 0 | DK24: =(DK5-DK4+1)*24 -> 0 | DL24: =(DL5-DL4+1)*24 -> 0 | DM24: =(DM5-DM4+1)*24 -> 0 | DN24: =(DN5-DN4+1)*24 -> 0 | DO24: =(DO5-DO4+1)*24 -> 0 | DP24: =(DP5-DP4+1)*24 -> 0 | DQ24: =(DQ5-DQ4+1)*24 -> 0 | DR24: =(DR5-DR4+1)*24 -> 0 | DS24: =(DS5-DS4+1)*24 -> 0 | DT24: =(DT5-DT4+1)*24 -> 0 | DU24: =(DU5-DU4+1)*24 -> 0 | DV24: =(DV5-DV4+1)*24 -> 0 | DW24: =(DW5-DW4+1)*24 -> 0 | DX24: =(DX5-DX4+1)*24 -> 0 | DY24: =(DY5-DY4+1)*24 -> 0 | DZ24: =(DZ5-DZ4+1)*24 -> 0 | EA24: =(EA5-EA4+1)*24 -> 0 | EB24: =(EB5-EB4+1)*24 -> 0 | EC24: =(EC5-EC4+1)*24 -> 0 | ED24: =(ED5-ED4+1)*24 -> 0 | EE24: =(EE5-EE4+1)*24 -> 0 | EF24: =(EF5-EF4+1)*24 -> 0 | EG24: =(EG5-EG4+1)*24 -> 0 | EH24: =(EH5-EH4+1)*24 -> 0 | EI24: =(EI5-EI4+1)*24 -> 0 | EJ24: =(EJ5-EJ4+1)*24 -> 0 | EK24: =(EK5-EK4+1)*24 -> 0 | EL24: =(EL5-EL4+1)*24 -> 0 | EM24: =(EM5-EM4+1)*24 -> 0 | EN24: =(EN5-EN4+1)*24 -> 0 | EO24: =(EO5-EO4+1)*24 -> 0 | EP24: =(EP5-EP4+1)*24 -> 0 | EQ24: =(EQ5-EQ4+1)*24 -> 0 | ER24: =(ER5-ER4+1)*24 -> 0 | ES24: =(ES5-ES4+1)*24 -> 0 | ET24: =(ET5-ET4+1)*24 -> 0 | EU24: =(EU5-EU4+1)*24 -> 0 | EV24: =(EV5-EV4+1)*24 -> 0 | EW24: =(EW5-EW4+1)*24 -> 0 | EX24: =(EX5-EX4+1)*24 -> 0 | EY24: =(EY5-EY4+1)*24 -> 0 | EZ24: =(EZ5-EZ4+1)*24 -> 0 | FA24: =(FA5-FA4+1)*24 -> 0 | FB24: =(FB5-FB4+1)*24 -> 0 | FC24: =(FC5-FC4+1)*24 -> 0 | FD24: =(FD5-FD4+1)*24 -> 0 | FE24: =(FE5-FE4+1)*24 -> 0 | FF24: =(FF5-FF4+1)*24 -> 0 | FG24: =(FG5-FG4+1)*24 -> 0 | FH24: =(FH5-FH4+1)*24 -> 0 | FI24: =(FI5-FI4+1)*24 -> 0 | FJ24: =(FJ5-FJ4+1)*24 -> 0 | FK24: =(FK5-FK4+1)*24 -> 0 | FL24: =(FL5-FL4+1)*24 -> 0 | FM24: =(FM5-FM4+1)*24 -> 0 | FN24: =(FN5-FN4+1)*24 -> 0 | FO24: =(FO5-FO4+1)*24 -> 0 | FP24: =(FP5-FP4+1)*24 -> 0 | FQ24: =(FQ5-FQ4+1)*24 -> 0 | FR24: =(FR5-FR4+1)*24 -> 0 | FS24: =(FS5-FS4+1)*24 -> 0 | FT24: =(FT5-FT4+1)*24 -> 0 | FU24: =(FU5-FU4+1)*24 -> 0 | FV24: =(FV5-FV4+1)*24 -> 0 | FW24: =(FW5-FW4+1)*24 -> 0 | FX24: =(FX5-FX4+1)*24 -> 0 | FY24: =(FY5-FY4+1)*24 -> 0 | FZ24: =(FZ5-FZ4+1)*24 -> 0 | GA24: =(GA5-GA4+1)*24 -> 0 | GB24: =(GB5-GB4+1)*24 -> 0 | GC24: =(GC5-GC4+1)*24 -> 0 | GD24: =(GD5-GD4+1)*24 -> 0 | GE24: =(GE5-GE4+1)*24 -> 0 | GF24: =(GF5-GF4+1)*24 -> 0 | GG24: =(GG5-GG4+1)*24 -> 0 | GH24: =(GH5-GH4+1)*24 -> 0 | GI24: =(GI5-GI4+1)*24 -> 0 | GJ24: =(GJ5-GJ4+1)*24 -> 0 | GK24: =(GK5-GK4+1)*24 -> 0 | GL24: =(GL5-GL4+1)*24 -> 0 | GM24: =(GM5-GM4+1)*24 -> 0 | GN24: =(GN5-GN4+1)*24 -> 0 | GO24: =(GO5-GO4+1)*24 -> 0 | GP24: =(GP5-GP4+1)*24 -> 0 | GQ24: =(GQ5-GQ4+1)*24 -> 0 | GR24: =(GR5-GR4+1)*24 -> 0 | GS24: =(GS5-GS4+1)*24 -> 0 | GT24: =(GT5-GT4+1)*24 -> 0 | GU24: =(GU5-GU4+1)*24 -> 0 | GV24: =(GV5-GV4+1)*24 -> 0 | GW24: =(GW5-GW4+1)*24 -> 0 | GX24: =(GX5-GX4+1)*24 -> 0 | GY24: =(GY5-GY4+1)*24 -> 0 | GZ24: =(GZ5-GZ4+1)*24 -> 0 | HA24: =(HA5-HA4+1)*24 -> 0 | HB24: =(HB5-HB4+1)*24 -> 0 | HC24: =(HC5-HC4+1)*24 -> 0 | HD24: =(HD5-HD4+1)*24 -> 0 | HE24: =(HE5-HE4+1)*24 -> 0 | HF24: =(HF5-HF4+1)*24 -> 0 | HG24: =(HG5-HG4+1)*24 -> 0 | HH24: =(HH5-HH4+1)*24 -> 0 | HI24: =(HI5-HI4+1)*24 -> 0 | HJ24: =(HJ5-HJ4+1)*24 -> 0 | HK24: =(HK5-HK4+1)*24 -> 0 | HL24: =(HL5-HL4+1)*24 -> 0 | HM24: =(HM5-HM4+1)*24 -> 0 | HN24: =(HN5-HN4+1)*24 -> 0 | HO24: =(HO5-HO4+1)*24 -> 0 | HP24: =(HP5-HP4+1)*24 -> 0 | HQ24: =(HQ5-HQ4+1)*24 -> 0 | HR24: =(HR5-HR4+1)*24 -> 0 | HS24: =(HS5-HS4+1)*24 -> 0 | HT24: =(HT5-HT4+1)*24 -> 0 | HU24: =(HU5-HU4+1)*24 -> 0 | HV24: =(HV5-HV4+1)*24 -> 0 | HW24: =(HW5-HW4+1)*24 -> 0 | HX24: =(HX5-HX4+1)*24 -> 0 | HY24: =(HY5-HY4+1)*24 -> 0 | HZ24: =(HZ5-HZ4+1)*24 -> 0 | IA24: =(IA5-IA4+1)*24 -> 0 | IB24: =(IB5-IB4+1)*24 -> 0 | IC24: =(IC5-IC4+1)*24 -> 0 | ID24: =(ID5-ID4+1)*24 -> 0 | IE24: =(IE5-IE4+1)*24 -> 0 | IF24: =(IF5-IF4+1)*24 -> 0 | IG24: =(IG5-IG4+1)*24 -> 0 | IH24: =(IH5-IH4+1)*24 -> 0 | II24: =(II5-II4+1)*24 -> 0 | IJ24: =(IJ5-IJ4+1)*24 -> 0 | IK24: =(IK5-IK4+1)*24 -> 0 | IL24: =(IL5-IL4+1)*24 -> 0 | IM24: =(IM5-IM4+1)*24 -> 0 | IN24: =(IN5-IN4+1)*24 -> 0 | IO24: =(IO5-IO4+1)*24 -> 0 | IP24: =(IP5-IP4+1)*24 -> 0 | IQ24: =(IQ5-IQ4+1)*24 -> 0 | IR24: =(IR5-IR4+1)*24 -> 0 | IS24: =(IS5-IS4+1)*24 -> 0 | IT24: =(IT5-IT4+1)*24 -> 0 | IU24: =(IU5-IU4+1)*24 -> 0 | IV24: =(IV5-IV4+1)*24 -> 0 | IW24: =(IW5-IW4+1)*24 -> 0 | IX24: =(IX5-IX4+1)*24 -> 0 | IY24: =(IY5-IY4+1)*24 -> 0 | IZ24: =(IZ5-IZ4+1)*24 -> 0 | JA24: =(JA5-JA4+1)*24 -> 0 | JB24: =(JB5-JB4+1)*24 -> 0 | JC24: =(JC5-JC4+1)*24 -> 0 | JD24: =(JD5-JD4+1)*24 -> 0 | JE24: =(JE5-JE4+1)*24 -> 0 | JF24: =(JF5-JF4+1)*24 -> 0 | JG24: =(JG5-JG4+1)*24 -> 0 | JH24: =(JH5-JH4+1)*24 -> 0 | JI24: =(JI5-JI4+1)*24 -> 0 | JJ24: =(JJ5-JJ4+1)*24 -> 0 | JK24: =(JK5-JK4+1)*24 -> 0 | JL24: =(JL5-JL4+1)*24 -> 0 | JM24: =(JM5-JM4+1)*24 -> 0 | JN24: =(JN5-JN4+1)*24 -> 0 | JO24: =(JO5-JO4+1)*24 -> 0 | JP24: =(JP5-JP4+1)*24 -> 0 | JQ24: =(JQ5-JQ4+1)*24 -> 0 | JR24: =(JR5-JR4+1)*24 -> 0 | JS24: =(JS5-JS4+1)*24 -> 0 | JT24: =(JT5-JT4+1)*24 -> 0 | JU24: =(JU5-JU4+1)*24 -> 0 | JV24: =(JV5-JV4+1)*24 -> 0 | JW24: =(JW5-JW4+1)*24 -> 0 | JX24: =(JX5-JX4+1)*24 -> 0 | JY24: =(JY5-JY4+1)*24 -> 0 | JZ24: =(JZ5-JZ4+1)*24 -> 0 | KA24: =(KA5-KA4+1)*24 -> 0 | KB24: =(KB5-KB4+1)*24 -> 0 | KC24: =(KC5-KC4+1)*24 -> 0 | KD24: =(KD5-KD4+1)*24 -> 0 | KE24: =(KE5-KE4+1)*24 -> 0 | KF24: =(KF5-KF4+1)*24 -> 0 | KG24: =(KG5-KG4+1)*24 -> 0 | KH24: =(KH5-KH4+1)*24 -> 0 | KI24: =(KI5-KI4+1)*24 -> 0 | KJ24: =(KJ5-KJ4+1)*24 -> 0 | KK24: =(KK5-KK4+1)*24 -> 0 | KL24: =(KL5-KL4+1)*24 -> 0 | KM24: =(KM5-KM4+1)*24 -> 0 | KN24: =(KN5-KN4+1)*24 -> 0 | KO24: =(KO5-KO4+1)*24 -> 0 | KP24: =(KP5-KP4+1)*24 -> 0 | KQ24: =(KQ5-KQ4+1)*24 -> 0 | KR24: =(KR5-KR4+1)*24 -> 0 | KS24: =(KS5-KS4+1)*24 -> 0 | KT24: =(KT5-KT4+1)*24 -> 0 | KU24: =(KU5-KU4+1)*24 -> 0 | KV24: =(KV5-KV4+1)*24 -> 0 | KW24: =(KW5-KW4+1)*24 -> 0 | KX24: =(KX5-KX4+1)*24 -> 0 | KY24: =(KY5-KY4+1)*24 -> 0 | KZ24: =(KZ5-KZ4+1)*24 -> 0 | LA24: =(LA5-LA4+1)*24 -> 0 | LB24: =(LB5-LB4+1)*24 -> 0 | LC24: =(LC5-LC4+1)*24 -> 0 | LD24: =(LD5-LD4+1)*24 -> 0 | LE24: =(LE5-LE4+1)*24 -> 0 | LF24: =(LF5-LF4+1)*24 -> 0 | LG24: =(LG5-LG4+1)*24 -> 0 | LH24: =(LH5-LH4+1)*24 -> 0 | LI24: =(LI5-LI4+1)*24 -> 0 | LJ24: =(LJ5-LJ4+1)*24 -> 0 | LK24: =(LK5-LK4+1)*24 -> 0 | LL24: =(LL5-LL4+1)*24 -> 0 | LM24: =(LM5-LM4+1)*24 -> 0 | LN24: =(LN5-LN4+1)*24 -> 0 | LO24: =(LO5-LO4+1)*24 -> 0 | LP24: =(LP5-LP4+1)*24 -> 0 | LQ24: =(LQ5-LQ4+1)*24 -> 0 | LR24: =(LR5-LR4+1)*24 -> 0 | LS24: =(LS5-LS4+1)*24 -> 0 | LT24: =(LT5-LT4+1)*24 -> 0 | LU24: =(LU5-LU4+1)*24 -> 0 | LV24: =(LV5-LV4+1)*24 -> 0 | LW24: =(LW5-LW4+1)*24 -> 0 | LX24: =(LX5-LX4+1)*24 -> 0 | LY24: =(LY5-LY4+1)*24 -> 0 | LZ24: =(LZ5-LZ4+1)*24 -> 0 | MA24: =(MA5-MA4+1)*24 -> 0 | MB24: =(MB5-MB4+1)*24 -> 0 | MC24: =(MC5-MC4+1)*24 -> 0 | MD24: =(MD5-MD4+1)*24 -> 0 | ME24: =(ME5-ME4+1)*24 -> 0 | MF24: =(MF5-MF4+1)*24 -> 0 | MG24: =(MG5-MG4+1)*24 -> 0 | MH24: =(MH5-MH4+1)*24 -> 0 | MI24: =(MI5-MI4+1)*24 -> 0 | MJ24: =(MJ5-MJ4+1)*24 -> 0 | MK24: =(MK5-MK4+1)*24 -> 0 | ML24: =(ML5-ML4+1)*24 -> 0 | MM24: =(MM5-MM4+1)*24 -> 0 | MN24: =(MN5-MN4+1)*24 -> 0 | MO24: =(MO5-MO4+1)*24 -> 0 | MP24: =(MP5-MP4+1)*24 -> 0 | MQ24: =(MQ5-MQ4+1)*24 -> 0 | MR24: =(MR5-MR4+1)*24 -> 0 | MS24: =(MS5-MS4+1)*24 -> 0 | MT24: =(MT5-MT4+1)*24 -> 0 | MU24: =(MU5-MU4+1)*24 -> 0 | MV24: =(MV5-MV4+1)*24 -> 0 | MW24: =(MW5-MW4+1)*24 -> 0 | MX24: =(MX5-MX4+1)*24 -> 0 | MY24: =(MY5-MY4+1)*24 -> 0 | MZ24: =(MZ5-MZ4+1)*24 -> 0 | NA24: =(NA5-NA4+1)*24 -> 0 | NB24: =(NB5-NB4+1)*24 -> 0 | NC24: =(NC5-NC4+1)*24 -> 0 | ND24: =(ND5-ND4+1)*24 -> 0 | NE24: =(NE5-NE4+1)*24 -> 0 | NF24: =(NF5-NF4+1)*24 -> 0 | NG24: =(NG5-NG4+1)*24 -> 0 | NH24: =(NH5-NH4+1)*24 -> 0 | NI24: =(NI5-NI4+1)*24 -> 0 | NJ24: =(NJ5-NJ4+1)*24 -> 0 | NK24: =(NK5-NK4+1)*24 -> 0 | NL24: =(NL5-NL4+1)*24 -> 0 | NM24: =(NM5-NM4+1)*24 -> 0 | NN24: =(NN5-NN4+1)*24 -> 0 | NO24: =(NO5-NO4+1)*24 -> 0 | NP24: =(NP5-NP4+1)*24 -> 0 | NQ24: =(NQ5-NQ4+1)*24 -> 0 | NR24: =(NR5-NR4+1)*24 -> 0 | NS24: =(NS5-NS4+1)*24 -> 0 | NT24: =(NT5-NT4+1)*24 -> 0 | NU24: =(NU5-NU4+1)*24 -> 0 | NV24: =(NV5-NV4+1)*24 -> 0 | NW24: =(NW5-NW4+1)*24 -> 0 | NX24: =(NX5-NX4+1)*24 -> 0 | NY24: =(NY5-NY4+1)*24 -> 0 | NZ24: =(NZ5-NZ4+1)*24 -> 0 | OA24: =(OA5-OA4+1)*24 -> 0 | OB24: =(OB5-OB4+1)*24 -> 0 | OC24: =(OC5-OC4+1)*24 -> 0 | OD24: =(OD5-OD4+1)*24 -> 0 | OE24: =(OE5-OE4+1)*24 -> 0 | OF24: =(OF5-OF4+1)*24 -> 0 | OG24: =(OG5-OG4+1)*24 -> 0 | OH24: =(OH5-OH4+1)*24 -> 0 | OI24: =(OI5-OI4+1)*24 -> 0 | OJ24: =(OJ5-OJ4+1)*24 -> 0 | OK24: =(OK5-OK4+1)*24 -> 0 | OL24: =(OL5-OL4+1)*24 -> 0 | OM24: =(OM5-OM4+1)*24 -> 0 | ON24: =(ON5-ON4+1)*24 -> 0 | OO24: =(OO5-OO4+1)*24 -> 0 | OP24: =(OP5-OP4+1)*24 -> 0 | OQ24: =(OQ5-OQ4+1)*24 -> 0 | OR24: =(OR5-OR4+1)*24 -> 0 | OS24: =(OS5-OS4+1)*24 -> 0 | OT24: =(OT5-OT4+1)*24 -> 0 | OU24: =(OU5-OU4+1)*24 -> 0 | OV24: =(OV5-OV4+1)*24 -> 0 | OW24: =(OW5-OW4+1)*24 -> 0 | OX24: =(OX5-OX4+1)*24 -> 0 | OY24: =(OY5-OY4+1)*24 -> 0 | OZ24: =(OZ5-OZ4+1)*24 -> 0 | PA24: =(PA5-PA4+1)*24 -> 0 | PB24: =(PB5-PB4+1)*24 -> 0 | PC24: =(PC5-PC4+1)*24 -> 0 | PD24: =(PD5-PD4+1)*24 -> 0 | PE24: =(PE5-PE4+1)*24 -> 0 | PF24: =(PF5-PF4+1)*24 -> 0 | PG24: =(PG5-PG4+1)*24 -> 0 | PH24: =(PH5-PH4+1)*24 -> 0 | PI24: =(PI5-PI4+1)*24 -> 0 | PJ24: =(PJ5-PJ4+1)*24 -> 0 | PK24: =(PK5-PK4+1)*24 -> 0 | PL24: =(PL5-PL4+1)*24 -> 0 | PM24: =(PM5-PM4+1)*24 -> 0 | PN24: =(PN5-PN4+1)*24 -> 0 | PO24: =(PO5-PO4+1)*24 -> 0 | PP24: =(PP5-PP4+1)*24 -> 0 | PQ24: =(PQ5-PQ4+1)*24 -> 0 | PR24: =(PR5-PR4+1)*24 -> 0 | PS24: =(PS5-PS4+1)*24 -> 0 | PT24: =(PT5-PT4+1)*24 -> 0 | PU24: =(PU5-PU4+1)*24 -> 0 | PV24: =(PV5-PV4+1)*24 -> 0 | PW24: =(PW5-PW4+1)*24 -> 0 | PX24: =(PX5-PX4+1)*24 -> 0 | PY24: =(PY5-PY4+1)*24 -> 0 | PZ24: =(PZ5-PZ4+1)*24 -> 0 | QA24: =(QA5-QA4+1)*24 -> 0 | QB24: =(QB5-QB4+1)*24 -> 0 | QC24: =(QC5-QC4+1)*24 -> 0 | QD24: =(QD5-QD4+1)*24 -> 0 | QE24: =(QE5-QE4+1)*24 -> 0 | QF24: =(QF5-QF4+1)*24 -> 0 | QG24: =(QG5-QG4+1)*24 -> 0 | QH24: =(QH5-QH4+1)*24 -> 0 | QI24: =(QI5-QI4+1)*24 -> 0 | QJ24: =(QJ5-QJ4+1)*24 -> 0 | QK24: =(QK5-QK4+1)*24 -> 0 | QL24: =(QL5-QL4+1)*24 -> 0 | QM24: =(QM5-QM4+1)*24 -> 0 | QN24: =(QN5-QN4+1)*24 -> 0 | QO24: =(QO5-QO4+1)*24 -> 0 | QP24: =(QP5-QP4+1)*24 -> 0 | QQ24: =(QQ5-QQ4+1)*24 -> 0 | QR24: =(QR5-QR4+1)*24 -> 0 | QS24: =(QS5-QS4+1)*24 -> 0 | QT24: =(QT5-QT4+1)*24 -> 0 | QU24: =(QU5-QU4+1)*24 -> 0 | QV24: =(QV5-QV4+1)*24 -> 0 | QW24: =(QW5-QW4+1)*24 -> 0 | QX24: =(QX5-QX4+1)*24 -> 0 | QY24: =(QY5-QY4+1)*24 -> 0 | QZ24: =(QZ5-QZ4+1)*24 -> 0 | RA24: =(RA5-RA4+1)*24 -> 0 | RB24: =(RB5-RB4+1)*24 -> 0 | RC24: =(RC5-RC4+1)*24 -> 0 | RD24: =(RD5-RD4+1)*24 -> 0 | RE24: =(RE5-RE4+1)*24 -> 0 | RF24: =(RF5-RF4+1)*24 -> 0 | RG24: =(RG5-RG4+1)*24 -> 0 | RH24: =(RH5-RH4+1)*24 -> 0 | RI24: =(RI5-RI4+1)*24 -> 0 | RJ24: =(RJ5-RJ4+1)*24 -> 0 | RK24: =(RK5-RK4+1)*24 -> 0 | RL24: =(RL5-RL4+1)*24 -> 0 | RM24: =(RM5-RM4+1)*24 -> 0 | RN24: =(RN5-RN4+1)*24 -> 0 | RO24: =(RO5-RO4+1)*24 -> 0 | RP24: =(RP5-RP4+1)*24 -> 0 | RQ24: =(RQ5-RQ4+1)*24 -> 0 | RR24: =(RR5-RR4+1)*24 -> 0 | RS24: =(RS5-RS4+1)*24 -> 0 | RT24: =(RT5-RT4+1)*24 -> 0 | RU24: =(RU5-RU4+1)*24 -> 0 | RV24: =(RV5-RV4+1)*24 -> 0 | RW24: =(RW5-RW4+1)*24 -> 0 | RX24: =(RX5-RX4+1)*24 -> 0 | RY24: =(RY5-RY4+1)*24 -> 0 | RZ24: =(RZ5-RZ4+1)*24 -> 0 | SA24: =(SA5-SA4+1)*24 -> 0 | SB24: =(SB5-SB4+1)*24 -> 0 | SC24: =(SC5-SC4+1)*24 -> 0 | SD24: =(SD5-SD4+1)*24 -> 0 | SE24: =(SE5-SE4+1)*24 -> 0 | SF24: =(SF5-SF4+1)*24 -> 0 | SG24: =(SG5-SG4+1)*24 -> 0 | SH24: =(SH5-SH4+1)*24 -> 0 | SI24: =(SI5-SI4+1)*24 -> 0 | SJ24: =(SJ5-SJ4+1)*24 -> 0 | SK24: =(SK5-SK4+1)*24 -> 0 | SL24: =(SL5-SL4+1)*24 -> 0 | SM24: =(SM5-SM4+1)*24 -> 0 | SN24: =(SN5-SN4+1)*24 -> 0 | SO24: =(SO5-SO4+1)*24 -> 0 | SP24: =(SP5-SP4+1)*24 -> 0 | SQ24: =(SQ5-SQ4+1)*24 -> 0 | SR24: =(SR5-SR4+1)*24 -> 0 | SS24: =(SS5-SS4+1)*24 -> 0 | ST24: =(ST5-ST4+1)*24 -> 0 | SU24: =(SU5-SU4+1)*24 -> 0 | SV24: =(SV5-SV4+1)*24 -> 0 | SW24: =(SW5-SW4+1)*24 -> 0 | SX24: =(SX5-SX4+1)*24 -> 0 | SY24: =(SY5-SY4+1)*24 -> 0 | SZ24: =(SZ5-SZ4+1)*24 -> 0 | TA24: =(TA5-TA4+1)*24 -> 0 | TB24: =(TB5-TB4+1)*24 -> 0 | TC24: =(TC5-TC4+1)*24 -> 0 | TD24: =(TD5-TD4+1)*24 -> 0 | TE24: =(TE5-TE4+1)*24 -> 0 | TF24: =(TF5-TF4+1)*24 -> 0 | TG24: =(TG5-TG4+1)*24 -> 0 | TH24: =(TH5-TH4+1)*24 -> 0 | TI24: =(TI5-TI4+1)*24 -> 0 | TJ24: =(TJ5-TJ4+1)*24 -> 0 | TK24: =(TK5-TK4+1)*24 -> 0 | TL24: =(TL5-TL4+1)*24 -> 0 | TM24: =(TM5-TM4+1)*24 -> 0 | TN24: =(TN5-TN4+1)*24 -> 0 | TO24: =(TO5-TO4+1)*24 -> 0 | TP24: =(TP5-TP4+1)*24 -> 0 | TQ24: =(TQ5-TQ4+1)*24 -> 0 | TR24: =(TR5-TR4+1)*24 -> 0 | TS24: =(TS5-TS4+1)*24 -> 0 | TT24: =(TT5-TT4+1)*24 -> 0 | TU24: =(TU5-TU4+1)*24 -> 0 | TV24: =(TV5-TV4+1)*24 -> 0 | TW24: =(TW5-TW4+1)*24 -> 0 | TX24: =(TX5-TX4+1)*24 -> 0 | TY24: =(TY5-TY4+1)*24 -> 0 | TZ24: =(TZ5-TZ4+1)*24 -> 0 | UA24: =(UA5-UA4+1)*24 -> 0 | UB24: =(UB5-UB4+1)*24 -> 0 | UC24: =(UC5-UC4+1)*24 -> 0 | UD24: =(UD5-UD4+1)*24 -> 0 | UE24: =(UE5-UE4+1)*24 -> 0 | UF24: =(UF5-UF4+1)*24 -> 0 | UG24: =(UG5-UG4+1)*24 -> 0 | UH24: =(UH5-UH4+1)*24 -> 0 | UI24: =(UI5-UI4+1)*24 -> 0 | UJ24: =(UJ5-UJ4+1)*24 -> 0 | UK24: =(UK5-UK4+1)*24 -> 0 | UL24: =(UL5-UL4+1)*24 -> 0 | UM24: =(UM5-UM4+1)*24 -> 0 | UN24: =(UN5-UN4+1)*24 -> 0 | UO24: =(UO5-UO4+1)*24 -> 0 | UP24: =(UP5-UP4+1)*24 -> 0 | UQ24: =(UQ5-UQ4+1)*24 -> 0 | UR24: =(UR5-UR4+1)*24 -> 0 | US24: =(US5-US4+1)*24 -> 0 | UT24: =(UT5-UT4+1)*24 -> 0 | UU24: =(UU5-UU4+1)*24 -> 0 | UV24: =(UV5-UV4+1)*24 -> 0 | UW24: =(UW5-UW4+1)*24 -> 0 | UX24: =(UX5-UX4+1)*24 -> 0 | UY24: =(UY5-UY4+1)*24 -> 0 | UZ24: =(UZ5-UZ4+1)*24 -> 0 | VA24: =(VA5-VA4+1)*24 -> 0 | VB24: =(VB5-VB4+1)*24 -> 0 | VC24: =(VC5-VC4+1)*24 -> 0 | VD24: =(VD5-VD4+1)*24 -> 0 | VE24: =(VE5-VE4+1)*24 -> 0 | VF24: =(VF5-VF4+1)*24 -> 0 | VG24: =(VG5-VG4+1)*24 -> 0 | VH24: =(VH5-VH4+1)*24 -> 0 | VI24: =(VI5-VI4+1)*24 -> 0 | VJ24: =(VJ5-VJ4+1)*24 -> 0 | VK24: =(VK5-VK4+1)*24 -> 0 | VL24: =(VL5-VL4+1)*24 -> 0 | VM24: =(VM5-VM4+1)*24 -> 0 | VN24: =(VN5-VN4+1)*24 -> 0 | VO24: =(VO5-VO4+1)*24 -> 0 | VP24: =(VP5-VP4+1)*24 -> 0 | VQ24: =(VQ5-VQ4+1)*24 -> 0 | VR24: =(VR5-VR4+1)*24 -> 0 | VS24: =(VS5-VS4+1)*24 -> 0 | VT24: =(VT5-VT4+1)*24 -> 0 | VU24: =(VU5-VU4+1)*24 -> 0 | VV24: =(VV5-VV4+1)*24 -> 0 | VW24: =(VW5-VW4+1)*24 -> 0 | VX24: =(VX5-VX4+1)*24 -> 0 | VY24: =(VY5-VY4+1)*24 -> 0 | VZ24: =(VZ5-VZ4+1)*24 -> 0 | WA24: =(WA5-WA4+1)*24 -> 0 | WB24: =(WB5-WB4+1)*24 -> 0 | WC24: =(WC5-WC4+1)*24 -> 0 | WD24: =(WD5-WD4+1)*24 -> 0 | WE24: =(WE5-WE4+1)*24 -> 0 | WF24: =(WF5-WF4+1)*24 -> 0 | WG24: =(WG5-WG4+1)*24 -> 0 | WH24: =(WH5-WH4+1)*24 -> 0 | WI24: =(WI5-WI4+1)*24 -> 0 | WJ24: =(WJ5-WJ4+1)*24 -> 0 | WK24: =(WK5-WK4+1)*24 -> 0 | WL24: =(WL5-WL4+1)*24 -> 0 | WM24: =(WM5-WM4+1)*24 -> 0 | WN24: =(WN5-WN4+1)*24 -> 0 | WO24: =(WO5-WO4+1)*24 -> 0 | WP24: =(WP5-WP4+1)*24 -> 0 | WQ24: =(WQ5-WQ4+1)*24 -> 0 | WR24: =(WR5-WR4+1)*24 -> 0 | WS24: =(WS5-WS4+1)*24 -> 0 | WT24: =(WT5-WT4+1)*24 -> 0 | WU24: =(WU5-WU4+1)*24 -> 0 | WV24: =(WV5-WV4+1)*24 -> 0 | WW24: =(WW5-WW4+1)*24 -> 0 | WX24: =(WX5-WX4+1)*24 -> 0 | WY24: =(WY5-WY4+1)*24 -> 0 | WZ24: =(WZ5-WZ4+1)*24 -> 0 | XA24: =(XA5-XA4+1)*24 -> 0 | XB24: =(XB5-XB4+1)*24 -> 0 | XC24: =(XC5-XC4+1)*24 -> 0 | XD24: =(XD5-XD4+1)*24 -> 0 | XE24: =(XE5-XE4+1)*24 -> 0 | XF24: =(XF5-XF4+1)*24 -> 0 | XG24: =(XG5-XG4+1)*24 -> 0 | XH24: =(XH5-XH4+1)*24 -> 0 | XI24: =(XI5-XI4+1)*24 -> 0 | XJ24: =(XJ5-XJ4+1)*24 -> 0 | XK24: =(XK5-XK4+1)*24 -> 0 | XL24: =(XL5-XL4+1)*24 -> 0 | XM24: =(XM5-XM4+1)*24 -> 0 | XN24: =(XN5-XN4+1)*24 -> 0 | XO24: =(XO5-XO4+1)*24 -> 0 | XP24: =(XP5-XP4+1)*24 -> 0 | XQ24: =(XQ5-XQ4+1)*24 -> 0 | XR24: =(XR5-XR4+1)*24 -> 0 | XS24: =(XS5-XS4+1)*24 -> 0 | XT24: =(XT5-XT4+1)*24 -> 0 | XU24: =(XU5-XU4+1)*24 -> 0 | XV24: =(XV5-XV4+1)*24 -> 0 | XW24: =(XW5-XW4+1)*24 -> 0 | XX24: =(XX5-XX4+1)*24 -> 0 | XY24: =(XY5-XY4+1)*24 -> 0 | XZ24: =(XZ5-XZ4+1)*24 -> 0 | YA24: =(YA5-YA4+1)*24 -> 0 | YB24: =(YB5-YB4+1)*24 -> 0 | YC24: =(YC5-YC4+1)*24 -> 0 | YD24: =(YD5-YD4+1)*24 -> 0 | YE24: =(YE5-YE4+1)*24 -> 0 | YF24: =(YF5-YF4+1)*24 -> 0 | YG24: =(YG5-YG4+1)*24 -> 0 | YH24: =(YH5-YH4+1)*24 -> 0 | YI24: =(YI5-YI4+1)*24 -> 0 | YJ24: =(YJ5-YJ4+1)*24 -> 0 | YK24: =(YK5-YK4+1)*24 -> 0 | YL24: =(YL5-YL4+1)*24 -> 0 | YM24: =(YM5-YM4+1)*24 -> 0 | YN24: =(YN5-YN4+1)*24 -> 0 | YO24: =(YO5-YO4+1)*24 -> 0 | YP24: =(YP5-YP4+1)*24 -> 0 | YQ24: =(YQ5-YQ4+1)*24 -> 0 | YR24: =(YR5-YR4+1)*24 -> 0 | YS24: =(YS5-YS4+1)*24 -> 0 | YT24: =(YT5-YT4+1)*24 -> 0 | YU24: =(YU5-YU4+1)*24 -> 0 | YV24: =(YV5-YV4+1)*24 -> 0 | YW24: =(YW5-YW4+1)*24 -> 0 | YX24: =(YX5-YX4+1)*24 -> 0 | YY24: =(YY5-YY4+1)*24 -> 0 | YZ24: =(YZ5-YZ4+1)*24 -> 0 | ZA24: =(ZA5-ZA4+1)*24 -> 0 | ZB24: =(ZB5-ZB4+1)*24 -> 0 | ZC24: =(ZC5-ZC4+1)*24 -> 0 | ZD24: =(ZD5-ZD4+1)*24 -> 0 | ZE24: =(ZE5-ZE4+1)*24 -> 0 | ZF24: =(ZF5-ZF4+1)*24 -> 0 | ZG24: =(ZG5-ZG4+1)*24 -> 0 | ZH24: =(ZH5-ZH4+1)*24 -> 0 | ZI24: =(ZI5-ZI4+1)*24 -> 0 | ZJ24: =(ZJ5-ZJ4+1)*24 -> 0 | ZK24: =(ZK5-ZK4+1)*24 -> 0 | ZL24: =(ZL5-ZL4+1)*24 -> 0 | ZM24: =(ZM5-ZM4+1)*24 -> 0 | ZN24: =(ZN5-ZN4+1)*24 -> 0 | ZO24: =(ZO5-ZO4+1)*24 -> 0 | ZP24: =(ZP5-ZP4+1)*24 -> 0 | ZQ24: =(ZQ5-ZQ4+1)*24 -> 0 | ZR24: =(ZR5-ZR4+1)*24 -> 0 | ZS24: =(ZS5-ZS4+1)*24 -> 0 | ZT24: =(ZT5-ZT4+1)*24 -> 0 | ZU24: =(ZU5-ZU4+1)*24 -> 0 | ZV24: =(ZV5-ZV4+1)*24 -> 0 | ZW24: =(ZW5-ZW4+1)*24 -> 0 | ZX24: =(ZX5-ZX4+1)*24 -> 0 | ZY24: =(ZY5-ZY4+1)*24 -> 0 | ZZ24: =(ZZ5-ZZ4+1)*24 -> 0 | AAA24: =(AAA5-AAA4+1)*24 -> 0 | AAB24: =(AAB5-AAB4+1)*24 -> 0 | AAC24: =(AAC5-AAC4+1)*24 -> 0 | AAD24: =(AAD5-AAD4+1)*24 -> 0 | AAE24: =(AAE5-AAE4+1)*24 -> 0 | AAF24: =(AAF5-AAF4+1)*24 -> 0 | AAG24: =(AAG5-AAG4+1)*24 -> 0 | AAH24: =(AAH5-AAH4+1)*24 -> 0 | AAI24: =(AAI5-AAI4+1)*24 -> 0 | AAJ24: =(AAJ5-AAJ4+1)*24 -> 0 | AAK24: =(AAK5-AAK4+1)*24 -> 0 | AAL24: =(AAL5-AAL4+1)*24 -> 0 | AAM24: =(AAM5-AAM4+1)*24 -> 0 | AAN24: =(AAN5-AAN4+1)*24 -> 0 | AAO24: =(AAO5-AAO4+1)*24 -> 0 | AAP24: =(AAP5-AAP4+1)*24 -> 0 | AAQ24: =(AAQ5-AAQ4+1)*24 -> 0 | AAR24: =(AAR5-AAR4+1)*24 -> 0 | AAS24: =(AAS5-AAS4+1)*24 -> 0 | AAT24: =(AAT5-AAT4+1)*24 -> 0 | AAU24: =(AAU5-AAU4+1)*24 -> 0 | AAV24: =(AAV5-AAV4+1)*24 -> 0 | AAW24: =(AAW5-AAW4+1)*24 -> 0 | AAX24: =(AAX5-AAX4+1)*24 -> 0 | AAY24: =(AAY5-AAY4+1)*24 -> 0 | AAZ24: =(AAZ5-AAZ4+1)*24 -> 0 | ABA24: =(ABA5-ABA4+1)*24 -> 0 | ABB24: =(ABB5-ABB4+1)*24 -> 0 | ABC24: =(ABC5-ABC4+1)*24 -> 0 | ABD24: =(ABD5-ABD4+1)*24 -> 0 | ABE24: =(ABE5-ABE4+1)*24 -> 0 | ABF24: =(ABF5-ABF4+1)*24 -> 0 | ABG24: =(ABG5-ABG4+1)*24 -> 0 | ABH24: =(ABH5-ABH4+1)*24 -> 0 | ABI24: =(ABI5-ABI4+1)*24 -> 0 | ABJ24: =(ABJ5-ABJ4+1)*24 -> 0 | ABK24: =(ABK5-ABK4+1)*24 -> 0 | ABL24: =(ABL5-ABL4+1)*24 -> 0 | ABM24: =(ABM5-ABM4+1)*24 -> 0 | ABN24: =(ABN5-ABN4+1)*24 -> 0 | ABO24: =(ABO5-ABO4+1)*24 -> 0 | ABP24: =(ABP5-ABP4+1)*24 -> 0 | ABQ24: =(ABQ5-ABQ4+1)*24 -> 0 | ABR24: =(ABR5-ABR4+1)*24 -> 0 | ABS24: =(ABS5-ABS4+1)*24 -> 0 | ABT24: =(ABT5-ABT4+1)*24 -> 0 | ABU24: =(ABU5-ABU4+1)*24 -> 0 | ABV24: =(ABV5-ABV4+1)*24 -> 0 | ABW24: =(ABW5-ABW4+1)*24 -> 0 | ABX24: =(ABX5-ABX4+1)*24 -> 0 | ABY24: =(ABY5-ABY4+1)*24 -> 0 | ABZ24: =(ABZ5-ABZ4+1)*24 -> 0
D26: Solar Generation Before Degradation | E26: kWh | K26: =K14*K19/8760*K24 -> 0 | L26: =L14*L19/8760*L24 -> 0 | M26: 0 | N26: 0 | O26: 0 | P26: 0 | Q26: 0 | R26: 0 | S26: 0 | T26: 0 | U26: 0 | V26: 0 | W26: 0 | X26: 0 | Y26: 0 | Z26: 0 | AA26: 0 | AB26: 0 | AC26: 0 | AD26: 0 | AE26: 0 | AF26: 0 | AG26: 0 | AH26: 0 | AI26: 0 | AJ26: 0 | AK26: 0 | AL26: 0 | AM26: 0 | AN26: 0 | AO26: 0 | AP26: 0 | AQ26: 0 | AR26: 0 | AS26: 0 | AT26: 0 | AU26: 0 | AV26: 0 | AW26: 0 | AX26: 0 | AY26: 0 | AZ26: 0 | BA26: 0 | BB26: 0 | BC26: 0 | BD26: 0 | BE26: 0 | BF26: 0 | BG26: 0 | BH26: 0 | BI26: 0 | BJ26: 0 | BK26: 0 | BL26: 0 | BM26: 0 | BN26: 0 | BO26: 0 | BP26: 0 | BQ26: 0 | BR26: 0 | BS26: 0 | BT26: 0 | BU26: 0 | BV26: 0 | BW26: 0 | BX26: =BX14*BX19/8760*BX24 -> 0 | BY26: 0 | BZ26: 0 | CA26: 0 | CB26: 0 | CC26: 0 | CD26: 0 | CE26: 0 | CF26: 0 | CG26: 0 | CH26: 0 | CI26: 0 | CJ26: 0 | CK26: 0 | CL26: 0 | CM26: 0 | CN26: 0 | CO26: 0 | CP26: 0 | CQ26: 0 | CR26: 0 | CS26: 0 | CT26: 0 | CU26: 0 | CV26: 0 | CW26: 0 | CX26: 0 | CY26: 0 | CZ26: 0 | DA26: 0 | DB26: 0 | DC26: 0 | DD26: 0 | DE26: 0 | DF26: 0 | DG26: 0 | DH26: 0 | DI26: 0 | DJ26: 0 | DK26: 0 | DL26: 0 | DM26: 0 | DN26: 0 | DO26: 0 | DP26: 0 | DQ26: 0 | DR26: 0 | DS26: 0 | DT26: 0 | DU26: 0 | DV26: 0 | DW26: 0 | DX26: 0 | DY26: 0 | DZ26: 0 | EA26: 0 | EB26: 0 | EC26: 0 | ED26: 0 | EE26: 0 | EF26: 0 | EG26: 0 | EH26: 0 | EI26: 0 | EJ26: =EJ14*EJ19/8760*EJ24 -> 0 | EK26: 0 | EL26: 0 | EM26: 0 | EN26: 0 | EO26: 0 | EP26: 0 | EQ26: 0 | ER26: 0 | ES26: 0 | ET26: 0 | EU26: 0 | EV26: 0 | EW26: 0 | EX26: 0 | EY26: 0 | EZ26: 0 | FA26: 0 | FB26: 0 | FC26: 0 | FD26: 0 | FE26: 0 | FF26: 0 | FG26: 0 | FH26: 0 | FI26: 0 | FJ26: 0 | FK26: 0 | FL26: 0 | FM26: 0 | FN26: 0 | FO26: 0 | FP26: 0 | FQ26: 0 | FR26: 0 | FS26: 0 | FT26: 0 | FU26: 0 | FV26: 0 | FW26: 0 | FX26: 0 | FY26: 0 | FZ26: 0 | GA26: 0 | GB26: 0 | GC26: 0 | GD26: 0 | GE26: 0 | GF26: 0 | GG26: 0 | GH26: 0 | GI26: 0 | GJ26: 0 | GK26: 0 | GL26: 0 | GM26: 0 | GN26: 0 | GO26: 0 | GP26: 0 | GQ26: 0 | GR26: 0 | GS26: 0 | GT26: 0 | GU26: 0 | GV26: =GV14*GV19/8760*GV24 -> 0 | GW26: 0 | GX26: 0 | GY26: 0 | GZ26: 0 | HA26: 0 | HB26: 0 | HC26: 0 | HD26: 0 | HE26: 0 | HF26: 0 | HG26: 0 | HH26: 0 | HI26: 0 | HJ26: 0 | HK26: 0 | HL26: 0 | HM26: 0 | HN26: 0 | HO26: 0 | HP26: 0 | HQ26: 0 | HR26: 0 | HS26: 0 | HT26: 0 | HU26: 0 | HV26: 0 | HW26: 0 | HX26: 0 | HY26: 0 | HZ26: 0 | IA26: 0 | IB26: 0 | IC26: 0 | ID26: 0 | IE26: 0 | IF26: 0 | IG26: 0 | IH26: 0 | II26: 0 | IJ26: 0 | IK26: 0 | IL26: 0 | IM26: 0 | IN26: 0 | IO26: 0 | IP26: 0 | IQ26: 0 | IR26: 0 | IS26: 0 | IT26: 0 | IU26: 0 | IV26: 0 | IW26: 0 | IX26: 0 | IY26: 0 | IZ26: 0 | JA26: 0 | JB26: 0 | JC26: 0 | JD26: 0 | JE26: 0 | JF26: 0 | JG26: 0 | JH26: =JH14*JH19/8760*JH24 -> 0 | JI26: 0 | JJ26: 0 | JK26: 0 | JL26: 0 | JM26: 0 | JN26: 0 | JO26: 0 | JP26: 0 | JQ26: 0 | JR26: 0 | JS26: 0 | JT26: 0 | JU26: 0 | JV26: 0 | JW26: 0 | JX26: 0 | JY26: 0 | JZ26: 0 | KA26: 0 | KB26: 0 | KC26: 0 | KD26: 0 | KE26: 0 | KF26: 0 | KG26: 0 | KH26: 0 | KI26: 0 | KJ26: 0 | KK26: 0 | KL26: 0 | KM26: 0 | KN26: 0 | KO26: 0 | KP26: 0 | KQ26: 0 | KR26: 0 | KS26: 0 | KT26: 0 | KU26: 0 | KV26: 0 | KW26: 0 | KX26: 0 | KY26: 0 | KZ26: 0 | LA26: 0 | LB26: 0 | LC26: 0 | LD26: 0 | LE26: 0 | LF26: 0 | LG26: 0 | LH26: 0 | LI26: 0 | LJ26: 0 | LK26: 0 | LL26: 0 | LM26: 0 | LN26: 0 | LO26: 0 | LP26: 0 | LQ26: 0 | LR26: 0 | LS26: 0 | LT26: =LT14*LT19/8760*LT24 -> 0 | LU26: 0 | LV26: 0 | LW26: 0 | LX26: 0 | LY26: 0 | LZ26: 0 | MA26: 0 | MB26: 0 | MC26: 0 | MD26: 0 | ME26: 0 | MF26: 0 | MG26: 0 | MH26: 0 | MI26: 0 | MJ26: 0 | MK26: 0 | ML26: 0 | MM26: 0 | MN26: 0 | MO26: 0 | MP26: 0 | MQ26: 0 | MR26: 0 | MS26: 0 | MT26: 0 | MU26: 0 | MV26: 0 | MW26: 0 | MX26: 0 | MY26: 0 | MZ26: 0 | NA26: 0 | NB26: 0 | NC26: 0 | ND26: 0 | NE26: 0 | NF26: 0 | NG26: 0 | NH26: 0 | NI26: 0 | NJ26: 0 | NK26: 0 | NL26: 0 | NM26: 0 | NN26: 0 | NO26: 0 | NP26: 0 | NQ26: 0 | NR26: 0 | NS26: 0 | NT26: 0 | NU26: 0 | NV26: 0 | NW26: 0 | NX26: 0 | NY26: 0 | NZ26: 0 | OA26: 0 | OB26: 0 | OC26: 0 | OD26: 0 | OE26: 0 | OF26: =OF14*OF19/8760*OF24 -> 0 | OG26: 0 | OH26: 0 | OI26: 0 | OJ26: 0 | OK26: 0 | OL26: 0 | OM26: 0 | ON26: 0 | OO26: 0 | OP26: 0 | OQ26: 0 | OR26: 0 | OS26: 0 | OT26: 0 | OU26: 0 | OV26: 0 | OW26: 0 | OX26: 0 | OY26: 0 | OZ26: 0 | PA26: 0 | PB26: 0 | PC26: 0 | PD26: 0 | PE26: 0 | PF26: 0 | PG26: 0 | PH26: 0 | PI26: 0 | PJ26: 0 | PK26: 0 | PL26: 0 | PM26: 0 | PN26: 0 | PO26: 0 | PP26: 0 | PQ26: 0 | PR26: 0 | PS26: 0 | PT26: 0 | PU26: 0 | PV26: 0 | PW26: 0 | PX26: 0 | PY26: 0 | PZ26: 0 | QA26: 0 | QB26: 0 | QC26: 0 | QD26: 0 | QE26: 0 | QF26: 0 | QG26: 0 | QH26: 0 | QI26: 0 | QJ26: 0 | QK26: 0 | QL26: 0 | QM26: 0 | QN26: 0 | QO26: 0 | QP26: 0 | QQ26: 0 | QR26: =QR14*QR19/8760*QR24 -> 0 | QS26: 0 | QT26: 0 | QU26: 0 | QV26: 0 | QW26: 0 | QX26: 0 | QY26: 0 | QZ26: 0 | RA26: 0 | RB26: 0 | RC26: 0 | RD26: 0 | RE26: 0 | RF26: 0 | RG26: 0 | RH26: 0 | RI26: 0 | RJ26: 0 | RK26: 0 | RL26: 0 | RM26: 0 | RN26: 0 | RO26: 0 | RP26: 0 | RQ26: 0 | RR26: 0 | RS26: 0 | RT26: 0 | RU26: 0 | RV26: 0 | RW26: 0 | RX26: 0 | RY26: 0 | RZ26: 0 | SA26: 0 | SB26: 0 | SC26: 0 | SD26: 0 | SE26: 0 | SF26: 0 | SG26: 0 | SH26: 0 | SI26: 0 | SJ26: 0 | SK26: 0 | SL26: 0 | SM26: 0 | SN26: 0 | SO26: 0 | SP26: 0 | SQ26: 0 | SR26: 0 | SS26: 0 | ST26: 0 | SU26: 0 | SV26: 0 | SW26: 0 | SX26: 0 | SY26: 0 | SZ26: 0 | TA26: 0 | TB26: 0 | TC26: 0 | TD26: =TD14*TD19/8760*TD24 -> 0 | TE26: 0 | TF26: 0 | TG26: 0 | TH26: 0 | TI26: 0 | TJ26: 0 | TK26: 0 | TL26: 0 | TM26: 0 | TN26: 0 | TO26: 0 | TP26: 0 | TQ26: 0 | TR26: 0 | TS26: 0 | TT26: 0 | TU26: 0 | TV26: 0 | TW26: 0 | TX26: 0 | TY26: 0 | TZ26: 0 | UA26: 0 | UB26: 0 | UC26: 0 | UD26: 0 | UE26: 0 | UF26: 0 | UG26: 0 | UH26: 0 | UI26: 0 | UJ26: 0 | UK26: 0 | UL26: 0 | UM26: 0 | UN26: 0 | UO26: 0 | UP26: 0 | UQ26: 0 | UR26: 0 | US26: 0 | UT26: 0 | UU26: 0 | UV26: 0 | UW26: 0 | UX26: 0 | UY26: 0 | UZ26: 0 | VA26: 0 | VB26: 0 | VC26: 0 | VD26: 0 | VE26: 0 | VF26: 0 | VG26: 0 | VH26: 0 | VI26: 0 | VJ26: 0 | VK26: 0 | VL26: 0 | VM26: 0 | VN26: 0 | VO26: 0 | VP26: =VP14*VP19/8760*VP24 -> 0 | VQ26: 0 | VR26: 0 | VS26: 0 | VT26: 0 | VU26: 0 | VV26: 0 | VW26: 0 | VX26: 0 | VY26: 0 | VZ26: 0 | WA26: 0 | WB26: 0 | WC26: 0 | WD26: 0 | WE26: 0 | WF26: 0 | WG26: 0 | WH26: 0 | WI26: 0 | WJ26: 0 | WK26: 0 | WL26: 0 | WM26: 0 | WN26: 0 | WO26: 0 | WP26: 0 | WQ26: 0 | WR26: 0 | WS26: 0 | WT26: 0 | WU26: 0 | WV26: 0 | WW26: 0 | WX26: 0 | WY26: 0 | WZ26: 0 | XA26: 0 | XB26: 0 | XC26: 0 | XD26: 0 | XE26: 0 | XF26: 0 | XG26: 0 | XH26: 0 | XI26: 0 | XJ26: 0 | XK26: 0 | XL26: 0 | XM26: 0 | XN26: 0 | XO26: 0 | XP26: 0 | XQ26: 0 | XR26: 0 | XS26: 0 | XT26: 0 | XU26: 0 | XV26: 0 | XW26: 0 | XX26: 0 | XY26: 0 | XZ26: 0 | YA26: 0 | YB26: =YB14*YB19/8760*YB24 -> 0 | YC26: 0 | YD26: 0 | YE26: 0 | YF26: 0 | YG26: 0 | YH26: 0 | YI26: 0 | YJ26: 0 | YK26: 0 | YL26: 0 | YM26: 0 | YN26: 0 | YO26: 0 | YP26: 0 | YQ26: 0 | YR26: 0 | YS26: 0 | YT26: 0 | YU26: 0 | YV26: 0 | YW26: 0 | YX26: 0 | YY26: 0 | YZ26: 0 | ZA26: 0 | ZB26: 0 | ZC26: 0 | ZD26: 0 | ZE26: 0 | ZF26: 0 | ZG26: 0 | ZH26: 0 | ZI26: 0 | ZJ26: 0 | ZK26: 0 | ZL26: 0 | ZM26: 0 | ZN26: 0 | ZO26: 0 | ZP26: 0 | ZQ26: 0 | ZR26: 0 | ZS26: 0 | ZT26: 0 | ZU26: 0 | ZV26: 0 | ZW26: 0 | ZX26: 0 | ZY26: 0 | ZZ26: 0 | AAA26: 0 | AAB26: 0 | AAC26: 0 | AAD26: 0 | AAE26: 0 | AAF26: 0 | AAG26: 0 | AAH26: 0 | AAI26: 0 | AAJ26: 0 | AAK26: 0 | AAL26: 0 | AAM26: 0 | AAN26: =AAN14*AAN19/8760*AAN24 -> 0 | AAO26: 0 | AAP26: 0 | AAQ26: 0 | AAR26: 0 | AAS26: 0 | AAT26: 0 | AAU26: 0 | AAV26: 0 | AAW26: 0 | AAX26: 0 | AAY26: 0 | AAZ26: 0 | ABA26: 0 | ABB26: 0 | ABC26: 0 | ABD26: 0 | ABE26: 0 | ABF26: 0 | ABG26: 0 | ABH26: 0 | ABI26: 0 | ABJ26: 0 | ABK26: 0 | ABL26: 0 | ABM26: 0 | ABN26: 0 | ABO26: 0 | ABP26: 0 | ABQ26: 0 | ABR26: 0 | ABS26: 0 | ABT26: 0 | ABU26: 0 | ABV26: 0 | ABW26: 0 | ABX26: 0 | ABY26: 0 | ABZ26: 0
D27: Wind Generation Before Degradation | E27: kWh | K27: =K15*K20*K24 -> 0 | L27: =L15*L20*L24 -> 0 | M27: 0 | N27: 0 | O27: 0 | P27: 0 | Q27: 0 | R27: 0 | S27: 0 | T27: 0 | U27: 0 | V27: 0 | W27: 0 | X27: 0 | Y27: 0 | Z27: 0 | AA27: 0 | AB27: 0 | AC27: 0 | AD27: 0 | AE27: 0 | AF27: 0 | AG27: 0 | AH27: 0 | AI27: 0 | AJ27: 0 | AK27: 0 | AL27: 0 | AM27: 0 | AN27: 0 | AO27: 0 | AP27: 0 | AQ27: 0 | AR27: 0 | AS27: 0 | AT27: 0 | AU27: 0 | AV27: 0 | AW27: 0 | AX27: 0 | AY27: 0 | AZ27: 0 | BA27: 0 | BB27: 0 | BC27: 0 | BD27: 0 | BE27: 0 | BF27: 0 | BG27: 0 | BH27: 0 | BI27: 0 | BJ27: 0 | BK27: 0 | BL27: 0 | BM27: 0 | BN27: 0 | BO27: 0 | BP27: 0 | BQ27: 0 | BR27: 0 | BS27: 0 | BT27: 0 | BU27: 0 | BV27: 0 | BW27: 0 | BX27: =BX15*BX20*BX24 -> 0 | BY27: 0 | BZ27: 0 | CA27: 0 | CB27: 0 | CC27: 0 | CD27: 0 | CE27: 0 | CF27: 0 | CG27: 0 | CH27: 0 | CI27: 0 | CJ27: 0 | CK27: 0 | CL27: 0 | CM27: 0 | CN27: 0 | CO27: 0 | CP27: 0 | CQ27: 0 | CR27: 0 | CS27: 0 | CT27: 0 | CU27: 0 | CV27: 0 | CW27: 0 | CX27: 0 | CY27: 0 | CZ27: 0 | DA27: 0 | DB27: 0 | DC27: 0 | DD27: 0 | DE27: 0 | DF27: 0 | DG27: 0 | DH27: 0 | DI27: 0 | DJ27: 0 | DK27: 0 | DL27: 0 | DM27: 0 | DN27: 0 | DO27: 0 | DP27: 0 | DQ27: 0 | DR27: 0 | DS27: 0 | DT27: 0 | DU27: 0 | DV27: 0 | DW27: 0 | DX27: 0 | DY27: 0 | DZ27: 0 | EA27: 0 | EB27: 0 | EC27: 0 | ED27: 0 | EE27: 0 | EF27: 0 | EG27: 0 | EH27: 0 | EI27: 0 | EJ27: =EJ15*EJ20*EJ24 -> 0 | EK27: 0 | EL27: 0 | EM27: 0 | EN27: 0 | EO27: 0 | EP27: 0 | EQ27: 0 | ER27: 0 | ES27: 0 | ET27: 0 | EU27: 0 | EV27: 0 | EW27: 0 | EX27: 0 | EY27: 0 | EZ27: 0 | FA27: 0 | FB27: 0 | FC27: 0 | FD27: 0 | FE27: 0 | FF27: 0 | FG27: 0 | FH27: 0 | FI27: 0 | FJ27: 0 | FK27: 0 | FL27: 0 | FM27: 0 | FN27: 0 | FO27: 0 | FP27: 0 | FQ27: 0 | FR27: 0 | FS27: 0 | FT27: 0 | FU27: 0 | FV27: 0 | FW27: 0 | FX27: 0 | FY27: 0 | FZ27: 0 | GA27: 0 | GB27: 0 | GC27: 0 | GD27: 0 | GE27: 0 | GF27: 0 | GG27: 0 | GH27: 0 | GI27: 0 | GJ27: 0 | GK27: 0 | GL27: 0 | GM27: 0 | GN27: 0 | GO27: 0 | GP27: 0 | GQ27: 0 | GR27: 0 | GS27: 0 | GT27: 0 | GU27: 0 | GV27: =GV15*GV20*GV24 -> 0 | GW27: 0 | GX27: 0 | GY27: 0 | GZ27: 0 | HA27: 0 | HB27: 0 | HC27: 0 | HD27: 0 | HE27: 0 | HF27: 0 | HG27: 0 | HH27: 0 | HI27: 0 | HJ27: 0 | HK27: 0 | HL27: 0 | HM27: 0 | HN27: 0 | HO27: 0 | HP27: 0 | HQ27: 0 | HR27: 0 | HS27: 0 | HT27: 0 | HU27: 0 | HV27: 0 | HW27: 0 | HX27: 0 | HY27: 0 | HZ27: 0 | IA27: 0 | IB27: 0 | IC27: 0 | ID27: 0 | IE27: 0 | IF27: 0 | IG27: 0 | IH27: 0 | II27: 0 | IJ27: 0 | IK27: 0 | IL27: 0 | IM27: 0 | IN27: 0 | IO27: 0 | IP27: 0 | IQ27: 0 | IR27: 0 | IS27: 0 | IT27: 0 | IU27: 0 | IV27: 0 | IW27: 0 | IX27: 0 | IY27: 0 | IZ27: 0 | JA27: 0 | JB27: 0 | JC27: 0 | JD27: 0 | JE27: 0 | JF27: 0 | JG27: 0 | JH27: =JH15*JH20*JH24 -> 0 | JI27: 0 | JJ27: 0 | JK27: 0 | JL27: 0 | JM27: 0 | JN27: 0 | JO27: 0 | JP27: 0 | JQ27: 0 | JR27: 0 | JS27: 0 | JT27: 0 | JU27: 0 | JV27: 0 | JW27: 0 | JX27: 0 | JY27: 0 | JZ27: 0 | KA27: 0 | KB27: 0 | KC27: 0 | KD27: 0 | KE27: 0 | KF27: 0 | KG27: 0 | KH27: 0 | KI27: 0 | KJ27: 0 | KK27: 0 | KL27: 0 | KM27: 0 | KN27: 0 | KO27: 0 | KP27: 0 | KQ27: 0 | KR27: 0 | KS27: 0 | KT27: 0 | KU27: 0 | KV27: 0 | KW27: 0 | KX27: 0 | KY27: 0 | KZ27: 0 | LA27: 0 | LB27: 0 | LC27: 0 | LD27: 0 | LE27: 0 | LF27: 0 | LG27: 0 | LH27: 0 | LI27: 0 | LJ27: 0 | LK27: 0 | LL27: 0 | LM27: 0 | LN27: 0 | LO27: 0 | LP27: 0 | LQ27: 0 | LR27: 0 | LS27: 0 | LT27: =LT15*LT20*LT24 -> 0 | LU27: 0 | LV27: 0 | LW27: 0 | LX27: 0 | LY27: 0 | LZ27: 0 | MA27: 0 | MB27: 0 | MC27: 0 | MD27: 0 | ME27: 0 | MF27: 0 | MG27: 0 | MH27: 0 | MI27: 0 | MJ27: 0 | MK27: 0 | ML27: 0 | MM27: 0 | MN27: 0 | MO27: 0 | MP27: 0 | MQ27: 0 | MR27: 0 | MS27: 0 | MT27: 0 | MU27: 0 | MV27: 0 | MW27: 0 | MX27: 0 | MY27: 0 | MZ27: 0 | NA27: 0 | NB27: 0 | NC27: 0 | ND27: 0 | NE27: 0 | NF27: 0 | NG27: 0 | NH27: 0 | NI27: 0 | NJ27: 0 | NK27: 0 | NL27: 0 | NM27: 0 | NN27: 0 | NO27: 0 | NP27: 0 | NQ27: 0 | NR27: 0 | NS27: 0 | NT27: 0 | NU27: 0 | NV27: 0 | NW27: 0 | NX27: 0 | NY27: 0 | NZ27: 0 | OA27: 0 | OB27: 0 | OC27: 0 | OD27: 0 | OE27: 0 | OF27: =OF15*OF20*OF24 -> 0 | OG27: 0 | OH27: 0 | OI27: 0 | OJ27: 0 | OK27: 0 | OL27: 0 | OM27: 0 | ON27: 0 | OO27: 0 | OP27: 0 | OQ27: 0 | OR27: 0 | OS27: 0 | OT27: 0 | OU27: 0 | OV27: 0 | OW27: 0 | OX27: 0 | OY27: 0 | OZ27: 0 | PA27: 0 | PB27: 0 | PC27: 0 | PD27: 0 | PE27: 0 | PF27: 0 | PG27: 0 | PH27: 0 | PI27: 0 | PJ27: 0 | PK27: 0 | PL27: 0 | PM27: 0 | PN27: 0 | PO27: 0 | PP27: 0 | PQ27: 0 | PR27: 0 | PS27: 0 | PT27: 0 | PU27: 0 | PV27: 0 | PW27: 0 | PX27: 0 | PY27: 0 | PZ27: 0 | QA27: 0 | QB27: 0 | QC27: 0 | QD27: 0 | QE27: 0 | QF27: 0 | QG27: 0 | QH27: 0 | QI27: 0 | QJ27: 0 | QK27: 0 | QL27: 0 | QM27: 0 | QN27: 0 | QO27: 0 | QP27: 0 | QQ27: 0 | QR27: =QR15*QR20*QR24 -> 0 | QS27: 0 | QT27: 0 | QU27: 0 | QV27: 0 | QW27: 0 | QX27: 0 | QY27: 0 | QZ27: 0 | RA27: 0 | RB27: 0 | RC27: 0 | RD27: 0 | RE27: 0 | RF27: 0 | RG27: 0 | RH27: 0 | RI27: 0 | RJ27: 0 | RK27: 0 | RL27: 0 | RM27: 0 | RN27: 0 | RO27: 0 | RP27: 0 | RQ27: 0 | RR27: 0 | RS27: 0 | RT27: 0 | RU27: 0 | RV27: 0 | RW27: 0 | RX27: 0 | RY27: 0 | RZ27: 0 | SA27: 0 | SB27: 0 | SC27: 0 | SD27: 0 | SE27: 0 | SF27: 0 | SG27: 0 | SH27: 0 | SI27: 0 | SJ27: 0 | SK27: 0 | SL27: 0 | SM27: 0 | SN27: 0 | SO27: 0 | SP27: 0 | SQ27: 0 | SR27: 0 | SS27: 0 | ST27: 0 | SU27: 0 | SV27: 0 | SW27: 0 | SX27: 0 | SY27: 0 | SZ27: 0 | TA27: 0 | TB27: 0 | TC27: 0 | TD27: =TD15*TD20*TD24 -> 0 | TE27: 0 | TF27: 0 | TG27: 0 | TH27: 0 | TI27: 0 | TJ27: 0 | TK27: 0 | TL27: 0 | TM27: 0 | TN27: 0 | TO27: 0 | TP27: 0 | TQ27: 0 | TR27: 0 | TS27: 0 | TT27: 0 | TU27: 0 | TV27: 0 | TW27: 0 | TX27: 0 | TY27: 0 | TZ27: 0 | UA27: 0 | UB27: 0 | UC27: 0 | UD27: 0 | UE27: 0 | UF27: 0 | UG27: 0 | UH27: 0 | UI27: 0 | UJ27: 0 | UK27: 0 | UL27: 0 | UM27: 0 | UN27: 0 | UO27: 0 | UP27: 0 | UQ27: 0 | UR27: 0 | US27: 0 | UT27: 0 | UU27: 0 | UV27: 0 | UW27: 0 | UX27: 0 | UY27: 0 | UZ27: 0 | VA27: 0 | VB27: 0 | VC27: 0 | VD27: 0 | VE27: 0 | VF27: 0 | VG27: 0 | VH27: 0 | VI27: 0 | VJ27: 0 | VK27: 0 | VL27: 0 | VM27: 0 | VN27: 0 | VO27: 0 | VP27: =VP15*VP20*VP24 -> 0 | VQ27: 0 | VR27: 0 | VS27: 0 | VT27: 0 | VU27: 0 | VV27: 0 | VW27: 0 | VX27: 0 | VY27: 0 | VZ27: 0 | WA27: 0 | WB27: 0 | WC27: 0 | WD27: 0 | WE27: 0 | WF27: 0 | WG27: 0 | WH27: 0 | WI27: 0 | WJ27: 0 | WK27: 0 | WL27: 0 | WM27: 0 | WN27: 0 | WO27: 0 | WP27: 0 | WQ27: 0 | WR27: 0 | WS27: 0 | WT27: 0 | WU27: 0 | WV27: 0 | WW27: 0 | WX27: 0 | WY27: 0 | WZ27: 0 | XA27: 0 | XB27: 0 | XC27: 0 | XD27: 0 | XE27: 0 | XF27: 0 | XG27: 0 | XH27: 0 | XI27: 0 | XJ27: 0 | XK27: 0 | XL27: 0 | XM27: 0 | XN27: 0 | XO27: 0 | XP27: 0 | XQ27: 0 | XR27: 0 | XS27: 0 | XT27: 0 | XU27: 0 | XV27: 0 | XW27: 0 | XX27: 0 | XY27: 0 | XZ27: 0 | YA27: 0 | YB27: =YB15*YB20*YB24 -> 0 | YC27: 0 | YD27: 0 | YE27: 0 | YF27: 0 | YG27: 0 | YH27: 0 | YI27: 0 | YJ27: 0 | YK27: 0 | YL27: 0 | YM27: 0 | YN27: 0 | YO27: 0 | YP27: 0 | YQ27: 0 | YR27: 0 | YS27: 0 | YT27: 0 | YU27: 0 | YV27: 0 | YW27: 0 | YX27: 0 | YY27: 0 | YZ27: 0 | ZA27: 0 | ZB27: 0 | ZC27: 0 | ZD27: 0 | ZE27: 0 | ZF27: 0 | ZG27: 0 | ZH27: 0 | ZI27: 0 | ZJ27: 0 | ZK27: 0 | ZL27: 0 | ZM27: 0 | ZN27: 0 | ZO27: 0 | ZP27: 0 | ZQ27: 0 | ZR27: 0 | ZS27: 0 | ZT27: 0 | ZU27: 0 | ZV27: 0 | ZW27: 0 | ZX27: 0 | ZY27: 0 | ZZ27: 0 | AAA27: 0 | AAB27: 0 | AAC27: 0 | AAD27: 0 | AAE27: 0 | AAF27: 0 | AAG27: 0 | AAH27: 0 | AAI27: 0 | AAJ27: 0 | AAK27: 0 | AAL27: 0 | AAM27: 0 | AAN27: =AAN15*AAN20*AAN24 -> 0 | AAO27: 0 | AAP27: 0 | AAQ27: 0 | AAR27: 0 | AAS27: 0 | AAT27: 0 | AAU27: 0 | AAV27: 0 | AAW27: 0 | AAX27: 0 | AAY27: 0 | AAZ27: 0 | ABA27: 0 | ABB27: 0 | ABC27: 0 | ABD27: 0 | ABE27: 0 | ABF27: 0 | ABG27: 0 | ABH27: 0 | ABI27: 0 | ABJ27: 0 | ABK27: 0 | ABL27: 0 | ABM27: 0 | ABN27: 0 | ABO27: 0 | ABP27: 0 | ABQ27: 0 | ABR27: 0 | ABS27: 0 | ABT27: 0 | ABU27: 0 | ABV27: 0 | ABW27: 0 | ABX27: 0 | ABY27: 0 | ABZ27: 0
D28: Base for Battery Capacity Payment | E28: kWh | K28: =K16*K21*K24 -> 0 | L28: =L16*L21*L24 -> 0 | M28: 0 | N28: 0 | O28: 0 | P28: 0 | Q28: 0 | R28: 0 | S28: 0 | T28: 0 | U28: 0 | V28: 0 | W28: 0 | X28: 0 | Y28: 0 | Z28: 0 | AA28: 0 | AB28: 0 | AC28: 0 | AD28: 0 | AE28: 0 | AF28: 0 | AG28: 0 | AH28: 0 | AI28: 0 | AJ28: 0 | AK28: 0 | AL28: 0 | AM28: 0 | AN28: 0 | AO28: 0 | AP28: 0 | AQ28: 0 | AR28: 0 | AS28: 0 | AT28: 0 | AU28: 0 | AV28: 0 | AW28: 0 | AX28: 0 | AY28: 0 | AZ28: 0 | BA28: 0 | BB28: 0 | BC28: 0 | BD28: 0 | BE28: 0 | BF28: 0 | BG28: 0 | BH28: 0 | BI28: 0 | BJ28: 0 | BK28: 0 | BL28: 0 | BM28: 0 | BN28: 0 | BO28: 0 | BP28: 0 | BQ28: 0 | BR28: 0 | BS28: 0 | BT28: 0 | BU28: 0 | BV28: 0 | BW28: 0 | BX28: =BX16*BX21*BX24 -> 0 | BY28: 0 | BZ28: 0 | CA28: 0 | CB28: 0 | CC28: 0 | CD28: 0 | CE28: 0 | CF28: 0 | CG28: 0 | CH28: 0 | CI28: 0 | CJ28: 0 | CK28: 0 | CL28: 0 | CM28: 0 | CN28: 0 | CO28: 0 | CP28: 0 | CQ28: 0 | CR28: 0 | CS28: 0 | CT28: 0 | CU28: 0 | CV28: 0 | CW28: 0 | CX28: 0 | CY28: 0 | CZ28: 0 | DA28: 0 | DB28: 0 | DC28: 0 | DD28: 0 | DE28: 0 | DF28: 0 | DG28: 0 | DH28: 0 | DI28: 0 | DJ28: 0 | DK28: 0 | DL28: 0 | DM28: 0 | DN28: 0 | DO28: 0 | DP28: 0 | DQ28: 0 | DR28: 0 | DS28: 0 | DT28: 0 | DU28: 0 | DV28: 0 | DW28: 0 | DX28: 0 | DY28: 0 | DZ28: 0 | EA28: 0 | EB28: 0 | EC28: 0 | ED28: 0 | EE28: 0 | EF28: 0 | EG28: 0 | EH28: 0 | EI28: 0 | EJ28: =EJ16*EJ21*EJ24 -> 0 | EK28: 0 | EL28: 0 | EM28: 0 | EN28: 0 | EO28: 0 | EP28: 0 | EQ28: 0 | ER28: 0 | ES28: 0 | ET28: 0 | EU28: 0 | EV28: 0 | EW28: 0 | EX28: 0 | EY28: 0 | EZ28: 0 | FA28: 0 | FB28: 0 | FC28: 0 | FD28: 0 | FE28: 0 | FF28: 0 | FG28: 0 | FH28: 0 | FI28: 0 | FJ28: 0 | FK28: 0 | FL28: 0 | FM28: 0 | FN28: 0 | FO28: 0 | FP28: 0 | FQ28: 0 | FR28: 0 | FS28: 0 | FT28: 0 | FU28: 0 | FV28: 0 | FW28: 0 | FX28: 0 | FY28: 0 | FZ28: 0 | GA28: 0 | GB28: 0 | GC28: 0 | GD28: 0 | GE28: 0 | GF28: 0 | GG28: 0 | GH28: 0 | GI28: 0 | GJ28: 0 | GK28: 0 | GL28: 0 | GM28: 0 | GN28: 0 | GO28: 0 | GP28: 0 | GQ28: 0 | GR28: 0 | GS28: 0 | GT28: 0 | GU28: 0 | GV28: =GV16*GV21*GV24 -> 0 | GW28: 0 | GX28: 0 | GY28: 0 | GZ28: 0 | HA28: 0 | HB28: 0 | HC28: 0 | HD28: 0 | HE28: 0 | HF28: 0 | HG28: 0 | HH28: 0 | HI28: 0 | HJ28: 0 | HK28: 0 | HL28: 0 | HM28: 0 | HN28: 0 | HO28: 0 | HP28: 0 | HQ28: 0 | HR28: 0 | HS28: 0 | HT28: 0 | HU28: 0 | HV28: 0 | HW28: 0 | HX28: 0 | HY28: 0 | HZ28: 0 | IA28: 0 | IB28: 0 | IC28: 0 | ID28: 0 | IE28: 0 | IF28: 0 | IG28: 0 | IH28: 0 | II28: 0 | IJ28: 0 | IK28: 0 | IL28: 0 | IM28: 0 | IN28: 0 | IO28: 0 | IP28: 0 | IQ28: 0 | IR28: 0 | IS28: 0 | IT28: 0 | IU28: 0 | IV28: 0 | IW28: 0 | IX28: 0 | IY28: 0 | IZ28: 0 | JA28: 0 | JB28: 0 | JC28: 0 | JD28: 0 | JE28: 0 | JF28: 0 | JG28: 0 | JH28: =JH16*JH21*JH24 -> 0 | JI28: 0 | JJ28: 0 | JK28: 0 | JL28: 0 | JM28: 0 | JN28: 0 | JO28: 0 | JP28: 0 | JQ28: 0 | JR28: 0 | JS28: 0 | JT28: 0 | JU28: 0 | JV28: 0 | JW28: 0 | JX28: 0 | JY28: 0 | JZ28: 0 | KA28: 0 | KB28: 0 | KC28: 0 | KD28: 0 | KE28: 0 | KF28: 0 | KG28: 0 | KH28: 0 | KI28: 0 | KJ28: 0 | KK28: 0 | KL28: 0 | KM28: 0 | KN28: 0 | KO28: 0 | KP28: 0 | KQ28: 0 | KR28: 0 | KS28: 0 | KT28: 0 | KU28: 0 | KV28: 0 | KW28: 0 | KX28: 0 | KY28: 0 | KZ28: 0 | LA28: 0 | LB28: 0 | LC28: 0 | LD28: 0 | LE28: 0 | LF28: 0 | LG28: 0 | LH28: 0 | LI28: 0 | LJ28: 0 | LK28: 0 | LL28: 0 | LM28: 0 | LN28: 0 | LO28: 0 | LP28: 0 | LQ28: 0 | LR28: 0 | LS28: 0 | LT28: =LT16*LT21*LT24 -> 0 | LU28: 0 | LV28: 0 | LW28: 0 | LX28: 0 | LY28: 0 | LZ28: 0 | MA28: 0 | MB28: 0 | MC28: 0 | MD28: 0 | ME28: 0 | MF28: 0 | MG28: 0 | MH28: 0 | MI28: 0 | MJ28: 0 | MK28: 0 | ML28: 0 | MM28: 0 | MN28: 0 | MO28: 0 | MP28: 0 | MQ28: 0 | MR28: 0 | MS28: 0 | MT28: 0 | MU28: 0 | MV28: 0 | MW28: 0 | MX28: 0 | MY28: 0 | MZ28: 0 | NA28: 0 | NB28: 0 | NC28: 0 | ND28: 0 | NE28: 0 | NF28: 0 | NG28: 0 | NH28: 0 | NI28: 0 | NJ28: 0 | NK28: 0 | NL28: 0 | NM28: 0 | NN28: 0 | NO28: 0 | NP28: 0 | NQ28: 0 | NR28: 0 | NS28: 0 | NT28: 0 | NU28: 0 | NV28: 0 | NW28: 0 | NX28: 0 | NY28: 0 | NZ28: 0 | OA28: 0 | OB28: 0 | OC28: 0 | OD28: 0 | OE28: 0 | OF28: =OF16*OF21*OF24 -> 0 | OG28: 0 | OH28: 0 | OI28: 0 | OJ28: 0 | OK28: 0 | OL28: 0 | OM28: 0 | ON28: 0 | OO28: 0 | OP28: 0 | OQ28: 0 | OR28: 0 | OS28: 0 | OT28: 0 | OU28: 0 | OV28: 0 | OW28: 0 | OX28: 0 | OY28: 0 | OZ28: 0 | PA28: 0 | PB28: 0 | PC28: 0 | PD28: 0 | PE28: 0 | PF28: 0 | PG28: 0 | PH28: 0 | PI28: 0 | PJ28: 0 | PK28: 0 | PL28: 0 | PM28: 0 | PN28: 0 | PO28: 0 | PP28: 0 | PQ28: 0 | PR28: 0 | PS28: 0 | PT28: 0 | PU28: 0 | PV28: 0 | PW28: 0 | PX28: 0 | PY28: 0 | PZ28: 0 | QA28: 0 | QB28: 0 | QC28: 0 | QD28: 0 | QE28: 0 | QF28: 0 | QG28: 0 | QH28: 0 | QI28: 0 | QJ28: 0 | QK28: 0 | QL28: 0 | QM28: 0 | QN28: 0 | QO28: 0 | QP28: 0 | QQ28: 0 | QR28: =QR16*QR21*QR24 -> 0 | QS28: 0 | QT28: 0 | QU28: 0 | QV28: 0 | QW28: 0 | QX28: 0 | QY28: 0 | QZ28: 0 | RA28: 0 | RB28: 0 | RC28: 0 | RD28: 0 | RE28: 0 | RF28: 0 | RG28: 0 | RH28: 0 | RI28: 0 | RJ28: 0 | RK28: 0 | RL28: 0 | RM28: 0 | RN28: 0 | RO28: 0 | RP28: 0 | RQ28: 0 | RR28: 0 | RS28: 0 | RT28: 0 | RU28: 0 | RV28: 0 | RW28: 0 | RX28: 0 | RY28: 0 | RZ28: 0 | SA28: 0 | SB28: 0 | SC28: 0 | SD28: 0 | SE28: 0 | SF28: 0 | SG28: 0 | SH28: 0 | SI28: 0 | SJ28: 0 | SK28: 0 | SL28: 0 | SM28: 0 | SN28: 0 | SO28: 0 | SP28: 0 | SQ28: 0 | SR28: 0 | SS28: 0 | ST28: 0 | SU28: 0 | SV28: 0 | SW28: 0 | SX28: 0 | SY28: 0 | SZ28: 0 | TA28: 0 | TB28: 0 | TC28: 0 | TD28: =TD16*TD21*TD24 -> 0 | TE28: 0 | TF28: 0 | TG28: 0 | TH28: 0 | TI28: 0 | TJ28: 0 | TK28: 0 | TL28: 0 | TM28: 0 | TN28: 0 | TO28: 0 | TP28: 0 | TQ28: 0 | TR28: 0 | TS28: 0 | TT28: 0 | TU28: 0 | TV28: 0 | TW28: 0 | TX28: 0 | TY28: 0 | TZ28: 0 | UA28: 0 | UB28: 0 | UC28: 0 | UD28: 0 | UE28: 0 | UF28: 0 | UG28: 0 | UH28: 0 | UI28: 0 | UJ28: 0 | UK28: 0 | UL28: 0 | UM28: 0 | UN28: 0 | UO28: 0 | UP28: 0 | UQ28: 0 | UR28: 0 | US28: 0 | UT28: 0 | UU28: 0 | UV28: 0 | UW28: 0 | UX28: 0 | UY28: 0 | UZ28: 0 | VA28: 0 | VB28: 0 | VC28: 0 | VD28: 0 | VE28: 0 | VF28: 0 | VG28: 0 | VH28: 0 | VI28: 0 | VJ28: 0 | VK28: 0 | VL28: 0 | VM28: 0 | VN28: 0 | VO28: 0 | VP28: =VP16*VP21*VP24 -> 0 | VQ28: 0 | VR28: 0 | VS28: 0 | VT28: 0 | VU28: 0 | VV28: 0 | VW28: 0 | VX28: 0 | VY28: 0 | VZ28: 0 | WA28: 0 | WB28: 0 | WC28: 0 | WD28: 0 | WE28: 0 | WF28: 0 | WG28: 0 | WH28: 0 | WI28: 0 | WJ28: 0 | WK28: 0 | WL28: 0 | WM28: 0 | WN28: 0 | WO28: 0 | WP28: 0 | WQ28: 0 | WR28: 0 | WS28: 0 | WT28: 0 | WU28: 0 | WV28: 0 | WW28: 0 | WX28: 0 | WY28: 0 | WZ28: 0 | XA28: 0 | XB28: 0 | XC28: 0 | XD28: 0 | XE28: 0 | XF28: 0 | XG28: 0 | XH28: 0 | XI28: 0 | XJ28: 0 | XK28: 0 | XL28: 0 | XM28: 0 | XN28: 0 | XO28: 0 | XP28: 0 | XQ28: 0 | XR28: 0 | XS28: 0 | XT28: 0 | XU28: 0 | XV28: 0 | XW28: 0 | XX28: 0 | XY28: 0 | XZ28: 0 | YA28: 0 | YB28: =YB16*YB21*YB24 -> 0 | YC28: 0 | YD28: 0 | YE28: 0 | YF28: 0 | YG28: 0 | YH28: 0 | YI28: 0 | YJ28: 0 | YK28: 0 | YL28: 0 | YM28: 0 | YN28: 0 | YO28: 0 | YP28: 0 | YQ28: 0 | YR28: 0 | YS28: 0 | YT28: 0 | YU28: 0 | YV28: 0 | YW28: 0 | YX28: 0 | YY28: 0 | YZ28: 0 | ZA28: 0 | ZB28: 0 | ZC28: 0 | ZD28: 0 | ZE28: 0 | ZF28: 0 | ZG28: 0 | ZH28: 0 | ZI28: 0 | ZJ28: 0 | ZK28: 0 | ZL28: 0 | ZM28: 0 | ZN28: 0 | ZO28: 0 | ZP28: 0 | ZQ28: 0 | ZR28: 0 | ZS28: 0 | ZT28: 0 | ZU28: 0 | ZV28: 0 | ZW28: 0 | ZX28: 0 | ZY28: 0 | ZZ28: 0 | AAA28: 0 | AAB28: 0 | AAC28: 0 | AAD28: 0 | AAE28: 0 | AAF28: 0 | AAG28: 0 | AAH28: 0 | AAI28: 0 | AAJ28: 0 | AAK28: 0 | AAL28: 0 | AAM28: 0 | AAN28: =AAN16*AAN21*AAN24 -> 0 | AAO28: 0 | AAP28: 0 | AAQ28: 0 | AAR28: 0 | AAS28: 0 | AAT28: 0 | AAU28: 0 | AAV28: 0 | AAW28: 0 | AAX28: 0 | AAY28: 0 | AAZ28: 0 | ABA28: 0 | ABB28: 0 | ABC28: 0 | ABD28: 0 | ABE28: 0 | ABF28: 0 | ABG28: 0 | ABH28: 0 | ABI28: 0 | ABJ28: 0 | ABK28: 0 | ABL28: 0 | ABM28: 0 | ABN28: 0 | ABO28: 0 | ABP28: 0 | ABQ28: 0 | ABR28: 0 | ABS28: 0 | ABT28: 0 | ABU28: 0 | ABV28: 0 | ABW28: 0 | ABX28: 0 | ABY28: 0 | ABZ28: 0
D30: Degradation | E30: % | F30: =InputC!F39 -> 0.004 | J30: 1
D32: Solar Generation After Degradation | E32: kWh | K32: =K26*K$30 -> 0 | L32: =L26*L$30 -> 0 | M32: 0 | N32: 0 | O32: 0 | P32: 0 | Q32: 0 | R32: 0 | S32: 0 | T32: 0 | U32: 0 | V32: 0 | W32: 0 | X32: 0 | Y32: 0 | Z32: 0 | AA32: 0 | AB32: 0 | AC32: 0 | AD32: 0 | AE32: 0 | AF32: 0 | AG32: 0 | AH32: 0 | AI32: 0 | AJ32: 0 | AK32: 0 | AL32: 0 | AM32: 0 | AN32: 0 | AO32: 0 | AP32: 0 | AQ32: 0 | AR32: 0 | AS32: 0 | AT32: 0 | AU32: 0 | AV32: 0 | AW32: 0 | AX32: 0 | AY32: 0 | AZ32: 0 | BA32: 0 | BB32: 0 | BC32: 0 | BD32: 0 | BE32: 0 | BF32: 0 | BG32: 0 | BH32: 0 | BI32: 0 | BJ32: 0 | BK32: 0 | BL32: 0 | BM32: 0 | BN32: 0 | BO32: 0 | BP32: 0 | BQ32: 0 | BR32: 0 | BS32: 0 | BT32: 0 | BU32: 0 | BV32: 0 | BW32: 0 | BX32: =BX26*BX$30 -> 0 | BY32: 0 | BZ32: 0 | CA32: 0 | CB32: 0 | CC32: 0 | CD32: 0 | CE32: 0 | CF32: 0 | CG32: 0 | CH32: 0 | CI32: 0 | CJ32: 0 | CK32: 0 | CL32: 0 | CM32: 0 | CN32: 0 | CO32: 0 | CP32: 0 | CQ32: 0 | CR32: 0 | CS32: 0 | CT32: 0 | CU32: 0 | CV32: 0 | CW32: 0 | CX32: 0 | CY32: 0 | CZ32: 0 | DA32: 0 | DB32: 0 | DC32: 0 | DD32: 0 | DE32: 0 | DF32: 0 | DG32: 0 | DH32: 0 | DI32: 0 | DJ32: 0 | DK32: 0 | DL32: 0 | DM32: 0 | DN32: 0 | DO32: 0 | DP32: 0 | DQ32: 0 | DR32: 0 | DS32: 0 | DT32: 0 | DU32: 0 | DV32: 0 | DW32: 0 | DX32: 0 | DY32: 0 | DZ32: 0 | EA32: 0 | EB32: 0 | EC32: 0 | ED32: 0 | EE32: 0 | EF32: 0 | EG32: 0 | EH32: 0 | EI32: 0 | EJ32: =EJ26*EJ$30 -> 0 | EK32: 0 | EL32: 0 | EM32: 0 | EN32: 0 | EO32: 0 | EP32: 0 | EQ32: 0 | ER32: 0 | ES32: 0 | ET32: 0 | EU32: 0 | EV32: 0 | EW32: 0 | EX32: 0 | EY32: 0 | EZ32: 0 | FA32: 0 | FB32: 0 | FC32: 0 | FD32: 0 | FE32: 0 | FF32: 0 | FG32: 0 | FH32: 0 | FI32: 0 | FJ32: 0 | FK32: 0 | FL32: 0 | FM32: 0 | FN32: 0 | FO32: 0 | FP32: 0 | FQ32: 0 | FR32: 0 | FS32: 0 | FT32: 0 | FU32: 0 | FV32: 0 | FW32: 0 | FX32: 0 | FY32: 0 | FZ32: 0 | GA32: 0 | GB32: 0 | GC32: 0 | GD32: 0 | GE32: 0 | GF32: 0 | GG32: 0 | GH32: 0 | GI32: 0 | GJ32: 0 | GK32: 0 | GL32: 0 | GM32: 0 | GN32: 0 | GO32: 0 | GP32: 0 | GQ32: 0 | GR32: 0 | GS32: 0 | GT32: 0 | GU32: 0 | GV32: =GV26*GV$30 -> 0 | GW32: 0 | GX32: 0 | GY32: 0 | GZ32: 0 | HA32: 0 | HB32: 0 | HC32: 0 | HD32: 0 | HE32: 0 | HF32: 0 | HG32: 0 | HH32: 0 | HI32: 0 | HJ32: 0 | HK32: 0 | HL32: 0 | HM32: 0 | HN32: 0 | HO32: 0 | HP32: 0 | HQ32: 0 | HR32: 0 | HS32: 0 | HT32: 0 | HU32: 0 | HV32: 0 | HW32: 0 | HX32: 0 | HY32: 0 | HZ32: 0 | IA32: 0 | IB32: 0 | IC32: 0 | ID32: 0 | IE32: 0 | IF32: 0 | IG32: 0 | IH32: 0 | II32: 0 | IJ32: 0 | IK32: 0 | IL32: 0 | IM32: 0 | IN32: 0 | IO32: 0 | IP32: 0 | IQ32: 0 | IR32: 0 | IS32: 0 | IT32: 0 | IU32: 0 | IV32: 0 | IW32: 0 | IX32: 0 | IY32: 0 | IZ32: 0 | JA32: 0 | JB32: 0 | JC32: 0 | JD32: 0 | JE32: 0 | JF32: 0 | JG32: 0 | JH32: =JH26*JH$30 -> 0 | JI32: 0 | JJ32: 0 | JK32: 0 | JL32: 0 | JM32: 0 | JN32: 0 | JO32: 0 | JP32: 0 | JQ32: 0 | JR32: 0 | JS32: 0 | JT32: 0 | JU32: 0 | JV32: 0 | JW32: 0 | JX32: 0 | JY32: 0 | JZ32: 0 | KA32: 0 | KB32: 0 | KC32: 0 | KD32: 0 | KE32: 0 | KF32: 0 | KG32: 0 | KH32: 0 | KI32: 0 | KJ32: 0 | KK32: 0 | KL32: 0 | KM32: 0 | KN32: 0 | KO32: 0 | KP32: 0 | KQ32: 0 | KR32: 0 | KS32: 0 | KT32: 0 | KU32: 0 | KV32: 0 | KW32: 0 | KX32: 0 | KY32: 0 | KZ32: 0 | LA32: 0 | LB32: 0 | LC32: 0 | LD32: 0 | LE32: 0 | LF32: 0 | LG32: 0 | LH32: 0 | LI32: 0 | LJ32: 0 | LK32: 0 | LL32: 0 | LM32: 0 | LN32: 0 | LO32: 0 | LP32: 0 | LQ32: 0 | LR32: 0 | LS32: 0 | LT32: =LT26*LT$30 -> 0 | LU32: 0 | LV32: 0 | LW32: 0 | LX32: 0 | LY32: 0 | LZ32: 0 | MA32: 0 | MB32: 0 | MC32: 0 | MD32: 0 | ME32: 0 | MF32: 0 | MG32: 0 | MH32: 0 | MI32: 0 | MJ32: 0 | MK32: 0 | ML32: 0 | MM32: 0 | MN32: 0 | MO32: 0 | MP32: 0 | MQ32: 0 | MR32: 0 | MS32: 0 | MT32: 0 | MU32: 0 | MV32: 0 | MW32: 0 | MX32: 0 | MY32: 0 | MZ32: 0 | NA32: 0 | NB32: 0 | NC32: 0 | ND32: 0 | NE32: 0 | NF32: 0 | NG32: 0 | NH32: 0 | NI32: 0 | NJ32: 0 | NK32: 0 | NL32: 0 | NM32: 0 | NN32: 0 | NO32: 0 | NP32: 0 | NQ32: 0 | NR32: 0 | NS32: 0 | NT32: 0 | NU32: 0 | NV32: 0 | NW32: 0 | NX32: 0 | NY32: 0 | NZ32: 0 | OA32: 0 | OB32: 0 | OC32: 0 | OD32: 0 | OE32: 0 | OF32: =OF26*OF$30 -> 0 | OG32: 0 | OH32: 0 | OI32: 0 | OJ32: 0 | OK32: 0 | OL32: 0 | OM32: 0 | ON32: 0 | OO32: 0 | OP32: 0 | OQ32: 0 | OR32: 0 | OS32: 0 | OT32: 0 | OU32: 0 | OV32: 0 | OW32: 0 | OX32: 0 | OY32: 0 | OZ32: 0 | PA32: 0 | PB32: 0 | PC32: 0 | PD32: 0 | PE32: 0 | PF32: 0 | PG32: 0 | PH32: 0 | PI32: 0 | PJ32: 0 | PK32: 0 | PL32: 0 | PM32: 0 | PN32: 0 | PO32: 0 | PP32: 0 | PQ32: 0 | PR32: 0 | PS32: 0 | PT32: 0 | PU32: 0 | PV32: 0 | PW32: 0 | PX32: 0 | PY32: 0 | PZ32: 0 | QA32: 0 | QB32: 0 | QC32: 0 | QD32: 0 | QE32: 0 | QF32: 0 | QG32: 0 | QH32: 0 | QI32: 0 | QJ32: 0 | QK32: 0 | QL32: 0 | QM32: 0 | QN32: 0 | QO32: 0 | QP32: 0 | QQ32: 0 | QR32: =QR26*QR$30 -> 0 | QS32: 0 | QT32: 0 | QU32: 0 | QV32: 0 | QW32: 0 | QX32: 0 | QY32: 0 | QZ32: 0 | RA32: 0 | RB32: 0 | RC32: 0 | RD32: 0 | RE32: 0 | RF32: 0 | RG32: 0 | RH32: 0 | RI32: 0 | RJ32: 0 | RK32: 0 | RL32: 0 | RM32: 0 | RN32: 0 | RO32: 0 | RP32: 0 | RQ32: 0 | RR32: 0 | RS32: 0 | RT32: 0 | RU32: 0 | RV32: 0 | RW32: 0 | RX32: 0 | RY32: 0 | RZ32: 0 | SA32: 0 | SB32: 0 | SC32: 0 | SD32: 0 | SE32: 0 | SF32: 0 | SG32: 0 | SH32: 0 | SI32: 0 | SJ32: 0 | SK32: 0 | SL32: 0 | SM32: 0 | SN32: 0 | SO32: 0 | SP32: 0 | SQ32: 0 | SR32: 0 | SS32: 0 | ST32: 0 | SU32: 0 | SV32: 0 | SW32: 0 | SX32: 0 | SY32: 0 | SZ32: 0 | TA32: 0 | TB32: 0 | TC32: 0 | TD32: =TD26*TD$30 -> 0 | TE32: 0 | TF32: 0 | TG32: 0 | TH32: 0 | TI32: 0 | TJ32: 0 | TK32: 0 | TL32: 0 | TM32: 0 | TN32: 0 | TO32: 0 | TP32: 0 | TQ32: 0 | TR32: 0 | TS32: 0 | TT32: 0 | TU32: 0 | TV32: 0 | TW32: 0 | TX32: 0 | TY32: 0 | TZ32: 0 | UA32: 0 | UB32: 0 | UC32: 0 | UD32: 0 | UE32: 0 | UF32: 0 | UG32: 0 | UH32: 0 | UI32: 0 | UJ32: 0 | UK32: 0 | UL32: 0 | UM32: 0 | UN32: 0 | UO32: 0 | UP32: 0 | UQ32: 0 | UR32: 0 | US32: 0 | UT32: 0 | UU32: 0 | UV32: 0 | UW32: 0 | UX32: 0 | UY32: 0 | UZ32: 0 | VA32: 0 | VB32: 0 | VC32: 0 | VD32: 0 | VE32: 0 | VF32: 0 | VG32: 0 | VH32: 0 | VI32: 0 | VJ32: 0 | VK32: 0 | VL32: 0 | VM32: 0 | VN32: 0 | VO32: 0 | VP32: =VP26*VP$30 -> 0 | VQ32: 0 | VR32: 0 | VS32: 0 | VT32: 0 | VU32: 0 | VV32: 0 | VW32: 0 | VX32: 0 | VY32: 0 | VZ32: 0 | WA32: 0 | WB32: 0 | WC32: 0 | WD32: 0 | WE32: 0 | WF32: 0 | WG32: 0 | WH32: 0 | WI32: 0 | WJ32: 0 | WK32: 0 | WL32: 0 | WM32: 0 | WN32: 0 | WO32: 0 | WP32: 0 | WQ32: 0 | WR32: 0 | WS32: 0 | WT32: 0 | WU32: 0 | WV32: 0 | WW32: 0 | WX32: 0 | WY32: 0 | WZ32: 0 | XA32: 0 | XB32: 0 | XC32: 0 | XD32: 0 | XE32: 0 | XF32: 0 | XG32: 0 | XH32: 0 | XI32: 0 | XJ32: 0 | XK32: 0 | XL32: 0 | XM32: 0 | XN32: 0 | XO32: 0 | XP32: 0 | XQ32: 0 | XR32: 0 | XS32: 0 | XT32: 0 | XU32: 0 | XV32: 0 | XW32: 0 | XX32: 0 | XY32: 0 | XZ32: 0 | YA32: 0 | YB32: =YB26*YB$30 -> 0 | YC32: 0 | YD32: 0 | YE32: 0 | YF32: 0 | YG32: 0 | YH32: 0 | YI32: 0 | YJ32: 0 | YK32: 0 | YL32: 0 | YM32: 0 | YN32: 0 | YO32: 0 | YP32: 0 | YQ32: 0 | YR32: 0 | YS32: 0 | YT32: 0 | YU32: 0 | YV32: 0 | YW32: 0 | YX32: 0 | YY32: 0 | YZ32: 0 | ZA32: 0 | ZB32: 0 | ZC32: 0 | ZD32: 0 | ZE32: 0 | ZF32: 0 | ZG32: 0 | ZH32: 0 | ZI32: 0 | ZJ32: 0 | ZK32: 0 | ZL32: 0 | ZM32: 0 | ZN32: 0 | ZO32: 0 | ZP32: 0 | ZQ32: 0 | ZR32: 0 | ZS32: 0 | ZT32: 0 | ZU32: 0 | ZV32: 0 | ZW32: 0 | ZX32: 0 | ZY32: 0 | ZZ32: 0 | AAA32: 0 | AAB32: 0 | AAC32: 0 | AAD32: 0 | AAE32: 0 | AAF32: 0 | AAG32: 0 | AAH32: 0 | AAI32: 0 | AAJ32: 0 | AAK32: 0 | AAL32: 0 | AAM32: 0 | AAN32: =AAN26*AAN$30 -> 0 | AAO32: 0 | AAP32: 0 | AAQ32: 0 | AAR32: 0 | AAS32: 0 | AAT32: 0 | AAU32: 0 | AAV32: 0 | AAW32: 0 | AAX32: 0 | AAY32: 0 | AAZ32: 0 | ABA32: 0 | ABB32: 0 | ABC32: 0 | ABD32: 0 | ABE32: 0 | ABF32: 0 | ABG32: 0 | ABH32: 0 | ABI32: 0 | ABJ32: 0 | ABK32: 0 | ABL32: 0 | ABM32: 0 | ABN32: 0 | ABO32: 0 | ABP32: 0 | ABQ32: 0 | ABR32: 0 | ABS32: 0 | ABT32: 0 | ABU32: 0 | ABV32: 0 | ABW32: 0 | ABX32: 0 | ABY32: 0 | ABZ32: 0
D33: Wind Generation After Degradation | E33: kWh | K33: =K27*K$30 -> 0 | L33: 0 | M33: 0 | N33: 0 | O33: 0 | P33: 0 | Q33: 0 | R33: 0 | S33: 0 | T33: 0 | U33: 0 | V33: 0 | W33: 0 | X33: 0 | Y33: 0 | Z33: 0 | AA33: 0 | AB33: 0 | AC33: 0 | AD33: 0 | AE33: 0 | AF33: 0 | AG33: 0 | AH33: 0 | AI33: 0 | AJ33: 0 | AK33: 0 | AL33: 0 | AM33: 0 | AN33: 0 | AO33: 0 | AP33: 0 | AQ33: 0 | AR33: 0 | AS33: 0 | AT33: 0 | AU33: 0 | AV33: 0 | AW33: 0 | AX33: 0 | AY33: 0 | AZ33: 0 | BA33: 0 | BB33: 0 | BC33: 0 | BD33: 0 | BE33: 0 | BF33: 0 | BG33: 0 | BH33: 0 | BI33: 0 | BJ33: 0 | BK33: 0 | BL33: 0 | BM33: 0 | BN33: 0 | BO33: 0 | BP33: 0 | BQ33: 0 | BR33: 0 | BS33: 0 | BT33: 0 | BU33: 0 | BV33: 0 | BW33: 0 | BX33: 0 | BY33: 0 | BZ33: 0 | CA33: 0 | CB33: 0 | CC33: 0 | CD33: 0 | CE33: 0 | CF33: 0 | CG33: 0 | CH33: 0 | CI33: 0 | CJ33: 0 | CK33: 0 | CL33: 0 | CM33: 0 | CN33: 0 | CO33: 0 | CP33: 0 | CQ33: 0 | CR33: 0 | CS33: 0 | CT33: 0 | CU33: 0 | CV33: 0 | CW33: 0 | CX33: 0 | CY33: 0 | CZ33: 0 | DA33: 0 | DB33: 0 | DC33: 0 | DD33: 0 | DE33: 0 | DF33: 0 | DG33: 0 | DH33: 0 | DI33: 0 | DJ33: 0 | DK33: 0 | DL33: 0 | DM33: 0 | DN33: 0 | DO33: 0 | DP33: 0 | DQ33: 0 | DR33: 0 | DS33: 0 | DT33: 0 | DU33: 0 | DV33: 0 | DW33: 0 | DX33: 0 | DY33: 0 | DZ33: 0 | EA33: 0 | EB33: 0 | EC33: 0 | ED33: 0 | EE33: 0 | EF33: 0 | EG33: 0 | EH33: 0 | EI33: 0 | EJ33: 0 | EK33: 0 | EL33: 0 | EM33: 0 | EN33: 0 | EO33: 0 | EP33: 0 | EQ33: 0 | ER33: 0 | ES33: 0 | ET33: 0 | EU33: 0 | EV33: 0 | EW33: 0 | EX33: 0 | EY33: 0 | EZ33: 0 | FA33: 0 | FB33: 0 | FC33: 0 | FD33: 0 | FE33: 0 | FF33: 0 | FG33: 0 | FH33: 0 | FI33: 0 | FJ33: 0 | FK33: 0 | FL33: 0 | FM33: 0 | FN33: 0 | FO33: 0 | FP33: 0 | FQ33: 0 | FR33: 0 | FS33: 0 | FT33: 0 | FU33: 0 | FV33: 0 | FW33: 0 | FX33: 0 | FY33: 0 | FZ33: 0 | GA33: 0 | GB33: 0 | GC33: 0 | GD33: 0 | GE33: 0 | GF33: 0 | GG33: 0 | GH33: 0 | GI33: 0 | GJ33: 0 | GK33: 0 | GL33: 0 | GM33: 0 | GN33: 0 | GO33: 0 | GP33: 0 | GQ33: 0 | GR33: 0 | GS33: 0 | GT33: 0 | GU33: 0 | GV33: 0 | GW33: 0 | GX33: 0 | GY33: 0 | GZ33: 0 | HA33: 0 | HB33: 0 | HC33: 0 | HD33: 0 | HE33: 0 | HF33: 0 | HG33: 0 | HH33: 0 | HI33: 0 | HJ33: 0 | HK33: 0 | HL33: 0 | HM33: 0 | HN33: 0 | HO33: 0 | HP33: 0 | HQ33: 0 | HR33: 0 | HS33: 0 | HT33: 0 | HU33: 0 | HV33: 0 | HW33: 0 | HX33: 0 | HY33: 0 | HZ33: 0 | IA33: 0 | IB33: 0 | IC33: 0 | ID33: 0 | IE33: 0 | IF33: 0 | IG33: 0 | IH33: 0 | II33: 0 | IJ33: 0 | IK33: 0 | IL33: 0 | IM33: 0 | IN33: 0 | IO33: 0 | IP33: 0 | IQ33: 0 | IR33: 0 | IS33: 0 | IT33: 0 | IU33: 0 | IV33: 0 | IW33: 0 | IX33: 0 | IY33: 0 | IZ33: 0 | JA33: 0 | JB33: 0 | JC33: 0 | JD33: 0 | JE33: 0 | JF33: 0 | JG33: 0 | JH33: 0 | JI33: 0 | JJ33: 0 | JK33: 0 | JL33: 0 | JM33: 0 | JN33: 0 | JO33: 0 | JP33: 0 | JQ33: 0 | JR33: 0 | JS33: 0 | JT33: 0 | JU33: 0 | JV33: 0 | JW33: 0 | JX33: 0 | JY33: 0 | JZ33: 0 | KA33: 0 | KB33: 0 | KC33: 0 | KD33: 0 | KE33: 0 | KF33: 0 | KG33: 0 | KH33: 0 | KI33: 0 | KJ33: 0 | KK33: 0 | KL33: 0 | KM33: 0 | KN33: 0 | KO33: 0 | KP33: 0 | KQ33: 0 | KR33: 0 | KS33: 0 | KT33: 0 | KU33: 0 | KV33: 0 | KW33: 0 | KX33: 0 | KY33: 0 | KZ33: 0 | LA33: 0 | LB33: 0 | LC33: 0 | LD33: 0 | LE33: 0 | LF33: 0 | LG33: 0 | LH33: 0 | LI33: 0 | LJ33: 0 | LK33: 0 | LL33: 0 | LM33: 0 | LN33: 0 | LO33: 0 | LP33: 0 | LQ33: 0 | LR33: 0 | LS33: 0 | LT33: 0 | LU33: 0 | LV33: 0 | LW33: 0 | LX33: 0 | LY33: 0 | LZ33: 0 | MA33: 0 | MB33: 0 | MC33: 0 | MD33: 0 | ME33: 0 | MF33: 0 | MG33: 0 | MH33: 0 | MI33: 0 | MJ33: 0 | MK33: 0 | ML33: 0 | MM33: 0 | MN33: 0 | MO33: 0 | MP33: 0 | MQ33: 0 | MR33: 0 | MS33: 0 | MT33: 0 | MU33: 0 | MV33: 0 | MW33: 0 | MX33: 0 | MY33: 0 | MZ33: 0 | NA33: 0 | NB33: 0 | NC33: 0 | ND33: 0 | NE33: 0 | NF33: 0 | NG33: 0 | NH33: 0 | NI33: 0 | NJ33: 0 | NK33: 0 | NL33: 0 | NM33: 0 | NN33: 0 | NO33: 0 | NP33: 0 | NQ33: 0 | NR33: 0 | NS33: 0 | NT33: 0 | NU33: 0 | NV33: 0 | NW33: 0 | NX33: 0 | NY33: 0 | NZ33: 0 | OA33: 0 | OB33: 0 | OC33: 0 | OD33: 0 | OE33: 0 | OF33: 0 | OG33: 0 | OH33: 0 | OI33: 0 | OJ33: 0 | OK33: 0 | OL33: 0 | OM33: 0 | ON33: 0 | OO33: 0 | OP33: 0 | OQ33: 0 | OR33: 0 | OS33: 0 | OT33: 0 | OU33: 0 | OV33: 0 | OW33: 0 | OX33: 0 | OY33: 0 | OZ33: 0 | PA33: 0 | PB33: 0 | PC33: 0 | PD33: 0 | PE33: 0 | PF33: 0 | PG33: 0 | PH33: 0 | PI33: 0 | PJ33: 0 | PK33: 0 | PL33: 0 | PM33: 0 | PN33: 0 | PO33: 0 | PP33: 0 | PQ33: 0 | PR33: 0 | PS33: 0 | PT33: 0 | PU33: 0 | PV33: 0 | PW33: 0 | PX33: 0 | PY33: 0 | PZ33: 0 | QA33: 0 | QB33: 0 | QC33: 0 | QD33: 0 | QE33: 0 | QF33: 0 | QG33: 0 | QH33: 0 | QI33: 0 | QJ33: 0 | QK33: 0 | QL33: 0 | QM33: 0 | QN33: 0 | QO33: 0 | QP33: 0 | QQ33: 0 | QR33: 0 | QS33: 0 | QT33: 0 | QU33: 0 | QV33: 0 | QW33: 0 | QX33: 0 | QY33: 0 | QZ33: 0 | RA33: 0 | RB33: 0 | RC33: 0 | RD33: 0 | RE33: 0 | RF33: 0 | RG33: 0 | RH33: 0 | RI33: 0 | RJ33: 0 | RK33: 0 | RL33: 0 | RM33: 0 | RN33: 0 | RO33: 0 | RP33: 0 | RQ33: 0 | RR33: 0 | RS33: 0 | RT33: 0 | RU33: 0 | RV33: 0 | RW33: 0 | RX33: 0 | RY33: 0 | RZ33: 0 | SA33: 0 | SB33: 0 | SC33: 0 | SD33: 0 | SE33: 0 | SF33: 0 | SG33: 0 | SH33: 0 | SI33: 0 | SJ33: 0 | SK33: 0 | SL33: 0 | SM33: 0 | SN33: 0 | SO33: 0 | SP33: 0 | SQ33: 0 | SR33: 0 | SS33: 0 | ST33: 0 | SU33: 0 | SV33: 0 | SW33: 0 | SX33: 0 | SY33: 0 | SZ33: 0 | TA33: 0 | TB33: 0 | TC33: 0 | TD33: 0 | TE33: 0 | TF33: 0 | TG33: 0 | TH33: 0 | TI33: 0 | TJ33: 0 | TK33: 0 | TL33: 0 | TM33: 0 | TN33: 0 | TO33: 0 | TP33: 0 | TQ33: 0 | TR33: 0 | TS33: 0 | TT33: 0 | TU33: 0 | TV33: 0 | TW33: 0 | TX33: 0 | TY33: 0 | TZ33: 0 | UA33: 0 | UB33: 0 | UC33: 0 | UD33: 0 | UE33: 0 | UF33: 0 | UG33: 0 | UH33: 0 | UI33: 0 | UJ33: 0 | UK33: 0 | UL33: 0 | UM33: 0 | UN33: 0 | UO33: 0 | UP33: 0 | UQ33: 0 | UR33: 0 | US33: 0 | UT33: 0 | UU33: 0 | UV33: 0 | UW33: 0 | UX33: 0 | UY33: 0 | UZ33: 0 | VA33: 0 | VB33: 0 | VC33: 0 | VD33: 0 | VE33: 0 | VF33: 0 | VG33: 0 | VH33: 0 | VI33: 0 | VJ33: 0 | VK33: 0 | VL33: 0 | VM33: 0 | VN33: 0 | VO33: 0 | VP33: 0 | VQ33: 0 | VR33: 0 | VS33: 0 | VT33: 0 | VU33: 0 | VV33: 0 | VW33: 0 | VX33: 0 | VY33: 0 | VZ33: 0 | WA33: 0 | WB33: 0 | WC33: 0 | WD33: 0 | WE33: 0 | WF33: 0 | WG33: 0 | WH33: 0 | WI33: 0 | WJ33: 0 | WK33: 0 | WL33: 0 | WM33: 0 | WN33: 0 | WO33: 0 | WP33: 0 | WQ33: 0 | WR33: 0 | WS33: 0 | WT33: 0 | WU33: 0 | WV33: 0 | WW33: 0 | WX33: 0 | WY33: 0 | WZ33: 0 | XA33: 0 | XB33: 0 | XC33: 0 | XD33: 0 | XE33: 0 | XF33: 0 | XG33: 0 | XH33: 0 | XI33: 0 | XJ33: 0 | XK33: 0 | XL33: 0 | XM33: 0 | XN33: 0 | XO33: 0 | XP33: 0 | XQ33: 0 | XR33: 0 | XS33: 0 | XT33: 0 | XU33: 0 | XV33: 0 | XW33: 0 | XX33: 0 | XY33: 0 | XZ33: 0 | YA33: 0 | YB33: 0 | YC33: 0 | YD33: 0 | YE33: 0 | YF33: 0 | YG33: 0 | YH33: 0 | YI33: 0 | YJ33: 0 | YK33: 0 | YL33: 0 | YM33: 0 | YN33: 0 | YO33: 0 | YP33: 0 | YQ33: 0 | YR33: 0 | YS33: 0 | YT33: 0 | YU33: 0 | YV33: 0 | YW33: 0 | YX33: 0 | YY33: 0 | YZ33: 0 | ZA33: 0 | ZB33: 0 | ZC33: 0 | ZD33: 0 | ZE33: 0 | ZF33: 0 | ZG33: 0 | ZH33: 0 | ZI33: 0 | ZJ33: 0 | ZK33: 0 | ZL33: 0 | ZM33: 0 | ZN33: 0 | ZO33: 0 | ZP33: 0 | ZQ33: 0 | ZR33: 0 | ZS33: 0 | ZT33: 0 | ZU33: 0 | ZV33: 0 | ZW33: 0 | ZX33: 0 | ZY33: 0 | ZZ33: 0 | AAA33: 0 | AAB33: 0 | AAC33: 0 | AAD33: 0 | AAE33: 0 | AAF33: 0 | AAG33: 0 | AAH33: 0 | AAI33: 0 | AAJ33: 0 | AAK33: 0 | AAL33: 0 | AAM33: 0 | AAN33: 0 | AAO33: 0 | AAP33: 0 | AAQ33: 0 | AAR33: 0 | AAS33: 0 | AAT33: 0 | AAU33: 0 | AAV33: 0 | AAW33: 0 | AAX33: 0 | AAY33: 0 | AAZ33: 0 | ABA33: 0 | ABB33: 0 | ABC33: 0 | ABD33: 0 | ABE33: 0 | ABF33: 0 | ABG33: 0 | ABH33: 0 | ABI33: 0 | ABJ33: 0 | ABK33: 0 | ABL33: 0 | ABM33: 0 | ABN33: 0 | ABO33: 0 | ABP33: 0 | ABQ33: 0 | ABR33: 0 | ABS33: 0 | ABT33: 0 | ABU33: 0 | ABV33: 0 | ABW33: 0 | ABX33: 0 | ABY33: 0 | ABZ33: 0
D34: Battery Capacity Base After Degradation | E34: kWh | K34: 0 | L34: 0 | M34: 0 | N34: 0 | O34: 0 | P34: 0 | Q34: 0 | R34: 0 | S34: 0 | T34: 0 | U34: 0 | V34: 0 | W34: 0 | X34: 0 | Y34: 0 | Z34: 0 | AA34: 0 | AB34: 0 | AC34: 0 | AD34: 0 | AE34: 0 | AF34: 0 | AG34: 0 | AH34: 0 | AI34: 0 | AJ34: 0 | AK34: 0 | AL34: 0 | AM34: 0 | AN34: 0 | AO34: 0 | AP34: 0 | AQ34: 0 | AR34: 0 | AS34: 0 | AT34: 0 | AU34: 0 | AV34: 0 | AW34: 0 | AX34: 0 | AY34: 0 | AZ34: 0 | BA34: 0 | BB34: 0 | BC34: 0 | BD34: 0 | BE34: 0 | BF34: 0 | BG34: 0 | BH34: 0 | BI34: 0 | BJ34: 0 | BK34: 0 | BL34: 0 | BM34: 0 | BN34: 0 | BO34: 0 | BP34: 0 | BQ34: 0 | BR34: 0 | BS34: 0 | BT34: 0 | BU34: 0 | BV34: 0 | BW34: 0 | BX34: 0 | BY34: 0 | BZ34: 0 | CA34: 0 | CB34: 0 | CC34: 0 | CD34: 0 | CE34: 0 | CF34: 0 | CG34: 0 | CH34: 0 | CI34: 0 | CJ34: 0 | CK34: 0 | CL34: 0 | CM34: 0 | CN34: 0 | CO34: 0 | CP34: 0 | CQ34: 0 | CR34: 0 | CS34: 0 | CT34: 0 | CU34: 0 | CV34: 0 | CW34: 0 | CX34: 0 | CY34: 0 | CZ34: 0 | DA34: 0 | DB34: 0 | DC34: 0 | DD34: 0 | DE34: 0 | DF34: 0 | DG34: 0 | DH34: 0 | DI34: 0 | DJ34: 0 | DK34: 0 | DL34: 0 | DM34: 0 | DN34: 0 | DO34: 0 | DP34: 0 | DQ34: 0 | DR34: 0 | DS34: 0 | DT34: 0 | DU34: 0 | DV34: 0 | DW34: 0 | DX34: 0 | DY34: 0 | DZ34: 0 | EA34: 0 | EB34: 0 | EC34: 0 | ED34: 0 | EE34: 0 | EF34: 0 | EG34: 0 | EH34: 0 | EI34: 0 | EJ34: 0 | EK34: 0 | EL34: 0 | EM34: 0 | EN34: 0 | EO34: 0 | EP34: 0 | EQ34: 0 | ER34: 0 | ES34: 0 | ET34: 0 | EU34: 0 | EV34: 0 | EW34: 0 | EX34: 0 | EY34: 0 | EZ34: 0 | FA34: 0 | FB34: 0 | FC34: 0 | FD34: 0 | FE34: 0 | FF34: 0 | FG34: 0 | FH34: 0 | FI34: 0 | FJ34: 0 | FK34: 0 | FL34: 0 | FM34: 0 | FN34: 0 | FO34: 0 | FP34: 0 | FQ34: 0 | FR34: 0 | FS34: 0 | FT34: 0 | FU34: 0 | FV34: 0 | FW34: 0 | FX34: 0 | FY34: 0 | FZ34: 0 | GA34: 0 | GB34: 0 | GC34: 0 | GD34: 0 | GE34: 0 | GF34: 0 | GG34: 0 | GH34: 0 | GI34: 0 | GJ34: 0 | GK34: 0 | GL34: 0 | GM34: 0 | GN34: 0 | GO34: 0 | GP34: 0 | GQ34: 0 | GR34: 0 | GS34: 0 | GT34: 0 | GU34: 0 | GV34: 0 | GW34: 0 | GX34: 0 | GY34: 0 | GZ34: 0 | HA34: 0 | HB34: 0 | HC34: 0 | HD34: 0 | HE34: 0 | HF34: 0 | HG34: 0 | HH34: 0 | HI34: 0 | HJ34: 0 | HK34: 0 | HL34: 0 | HM34: 0 | HN34: 0 | HO34: 0 | HP34: 0 | HQ34: 0 | HR34: 0 | HS34: 0 | HT34: 0 | HU34: 0 | HV34: 0 | HW34: 0 | HX34: 0 | HY34: 0 | HZ34: 0 | IA34: 0 | IB34: 0 | IC34: 0 | ID34: 0 | IE34: 0 | IF34: 0 | IG34: 0 | IH34: 0 | II34: 0 | IJ34: 0 | IK34: 0 | IL34: 0 | IM34: 0 | IN34: 0 | IO34: 0 | IP34: 0 | IQ34: 0 | IR34: 0 | IS34: 0 | IT34: 0 | IU34: 0 | IV34: 0 | IW34: 0 | IX34: 0 | IY34: 0 | IZ34: 0 | JA34: 0 | JB34: 0 | JC34: 0 | JD34: 0 | JE34: 0 | JF34: 0 | JG34: 0 | JH34: 0 | JI34: 0 | JJ34: 0 | JK34: 0 | JL34: 0 | JM34: 0 | JN34: 0 | JO34: 0 | JP34: 0 | JQ34: 0 | JR34: 0 | JS34: 0 | JT34: 0 | JU34: 0 | JV34: 0 | JW34: 0 | JX34: 0 | JY34: 0 | JZ34: 0 | KA34: 0 | KB34: 0 | KC34: 0 | KD34: 0 | KE34: 0 | KF34: 0 | KG34: 0 | KH34: 0 | KI34: 0 | KJ34: 0 | KK34: 0 | KL34: 0 | KM34: 0 | KN34: 0 | KO34: 0 | KP34: 0 | KQ34: 0 | KR34: 0 | KS34: 0 | KT34: 0 | KU34: 0 | KV34: 0 | KW34: 0 | KX34: 0 | KY34: 0 | KZ34: 0 | LA34: 0 | LB34: 0 | LC34: 0 | LD34: 0 | LE34: 0 | LF34: 0 | LG34: 0 | LH34: 0 | LI34: 0 | LJ34: 0 | LK34: 0 | LL34: 0 | LM34: 0 | LN34: 0 | LO34: 0 | LP34: 0 | LQ34: 0 | LR34: 0 | LS34: 0 | LT34: 0 | LU34: 0 | LV34: 0 | LW34: 0 | LX34: 0 | LY34: 0 | LZ34: 0 | MA34: 0 | MB34: 0 | MC34: 0 | MD34: 0 | ME34: 0 | MF34: 0 | MG34: 0 | MH34: 0 | MI34: 0 | MJ34: 0 | MK34: 0 | ML34: 0 | MM34: 0 | MN34: 0 | MO34: 0 | MP34: 0 | MQ34: 0 | MR34: 0 | MS34: 0 | MT34: 0 | MU34: 0 | MV34: 0 | MW34: 0 | MX34: 0 | MY34: 0 | MZ34: 0 | NA34: 0 | NB34: 0 | NC34: 0 | ND34: 0 | NE34: 0 | NF34: 0 | NG34: 0 | NH34: 0 | NI34: 0 | NJ34: 0 | NK34: 0 | NL34: 0 | NM34: 0 | NN34: 0 | NO34: 0 | NP34: 0 | NQ34: 0 | NR34: 0 | NS34: 0 | NT34: 0 | NU34: 0 | NV34: 0 | NW34: 0 | NX34: 0 | NY34: 0 | NZ34: 0 | OA34: 0 | OB34: 0 | OC34: 0 | OD34: 0 | OE34: 0 | OF34: 0 | OG34: 0 | OH34: 0 | OI34: 0 | OJ34: 0 | OK34: 0 | OL34: 0 | OM34: 0 | ON34: 0 | OO34: 0 | OP34: 0 | OQ34: 0 | OR34: 0 | OS34: 0 | OT34: 0 | OU34: 0 | OV34: 0 | OW34: 0 | OX34: 0 | OY34: 0 | OZ34: 0 | PA34: 0 | PB34: 0 | PC34: 0 | PD34: 0 | PE34: 0 | PF34: 0 | PG34: 0 | PH34: 0 | PI34: 0 | PJ34: 0 | PK34: 0 | PL34: 0 | PM34: 0 | PN34: 0 | PO34: 0 | PP34: 0 | PQ34: 0 | PR34: 0 | PS34: 0 | PT34: 0 | PU34: 0 | PV34: 0 | PW34: 0 | PX34: 0 | PY34: 0 | PZ34: 0 | QA34: 0 | QB34: 0 | QC34: 0 | QD34: 0 | QE34: 0 | QF34: 0 | QG34: 0 | QH34: 0 | QI34: 0 | QJ34: 0 | QK34: 0 | QL34: 0 | QM34: 0 | QN34: 0 | QO34: 0 | QP34: 0 | QQ34: 0 | QR34: 0 | QS34: 0 | QT34: 0 | QU34: 0 | QV34: 0 | QW34: 0 | QX34: 0 | QY34: 0 | QZ34: 0 | RA34: 0 | RB34: 0 | RC34: 0 | RD34: 0 | RE34: 0 | RF34: 0 | RG34: 0 | RH34: 0 | RI34: 0 | RJ34: 0 | RK34: 0 | RL34: 0 | RM34: 0 | RN34: 0 | RO34: 0 | RP34: 0 | RQ34: 0 | RR34: 0 | RS34: 0 | RT34: 0 | RU34: 0 | RV34: 0 | RW34: 0 | RX34: 0 | RY34: 0 | RZ34: 0 | SA34: 0 | SB34: 0 | SC34: 0 | SD34: 0 | SE34: 0 | SF34: 0 | SG34: 0 | SH34: 0 | SI34: 0 | SJ34: 0 | SK34: 0 | SL34: 0 | SM34: 0 | SN34: 0 | SO34: 0 | SP34: 0 | SQ34: 0 | SR34: 0 | SS34: 0 | ST34: 0 | SU34: 0 | SV34: 0 | SW34: 0 | SX34: 0 | SY34: 0 | SZ34: 0 | TA34: 0 | TB34: 0 | TC34: 0 | TD34: 0 | TE34: 0 | TF34: 0 | TG34: 0 | TH34: 0 | TI34: 0 | TJ34: 0 | TK34: 0 | TL34: 0 | TM34: 0 | TN34: 0 | TO34: 0 | TP34: 0 | TQ34: 0 | TR34: 0 | TS34: 0 | TT34: 0 | TU34: 0 | TV34: 0 | TW34: 0 | TX34: 0 | TY34: 0 | TZ34: 0 | UA34: 0 | UB34: 0 | UC34: 0 | UD34: 0 | UE34: 0 | UF34: 0 | UG34: 0 | UH34: 0 | UI34: 0 | UJ34: 0 | UK34: 0 | UL34: 0 | UM34: 0 | UN34: 0 | UO34: 0 | UP34: 0 | UQ34: 0 | UR34: 0 | US34: 0 | UT34: 0 | UU34: 0 | UV34: 0 | UW34: 0 | UX34: 0 | UY34: 0 | UZ34: 0 | VA34: 0 | VB34: 0 | VC34: 0 | VD34: 0 | VE34: 0 | VF34: 0 | VG34: 0 | VH34: 0 | VI34: 0 | VJ34: 0 | VK34: 0 | VL34: 0 | VM34: 0 | VN34: 0 | VO34: 0 | VP34: 0 | VQ34: 0 | VR34: 0 | VS34: 0 | VT34: 0 | VU34: 0 | VV34: 0 | VW34: 0 | VX34: 0 | VY34: 0 | VZ34: 0 | WA34: 0 | WB34: 0 | WC34: 0 | WD34: 0 | WE34: 0 | WF34: 0 | WG34: 0 | WH34: 0 | WI34: 0 | WJ34: 0 | WK34: 0 | WL34: 0 | WM34: 0 | WN34: 0 | WO34: 0 | WP34: 0 | WQ34: 0 | WR34: 0 | WS34: 0 | WT34: 0 | WU34: 0 | WV34: 0 | WW34: 0 | WX34: 0 | WY34: 0 | WZ34: 0 | XA34: 0 | XB34: 0 | XC34: 0 | XD34: 0 | XE34: 0 | XF34: 0 | XG34: 0 | XH34: 0 | XI34: 0 | XJ34: 0 | XK34: 0 | XL34: 0 | XM34: 0 | XN34: 0 | XO34: 0 | XP34: 0 | XQ34: 0 | XR34: 0 | XS34: 0 | XT34: 0 | XU34: 0 | XV34: 0 | XW34: 0 | XX34: 0 | XY34: 0 | XZ34: 0 | YA34: 0 | YB34: 0 | YC34: 0 | YD34: 0 | YE34: 0 | YF34: 0 | YG34: 0 | YH34: 0 | YI34: 0 | YJ34: 0 | YK34: 0 | YL34: 0 | YM34: 0 | YN34: 0 | YO34: 0 | YP34: 0 | YQ34: 0 | YR34: 0 | YS34: 0 | YT34: 0 | YU34: 0 | YV34: 0 | YW34: 0 | YX34: 0 | YY34: 0 | YZ34: 0 | ZA34: 0 | ZB34: 0 | ZC34: 0 | ZD34: 0 | ZE34: 0 | ZF34: 0 | ZG34: 0 | ZH34: 0 | ZI34: 0 | ZJ34: 0 | ZK34: 0 | ZL34: 0 | ZM34: 0 | ZN34: 0 | ZO34: 0 | ZP34: 0 | ZQ34: 0 | ZR34: 0 | ZS34: 0 | ZT34: 0 | ZU34: 0 | ZV34: 0 | ZW34: 0 | ZX34: 0 | ZY34: 0 | ZZ34: 0 | AAA34: 0 | AAB34: 0 | AAC34: 0 | AAD34: 0 | AAE34: 0 | AAF34: 0 | AAG34: 0 | AAH34: 0 | AAI34: 0 | AAJ34: 0 | AAK34: 0 | AAL34: 0 | AAM34: 0 | AAN34: 0 | AAO34: 0 | AAP34: 0 | AAQ34: 0 | AAR34: 0 | AAS34: 0 | AAT34: 0 | AAU34: 0 | AAV34: 0 | AAW34: 0 | AAX34: 0 | AAY34: 0 | AAZ34: 0 | ABA34: 0 | ABB34: 0 | ABC34: 0 | ABD34: 0 | ABE34: 0 | ABF34: 0 | ABG34: 0 | ABH34: 0 | ABI34: 0 | ABJ34: 0 | ABK34: 0 | ABL34: 0 | ABM34: 0 | ABN34: 0 | ABO34: 0 | ABP34: 0 | ABQ34: 0 | ABR34: 0 | ABS34: 0 | ABT34: 0 | ABU34: 0 | ABV34: 0 | ABW34: 0 | ABX34: 0 | ABY34: 0 | ABZ34: 0
D35: Total Volumes Applied | E35: kWh | K35: =SUM(K32:K34) -> 0 | L35: =SUM(L32:L34) -> 0 | M35: 0 | N35: 0 | O35: 0 | P35: 0 | Q35: 0 | R35: 0 | S35: 0 | T35: 0 | U35: 0 | V35: 0 | W35: 0 | X35: 0 | Y35: 0 | Z35: 0 | AA35: 0 | AB35: 0 | AC35: 0 | AD35: 0 | AE35: 0 | AF35: 0 | AG35: 0 | AH35: 0 | AI35: 0 | AJ35: 0 | AK35: 0 | AL35: 0 | AM35: 0 | AN35: 0 | AO35: 0 | AP35: 0 | AQ35: 0 | AR35: 0 | AS35: 0 | AT35: 0 | AU35: 0 | AV35: 0 | AW35: 0 | AX35: 0 | AY35: 0 | AZ35: 0 | BA35: 0 | BB35: 0 | BC35: 0 | BD35: 0 | BE35: 0 | BF35: 0 | BG35: 0 | BH35: 0 | BI35: 0 | BJ35: 0 | BK35: 0 | BL35: 0 | BM35: 0 | BN35: 0 | BO35: 0 | BP35: 0 | BQ35: 0 | BR35: 0 | BS35: 0 | BT35: 0 | BU35: 0 | BV35: 0 | BW35: 0 | BX35: =SUM(BX32:BX34) -> 0 | BY35: 0 | BZ35: 0 | CA35: 0 | CB35: 0 | CC35: 0 | CD35: 0 | CE35: 0 | CF35: 0 | CG35: 0 | CH35: 0 | CI35: 0 | CJ35: 0 | CK35: 0 | CL35: 0 | CM35: 0 | CN35: 0 | CO35: 0 | CP35: 0 | CQ35: 0 | CR35: 0 | CS35: 0 | CT35: 0 | CU35: 0 | CV35: 0 | CW35: 0 | CX35: 0 | CY35: 0 | CZ35: 0 | DA35: 0 | DB35: 0 | DC35: 0 | DD35: 0 | DE35: 0 | DF35: 0 | DG35: 0 | DH35: 0 | DI35: 0 | DJ35: 0 | DK35: 0 | DL35: 0 | DM35: 0 | DN35: 0 | DO35: 0 | DP35: 0 | DQ35: 0 | DR35: 0 | DS35: 0 | DT35: 0 | DU35: 0 | DV35: 0 | DW35: 0 | DX35: 0 | DY35: 0 | DZ35: 0 | EA35: 0 | EB35: 0 | EC35: 0 | ED35: 0 | EE35: 0 | EF35: 0 | EG35: 0 | EH35: 0 | EI35: 0 | EJ35: =SUM(EJ32:EJ34) -> 0 | EK35: 0 | EL35: 0 | EM35: 0 | EN35: 0 | EO35: 0 | EP35: 0 | EQ35: 0 | ER35: 0 | ES35: 0 | ET35: 0 | EU35: 0 | EV35: 0 | EW35: 0 | EX35: 0 | EY35: 0 | EZ35: 0 | FA35: 0 | FB35: 0 | FC35: 0 | FD35: 0 | FE35: 0 | FF35: 0 | FG35: 0 | FH35: 0 | FI35: 0 | FJ35: 0 | FK35: 0 | FL35: 0 | FM35: 0 | FN35: 0 | FO35: 0 | FP35: 0 | FQ35: 0 | FR35: 0 | FS35: 0 | FT35: 0 | FU35: 0 | FV35: 0 | FW35: 0 | FX35: 0 | FY35: 0 | FZ35: 0 | GA35: 0 | GB35: 0 | GC35: 0 | GD35: 0 | GE35: 0 | GF35: 0 | GG35: 0 | GH35: 0 | GI35: 0 | GJ35: 0 | GK35: 0 | GL35: 0 | GM35: 0 | GN35: 0 | GO35: 0 | GP35: 0 | GQ35: 0 | GR35: 0 | GS35: 0 | GT35: 0 | GU35: 0 | GV35: =SUM(GV32:GV34) -> 0 | GW35: 0 | GX35: 0 | GY35: 0 | GZ35: 0 | HA35: 0 | HB35: 0 | HC35: 0 | HD35: 0 | HE35: 0 | HF35: 0 | HG35: 0 | HH35: 0 | HI35: 0 | HJ35: 0 | HK35: 0 | HL35: 0 | HM35: 0 | HN35: 0 | HO35: 0 | HP35: 0 | HQ35: 0 | HR35: 0 | HS35: 0 | HT35: 0 | HU35: 0 | HV35: 0 | HW35: 0 | HX35: 0 | HY35: 0 | HZ35: 0 | IA35: 0 | IB35: 0 | IC35: 0 | ID35: 0 | IE35: 0 | IF35: 0 | IG35: 0 | IH35: 0 | II35: 0 | IJ35: 0 | IK35: 0 | IL35: 0 | IM35: 0 | IN35: 0 | IO35: 0 | IP35: 0 | IQ35: 0 | IR35: 0 | IS35: 0 | IT35: 0 | IU35: 0 | IV35: 0 | IW35: 0 | IX35: 0 | IY35: 0 | IZ35: 0 | JA35: 0 | JB35: 0 | JC35: 0 | JD35: 0 | JE35: 0 | JF35: 0 | JG35: 0 | JH35: =SUM(JH32:JH34) -> 0 | JI35: 0 | JJ35: 0 | JK35: 0 | JL35: 0 | JM35: 0 | JN35: 0 | JO35: 0 | JP35: 0 | JQ35: 0 | JR35: 0 | JS35: 0 | JT35: 0 | JU35: 0 | JV35: 0 | JW35: 0 | JX35: 0 | JY35: 0 | JZ35: 0 | KA35: 0 | KB35: 0 | KC35: 0 | KD35: 0 | KE35: 0 | KF35: 0 | KG35: 0 | KH35: 0 | KI35: 0 | KJ35: 0 | KK35: 0 | KL35: 0 | KM35: 0 | KN35: 0 | KO35: 0 | KP35: 0 | KQ35: 0 | KR35: 0 | KS35: 0 | KT35: 0 | KU35: 0 | KV35: 0 | KW35: 0 | KX35: 0 | KY35: 0 | KZ35: 0 | LA35: 0 | LB35: 0 | LC35: 0 | LD35: 0 | LE35: 0 | LF35: 0 | LG35: 0 | LH35: 0 | LI35: 0 | LJ35: 0 | LK35: 0 | LL35: 0 | LM35: 0 | LN35: 0 | LO35: 0 | LP35: 0 | LQ35: 0 | LR35: 0 | LS35: 0 | LT35: =SUM(LT32:LT34) -> 0 | LU35: 0 | LV35: 0 | LW35: 0 | LX35: 0 | LY35: 0 | LZ35: 0 | MA35: 0 | MB35: 0 | MC35: 0 | MD35: 0 | ME35: 0 | MF35: 0 | MG35: 0 | MH35: 0 | MI35: 0 | MJ35: 0 | MK35: 0 | ML35: 0 | MM35: 0 | MN35: 0 | MO35: 0 | MP35: 0 | MQ35: 0 | MR35: 0 | MS35: 0 | MT35: 0 | MU35: 0 | MV35: 0 | MW35: 0 | MX35: 0 | MY35: 0 | MZ35: 0 | NA35: 0 | NB35: 0 | NC35: 0 | ND35: 0 | NE35: 0 | NF35: 0 | NG35: 0 | NH35: 0 | NI35: 0 | NJ35: 0 | NK35: 0 | NL35: 0 | NM35: 0 | NN35: 0 | NO35: 0 | NP35: 0 | NQ35: 0 | NR35: 0 | NS35: 0 | NT35: 0 | NU35: 0 | NV35: 0 | NW35: 0 | NX35: 0 | NY35: 0 | NZ35: 0 | OA35: 0 | OB35: 0 | OC35: 0 | OD35: 0 | OE35: 0 | OF35: =SUM(OF32:OF34) -> 0 | OG35: 0 | OH35: 0 | OI35: 0 | OJ35: 0 | OK35: 0 | OL35: 0 | OM35: 0 | ON35: 0 | OO35: 0 | OP35: 0 | OQ35: 0 | OR35: 0 | OS35: 0 | OT35: 0 | OU35: 0 | OV35: 0 | OW35: 0 | OX35: 0 | OY35: 0 | OZ35: 0 | PA35: 0 | PB35: 0 | PC35: 0 | PD35: 0 | PE35: 0 | PF35: 0 | PG35: 0 | PH35: 0 | PI35: 0 | PJ35: 0 | PK35: 0 | PL35: 0 | PM35: 0 | PN35: 0 | PO35: 0 | PP35: 0 | PQ35: 0 | PR35: 0 | PS35: 0 | PT35: 0 | PU35: 0 | PV35: 0 | PW35: 0 | PX35: 0 | PY35: 0 | PZ35: 0 | QA35: 0 | QB35: 0 | QC35: 0 | QD35: 0 | QE35: 0 | QF35: 0 | QG35: 0 | QH35: 0 | QI35: 0 | QJ35: 0 | QK35: 0 | QL35: 0 | QM35: 0 | QN35: 0 | QO35: 0 | QP35: 0 | QQ35: 0 | QR35: =SUM(QR32:QR34) -> 0 | QS35: 0 | QT35: 0 | QU35: 0 | QV35: 0 | QW35: 0 | QX35: 0 | QY35: 0 | QZ35: 0 | RA35: 0 | RB35: 0 | RC35: 0 | RD35: 0 | RE35: 0 | RF35: 0 | RG35: 0 | RH35: 0 | RI35: 0 | RJ35: 0 | RK35: 0 | RL35: 0 | RM35: 0 | RN35: 0 | RO35: 0 | RP35: 0 | RQ35: 0 | RR35: 0 | RS35: 0 | RT35: 0 | RU35: 0 | RV35: 0 | RW35: 0 | RX35: 0 | RY35: 0 | RZ35: 0 | SA35: 0 | SB35: 0 | SC35: 0 | SD35: 0 | SE35: 0 | SF35: 0 | SG35: 0 | SH35: 0 | SI35: 0 | SJ35: 0 | SK35: 0 | SL35: 0 | SM35: 0 | SN35: 0 | SO35: 0 | SP35: 0 | SQ35: 0 | SR35: 0 | SS35: 0 | ST35: 0 | SU35: 0 | SV35: 0 | SW35: 0 | SX35: 0 | SY35: 0 | SZ35: 0 | TA35: 0 | TB35: 0 | TC35: 0 | TD35: =SUM(TD32:TD34) -> 0 | TE35: 0 | TF35: 0 | TG35: 0 | TH35: 0 | TI35: 0 | TJ35: 0 | TK35: 0 | TL35: 0 | TM35: 0 | TN35: 0 | TO35: 0 | TP35: 0 | TQ35: 0 | TR35: 0 | TS35: 0 | TT35: 0 | TU35: 0 | TV35: 0 | TW35: 0 | TX35: 0 | TY35: 0 | TZ35: 0 | UA35: 0 | UB35: 0 | UC35: 0 | UD35: 0 | UE35: 0 | UF35: 0 | UG35: 0 | UH35: 0 | UI35: 0 | UJ35: 0 | UK35: 0 | UL35: 0 | UM35: 0 | UN35: 0 | UO35: 0 | UP35: 0 | UQ35: 0 | UR35: 0 | US35: 0 | UT35: 0 | UU35: 0 | UV35: 0 | UW35: 0 | UX35: 0 | UY35: 0 | UZ35: 0 | VA35: 0 | VB35: 0 | VC35: 0 | VD35: 0 | VE35: 0 | VF35: 0 | VG35: 0 | VH35: 0 | VI35: 0 | VJ35: 0 | VK35: 0 | VL35: 0 | VM35: 0 | VN35: 0 | VO35: 0 | VP35: =SUM(VP32:VP34) -> 0 | VQ35: 0 | VR35: 0 | VS35: 0 | VT35: 0 | VU35: 0 | VV35: 0 | VW35: 0 | VX35: 0 | VY35: 0 | VZ35: 0 | WA35: 0 | WB35: 0 | WC35: 0 | WD35: 0 | WE35: 0 | WF35: 0 | WG35: 0 | WH35: 0 | WI35: 0 | WJ35: 0 | WK35: 0 | WL35: 0 | WM35: 0 | WN35: 0 | WO35: 0 | WP35: 0 | WQ35: 0 | WR35: 0 | WS35: 0 | WT35: 0 | WU35: 0 | WV35: 0 | WW35: 0 | WX35: 0 | WY35: 0 | WZ35: 0 | XA35: 0 | XB35: 0 | XC35: 0 | XD35: 0 | XE35: 0 | XF35: 0 | XG35: 0 | XH35: 0 | XI35: 0 | XJ35: 0 | XK35: 0 | XL35: 0 | XM35: 0 | XN35: 0 | XO35: 0 | XP35: 0 | XQ35: 0 | XR35: 0 | XS35: 0 | XT35: 0 | XU35: 0 | XV35: 0 | XW35: 0 | XX35: 0 | XY35: 0 | XZ35: 0 | YA35: 0 | YB35: =SUM(YB32:YB34) -> 0 | YC35: 0 | YD35: 0 | YE35: 0 | YF35: 0 | YG35: 0 | YH35: 0 | YI35: 0 | YJ35: 0 | YK35: 0 | YL35: 0 | YM35: 0 | YN35: 0 | YO35: 0 | YP35: 0 | YQ35: 0 | YR35: 0 | YS35: 0 | YT35: 0 | YU35: 0 | YV35: 0 | YW35: 0 | YX35: 0 | YY35: 0 | YZ35: 0 | ZA35: 0 | ZB35: 0 | ZC35: 0 | ZD35: 0 | ZE35: 0 | ZF35: 0 | ZG35: 0 | ZH35: 0 | ZI35: 0 | ZJ35: 0 | ZK35: 0 | ZL35: 0 | ZM35: 0 | ZN35: 0 | ZO35: 0 | ZP35: 0 | ZQ35: 0 | ZR35: 0 | ZS35: 0 | ZT35: 0 | ZU35: 0 | ZV35: 0 | ZW35: 0 | ZX35: 0 | ZY35: 0 | ZZ35: 0 | AAA35: 0 | AAB35: 0 | AAC35: 0 | AAD35: 0 | AAE35: 0 | AAF35: 0 | AAG35: 0 | AAH35: 0 | AAI35: 0 | AAJ35: 0 | AAK35: 0 | AAL35: 0 | AAM35: 0 | AAN35: =SUM(AAN32:AAN34) -> 0 | AAO35: 0 | AAP35: 0 | AAQ35: 0 | AAR35: 0 | AAS35: 0 | AAT35: 0 | AAU35: 0 | AAV35: 0 | AAW35: 0 | AAX35: 0 | AAY35: 0 | AAZ35: 0 | ABA35: 0 | ABB35: 0 | ABC35: 0 | ABD35: 0 | ABE35: 0 | ABF35: 0 | ABG35: 0 | ABH35: 0 | ABI35: 0 | ABJ35: 0 | ABK35: 0 | ABL35: 0 | ABM35: 0 | ABN35: 0 | ABO35: 0 | ABP35: 0 | ABQ35: 0 | ABR35: 0 | ABS35: 0 | ABT35: 0 | ABU35: 0 | ABV35: 0 | ABW35: 0 | ABX35: 0 | ABY35: 0 | ABZ35: 0
B37: Operations
C39: Capital Expenditures
D40: Capital Expenditure for Solar | E40: USD/kWp | F40: =InputC!F46 -> 400 | G40: =F40*F14 -> 800000 | K40: =$G40 -> 800000 | L40: =$G40 -> 800000 | M40: 800000 | N40: 800000 | O40: 800000 | P40: 800000 | Q40: 800000 | R40: 800000 | S40: 800000 | T40: 800000 | U40: 800000 | V40: 800000 | W40: 800000 | X40: 800000 | Y40: 800000 | Z40: 800000 | AA40: 800000 | AB40: 800000 | AC40: 800000 | AD40: 800000 | AE40: 800000 | AF40: 800000 | AG40: 800000 | AH40: 800000 | AI40: 800000 | AJ40: 800000 | AK40: 800000 | AL40: 800000 | AM40: 800000 | AN40: 800000 | AO40: 800000 | AP40: 800000 | AQ40: 800000 | AR40: 800000 | AS40: 800000 | AT40: 800000 | AU40: 800000 | AV40: 800000 | AW40: 800000 | AX40: 800000 | AY40: 800000 | AZ40: 800000 | BA40: 800000 | BB40: 800000 | BC40: 800000 | BD40: 800000 | BE40: 800000 | BF40: 800000 | BG40: 800000 | BH40: 800000 | BI40: 800000 | BJ40: 800000 | BK40: 800000 | BL40: 800000 | BM40: 800000 | BN40: 800000 | BO40: 800000 | BP40: 800000 | BQ40: 800000 | BR40: 800000 | BS40: 800000 | BT40: 800000 | BU40: 800000 | BV40: 800000 | BW40: 800000 | BX40: =$G40 -> 800000 | BY40: 800000 | BZ40: 800000 | CA40: 800000 | CB40: 800000 | CC40: 800000 | CD40: 800000 | CE40: 800000 | CF40: 800000 | CG40: 800000 | CH40: 800000 | CI40: 800000 | CJ40: 800000 | CK40: 800000 | CL40: 800000 | CM40: 800000 | CN40: 800000 | CO40: 800000 | CP40: 800000 | CQ40: 800000 | CR40: 800000 | CS40: 800000 | CT40: 800000 | CU40: 800000 | CV40: 800000 | CW40: 800000 | CX40: 800000 | CY40: 800000 | CZ40: 800000 | DA40: 800000 | DB40: 800000 | DC40: 800000 | DD40: 800000 | DE40: 800000 | DF40: 800000 | DG40: 800000 | DH40: 800000 | DI40: 800000 | DJ40: 800000 | DK40: 800000 | DL40: 800000 | DM40: 800000 | DN40: 800000 | DO40: 800000 | DP40: 800000 | DQ40: 800000 | DR40: 800000 | DS40: 800000 | DT40: 800000 | DU40: 800000 | DV40: 800000 | DW40: 800000 | DX40: 800000 | DY40: 800000 | DZ40: 800000 | EA40: 800000 | EB40: 800000 | EC40: 800000 | ED40: 800000 | EE40: 800000 | EF40: 800000 | EG40: 800000 | EH40: 800000 | EI40: 800000 | EJ40: =$G40 -> 800000 | EK40: 800000 | EL40: 800000 | EM40: 800000 | EN40: 800000 | EO40: 800000 | EP40: 800000 | EQ40: 800000 | ER40: 800000 | ES40: 800000 | ET40: 800000 | EU40: 800000 | EV40: 800000 | EW40: 800000 | EX40: 800000 | EY40: 800000 | EZ40: 800000 | FA40: 800000 | FB40: 800000 | FC40: 800000 | FD40: 800000 | FE40: 800000 | FF40: 800000 | FG40: 800000 | FH40: 800000 | FI40: 800000 | FJ40: 800000 | FK40: 800000 | FL40: 800000 | FM40: 800000 | FN40: 800000 | FO40: 800000 | FP40: 800000 | FQ40: 800000 | FR40: 800000 | FS40: 800000 | FT40: 800000 | FU40: 800000 | FV40: 800000 | FW40: 800000 | FX40: 800000 | FY40: 800000 | FZ40: 800000 | GA40: 800000 | GB40: 800000 | GC40: 800000 | GD40: 800000 | GE40: 800000 | GF40: 800000 | GG40: 800000 | GH40: 800000 | GI40: 800000 | GJ40: 800000 | GK40: 800000 | GL40: 800000 | GM40: 800000 | GN40: 800000 | GO40: 800000 | GP40: 800000 | GQ40: 800000 | GR40: 800000 | GS40: 800000 | GT40: 800000 | GU40: 800000 | GV40: =$G40 -> 800000 | GW40: 800000 | GX40: 800000 | GY40: 800000 | GZ40: 800000 | HA40: 800000 | HB40: 800000 | HC40: 800000 | HD40: 800000 | HE40: 800000 | HF40: 800000 | HG40: 800000 | HH40: 800000 | HI40: 800000 | HJ40: 800000 | HK40: 800000 | HL40: 800000 | HM40: 800000 | HN40: 800000 | HO40: 800000 | HP40: 800000 | HQ40: 800000 | HR40: 800000 | HS40: 800000 | HT40: 800000 | HU40: 800000 | HV40: 800000 | HW40: 800000 | HX40: 800000 | HY40: 800000 | HZ40: 800000 | IA40: 800000 | IB40: 800000 | IC40: 800000 | ID40: 800000 | IE40: 800000 | IF40: 800000 | IG40: 800000 | IH40: 800000 | II40: 800000 | IJ40: 800000 | IK40: 800000 | IL40: 800000 | IM40: 800000 | IN40: 800000 | IO40: 800000 | IP40: 800000 | IQ40: 800000 | IR40: 800000 | IS40: 800000 | IT40: 800000 | IU40: 800000 | IV40: 800000 | IW40: 800000 | IX40: 800000 | IY40: 800000 | IZ40: 800000 | JA40: 800000 | JB40: 800000 | JC40: 800000 | JD40: 800000 | JE40: 800000 | JF40: 800000 | JG40: 800000 | JH40: =$G40 -> 800000 | JI40: 800000 | JJ40: 800000 | JK40: 800000 | JL40: 800000 | JM40: 800000 | JN40: 800000 | JO40: 800000 | JP40: 800000 | JQ40: 800000 | JR40: 800000 | JS40: 800000 | JT40: 800000 | JU40: 800000 | JV40: 800000 | JW40: 800000 | JX40: 800000 | JY40: 800000 | JZ40: 800000 | KA40: 800000 | KB40: 800000 | KC40: 800000 | KD40: 800000 | KE40: 800000 | KF40: 800000 | KG40: 800000 | KH40: 800000 | KI40: 800000 | KJ40: 800000 | KK40: 800000 | KL40: 800000 | KM40: 800000 | KN40: 800000 | KO40: 800000 | KP40: 800000 | KQ40: 800000 | KR40: 800000 | KS40: 800000 | KT40: 800000 | KU40: 800000 | KV40: 800000 | KW40: 800000 | KX40: 800000 | KY40: 800000 | KZ40: 800000 | LA40: 800000 | LB40: 800000 | LC40: 800000 | LD40: 800000 | LE40: 800000 | LF40: 800000 | LG40: 800000 | LH40: 800000 | LI40: 800000 | LJ40: 800000 | LK40: 800000 | LL40: 800000 | LM40: 800000 | LN40: 800000 | LO40: 800000 | LP40: 800000 | LQ40: 800000 | LR40: 800000 | LS40: 800000 | LT40: =$G40 -> 800000 | LU40: 800000 | LV40: 800000 | LW40: 800000 | LX40: 800000 | LY40: 800000 | LZ40: 800000 | MA40: 800000 | MB40: 800000 | MC40: 800000 | MD40: 800000 | ME40: 800000 | MF40: 800000 | MG40: 800000 | MH40: 800000 | MI40: 800000 | MJ40: 800000 | MK40: 800000 | ML40: 800000 | MM40: 800000 | MN40: 800000 | MO40: 800000 | MP40: 800000 | MQ40: 800000 | MR40: 800000 | MS40: 800000 | MT40: 800000 | MU40: 800000 | MV40: 800000 | MW40: 800000 | MX40: 800000 | MY40: 800000 | MZ40: 800000 | NA40: 800000 | NB40: 800000 | NC40: 800000 | ND40: 800000 | NE40: 800000 | NF40: 800000 | NG40: 800000 | NH40: 800000 | NI40: 800000 | NJ40: 800000 | NK40: 800000 | NL40: 800000 | NM40: 800000 | NN40: 800000 | NO40: 800000 | NP40: 800000 | NQ40: 800000 | NR40: 800000 | NS40: 800000 | NT40: 800000 | NU40: 800000 | NV40: 800000 | NW40: 800000 | NX40: 800000 | NY40: 800000 | NZ40: 800000 | OA40: 800000 | OB40: 800000 | OC40: 800000 | OD40: 800000 | OE40: 800000 | OF40: =$G40 -> 800000 | OG40: 800000 | OH40: 800000 | OI40: 800000 | OJ40: 800000 | OK40: 800000 | OL40: 800000 | OM40: 800000 | ON40: 800000 | OO40: 800000 | OP40: 800000 | OQ40: 800000 | OR40: 800000 | OS40: 800000 | OT40: 800000 | OU40: 800000 | OV40: 800000 | OW40: 800000 | OX40: 800000 | OY40: 800000 | OZ40: 800000 | PA40: 800000 | PB40: 800000 | PC40: 800000 | PD40: 800000 | PE40: 800000 | PF40: 800000 | PG40: 800000 | PH40: 800000 | PI40: 800000 | PJ40: 800000 | PK40: 800000 | PL40: 800000 | PM40: 800000 | PN40: 800000 | PO40: 800000 | PP40: 800000 | PQ40: 800000 | PR40: 800000 | PS40: 800000 | PT40: 800000 | PU40: 800000 | PV40: 800000 | PW40: 800000 | PX40: 800000 | PY40: 800000 | PZ40: 800000 | QA40: 800000 | QB40: 800000 | QC40: 800000 | QD40: 800000 | QE40: 800000 | QF40: 800000 | QG40: 800000 | QH40: 800000 | QI40: 800000 | QJ40: 800000 | QK40: 800000 | QL40: 800000 | QM40: 800000 | QN40: 800000 | QO40: 800000 | QP40: 800000 | QQ40: 800000 | QR40: =$G40 -> 800000 | QS40: 800000 | QT40: 800000 | QU40: 800000 | QV40: 800000 | QW40: 800000 | QX40: 800000 | QY40: 800000 | QZ40: 800000 | RA40: 800000 | RB40: 800000 | RC40: 800000 | RD40: 800000 | RE40: 800000 | RF40: 800000 | RG40: 800000 | RH40: 800000 | RI40: 800000 | RJ40: 800000 | RK40: 800000 | RL40: 800000 | RM40: 800000 | RN40: 800000 | RO40: 800000 | RP40: 800000 | RQ40: 800000 | RR40: 800000 | RS40: 800000 | RT40: 800000 | RU40: 800000 | RV40: 800000 | RW40: 800000 | RX40: 800000 | RY40: 800000 | RZ40: 800000 | SA40: 800000 | SB40: 800000 | SC40: 800000 | SD40: 800000 | SE40: 800000 | SF40: 800000 | SG40: 800000 | SH40: 800000 | SI40: 800000 | SJ40: 800000 | SK40: 800000 | SL40: 800000 | SM40: 800000 | SN40: 800000 | SO40: 800000 | SP40: 800000 | SQ40: 800000 | SR40: 800000 | SS40: 800000 | ST40: 800000 | SU40: 800000 | SV40: 800000 | SW40: 800000 | SX40: 800000 | SY40: 800000 | SZ40: 800000 | TA40: 800000 | TB40: 800000 | TC40: 800000 | TD40: =$G40 -> 800000 | TE40: 800000 | TF40: 800000 | TG40: 800000 | TH40: 800000 | TI40: 800000 | TJ40: 800000 | TK40: 800000 | TL40: 800000 | TM40: 800000 | TN40: 800000 | TO40: 800000 | TP40: 800000 | TQ40: 800000 | TR40: 800000 | TS40: 800000 | TT40: 800000 | TU40: 800000 | TV40: 800000 | TW40: 800000 | TX40: 800000 | TY40: 800000 | TZ40: 800000 | UA40: 800000 | UB40: 800000 | UC40: 800000 | UD40: 800000 | UE40: 800000 | UF40: 800000 | UG40: 800000 | UH40: 800000 | UI40: 800000 | UJ40: 800000 | UK40: 800000 | UL40: 800000 | UM40: 800000 | UN40: 800000 | UO40: 800000 | UP40: 800000 | UQ40: 800000 | UR40: 800000 | US40: 800000 | UT40: 800000 | UU40: 800000 | UV40: 800000 | UW40: 800000 | UX40: 800000 | UY40: 800000 | UZ40: 800000 | VA40: 800000 | VB40: 800000 | VC40: 800000 | VD40: 800000 | VE40: 800000 | VF40: 800000 | VG40: 800000 | VH40: 800000 | VI40: 800000 | VJ40: 800000 | VK40: 800000 | VL40: 800000 | VM40: 800000 | VN40: 800000 | VO40: 800000 | VP40: =$G40 -> 800000 | VQ40: 800000 | VR40: 800000 | VS40: 800000 | VT40: 800000 | VU40: 800000 | VV40: 800000 | VW40: 800000 | VX40: 800000 | VY40: 800000 | VZ40: 800000 | WA40: 800000 | WB40: 800000 | WC40: 800000 | WD40: 800000 | WE40: 800000 | WF40: 800000 | WG40: 800000 | WH40: 800000 | WI40: 800000 | WJ40: 800000 | WK40: 800000 | WL40: 800000 | WM40: 800000 | WN40: 800000 | WO40: 800000 | WP40: 800000 | WQ40: 800000 | WR40: 800000 | WS40: 800000 | WT40: 800000 | WU40: 800000 | WV40: 800000 | WW40: 800000 | WX40: 800000 | WY40: 800000 | WZ40: 800000 | XA40: 800000 | XB40: 800000 | XC40: 800000 | XD40: 800000 | XE40: 800000 | XF40: 800000 | XG40: 800000 | XH40: 800000 | XI40: 800000 | XJ40: 800000 | XK40: 800000 | XL40: 800000 | XM40: 800000 | XN40: 800000 | XO40: 800000 | XP40: 800000 | XQ40: 800000 | XR40: 800000 | XS40: 800000 | XT40: 800000 | XU40: 800000 | XV40: 800000 | XW40: 800000 | XX40: 800000 | XY40: 800000 | XZ40: 800000 | YA40: 800000 | YB40: =$G40 -> 800000 | YC40: 800000 | YD40: 800000 | YE40: 800000 | YF40: 800000 | YG40: 800000 | YH40: 800000 | YI40: 800000 | YJ40: 800000 | YK40: 800000 | YL40: 800000 | YM40: 800000 | YN40: 800000 | YO40: 800000 | YP40: 800000 | YQ40: 800000 | YR40: 800000 | YS40: 800000 | YT40: 800000 | YU40: 800000 | YV40: 800000 | YW40: 800000 | YX40: 800000 | YY40: 800000 | YZ40: 800000 | ZA40: 800000 | ZB40: 800000 | ZC40: 800000 | ZD40: 800000 | ZE40: 800000 | ZF40: 800000 | ZG40: 800000 | ZH40: 800000 | ZI40: 800000 | ZJ40: 800000 | ZK40: 800000 | ZL40: 800000 | ZM40: 800000 | ZN40: 800000 | ZO40: 800000 | ZP40: 800000 | ZQ40: 800000 | ZR40: 800000 | ZS40: 800000 | ZT40: 800000 | ZU40: 800000 | ZV40: 800000 | ZW40: 800000 | ZX40: 800000 | ZY40: 800000 | ZZ40: 800000 | AAA40: 800000 | AAB40: 800000 | AAC40: 800000 | AAD40: 800000 | AAE40: 800000 | AAF40: 800000 | AAG40: 800000 | AAH40: 800000 | AAI40: 800000 | AAJ40: 800000 | AAK40: 800000 | AAL40: 800000 | AAM40: 800000 | AAN40: =$G40 -> 800000 | AAO40: 800000 | AAP40: 800000 | AAQ40: 800000 | AAR40: 800000 | AAS40: 800000 | AAT40: 800000 | AAU40: 800000 | AAV40: 800000 | AAW40: 800000 | AAX40: 800000 | AAY40: 800000 | AAZ40: 800000 | ABA40: 800000 | ABB40: 800000 | ABC40: 800000 | ABD40: 800000 | ABE40: 800000 | ABF40: 800000 | ABG40: 800000 | ABH40: 800000 | ABI40: 800000 | ABJ40: 800000 | ABK40: 800000 | ABL40: 800000 | ABM40: 800000 | ABN40: 800000 | ABO40: 800000 | ABP40: 800000 | ABQ40: 800000 | ABR40: 800000 | ABS40: 800000 | ABT40: 800000 | ABU40: 800000 | ABV40: 800000 | ABW40: 800000 | ABX40: 800000 | ABY40: 800000 | ABZ40: 800000
D41: Capital Expenditure for Wind | E41: USD/kW | F41: =InputC!F47 -> 0 | G41: =F41*F15 -> 0 | K41: =$G41 -> 0 | L41: 0 | M41: 0 | N41: 0 | O41: 0 | P41: 0 | Q41: 0 | R41: 0 | S41: 0 | T41: 0 | U41: 0 | V41: 0 | W41: 0 | X41: 0 | Y41: 0 | Z41: 0 | AA41: 0 | AB41: 0 | AC41: 0 | AD41: 0 | AE41: 0 | AF41: 0 | AG41: 0 | AH41: 0 | AI41: 0 | AJ41: 0 | AK41: 0 | AL41: 0 | AM41: 0 | AN41: 0 | AO41: 0 | AP41: 0 | AQ41: 0 | AR41: 0 | AS41: 0 | AT41: 0 | AU41: 0 | AV41: 0 | AW41: 0 | AX41: 0 | AY41: 0 | AZ41: 0 | BA41: 0 | BB41: 0 | BC41: 0 | BD41: 0 | BE41: 0 | BF41: 0 | BG41: 0 | BH41: 0 | BI41: 0 | BJ41: 0 | BK41: 0 | BL41: 0 | BM41: 0 | BN41: 0 | BO41: 0 | BP41: 0 | BQ41: 0 | BR41: 0 | BS41: 0 | BT41: 0 | BU41: 0 | BV41: 0 | BW41: 0 | BX41: 0 | BY41: 0 | BZ41: 0 | CA41: 0 | CB41: 0 | CC41: 0 | CD41: 0 | CE41: 0 | CF41: 0 | CG41: 0 | CH41: 0 | CI41: 0 | CJ41: 0 | CK41: 0 | CL41: 0 | CM41: 0 | CN41: 0 | CO41: 0 | CP41: 0 | CQ41: 0 | CR41: 0 | CS41: 0 | CT41: 0 | CU41: 0 | CV41: 0 | CW41: 0 | CX41: 0 | CY41: 0 | CZ41: 0 | DA41: 0 | DB41: 0 | DC41: 0 | DD41: 0 | DE41: 0 | DF41: 0 | DG41: 0 | DH41: 0 | DI41: 0 | DJ41: 0 | DK41: 0 | DL41: 0 | DM41: 0 | DN41: 0 | DO41: 0 | DP41: 0 | DQ41: 0 | DR41: 0 | DS41: 0 | DT41: 0 | DU41: 0 | DV41: 0 | DW41: 0 | DX41: 0 | DY41: 0 | DZ41: 0 | EA41: 0 | EB41: 0 | EC41: 0 | ED41: 0 | EE41: 0 | EF41: 0 | EG41: 0 | EH41: 0 | EI41: 0 | EJ41: 0 | EK41: 0 | EL41: 0 | EM41: 0 | EN41: 0 | EO41: 0 | EP41: 0 | EQ41: 0 | ER41: 0 | ES41: 0 | ET41: 0 | EU41: 0 | EV41: 0 | EW41: 0 | EX41: 0 | EY41: 0 | EZ41: 0 | FA41: 0 | FB41: 0 | FC41: 0 | FD41: 0 | FE41: 0 | FF41: 0 | FG41: 0 | FH41: 0 | FI41: 0 | FJ41: 0 | FK41: 0 | FL41: 0 | FM41: 0 | FN41: 0 | FO41: 0 | FP41: 0 | FQ41: 0 | FR41: 0 | FS41: 0 | FT41: 0 | FU41: 0 | FV41: 0 | FW41: 0 | FX41: 0 | FY41: 0 | FZ41: 0 | GA41: 0 | GB41: 0 | GC41: 0 | GD41: 0 | GE41: 0 | GF41: 0 | GG41: 0 | GH41: 0 | GI41: 0 | GJ41: 0 | GK41: 0 | GL41: 0 | GM41: 0 | GN41: 0 | GO41: 0 | GP41: 0 | GQ41: 0 | GR41: 0 | GS41: 0 | GT41: 0 | GU41: 0 | GV41: 0 | GW41: 0 | GX41: 0 | GY41: 0 | GZ41: 0 | HA41: 0 | HB41: 0 | HC41: 0 | HD41: 0 | HE41: 0 | HF41: 0 | HG41: 0 | HH41: 0 | HI41: 0 | HJ41: 0 | HK41: 0 | HL41: 0 | HM41: 0 | HN41: 0 | HO41: 0 | HP41: 0 | HQ41: 0 | HR41: 0 | HS41: 0 | HT41: 0 | HU41: 0 | HV41: 0 | HW41: 0 | HX41: 0 | HY41: 0 | HZ41: 0 | IA41: 0 | IB41: 0 | IC41: 0 | ID41: 0 | IE41: 0 | IF41: 0 | IG41: 0 | IH41: 0 | II41: 0 | IJ41: 0 | IK41: 0 | IL41: 0 | IM41: 0 | IN41: 0 | IO41: 0 | IP41: 0 | IQ41: 0 | IR41: 0 | IS41: 0 | IT41: 0 | IU41: 0 | IV41: 0 | IW41: 0 | IX41: 0 | IY41: 0 | IZ41: 0 | JA41: 0 | JB41: 0 | JC41: 0 | JD41: 0 | JE41: 0 | JF41: 0 | JG41: 0 | JH41: 0 | JI41: 0 | JJ41: 0 | JK41: 0 | JL41: 0 | JM41: 0 | JN41: 0 | JO41: 0 | JP41: 0 | JQ41: 0 | JR41: 0 | JS41: 0 | JT41: 0 | JU41: 0 | JV41: 0 | JW41: 0 | JX41: 0 | JY41: 0 | JZ41: 0 | KA41: 0 | KB41: 0 | KC41: 0 | KD41: 0 | KE41: 0 | KF41: 0 | KG41: 0 | KH41: 0 | KI41: 0 | KJ41: 0 | KK41: 0 | KL41: 0 | KM41: 0 | KN41: 0 | KO41: 0 | KP41: 0 | KQ41: 0 | KR41: 0 | KS41: 0 | KT41: 0 | KU41: 0 | KV41: 0 | KW41: 0 | KX41: 0 | KY41: 0 | KZ41: 0 | LA41: 0 | LB41: 0 | LC41: 0 | LD41: 0 | LE41: 0 | LF41: 0 | LG41: 0 | LH41: 0 | LI41: 0 | LJ41: 0 | LK41: 0 | LL41: 0 | LM41: 0 | LN41: 0 | LO41: 0 | LP41: 0 | LQ41: 0 | LR41: 0 | LS41: 0 | LT41: 0 | LU41: 0 | LV41: 0 | LW41: 0 | LX41: 0 | LY41: 0 | LZ41: 0 | MA41: 0 | MB41: 0 | MC41: 0 | MD41: 0 | ME41: 0 | MF41: 0 | MG41: 0 | MH41: 0 | MI41: 0 | MJ41: 0 | MK41: 0 | ML41: 0 | MM41: 0 | MN41: 0 | MO41: 0 | MP41: 0 | MQ41: 0 | MR41: 0 | MS41: 0 | MT41: 0 | MU41: 0 | MV41: 0 | MW41: 0 | MX41: 0 | MY41: 0 | MZ41: 0 | NA41: 0 | NB41: 0 | NC41: 0 | ND41: 0 | NE41: 0 | NF41: 0 | NG41: 0 | NH41: 0 | NI41: 0 | NJ41: 0 | NK41: 0 | NL41: 0 | NM41: 0 | NN41: 0 | NO41: 0 | NP41: 0 | NQ41: 0 | NR41: 0 | NS41: 0 | NT41: 0 | NU41: 0 | NV41: 0 | NW41: 0 | NX41: 0 | NY41: 0 | NZ41: 0 | OA41: 0 | OB41: 0 | OC41: 0 | OD41: 0 | OE41: 0 | OF41: 0 | OG41: 0 | OH41: 0 | OI41: 0 | OJ41: 0 | OK41: 0 | OL41: 0 | OM41: 0 | ON41: 0 | OO41: 0 | OP41: 0 | OQ41: 0 | OR41: 0 | OS41: 0 | OT41: 0 | OU41: 0 | OV41: 0 | OW41: 0 | OX41: 0 | OY41: 0 | OZ41: 0 | PA41: 0 | PB41: 0 | PC41: 0 | PD41: 0 | PE41: 0 | PF41: 0 | PG41: 0 | PH41: 0 | PI41: 0 | PJ41: 0 | PK41: 0 | PL41: 0 | PM41: 0 | PN41: 0 | PO41: 0 | PP41: 0 | PQ41: 0 | PR41: 0 | PS41: 0 | PT41: 0 | PU41: 0 | PV41: 0 | PW41: 0 | PX41: 0 | PY41: 0 | PZ41: 0 | QA41: 0 | QB41: 0 | QC41: 0 | QD41: 0 | QE41: 0 | QF41: 0 | QG41: 0 | QH41: 0 | QI41: 0 | QJ41: 0 | QK41: 0 | QL41: 0 | QM41: 0 | QN41: 0 | QO41: 0 | QP41: 0 | QQ41: 0 | QR41: 0 | QS41: 0 | QT41: 0 | QU41: 0 | QV41: 0 | QW41: 0 | QX41: 0 | QY41: 0 | QZ41: 0 | RA41: 0 | RB41: 0 | RC41: 0 | RD41: 0 | RE41: 0 | RF41: 0 | RG41: 0 | RH41: 0 | RI41: 0 | RJ41: 0 | RK41: 0 | RL41: 0 | RM41: 0 | RN41: 0 | RO41: 0 | RP41: 0 | RQ41: 0 | RR41: 0 | RS41: 0 | RT41: 0 | RU41: 0 | RV41: 0 | RW41: 0 | RX41: 0 | RY41: 0 | RZ41: 0 | SA41: 0 | SB41: 0 | SC41: 0 | SD41: 0 | SE41: 0 | SF41: 0 | SG41: 0 | SH41: 0 | SI41: 0 | SJ41: 0 | SK41: 0 | SL41: 0 | SM41: 0 | SN41: 0 | SO41: 0 | SP41: 0 | SQ41: 0 | SR41: 0 | SS41: 0 | ST41: 0 | SU41: 0 | SV41: 0 | SW41: 0 | SX41: 0 | SY41: 0 | SZ41: 0 | TA41: 0 | TB41: 0 | TC41: 0 | TD41: 0 | TE41: 0 | TF41: 0 | TG41: 0 | TH41: 0 | TI41: 0 | TJ41: 0 | TK41: 0 | TL41: 0 | TM41: 0 | TN41: 0 | TO41: 0 | TP41: 0 | TQ41: 0 | TR41: 0 | TS41: 0 | TT41: 0 | TU41: 0 | TV41: 0 | TW41: 0 | TX41: 0 | TY41: 0 | TZ41: 0 | UA41: 0 | UB41: 0 | UC41: 0 | UD41: 0 | UE41: 0 | UF41: 0 | UG41: 0 | UH41: 0 | UI41: 0 | UJ41: 0 | UK41: 0 | UL41: 0 | UM41: 0 | UN41: 0 | UO41: 0 | UP41: 0 | UQ41: 0 | UR41: 0 | US41: 0 | UT41: 0 | UU41: 0 | UV41: 0 | UW41: 0 | UX41: 0 | UY41: 0 | UZ41: 0 | VA41: 0 | VB41: 0 | VC41: 0 | VD41: 0 | VE41: 0 | VF41: 0 | VG41: 0 | VH41: 0 | VI41: 0 | VJ41: 0 | VK41: 0 | VL41: 0 | VM41: 0 | VN41: 0 | VO41: 0 | VP41: 0 | VQ41: 0 | VR41: 0 | VS41: 0 | VT41: 0 | VU41: 0 | VV41: 0 | VW41: 0 | VX41: 0 | VY41: 0 | VZ41: 0 | WA41: 0 | WB41: 0 | WC41: 0 | WD41: 0 | WE41: 0 | WF41: 0 | WG41: 0 | WH41: 0 | WI41: 0 | WJ41: 0 | WK41: 0 | WL41: 0 | WM41: 0 | WN41: 0 | WO41: 0 | WP41: 0 | WQ41: 0 | WR41: 0 | WS41: 0 | WT41: 0 | WU41: 0 | WV41: 0 | WW41: 0 | WX41: 0 | WY41: 0 | WZ41: 0 | XA41: 0 | XB41: 0 | XC41: 0 | XD41: 0 | XE41: 0 | XF41: 0 | XG41: 0 | XH41: 0 | XI41: 0 | XJ41: 0 | XK41: 0 | XL41: 0 | XM41: 0 | XN41: 0 | XO41: 0 | XP41: 0 | XQ41: 0 | XR41: 0 | XS41: 0 | XT41: 0 | XU41: 0 | XV41: 0 | XW41: 0 | XX41: 0 | XY41: 0 | XZ41: 0 | YA41: 0 | YB41: 0 | YC41: 0 | YD41: 0 | YE41: 0 | YF41: 0 | YG41: 0 | YH41: 0 | YI41: 0 | YJ41: 0 | YK41: 0 | YL41: 0 | YM41: 0 | YN41: 0 | YO41: 0 | YP41: 0 | YQ41: 0 | YR41: 0 | YS41: 0 | YT41: 0 | YU41: 0 | YV41: 0 | YW41: 0 | YX41: 0 | YY41: 0 | YZ41: 0 | ZA41: 0 | ZB41: 0 | ZC41: 0 | ZD41: 0 | ZE41: 0 | ZF41: 0 | ZG41: 0 | ZH41: 0 | ZI41: 0 | ZJ41: 0 | ZK41: 0 | ZL41: 0 | ZM41: 0 | ZN41: 0 | ZO41: 0 | ZP41: 0 | ZQ41: 0 | ZR41: 0 | ZS41: 0 | ZT41: 0 | ZU41: 0 | ZV41: 0 | ZW41: 0 | ZX41: 0 | ZY41: 0 | ZZ41: 0 | AAA41: 0 | AAB41: 0 | AAC41: 0 | AAD41: 0 | AAE41: 0 | AAF41: 0 | AAG41: 0 | AAH41: 0 | AAI41: 0 | AAJ41: 0 | AAK41: 0 | AAL41: 0 | AAM41: 0 | AAN41: 0 | AAO41: 0 | AAP41: 0 | AAQ41: 0 | AAR41: 0 | AAS41: 0 | AAT41: 0 | AAU41: 0 | AAV41: 0 | AAW41: 0 | AAX41: 0 | AAY41: 0 | AAZ41: 0 | ABA41: 0 | ABB41: 0 | ABC41: 0 | ABD41: 0 | ABE41: 0 | ABF41: 0 | ABG41: 0 | ABH41: 0 | ABI41: 0 | ABJ41: 0 | ABK41: 0 | ABL41: 0 | ABM41: 0 | ABN41: 0 | ABO41: 0 | ABP41: 0 | ABQ41: 0 | ABR41: 0 | ABS41: 0 | ABT41: 0 | ABU41: 0 | ABV41: 0 | ABW41: 0 | ABX41: 0 | ABY41: 0 | ABZ41: 0
D42: Capital Expenditure for Battery | E42: USD/kWh | F42: =InputC!F48 -> 0 | G42: =F42*F16 -> 0 | K42: 0 | L42: 0 | M42: 0 | N42: 0 | O42: 0 | P42: 0 | Q42: 0 | R42: 0 | S42: 0 | T42: 0 | U42: 0 | V42: 0 | W42: 0 | X42: 0 | Y42: 0 | Z42: 0 | AA42: 0 | AB42: 0 | AC42: 0 | AD42: 0 | AE42: 0 | AF42: 0 | AG42: 0 | AH42: 0 | AI42: 0 | AJ42: 0 | AK42: 0 | AL42: 0 | AM42: 0 | AN42: 0 | AO42: 0 | AP42: 0 | AQ42: 0 | AR42: 0 | AS42: 0 | AT42: 0 | AU42: 0 | AV42: 0 | AW42: 0 | AX42: 0 | AY42: 0 | AZ42: 0 | BA42: 0 | BB42: 0 | BC42: 0 | BD42: 0 | BE42: 0 | BF42: 0 | BG42: 0 | BH42: 0 | BI42: 0 | BJ42: 0 | BK42: 0 | BL42: 0 | BM42: 0 | BN42: 0 | BO42: 0 | BP42: 0 | BQ42: 0 | BR42: 0 | BS42: 0 | BT42: 0 | BU42: 0 | BV42: 0 | BW42: 0 | BX42: 0 | BY42: 0 | BZ42: 0 | CA42: 0 | CB42: 0 | CC42: 0 | CD42: 0 | CE42: 0 | CF42: 0 | CG42: 0 | CH42: 0 | CI42: 0 | CJ42: 0 | CK42: 0 | CL42: 0 | CM42: 0 | CN42: 0 | CO42: 0 | CP42: 0 | CQ42: 0 | CR42: 0 | CS42: 0 | CT42: 0 | CU42: 0 | CV42: 0 | CW42: 0 | CX42: 0 | CY42: 0 | CZ42: 0 | DA42: 0 | DB42: 0 | DC42: 0 | DD42: 0 | DE42: 0 | DF42: 0 | DG42: 0 | DH42: 0 | DI42: 0 | DJ42: 0 | DK42: 0 | DL42: 0 | DM42: 0 | DN42: 0 | DO42: 0 | DP42: 0 | DQ42: 0 | DR42: 0 | DS42: 0 | DT42: 0 | DU42: 0 | DV42: 0 | DW42: 0 | DX42: 0 | DY42: 0 | DZ42: 0 | EA42: 0 | EB42: 0 | EC42: 0 | ED42: 0 | EE42: 0 | EF42: 0 | EG42: 0 | EH42: 0 | EI42: 0 | EJ42: 0 | EK42: 0 | EL42: 0 | EM42: 0 | EN42: 0 | EO42: 0 | EP42: 0 | EQ42: 0 | ER42: 0 | ES42: 0 | ET42: 0 | EU42: 0 | EV42: 0 | EW42: 0 | EX42: 0 | EY42: 0 | EZ42: 0 | FA42: 0 | FB42: 0 | FC42: 0 | FD42: 0 | FE42: 0 | FF42: 0 | FG42: 0 | FH42: 0 | FI42: 0 | FJ42: 0 | FK42: 0 | FL42: 0 | FM42: 0 | FN42: 0 | FO42: 0 | FP42: 0 | FQ42: 0 | FR42: 0 | FS42: 0 | FT42: 0 | FU42: 0 | FV42: 0 | FW42: 0 | FX42: 0 | FY42: 0 | FZ42: 0 | GA42: 0 | GB42: 0 | GC42: 0 | GD42: 0 | GE42: 0 | GF42: 0 | GG42: 0 | GH42: 0 | GI42: 0 | GJ42: 0 | GK42: 0 | GL42: 0 | GM42: 0 | GN42: 0 | GO42: 0 | GP42: 0 | GQ42: 0 | GR42: 0 | GS42: 0 | GT42: 0 | GU42: 0 | GV42: 0 | GW42: 0 | GX42: 0 | GY42: 0 | GZ42: 0 | HA42: 0 | HB42: 0 | HC42: 0 | HD42: 0 | HE42: 0 | HF42: 0 | HG42: 0 | HH42: 0 | HI42: 0 | HJ42: 0 | HK42: 0 | HL42: 0 | HM42: 0 | HN42: 0 | HO42: 0 | HP42: 0 | HQ42: 0 | HR42: 0 | HS42: 0 | HT42: 0 | HU42: 0 | HV42: 0 | HW42: 0 | HX42: 0 | HY42: 0 | HZ42: 0 | IA42: 0 | IB42: 0 | IC42: 0 | ID42: 0 | IE42: 0 | IF42: 0 | IG42: 0 | IH42: 0 | II42: 0 | IJ42: 0 | IK42: 0 | IL42: 0 | IM42: 0 | IN42: 0 | IO42: 0 | IP42: 0 | IQ42: 0 | IR42: 0 | IS42: 0 | IT42: 0 | IU42: 0 | IV42: 0 | IW42: 0 | IX42: 0 | IY42: 0 | IZ42: 0 | JA42: 0 | JB42: 0 | JC42: 0 | JD42: 0 | JE42: 0 | JF42: 0 | JG42: 0 | JH42: 0 | JI42: 0 | JJ42: 0 | JK42: 0 | JL42: 0 | JM42: 0 | JN42: 0 | JO42: 0 | JP42: 0 | JQ42: 0 | JR42: 0 | JS42: 0 | JT42: 0 | JU42: 0 | JV42: 0 | JW42: 0 | JX42: 0 | JY42: 0 | JZ42: 0 | KA42: 0 | KB42: 0 | KC42: 0 | KD42: 0 | KE42: 0 | KF42: 0 | KG42: 0 | KH42: 0 | KI42: 0 | KJ42: 0 | KK42: 0 | KL42: 0 | KM42: 0 | KN42: 0 | KO42: 0 | KP42: 0 | KQ42: 0 | KR42: 0 | KS42: 0 | KT42: 0 | KU42: 0 | KV42: 0 | KW42: 0 | KX42: 0 | KY42: 0 | KZ42: 0 | LA42: 0 | LB42: 0 | LC42: 0 | LD42: 0 | LE42: 0 | LF42: 0 | LG42: 0 | LH42: 0 | LI42: 0 | LJ42: 0 | LK42: 0 | LL42: 0 | LM42: 0 | LN42: 0 | LO42: 0 | LP42: 0 | LQ42: 0 | LR42: 0 | LS42: 0 | LT42: 0 | LU42: 0 | LV42: 0 | LW42: 0 | LX42: 0 | LY42: 0 | LZ42: 0 | MA42: 0 | MB42: 0 | MC42: 0 | MD42: 0 | ME42: 0 | MF42: 0 | MG42: 0 | MH42: 0 | MI42: 0 | MJ42: 0 | MK42: 0 | ML42: 0 | MM42: 0 | MN42: 0 | MO42: 0 | MP42: 0 | MQ42: 0 | MR42: 0 | MS42: 0 | MT42: 0 | MU42: 0 | MV42: 0 | MW42: 0 | MX42: 0 | MY42: 0 | MZ42: 0 | NA42: 0 | NB42: 0 | NC42: 0 | ND42: 0 | NE42: 0 | NF42: 0 | NG42: 0 | NH42: 0 | NI42: 0 | NJ42: 0 | NK42: 0 | NL42: 0 | NM42: 0 | NN42: 0 | NO42: 0 | NP42: 0 | NQ42: 0 | NR42: 0 | NS42: 0 | NT42: 0 | NU42: 0 | NV42: 0 | NW42: 0 | NX42: 0 | NY42: 0 | NZ42: 0 | OA42: 0 | OB42: 0 | OC42: 0 | OD42: 0 | OE42: 0 | OF42: 0 | OG42: 0 | OH42: 0 | OI42: 0 | OJ42: 0 | OK42: 0 | OL42: 0 | OM42: 0 | ON42: 0 | OO42: 0 | OP42: 0 | OQ42: 0 | OR42: 0 | OS42: 0 | OT42: 0 | OU42: 0 | OV42: 0 | OW42: 0 | OX42: 0 | OY42: 0 | OZ42: 0 | PA42: 0 | PB42: 0 | PC42: 0 | PD42: 0 | PE42: 0 | PF42: 0 | PG42: 0 | PH42: 0 | PI42: 0 | PJ42: 0 | PK42: 0 | PL42: 0 | PM42: 0 | PN42: 0 | PO42: 0 | PP42: 0 | PQ42: 0 | PR42: 0 | PS42: 0 | PT42: 0 | PU42: 0 | PV42: 0 | PW42: 0 | PX42: 0 | PY42: 0 | PZ42: 0 | QA42: 0 | QB42: 0 | QC42: 0 | QD42: 0 | QE42: 0 | QF42: 0 | QG42: 0 | QH42: 0 | QI42: 0 | QJ42: 0 | QK42: 0 | QL42: 0 | QM42: 0 | QN42: 0 | QO42: 0 | QP42: 0 | QQ42: 0 | QR42: 0 | QS42: 0 | QT42: 0 | QU42: 0 | QV42: 0 | QW42: 0 | QX42: 0 | QY42: 0 | QZ42: 0 | RA42: 0 | RB42: 0 | RC42: 0 | RD42: 0 | RE42: 0 | RF42: 0 | RG42: 0 | RH42: 0 | RI42: 0 | RJ42: 0 | RK42: 0 | RL42: 0 | RM42: 0 | RN42: 0 | RO42: 0 | RP42: 0 | RQ42: 0 | RR42: 0 | RS42: 0 | RT42: 0 | RU42: 0 | RV42: 0 | RW42: 0 | RX42: 0 | RY42: 0 | RZ42: 0 | SA42: 0 | SB42: 0 | SC42: 0 | SD42: 0 | SE42: 0 | SF42: 0 | SG42: 0 | SH42: 0 | SI42: 0 | SJ42: 0 | SK42: 0 | SL42: 0 | SM42: 0 | SN42: 0 | SO42: 0 | SP42: 0 | SQ42: 0 | SR42: 0 | SS42: 0 | ST42: 0 | SU42: 0 | SV42: 0 | SW42: 0 | SX42: 0 | SY42: 0 | SZ42: 0 | TA42: 0 | TB42: 0 | TC42: 0 | TD42: 0 | TE42: 0 | TF42: 0 | TG42: 0 | TH42: 0 | TI42: 0 | TJ42: 0 | TK42: 0 | TL42: 0 | TM42: 0 | TN42: 0 | TO42: 0 | TP42: 0 | TQ42: 0 | TR42: 0 | TS42: 0 | TT42: 0 | TU42: 0 | TV42: 0 | TW42: 0 | TX42: 0 | TY42: 0 | TZ42: 0 | UA42: 0 | UB42: 0 | UC42: 0 | UD42: 0 | UE42: 0 | UF42: 0 | UG42: 0 | UH42: 0 | UI42: 0 | UJ42: 0 | UK42: 0 | UL42: 0 | UM42: 0 | UN42: 0 | UO42: 0 | UP42: 0 | UQ42: 0 | UR42: 0 | US42: 0 | UT42: 0 | UU42: 0 | UV42: 0 | UW42: 0 | UX42: 0 | UY42: 0 | UZ42: 0 | VA42: 0 | VB42: 0 | VC42: 0 | VD42: 0 | VE42: 0 | VF42: 0 | VG42: 0 | VH42: 0 | VI42: 0 | VJ42: 0 | VK42: 0 | VL42: 0 | VM42: 0 | VN42: 0 | VO42: 0 | VP42: 0 | VQ42: 0 | VR42: 0 | VS42: 0 | VT42: 0 | VU42: 0 | VV42: 0 | VW42: 0 | VX42: 0 | VY42: 0 | VZ42: 0 | WA42: 0 | WB42: 0 | WC42: 0 | WD42: 0 | WE42: 0 | WF42: 0 | WG42: 0 | WH42: 0 | WI42: 0 | WJ42: 0 | WK42: 0 | WL42: 0 | WM42: 0 | WN42: 0 | WO42: 0 | WP42: 0 | WQ42: 0 | WR42: 0 | WS42: 0 | WT42: 0 | WU42: 0 | WV42: 0 | WW42: 0 | WX42: 0 | WY42: 0 | WZ42: 0 | XA42: 0 | XB42: 0 | XC42: 0 | XD42: 0 | XE42: 0 | XF42: 0 | XG42: 0 | XH42: 0 | XI42: 0 | XJ42: 0 | XK42: 0 | XL42: 0 | XM42: 0 | XN42: 0 | XO42: 0 | XP42: 0 | XQ42: 0 | XR42: 0 | XS42: 0 | XT42: 0 | XU42: 0 | XV42: 0 | XW42: 0 | XX42: 0 | XY42: 0 | XZ42: 0 | YA42: 0 | YB42: 0 | YC42: 0 | YD42: 0 | YE42: 0 | YF42: 0 | YG42: 0 | YH42: 0 | YI42: 0 | YJ42: 0 | YK42: 0 | YL42: 0 | YM42: 0 | YN42: 0 | YO42: 0 | YP42: 0 | YQ42: 0 | YR42: 0 | YS42: 0 | YT42: 0 | YU42: 0 | YV42: 0 | YW42: 0 | YX42: 0 | YY42: 0 | YZ42: 0 | ZA42: 0 | ZB42: 0 | ZC42: 0 | ZD42: 0 | ZE42: 0 | ZF42: 0 | ZG42: 0 | ZH42: 0 | ZI42: 0 | ZJ42: 0 | ZK42: 0 | ZL42: 0 | ZM42: 0 | ZN42: 0 | ZO42: 0 | ZP42: 0 | ZQ42: 0 | ZR42: 0 | ZS42: 0 | ZT42: 0 | ZU42: 0 | ZV42: 0 | ZW42: 0 | ZX42: 0 | ZY42: 0 | ZZ42: 0 | AAA42: 0 | AAB42: 0 | AAC42: 0 | AAD42: 0 | AAE42: 0 | AAF42: 0 | AAG42: 0 | AAH42: 0 | AAI42: 0 | AAJ42: 0 | AAK42: 0 | AAL42: 0 | AAM42: 0 | AAN42: 0 | AAO42: 0 | AAP42: 0 | AAQ42: 0 | AAR42: 0 | AAS42: 0 | AAT42: 0 | AAU42: 0 | AAV42: 0 | AAW42: 0 | AAX42: 0 | AAY42: 0 | AAZ42: 0 | ABA42: 0 | ABB42: 0 | ABC42: 0 | ABD42: 0 | ABE42: 0 | ABF42: 0 | ABG42: 0 | ABH42: 0 | ABI42: 0 | ABJ42: 0 | ABK42: 0 | ABL42: 0 | ABM42: 0 | ABN42: 0 | ABO42: 0 | ABP42: 0 | ABQ42: 0 | ABR42: 0 | ABS42: 0 | ABT42: 0 | ABU42: 0 | ABV42: 0 | ABW42: 0 | ABX42: 0 | ABY42: 0 | ABZ42: 0
D44: Total Cost | E44: USD | F44: =SUM(G40:G42) -> 800000 | I44: USD | K44: =$F$44 -> 800000 | L44: 800000 | M44: 800000 | N44: 800000 | O44: 800000 | P44: 800000 | Q44: 800000 | R44: 800000 | S44: 800000 | T44: 800000 | U44: 800000 | V44: 800000 | W44: 800000 | X44: 800000 | Y44: 800000 | Z44: 800000 | AA44: 800000 | AB44: 800000 | AC44: 800000 | AD44: 800000 | AE44: 800000 | AF44: 800000 | AG44: 800000 | AH44: 800000 | AI44: 800000 | AJ44: 800000 | AK44: 800000 | AL44: 800000 | AM44: 800000 | AN44: 800000 | AO44: 800000 | AP44: 800000 | AQ44: 800000 | AR44: 800000 | AS44: 800000 | AT44: 800000 | AU44: 800000 | AV44: 800000 | AW44: 800000 | AX44: 800000 | AY44: 800000 | AZ44: 800000 | BA44: 800000 | BB44: 800000 | BC44: 800000 | BD44: 800000 | BE44: 800000 | BF44: 800000 | BG44: 800000 | BH44: 800000 | BI44: 800000 | BJ44: 800000 | BK44: 800000 | BL44: 800000 | BM44: 800000 | BN44: 800000 | BO44: 800000 | BP44: 800000 | BQ44: 800000 | BR44: 800000 | BS44: 800000 | BT44: 800000 | BU44: 800000 | BV44: 800000 | BW44: =$F$44 -> 800000 | BX44: 800000 | BY44: 800000 | BZ44: 800000 | CA44: 800000 | CB44: 800000 | CC44: 800000 | CD44: 800000 | CE44: 800000 | CF44: 800000 | CG44: 800000 | CH44: 800000 | CI44: 800000 | CJ44: 800000 | CK44: 800000 | CL44: 800000 | CM44: 800000 | CN44: 800000 | CO44: 800000 | CP44: 800000 | CQ44: 800000 | CR44: 800000 | CS44: 800000 | CT44: 800000 | CU44: 800000 | CV44: 800000 | CW44: 800000 | CX44: 800000 | CY44: 800000 | CZ44: 800000 | DA44: 800000 | DB44: 800000 | DC44: 800000 | DD44: 800000 | DE44: 800000 | DF44: 800000 | DG44: 800000 | DH44: 800000 | DI44: 800000 | DJ44: 800000 | DK44: 800000 | DL44: 800000 | DM44: 800000 | DN44: 800000 | DO44: 800000 | DP44: 800000 | DQ44: 800000 | DR44: 800000 | DS44: 800000 | DT44: 800000 | DU44: 800000 | DV44: 800000 | DW44: 800000 | DX44: 800000 | DY44: 800000 | DZ44: 800000 | EA44: 800000 | EB44: 800000 | EC44: 800000 | ED44: 800000 | EE44: 800000 | EF44: 800000 | EG44: 800000 | EH44: 800000 | EI44: =$F$44 -> 800000 | EJ44: 800000 | EK44: 800000 | EL44: 800000 | EM44: 800000 | EN44: 800000 | EO44: 800000 | EP44: 800000 | EQ44: 800000 | ER44: 800000 | ES44: 800000 | ET44: 800000 | EU44: 800000 | EV44: 800000 | EW44: 800000 | EX44: 800000 | EY44: 800000 | EZ44: 800000 | FA44: 800000 | FB44: 800000 | FC44: 800000 | FD44: 800000 | FE44: 800000 | FF44: 800000 | FG44: 800000 | FH44: 800000 | FI44: 800000 | FJ44: 800000 | FK44: 800000 | FL44: 800000 | FM44: 800000 | FN44: 800000 | FO44: 800000 | FP44: 800000 | FQ44: 800000 | FR44: 800000 | FS44: 800000 | FT44: 800000 | FU44: 800000 | FV44: 800000 | FW44: 800000 | FX44: 800000 | FY44: 800000 | FZ44: 800000 | GA44: 800000 | GB44: 800000 | GC44: 800000 | GD44: 800000 | GE44: 800000 | GF44: 800000 | GG44: 800000 | GH44: 800000 | GI44: 800000 | GJ44: 800000 | GK44: 800000 | GL44: 800000 | GM44: 800000 | GN44: 800000 | GO44: 800000 | GP44: 800000 | GQ44: 800000 | GR44: 800000 | GS44: 800000 | GT44: 800000 | GU44: =$F$44 -> 800000 | GV44: 800000 | GW44: 800000 | GX44: 800000 | GY44: 800000 | GZ44: 800000 | HA44: 800000 | HB44: 800000 | HC44: 800000 | HD44: 800000 | HE44: 800000 | HF44: 800000 | HG44: 800000 | HH44: 800000 | HI44: 800000 | HJ44: 800000 | HK44: 800000 | HL44: 800000 | HM44: 800000 | HN44: 800000 | HO44: 800000 | HP44: 800000 | HQ44: 800000 | HR44: 800000 | HS44: 800000 | HT44: 800000 | HU44: 800000 | HV44: 800000 | HW44: 800000 | HX44: 800000 | HY44: 800000 | HZ44: 800000 | IA44: 800000 | IB44: 800000 | IC44: 800000 | ID44: 800000 | IE44: 800000 | IF44: 800000 | IG44: 800000 | IH44: 800000 | II44: 800000 | IJ44: 800000 | IK44: 800000 | IL44: 800000 | IM44: 800000 | IN44: 800000 | IO44: 800000 | IP44: 800000 | IQ44: 800000 | IR44: 800000 | IS44: 800000 | IT44: 800000 | IU44: 800000 | IV44: 800000 | IW44: 800000 | IX44: 800000 | IY44: 800000 | IZ44: 800000 | JA44: 800000 | JB44: 800000 | JC44: 800000 | JD44: 800000 | JE44: 800000 | JF44: 800000 | JG44: =$F$44 -> 800000 | JH44: 800000 | JI44: 800000 | JJ44: 800000 | JK44: 800000 | JL44: 800000 | JM44: 800000 | JN44: 800000 | JO44: 800000 | JP44: 800000 | JQ44: 800000 | JR44: 800000 | JS44: 800000 | JT44: 800000 | JU44: 800000 | JV44: 800000 | JW44: 800000 | JX44: 800000 | JY44: 800000 | JZ44: 800000 | KA44: 800000 | KB44: 800000 | KC44: 800000 | KD44: 800000 | KE44: 800000 | KF44: 800000 | KG44: 800000 | KH44: 800000 | KI44: 800000 | KJ44: 800000 | KK44: 800000 | KL44: 800000 | KM44: 800000 | KN44: 800000 | KO44: 800000 | KP44: 800000 | KQ44: 800000 | KR44: 800000 | KS44: 800000 | KT44: 800000 | KU44: 800000 | KV44: 800000 | KW44: 800000 | KX44: 800000 | KY44: 800000 | KZ44: 800000 | LA44: 800000 | LB44: 800000 | LC44: 800000 | LD44: 800000 | LE44: 800000 | LF44: 800000 | LG44: 800000 | LH44: 800000 | LI44: 800000 | LJ44: 800000 | LK44: 800000 | LL44: 800000 | LM44: 800000 | LN44: 800000 | LO44: 800000 | LP44: 800000 | LQ44: 800000 | LR44: 800000 | LS44: =$F$44 -> 800000 | LT44: 800000 | LU44: 800000 | LV44: 800000 | LW44: 800000 | LX44: 800000 | LY44: 800000 | LZ44: 800000 | MA44: 800000 | MB44: 800000 | MC44: 800000 | MD44: 800000 | ME44: 800000 | MF44: 800000 | MG44: 800000 | MH44: 800000 | MI44: 800000 | MJ44: 800000 | MK44: 800000 | ML44: 800000 | MM44: 800000 | MN44: 800000 | MO44: 800000 | MP44: 800000 | MQ44: 800000 | MR44: 800000 | MS44: 800000 | MT44: 800000 | MU44: 800000 | MV44: 800000 | MW44: 800000 | MX44: 800000 | MY44: 800000 | MZ44: 800000 | NA44: 800000 | NB44: 800000 | NC44: 800000 | ND44: 800000 | NE44: 800000 | NF44: 800000 | NG44: 800000 | NH44: 800000 | NI44: 800000 | NJ44: 800000 | NK44: 800000 | NL44: 800000 | NM44: 800000 | NN44: 800000 | NO44: 800000 | NP44: 800000 | NQ44: 800000 | NR44: 800000 | NS44: 800000 | NT44: 800000 | NU44: 800000 | NV44: 800000 | NW44: 800000 | NX44: 800000 | NY44: 800000 | NZ44: 800000 | OA44: 800000 | OB44: 800000 | OC44: 800000 | OD44: 800000 | OE44: =$F$44 -> 800000 | OF44: 800000 | OG44: 800000 | OH44: 800000 | OI44: 800000 | OJ44: 800000 | OK44: 800000 | OL44: 800000 | OM44: 800000 | ON44: 800000 | OO44: 800000 | OP44: 800000 | OQ44: 800000 | OR44: 800000 | OS44: 800000 | OT44: 800000 | OU44: 800000 | OV44: 800000 | OW44: 800000 | OX44: 800000 | OY44: 800000 | OZ44: 800000 | PA44: 800000 | PB44: 800000 | PC44: 800000 | PD44: 800000 | PE44: 800000 | PF44: 800000 | PG44: 800000 | PH44: 800000 | PI44: 800000 | PJ44: 800000 | PK44: 800000 | PL44: 800000 | PM44: 800000 | PN44: 800000 | PO44: 800000 | PP44: 800000 | PQ44: 800000 | PR44: 800000 | PS44: 800000 | PT44: 800000 | PU44: 800000 | PV44: 800000 | PW44: 800000 | PX44: 800000 | PY44: 800000 | PZ44: 800000 | QA44: 800000 | QB44: 800000 | QC44: 800000 | QD44: 800000 | QE44: 800000 | QF44: 800000 | QG44: 800000 | QH44: 800000 | QI44: 800000 | QJ44: 800000 | QK44: 800000 | QL44: 800000 | QM44: 800000 | QN44: 800000 | QO44: 800000 | QP44: 800000 | QQ44: =$F$44 -> 800000 | QR44: 800000 | QS44: 800000 | QT44: 800000 | QU44: 800000 | QV44: 800000 | QW44: 800000 | QX44: 800000 | QY44: 800000 | QZ44: 800000 | RA44: 800000 | RB44: 800000 | RC44: 800000 | RD44: 800000 | RE44: 800000 | RF44: 800000 | RG44: 800000 | RH44: 800000 | RI44: 800000 | RJ44: 800000 | RK44: 800000 | RL44: 800000 | RM44: 800000 | RN44: 800000 | RO44: 800000 | RP44: 800000 | RQ44: 800000 | RR44: 800000 | RS44: 800000 | RT44: 800000 | RU44: 800000 | RV44: 800000 | RW44: 800000 | RX44: 800000 | RY44: 800000 | RZ44: 800000 | SA44: 800000 | SB44: 800000 | SC44: 800000 | SD44: 800000 | SE44: 800000 | SF44: 800000 | SG44: 800000 | SH44: 800000 | SI44: 800000 | SJ44: 800000 | SK44: 800000 | SL44: 800000 | SM44: 800000 | SN44: 800000 | SO44: 800000 | SP44: 800000 | SQ44: 800000 | SR44: 800000 | SS44: 800000 | ST44: 800000 | SU44: 800000 | SV44: 800000 | SW44: 800000 | SX44: 800000 | SY44: 800000 | SZ44: 800000 | TA44: 800000 | TB44: 800000 | TC44: =$F$44 -> 800000 | TD44: 800000 | TE44: 800000 | TF44: 800000 | TG44: 800000 | TH44: 800000 | TI44: 800000 | TJ44: 800000 | TK44: 800000 | TL44: 800000 | TM44: 800000 | TN44: 800000 | TO44: 800000 | TP44: 800000 | TQ44: 800000 | TR44: 800000 | TS44: 800000 | TT44: 800000 | TU44: 800000 | TV44: 800000 | TW44: 800000 | TX44: 800000 | TY44: 800000 | TZ44: 800000 | UA44: 800000 | UB44: 800000 | UC44: 800000 | UD44: 800000 | UE44: 800000 | UF44: 800000 | UG44: 800000 | UH44: 800000 | UI44: 800000 | UJ44: 800000 | UK44: 800000 | UL44: 800000 | UM44: 800000 | UN44: 800000 | UO44: 800000 | UP44: 800000 | UQ44: 800000 | UR44: 800000 | US44: 800000 | UT44: 800000 | UU44: 800000 | UV44: 800000 | UW44: 800000 | UX44: 800000 | UY44: 800000 | UZ44: 800000 | VA44: 800000 | VB44: 800000 | VC44: 800000 | VD44: 800000 | VE44: 800000 | VF44: 800000 | VG44: 800000 | VH44: 800000 | VI44: 800000 | VJ44: 800000 | VK44: 800000 | VL44: 800000 | VM44: 800000 | VN44: 800000 | VO44: =$F$44 -> 800000 | VP44: 800000 | VQ44: 800000 | VR44: 800000 | VS44: 800000 | VT44: 800000 | VU44: 800000 | VV44: 800000 | VW44: 800000 | VX44: 800000 | VY44: 800000 | VZ44: 800000 | WA44: 800000 | WB44: 800000 | WC44: 800000 | WD44: 800000 | WE44: 800000 | WF44: 800000 | WG44: 800000 | WH44: 800000 | WI44: 800000 | WJ44: 800000 | WK44: 800000 | WL44: 800000 | WM44: 800000 | WN44: 800000 | WO44: 800000 | WP44: 800000 | WQ44: 800000 | WR44: 800000 | WS44: 800000 | WT44: 800000 | WU44: 800000 | WV44: 800000 | WW44: 800000 | WX44: 800000 | WY44: 800000 | WZ44: 800000 | XA44: 800000 | XB44: 800000 | XC44: 800000 | XD44: 800000 | XE44: 800000 | XF44: 800000 | XG44: 800000 | XH44: 800000 | XI44: 800000 | XJ44: 800000 | XK44: 800000 | XL44: 800000 | XM44: 800000 | XN44: 800000 | XO44: 800000 | XP44: 800000 | XQ44: 800000 | XR44: 800000 | XS44: 800000 | XT44: 800000 | XU44: 800000 | XV44: 800000 | XW44: 800000 | XX44: 800000 | XY44: 800000 | XZ44: 800000 | YA44: =$F$44 -> 800000 | YB44: 800000 | YC44: 800000 | YD44: 800000 | YE44: 800000 | YF44: 800000 | YG44: 800000 | YH44: 800000 | YI44: 800000 | YJ44: 800000 | YK44: 800000 | YL44: 800000 | YM44: 800000 | YN44: 800000 | YO44: 800000 | YP44: 800000 | YQ44: 800000 | YR44: 800000 | YS44: 800000 | YT44: 800000 | YU44: 800000 | YV44: 800000 | YW44: 800000 | YX44: 800000 | YY44: 800000 | YZ44: 800000 | ZA44: 800000 | ZB44: 800000 | ZC44: 800000 | ZD44: 800000 | ZE44: 800000 | ZF44: 800000 | ZG44: 800000 | ZH44: 800000 | ZI44: 800000 | ZJ44: 800000 | ZK44: 800000 | ZL44: 800000 | ZM44: 800000 | ZN44: 800000 | ZO44: 800000 | ZP44: 800000 | ZQ44: 800000 | ZR44: 800000 | ZS44: 800000 | ZT44: 800000 | ZU44: 800000 | ZV44: 800000 | ZW44: 800000 | ZX44: 800000 | ZY44: 800000 | ZZ44: 800000 | AAA44: 800000 | AAB44: 800000 | AAC44: 800000 | AAD44: 800000 | AAE44: 800000 | AAF44: 800000 | AAG44: 800000 | AAH44: 800000 | AAI44: 800000 | AAJ44: 800000 | AAK44: 800000 | AAL44: 800000 | AAM44: =$F$44 -> 800000 | AAN44: 800000 | AAO44: 800000 | AAP44: 800000 | AAQ44: 800000 | AAR44: 800000 | AAS44: 800000 | AAT44: 800000 | AAU44: 800000 | AAV44: 800000 | AAW44: 800000 | AAX44: 800000 | AAY44: 800000 | AAZ44: 800000 | ABA44: 800000 | ABB44: 800000 | ABC44: 800000 | ABD44: 800000 | ABE44: 800000 | ABF44: 800000 | ABG44: 800000 | ABH44: 800000 | ABI44: 800000 | ABJ44: 800000 | ABK44: 800000 | ABL44: 800000 | ABM44: 800000 | ABN44: 800000 | ABO44: 800000 | ABP44: 800000 | ABQ44: 800000 | ABR44: 800000 | ABS44: 800000 | ABT44: 800000 | ABU44: 800000 | ABV44: 800000 | ABW44: 800000 | ABX44: 800000 | ABY44: 800000 | ABZ44: 800000
D45: Percent Spent | E45: Months/Per | F45: =1/H6 ->  | I45: % | K45: =$F45*K$6 ->  | L45: =$F45*L$6 ->  | BX45: =$F45*BX$6 ->  | EJ45: =$F45*EJ$6 ->  | GV45: =$F45*GV$6 ->  | JH45: =$F45*JH$6 ->  | LT45: =$F45*LT$6 ->  | OF45: =$F45*OF$6 ->  | QR45: =$F45*QR$6 ->  | TD45: =$F45*TD$6 ->  | VP45: =$F45*VP$6 ->  | YB45: =$F45*YB$6 ->  | AAN45: =$F45*AAN$6 -> 
D46: Capital Expenditues | H46: =SUM(K46:XFD46) ->  | I46: USD | K46: =K44*K45 ->  | L46: =L44*L45 ->  | BX46: =BX44*BX45 ->  | EJ46: =EJ44*EJ45 ->  | GV46: =GV44*GV45 ->  | JA46: =JA44*JA45 ->  | LM46: =LM44*LM45 ->  | NY46: =NY44*NY45 ->  | QK46: =QK44*QK45 ->  | SW46: =SW44*SW45 ->  | VI46: =VI44*VI45 ->  | XU46: =XU44*XU45 ->  | AAG46: =AAG44*AAG45 -> 
D48: Year | K48: =YEAR(K4) -> 2025 | L48: =YEAR(L4) -> 1900 | M48: =YEAR(M4) -> 1900 | N48: =YEAR(N4) -> 1900 | O48: =YEAR(O4) -> 1900 | P48: =YEAR(P4) -> 1900 | Q48: =YEAR(Q4) -> 1900 | R48: =YEAR(R4) -> 1900 | S48: =YEAR(S4) -> 1900 | T48: =YEAR(T4) -> 1900 | U48: =YEAR(U4) -> 1900 | V48: =YEAR(V4) -> 1900 | W48: =YEAR(W4) -> 1900 | X48: =YEAR(X4) -> 1900 | Y48: =YEAR(Y4) -> 1900 | Z48: =YEAR(Z4) -> 1900 | AA48: =YEAR(AA4) -> 1900 | AB48: =YEAR(AB4) -> 1900 | AC48: =YEAR(AC4) -> 1900 | AD48: =YEAR(AD4) -> 1900 | AE48: =YEAR(AE4) -> 1900 | AF48: =YEAR(AF4) -> 1900 | AG48: =YEAR(AG4) -> 1900 | AH48: =YEAR(AH4) -> 1900 | AI48: =YEAR(AI4) -> 1900 | AJ48: =YEAR(AJ4) -> 1900 | AK48: =YEAR(AK4) -> 1900 | AL48: =YEAR(AL4) -> 1900 | AM48: =YEAR(AM4) -> 1900 | AN48: =YEAR(AN4) -> 1900 | AO48: =YEAR(AO4) -> 1900 | AP48: =YEAR(AP4) -> 1900 | AQ48: =YEAR(AQ4) -> 1900 | AR48: =YEAR(AR4) -> 1900 | AS48: =YEAR(AS4) -> 1900 | AT48: =YEAR(AT4) -> 1900 | AU48: =YEAR(AU4) -> 1900 | AV48: =YEAR(AV4) -> 1900 | AW48: =YEAR(AW4) -> 1900 | AX48: =YEAR(AX4) -> 1900 | AY48: =YEAR(AY4) -> 1900 | AZ48: =YEAR(AZ4) -> 1900 | BA48: =YEAR(BA4) -> 1900 | BB48: =YEAR(BB4) -> 1900 | BC48: =YEAR(BC4) -> 1900 | BD48: =YEAR(BD4) -> 1900 | BE48: =YEAR(BE4) -> 1900 | BF48: =YEAR(BF4) -> 1900 | BG48: =YEAR(BG4) -> 1900 | BH48: =YEAR(BH4) -> 1900 | BI48: =YEAR(BI4) -> 1900 | BJ48: =YEAR(BJ4) -> 1900 | BK48: =YEAR(BK4) -> 1900 | BL48: =YEAR(BL4) -> 1900 | BM48: =YEAR(BM4) -> 1900 | BN48: =YEAR(BN4) -> 1900 | BO48: =YEAR(BO4) -> 1900 | BP48: =YEAR(BP4) -> 1900 | BQ48: =YEAR(BQ4) -> 1900 | BR48: =YEAR(BR4) -> 1900 | BS48: =YEAR(BS4) -> 1900 | BT48: =YEAR(BT4) -> 1900 | BU48: =YEAR(BU4) -> 1900 | BV48: =YEAR(BV4) -> 1900 | BW48: =YEAR(BW4) -> 1900 | BX48: =YEAR(BX4) -> 1900 | BY48: =YEAR(BY4) -> 1900 | BZ48: =YEAR(BZ4) -> 1900 | CA48: =YEAR(CA4) -> 1900 | CB48: =YEAR(CB4) -> 1900 | CC48: =YEAR(CC4) -> 1900 | CD48: =YEAR(CD4) -> 1900 | CE48: =YEAR(CE4) -> 1900 | CF48: =YEAR(CF4) -> 1900 | CG48: =YEAR(CG4) -> 1900 | CH48: =YEAR(CH4) -> 1900 | CI48: =YEAR(CI4) -> 1900 | CJ48: =YEAR(CJ4) -> 1900 | CK48: =YEAR(CK4) -> 1900 | CL48: =YEAR(CL4) -> 1900 | CM48: =YEAR(CM4) -> 1900 | CN48: =YEAR(CN4) -> 1900 | CO48: =YEAR(CO4) -> 1900 | CP48: =YEAR(CP4) -> 1900 | CQ48: =YEAR(CQ4) -> 1900 | CR48: =YEAR(CR4) -> 1900 | CS48: =YEAR(CS4) -> 1900 | CT48: =YEAR(CT4) -> 1900 | CU48: =YEAR(CU4) -> 1900 | CV48: =YEAR(CV4) -> 1900 | CW48: =YEAR(CW4) -> 1900 | CX48: =YEAR(CX4) -> 1900 | CY48: =YEAR(CY4) -> 1900 | CZ48: =YEAR(CZ4) -> 1900 | DA48: =YEAR(DA4) -> 1900 | DB48: =YEAR(DB4) -> 1900 | DC48: =YEAR(DC4) -> 1900 | DD48: =YEAR(DD4) -> 1900 | DE48: =YEAR(DE4) -> 1900 | DF48: =YEAR(DF4) -> 1900 | DG48: =YEAR(DG4) -> 1900 | DH48: =YEAR(DH4) -> 1900 | DI48: =YEAR(DI4) -> 1900 | DJ48: =YEAR(DJ4) -> 1900 | DK48: =YEAR(DK4) -> 1900 | DL48: =YEAR(DL4) -> 1900 | DM48: =YEAR(DM4) -> 1900 | DN48: =YEAR(DN4) -> 1900 | DO48: =YEAR(DO4) -> 1900 | DP48: =YEAR(DP4) -> 1900 | DQ48: =YEAR(DQ4) -> 1900 | DR48: =YEAR(DR4) -> 1900 | DS48: =YEAR(DS4) -> 1900 | DT48: =YEAR(DT4) -> 1900 | DU48: =YEAR(DU4) -> 1900 | DV48: =YEAR(DV4) -> 1900 | DW48: =YEAR(DW4) -> 1900 | DX48: =YEAR(DX4) -> 1900 | DY48: =YEAR(DY4) -> 1900 | DZ48: =YEAR(DZ4) -> 1900 | EA48: =YEAR(EA4) -> 1900 | EB48: =YEAR(EB4) -> 1900 | EC48: =YEAR(EC4) -> 1900 | ED48: =YEAR(ED4) -> 1900 | EE48: =YEAR(EE4) -> 1900 | EF48: =YEAR(EF4) -> 1900 | EG48: =YEAR(EG4) -> 1900 | EH48: =YEAR(EH4) -> 1900 | EI48: =YEAR(EI4) -> 1900 | EJ48: =YEAR(EJ4) -> 1900 | EK48: =YEAR(EK4) -> 1900 | EL48: =YEAR(EL4) -> 1900 | EM48: =YEAR(EM4) -> 1900 | EN48: =YEAR(EN4) -> 1900 | EO48: =YEAR(EO4) -> 1900 | EP48: =YEAR(EP4) -> 1900 | EQ48: =YEAR(EQ4) -> 1900 | ER48: =YEAR(ER4) -> 1900 | ES48: =YEAR(ES4) -> 1900 | ET48: =YEAR(ET4) -> 1900 | EU48: =YEAR(EU4) -> 1900 | EV48: =YEAR(EV4) -> 1900 | EW48: =YEAR(EW4) -> 1900 | EX48: =YEAR(EX4) -> 1900 | EY48: =YEAR(EY4) -> 1900 | EZ48: =YEAR(EZ4) -> 1900 | FA48: =YEAR(FA4) -> 1900 | FB48: =YEAR(FB4) -> 1900 | FC48: =YEAR(FC4) -> 1900 | FD48: =YEAR(FD4) -> 1900 | FE48: =YEAR(FE4) -> 1900 | FF48: =YEAR(FF4) -> 1900 | FG48: =YEAR(FG4) -> 1900 | FH48: =YEAR(FH4) -> 1900 | FI48: =YEAR(FI4) -> 1900 | FJ48: =YEAR(FJ4) -> 1900 | FK48: =YEAR(FK4) -> 1900 | FL48: =YEAR(FL4) -> 1900 | FM48: =YEAR(FM4) -> 1900 | FN48: =YEAR(FN4) -> 1900 | FO48: =YEAR(FO4) -> 1900 | FP48: =YEAR(FP4) -> 1900 | FQ48: =YEAR(FQ4) -> 1900 | FR48: =YEAR(FR4) -> 1900 | FS48: =YEAR(FS4) -> 1900 | FT48: =YEAR(FT4) -> 1900 | FU48: =YEAR(FU4) -> 1900 | FV48: =YEAR(FV4) -> 1900 | FW48: =YEAR(FW4) -> 1900 | FX48: =YEAR(FX4) -> 1900 | FY48: =YEAR(FY4) -> 1900 | FZ48: =YEAR(FZ4) -> 1900 | GA48: =YEAR(GA4) -> 1900 | GB48: =YEAR(GB4) -> 1900 | GC48: =YEAR(GC4) -> 1900 | GD48: =YEAR(GD4) -> 1900 | GE48: =YEAR(GE4) -> 1900 | GF48: =YEAR(GF4) -> 1900 | GG48: =YEAR(GG4) -> 1900 | GH48: =YEAR(GH4) -> 1900 | GI48: =YEAR(GI4) -> 1900 | GJ48: =YEAR(GJ4) -> 1900 | GK48: =YEAR(GK4) -> 1900 | GL48: =YEAR(GL4) -> 1900 | GM48: =YEAR(GM4) -> 1900 | GN48: =YEAR(GN4) -> 1900 | GO48: =YEAR(GO4) -> 1900 | GP48: =YEAR(GP4) -> 1900 | GQ48: =YEAR(GQ4) -> 1900 | GR48: =YEAR(GR4) -> 1900 | GS48: =YEAR(GS4) -> 1900 | GT48: =YEAR(GT4) -> 1900 | GU48: =YEAR(GU4) -> 1900 | GV48: =YEAR(GV4) -> 1900 | GW48: =YEAR(GW4) -> 1900 | GX48: =YEAR(GX4) -> 1900 | GY48: =YEAR(GY4) -> 1900 | GZ48: =YEAR(GZ4) -> 1900 | HA48: =YEAR(HA4) -> 1900 | HB48: =YEAR(HB4) -> 1900 | HC48: =YEAR(HC4) -> 1900 | HD48: =YEAR(HD4) -> 1900 | HE48: =YEAR(HE4) -> 1900 | HF48: =YEAR(HF4) -> 1900 | HG48: =YEAR(HG4) -> 1900 | HH48: =YEAR(HH4) -> 1900 | HI48: =YEAR(HI4) -> 1900 | HJ48: =YEAR(HJ4) -> 1900 | HK48: =YEAR(HK4) -> 1900 | HL48: =YEAR(HL4) -> 1900 | HM48: =YEAR(HM4) -> 1900 | HN48: =YEAR(HN4) -> 1900 | HO48: =YEAR(HO4) -> 1900 | HP48: =YEAR(HP4) -> 1900 | HQ48: =YEAR(HQ4) -> 1900 | HR48: =YEAR(HR4) -> 1900 | HS48: =YEAR(HS4) -> 1900 | HT48: =YEAR(HT4) -> 1900 | HU48: =YEAR(HU4) -> 1900 | HV48: =YEAR(HV4) -> 1900 | HW48: =YEAR(HW4) -> 1900 | HX48: =YEAR(HX4) -> 1900 | HY48: =YEAR(HY4) -> 1900 | HZ48: =YEAR(HZ4) -> 1900 | IA48: =YEAR(IA4) -> 1900 | IB48: =YEAR(IB4) -> 1900 | IC48: =YEAR(IC4) -> 1900 | ID48: =YEAR(ID4) -> 1900 | IE48: =YEAR(IE4) -> 1900 | IF48: =YEAR(IF4) -> 1900 | IG48: =YEAR(IG4) -> 1900 | IH48: =YEAR(IH4) -> 1900 | II48: =YEAR(II4) -> 1900 | IJ48: =YEAR(IJ4) -> 1900 | IK48: =YEAR(IK4) -> 1900 | IL48: =YEAR(IL4) -> 1900 | IM48: =YEAR(IM4) -> 1900 | IN48: =YEAR(IN4) -> 1900 | IO48: =YEAR(IO4) -> 1900 | IP48: =YEAR(IP4) -> 1900 | IQ48: =YEAR(IQ4) -> 1900 | IR48: =YEAR(IR4) -> 1900 | IS48: =YEAR(IS4) -> 1900 | IT48: =YEAR(IT4) -> 1900 | IU48: =YEAR(IU4) -> 1900 | IV48: =YEAR(IV4) -> 1900 | IW48: =YEAR(IW4) -> 1900 | IX48: =YEAR(IX4) -> 1900 | IY48: =YEAR(IY4) -> 1900 | IZ48: =YEAR(IZ4) -> 1900 | JA48: =YEAR(JA4) -> 1900 | JB48: =YEAR(JB4) -> 1900 | JC48: =YEAR(JC4) -> 1900 | JD48: =YEAR(JD4) -> 1900 | JE48: =YEAR(JE4) -> 1900 | JF48: =YEAR(JF4) -> 1900 | JG48: =YEAR(JG4) -> 1900 | JH48: =YEAR(JH4) -> 1900 | JI48: =YEAR(JI4) -> 1900 | JJ48: =YEAR(JJ4) -> 1900 | JK48: =YEAR(JK4) -> 1900 | JL48: =YEAR(JL4) -> 1900 | JM48: =YEAR(JM4) -> 1900 | JN48: =YEAR(JN4) -> 1900 | JO48: =YEAR(JO4) -> 1900 | JP48: =YEAR(JP4) -> 1900 | JQ48: =YEAR(JQ4) -> 1900 | JR48: =YEAR(JR4) -> 1900 | JS48: =YEAR(JS4) -> 1900 | JT48: =YEAR(JT4) -> 1900 | JU48: =YEAR(JU4) -> 1900 | JV48: =YEAR(JV4) -> 1900 | JW48: =YEAR(JW4) -> 1900 | JX48: =YEAR(JX4) -> 1900 | JY48: =YEAR(JY4) -> 1900 | JZ48: =YEAR(JZ4) -> 1900 | KA48: =YEAR(KA4) -> 1900 | KB48: =YEAR(KB4) -> 1900 | KC48: =YEAR(KC4) -> 1900 | KD48: =YEAR(KD4) -> 1900 | KE48: =YEAR(KE4) -> 1900 | KF48: =YEAR(KF4) -> 1900 | KG48: =YEAR(KG4) -> 1900 | KH48: =YEAR(KH4) -> 1900 | KI48: =YEAR(KI4) -> 1900 | KJ48: =YEAR(KJ4) -> 1900 | KK48: =YEAR(KK4) -> 1900 | KL48: =YEAR(KL4) -> 1900 | KM48: =YEAR(KM4) -> 1900 | KN48: =YEAR(KN4) -> 1900 | KO48: =YEAR(KO4) -> 1900 | KP48: =YEAR(KP4) -> 1900 | KQ48: =YEAR(KQ4) -> 1900 | KR48: =YEAR(KR4) -> 1900 | KS48: =YEAR(KS4) -> 1900 | KT48: =YEAR(KT4) -> 1900 | KU48: =YEAR(KU4) -> 1900 | KV48: =YEAR(KV4) -> 1900 | KW48: =YEAR(KW4) -> 1900 | KX48: =YEAR(KX4) -> 1900 | KY48: =YEAR(KY4) -> 1900 | KZ48: =YEAR(KZ4) -> 1900 | LA48: =YEAR(LA4) -> 1900 | LB48: =YEAR(LB4) -> 1900 | LC48: =YEAR(LC4) -> 1900 | LD48: =YEAR(LD4) -> 1900 | LE48: =YEAR(LE4) -> 1900 | LF48: =YEAR(LF4) -> 1900 | LG48: =YEAR(LG4) -> 1900 | LH48: =YEAR(LH4) -> 1900 | LI48: =YEAR(LI4) -> 1900 | LJ48: =YEAR(LJ4) -> 1900 | LK48: =YEAR(LK4) -> 1900 | LL48: =YEAR(LL4) -> 1900 | LM48: =YEAR(LM4) -> 1900 | LN48: =YEAR(LN4) -> 1900 | LO48: =YEAR(LO4) -> 1900 | LP48: =YEAR(LP4) -> 1900 | LQ48: =YEAR(LQ4) -> 1900 | LR48: =YEAR(LR4) -> 1900 | LS48: =YEAR(LS4) -> 1900 | LT48: =YEAR(LT4) -> 1900 | LU48: =YEAR(LU4) -> 1900 | LV48: =YEAR(LV4) -> 1900 | LW48: =YEAR(LW4) -> 1900 | LX48: =YEAR(LX4) -> 1900 | LY48: =YEAR(LY4) -> 1900 | LZ48: =YEAR(LZ4) -> 1900 | MA48: =YEAR(MA4) -> 1900 | MB48: =YEAR(MB4) -> 1900 | MC48: =YEAR(MC4) -> 1900 | MD48: =YEAR(MD4) -> 1900 | ME48: =YEAR(ME4) -> 1900 | MF48: =YEAR(MF4) -> 1900 | MG48: =YEAR(MG4) -> 1900 | MH48: =YEAR(MH4) -> 1900 | MI48: =YEAR(MI4) -> 1900 | MJ48: =YEAR(MJ4) -> 1900 | MK48: =YEAR(MK4) -> 1900 | ML48: =YEAR(ML4) -> 1900 | MM48: =YEAR(MM4) -> 1900 | MN48: =YEAR(MN4) -> 1900 | MO48: =YEAR(MO4) -> 1900 | MP48: =YEAR(MP4) -> 1900 | MQ48: =YEAR(MQ4) -> 1900 | MR48: =YEAR(MR4) -> 1900 | MS48: =YEAR(MS4) -> 1900 | MT48: =YEAR(MT4) -> 1900 | MU48: =YEAR(MU4) -> 1900 | MV48: =YEAR(MV4) -> 1900 | MW48: =YEAR(MW4) -> 1900 | MX48: =YEAR(MX4) -> 1900 | MY48: =YEAR(MY4) -> 1900 | MZ48: =YEAR(MZ4) -> 1900 | NA48: =YEAR(NA4) -> 1900 | NB48: =YEAR(NB4) -> 1900 | NC48: =YEAR(NC4) -> 1900 | ND48: =YEAR(ND4) -> 1900 | NE48: =YEAR(NE4) -> 1900 | NF48: =YEAR(NF4) -> 1900 | NG48: =YEAR(NG4) -> 1900 | NH48: =YEAR(NH4) -> 1900 | NI48: =YEAR(NI4) -> 1900 | NJ48: =YEAR(NJ4) -> 1900 | NK48: =YEAR(NK4) -> 1900 | NL48: =YEAR(NL4) -> 1900 | NM48: =YEAR(NM4) -> 1900 | NN48: =YEAR(NN4) -> 1900 | NO48: =YEAR(NO4) -> 1900 | NP48: =YEAR(NP4) -> 1900 | NQ48: =YEAR(NQ4) -> 1900 | NR48: =YEAR(NR4) -> 1900 | NS48: =YEAR(NS4) -> 1900 | NT48: =YEAR(NT4) -> 1900 | NU48: =YEAR(NU4) -> 1900 | NV48: =YEAR(NV4) -> 1900 | NW48: =YEAR(NW4) -> 1900 | NX48: =YEAR(NX4) -> 1900 | NY48: =YEAR(NY4) -> 1900 | NZ48: =YEAR(NZ4) -> 1900 | OA48: =YEAR(OA4) -> 1900 | OB48: =YEAR(OB4) -> 1900 | OC48: =YEAR(OC4) -> 1900 | OD48: =YEAR(OD4) -> 1900 | OE48: =YEAR(OE4) -> 1900 | OF48: =YEAR(OF4) -> 1900 | OG48: =YEAR(OG4) -> 1900 | OH48: =YEAR(OH4) -> 1900 | OI48: =YEAR(OI4) -> 1900 | OJ48: =YEAR(OJ4) -> 1900 | OK48: =YEAR(OK4) -> 1900 | OL48: =YEAR(OL4) -> 1900 | OM48: =YEAR(OM4) -> 1900 | ON48: =YEAR(ON4) -> 1900 | OO48: =YEAR(OO4) -> 1900 | OP48: =YEAR(OP4) -> 1900 | OQ48: =YEAR(OQ4) -> 1900 | OR48: =YEAR(OR4) -> 1900 | OS48: =YEAR(OS4) -> 1900 | OT48: =YEAR(OT4) -> 1900 | OU48: =YEAR(OU4) -> 1900 | OV48: =YEAR(OV4) -> 1900 | OW48: =YEAR(OW4) -> 1900 | OX48: =YEAR(OX4) -> 1900 | OY48: =YEAR(OY4) -> 1900 | OZ48: =YEAR(OZ4) -> 1900 | PA48: =YEAR(PA4) -> 1900 | PB48: =YEAR(PB4) -> 1900 | PC48: =YEAR(PC4) -> 1900 | PD48: =YEAR(PD4) -> 1900 | PE48: =YEAR(PE4) -> 1900 | PF48: =YEAR(PF4) -> 1900 | PG48: =YEAR(PG4) -> 1900 | PH48: =YEAR(PH4) -> 1900 | PI48: =YEAR(PI4) -> 1900 | PJ48: =YEAR(PJ4) -> 1900 | PK48: =YEAR(PK4) -> 1900 | PL48: =YEAR(PL4) -> 1900 | PM48: =YEAR(PM4) -> 1900 | PN48: =YEAR(PN4) -> 1900 | PO48: =YEAR(PO4) -> 1900 | PP48: =YEAR(PP4) -> 1900 | PQ48: =YEAR(PQ4) -> 1900 | PR48: =YEAR(PR4) -> 1900 | PS48: =YEAR(PS4) -> 1900 | PT48: =YEAR(PT4) -> 1900 | PU48: =YEAR(PU4) -> 1900 | PV48: =YEAR(PV4) -> 1900 | PW48: =YEAR(PW4) -> 1900 | PX48: =YEAR(PX4) -> 1900 | PY48: =YEAR(PY4) -> 1900 | PZ48: =YEAR(PZ4) -> 1900 | QA48: =YEAR(QA4) -> 1900 | QB48: =YEAR(QB4) -> 1900 | QC48: =YEAR(QC4) -> 1900 | QD48: =YEAR(QD4) -> 1900 | QE48: =YEAR(QE4) -> 1900 | QF48: =YEAR(QF4) -> 1900 | QG48: =YEAR(QG4) -> 1900 | QH48: =YEAR(QH4) -> 1900 | QI48: =YEAR(QI4) -> 1900 | QJ48: =YEAR(QJ4) -> 1900 | QK48: =YEAR(QK4) -> 1900 | QL48: =YEAR(QL4) -> 1900 | QM48: =YEAR(QM4) -> 1900 | QN48: =YEAR(QN4) -> 1900 | QO48: =YEAR(QO4) -> 1900 | QP48: =YEAR(QP4) -> 1900 | QQ48: =YEAR(QQ4) -> 1900 | QR48: =YEAR(QR4) -> 1900 | QS48: =YEAR(QS4) -> 1900 | QT48: =YEAR(QT4) -> 1900 | QU48: =YEAR(QU4) -> 1900 | QV48: =YEAR(QV4) -> 1900 | QW48: =YEAR(QW4) -> 1900 | QX48: =YEAR(QX4) -> 1900 | QY48: =YEAR(QY4) -> 1900 | QZ48: =YEAR(QZ4) -> 1900 | RA48: =YEAR(RA4) -> 1900 | RB48: =YEAR(RB4) -> 1900 | RC48: =YEAR(RC4) -> 1900 | RD48: =YEAR(RD4) -> 1900 | RE48: =YEAR(RE4) -> 1900 | RF48: =YEAR(RF4) -> 1900 | RG48: =YEAR(RG4) -> 1900 | RH48: =YEAR(RH4) -> 1900 | RI48: =YEAR(RI4) -> 1900 | RJ48: =YEAR(RJ4) -> 1900 | RK48: =YEAR(RK4) -> 1900 | RL48: =YEAR(RL4) -> 1900 | RM48: =YEAR(RM4) -> 1900 | RN48: =YEAR(RN4) -> 1900 | RO48: =YEAR(RO4) -> 1900 | RP48: =YEAR(RP4) -> 1900 | RQ48: =YEAR(RQ4) -> 1900 | RR48: =YEAR(RR4) -> 1900 | RS48: =YEAR(RS4) -> 1900 | RT48: =YEAR(RT4) -> 1900 | RU48: =YEAR(RU4) -> 1900 | RV48: =YEAR(RV4) -> 1900 | RW48: =YEAR(RW4) -> 1900 | RX48: =YEAR(RX4) -> 1900 | RY48: =YEAR(RY4) -> 1900 | RZ48: =YEAR(RZ4) -> 1900 | SA48: =YEAR(SA4) -> 1900 | SB48: =YEAR(SB4) -> 1900 | SC48: =YEAR(SC4) -> 1900 | SD48: =YEAR(SD4) -> 1900 | SE48: =YEAR(SE4) -> 1900 | SF48: =YEAR(SF4) -> 1900 | SG48: =YEAR(SG4) -> 1900 | SH48: =YEAR(SH4) -> 1900 | SI48: =YEAR(SI4) -> 1900 | SJ48: =YEAR(SJ4) -> 1900 | SK48: =YEAR(SK4) -> 1900 | SL48: =YEAR(SL4) -> 1900 | SM48: =YEAR(SM4) -> 1900 | SN48: =YEAR(SN4) -> 1900 | SO48: =YEAR(SO4) -> 1900 | SP48: =YEAR(SP4) -> 1900 | SQ48: =YEAR(SQ4) -> 1900 | SR48: =YEAR(SR4) -> 1900 | SS48: =YEAR(SS4) -> 1900 | ST48: =YEAR(ST4) -> 1900 | SU48: =YEAR(SU4) -> 1900 | SV48: =YEAR(SV4) -> 1900 | SW48: =YEAR(SW4) -> 1900 | SX48: =YEAR(SX4) -> 1900 | SY48: =YEAR(SY4) -> 1900 | SZ48: =YEAR(SZ4) -> 1900 | TA48: =YEAR(TA4) -> 1900 | TB48: =YEAR(TB4) -> 1900 | TC48: =YEAR(TC4) -> 1900 | TD48: =YEAR(TD4) -> 1900 | TE48: =YEAR(TE4) -> 1900 | TF48: =YEAR(TF4) -> 1900 | TG48: =YEAR(TG4) -> 1900 | TH48: =YEAR(TH4) -> 1900 | TI48: =YEAR(TI4) -> 1900 | TJ48: =YEAR(TJ4) -> 1900 | TK48: =YEAR(TK4) -> 1900 | TL48: =YEAR(TL4) -> 1900 | TM48: =YEAR(TM4) -> 1900 | TN48: =YEAR(TN4) -> 1900 | TO48: =YEAR(TO4) -> 1900 | TP48: =YEAR(TP4) -> 1900 | TQ48: =YEAR(TQ4) -> 1900 | TR48: =YEAR(TR4) -> 1900 | TS48: =YEAR(TS4) -> 1900 | TT48: =YEAR(TT4) -> 1900 | TU48: =YEAR(TU4) -> 1900 | TV48: =YEAR(TV4) -> 1900 | TW48: =YEAR(TW4) -> 1900 | TX48: =YEAR(TX4) -> 1900 | TY48: =YEAR(TY4) -> 1900 | TZ48: =YEAR(TZ4) -> 1900 | UA48: =YEAR(UA4) -> 1900 | UB48: =YEAR(UB4) -> 1900 | UC48: =YEAR(UC4) -> 1900 | UD48: =YEAR(UD4) -> 1900 | UE48: =YEAR(UE4) -> 1900 | UF48: =YEAR(UF4) -> 1900 | UG48: =YEAR(UG4) -> 1900 | UH48: =YEAR(UH4) -> 1900 | UI48: =YEAR(UI4) -> 1900 | UJ48: =YEAR(UJ4) -> 1900 | UK48: =YEAR(UK4) -> 1900 | UL48: =YEAR(UL4) -> 1900 | UM48: =YEAR(UM4) -> 1900 | UN48: =YEAR(UN4) -> 1900 | UO48: =YEAR(UO4) -> 1900 | UP48: =YEAR(UP4) -> 1900 | UQ48: =YEAR(UQ4) -> 1900 | UR48: =YEAR(UR4) -> 1900 | US48: =YEAR(US4) -> 1900 | UT48: =YEAR(UT4) -> 1900 | UU48: =YEAR(UU4) -> 1900 | UV48: =YEAR(UV4) -> 1900 | UW48: =YEAR(UW4) -> 1900 | UX48: =YEAR(UX4) -> 1900 | UY48: =YEAR(UY4) -> 1900 | UZ48: =YEAR(UZ4) -> 1900 | VA48: =YEAR(VA4) -> 1900 | VB48: =YEAR(VB4) -> 1900 | VC48: =YEAR(VC4) -> 1900 | VD48: =YEAR(VD4) -> 1900 | VE48: =YEAR(VE4) -> 1900 | VF48: =YEAR(VF4) -> 1900 | VG48: =YEAR(VG4) -> 1900 | VH48: =YEAR(VH4) -> 1900 | VI48: =YEAR(VI4) -> 1900 | VJ48: =YEAR(VJ4) -> 1900 | VK48: =YEAR(VK4) -> 1900 | VL48: =YEAR(VL4) -> 1900 | VM48: =YEAR(VM4) -> 1900 | VN48: =YEAR(VN4) -> 1900 | VO48: =YEAR(VO4) -> 1900 | VP48: =YEAR(VP4) -> 1900 | VQ48: =YEAR(VQ4) -> 1900 | VR48: =YEAR(VR4) -> 1900 | VS48: =YEAR(VS4) -> 1900 | VT48: =YEAR(VT4) -> 1900 | VU48: =YEAR(VU4) -> 1900 | VV48: =YEAR(VV4) -> 1900 | VW48: =YEAR(VW4) -> 1900 | VX48: =YEAR(VX4) -> 1900 | VY48: =YEAR(VY4) -> 1900 | VZ48: =YEAR(VZ4) -> 1900 | WA48: =YEAR(WA4) -> 1900 | WB48: =YEAR(WB4) -> 1900 | WC48: =YEAR(WC4) -> 1900 | WD48: =YEAR(WD4) -> 1900 | WE48: =YEAR(WE4) -> 1900 | WF48: =YEAR(WF4) -> 1900 | WG48: =YEAR(WG4) -> 1900 | WH48: =YEAR(WH4) -> 1900 | WI48: =YEAR(WI4) -> 1900 | WJ48: =YEAR(WJ4) -> 1900 | WK48: =YEAR(WK4) -> 1900 | WL48: =YEAR(WL4) -> 1900 | WM48: =YEAR(WM4) -> 1900 | WN48: =YEAR(WN4) -> 1900 | WO48: =YEAR(WO4) -> 1900 | WP48: =YEAR(WP4) -> 1900 | WQ48: =YEAR(WQ4) -> 1900 | WR48: =YEAR(WR4) -> 1900 | WS48: =YEAR(WS4) -> 1900 | WT48: =YEAR(WT4) -> 1900 | WU48: =YEAR(WU4) -> 1900 | WV48: =YEAR(WV4) -> 1900 | WW48: =YEAR(WW4) -> 1900 | WX48: =YEAR(WX4) -> 1900 | WY48: =YEAR(WY4) -> 1900 | WZ48: =YEAR(WZ4) -> 1900 | XA48: =YEAR(XA4) -> 1900 | XB48: =YEAR(XB4) -> 1900 | XC48: =YEAR(XC4) -> 1900 | XD48: =YEAR(XD4) -> 1900 | XE48: =YEAR(XE4) -> 1900 | XF48: =YEAR(XF4) -> 1900 | XG48: =YEAR(XG4) -> 1900 | XH48: =YEAR(XH4) -> 1900 | XI48: =YEAR(XI4) -> 1900 | XJ48: =YEAR(XJ4) -> 1900 | XK48: =YEAR(XK4) -> 1900 | XL48: =YEAR(XL4) -> 1900 | XM48: =YEAR(XM4) -> 1900 | XN48: =YEAR(XN4) -> 1900 | XO48: =YEAR(XO4) -> 1900 | XP48: =YEAR(XP4) -> 1900 | XQ48: =YEAR(XQ4) -> 1900 | XR48: =YEAR(XR4) -> 1900 | XS48: =YEAR(XS4) -> 1900 | XT48: =YEAR(XT4) -> 1900 | XU48: =YEAR(XU4) -> 1900 | XV48: =YEAR(XV4) -> 1900 | XW48: =YEAR(XW4) -> 1900 | XX48: =YEAR(XX4) -> 1900 | XY48: =YEAR(XY4) -> 1900 | XZ48: =YEAR(XZ4) -> 1900 | YA48: =YEAR(YA4) -> 1900 | YB48: =YEAR(YB4) -> 1900 | YC48: =YEAR(YC4) -> 1900 | YD48: =YEAR(YD4) -> 1900 | YE48: =YEAR(YE4) -> 1900 | YF48: =YEAR(YF4) -> 1900 | YG48: =YEAR(YG4) -> 1900 | YH48: =YEAR(YH4) -> 1900 | YI48: =YEAR(YI4) -> 1900 | YJ48: =YEAR(YJ4) -> 1900 | YK48: =YEAR(YK4) -> 1900 | YL48: =YEAR(YL4) -> 1900 | YM48: =YEAR(YM4) -> 1900 | YN48: =YEAR(YN4) -> 1900 | YO48: =YEAR(YO4) -> 1900 | YP48: =YEAR(YP4) -> 1900 | YQ48: =YEAR(YQ4) -> 1900 | YR48: =YEAR(YR4) -> 1900 | YS48: =YEAR(YS4) -> 1900 | YT48: =YEAR(YT4) -> 1900 | YU48: =YEAR(YU4) -> 1900 | YV48: =YEAR(YV4) -> 1900 | YW48: =YEAR(YW4) -> 1900 | YX48: =YEAR(YX4) -> 1900 | YY48: =YEAR(YY4) -> 1900 | YZ48: =YEAR(YZ4) -> 1900 | ZA48: =YEAR(ZA4) -> 1900 | ZB48: =YEAR(ZB4) -> 1900 | ZC48: =YEAR(ZC4) -> 1900 | ZD48: =YEAR(ZD4) -> 1900 | ZE48: =YEAR(ZE4) -> 1900 | ZF48: =YEAR(ZF4) -> 1900 | ZG48: =YEAR(ZG4) -> 1900 | ZH48: =YEAR(ZH4) -> 1900 | ZI48: =YEAR(ZI4) -> 1900 | ZJ48: =YEAR(ZJ4) -> 1900 | ZK48: =YEAR(ZK4) -> 1900 | ZL48: =YEAR(ZL4) -> 1900 | ZM48: =YEAR(ZM4) -> 1900 | ZN48: =YEAR(ZN4) -> 1900 | ZO48: =YEAR(ZO4) -> 1900 | ZP48: =YEAR(ZP4) -> 1900 | ZQ48: =YEAR(ZQ4) -> 1900 | ZR48: =YEAR(ZR4) -> 1900 | ZS48: =YEAR(ZS4) -> 1900 | ZT48: =YEAR(ZT4) -> 1900 | ZU48: =YEAR(ZU4) -> 1900 | ZV48: =YEAR(ZV4) -> 1900 | ZW48: =YEAR(ZW4) -> 1900 | ZX48: =YEAR(ZX4) -> 1900 | ZY48: =YEAR(ZY4) -> 1900 | ZZ48: =YEAR(ZZ4) -> 1900 | AAA48: =YEAR(AAA4) -> 1900 | AAB48: =YEAR(AAB4) -> 1900 | AAC48: =YEAR(AAC4) -> 1900 | AAD48: =YEAR(AAD4) -> 1900 | AAE48: =YEAR(AAE4) -> 1900 | AAF48: =YEAR(AAF4) -> 1900 | AAG48: =YEAR(AAG4) -> 1900 | AAH48: =YEAR(AAH4) -> 1900 | AAI48: =YEAR(AAI4) -> 1900 | AAJ48: =YEAR(AAJ4) -> 1900 | AAK48: =YEAR(AAK4) -> 1900 | AAL48: =YEAR(AAL4) -> 1900 | AAM48: =YEAR(AAM4) -> 1900 | AAN48: =YEAR(AAN4) -> 1900 | AAO48: =YEAR(AAO4) -> 1900 | AAP48: =YEAR(AAP4) -> 1900 | AAQ48: =YEAR(AAQ4) -> 1900 | AAR48: =YEAR(AAR4) -> 1900 | AAS48: =YEAR(AAS4) -> 1900 | AAT48: =YEAR(AAT4) -> 1900 | AAU48: =YEAR(AAU4) -> 1900 | AAV48: =YEAR(AAV4) -> 1900 | AAW48: =YEAR(AAW4) -> 1900 | AAX48: =YEAR(AAX4) -> 1900 | AAY48: =YEAR(AAY4) -> 1900 | AAZ48: =YEAR(AAZ4) -> 1900 | ABA48: =YEAR(ABA4) -> 1900 | ABB48: =YEAR(ABB4) -> 1900 | ABC48: =YEAR(ABC4) -> 1900 | ABD48: =YEAR(ABD4) -> 1900 | ABE48: =YEAR(ABE4) -> 1900 | ABF48: =YEAR(ABF4) -> 1900 | ABG48: =YEAR(ABG4) -> 1900 | ABH48: =YEAR(ABH4) -> 1900 | ABI48: =YEAR(ABI4) -> 1900 | ABJ48: =YEAR(ABJ4) -> 1900 | ABK48: =YEAR(ABK4) -> 1900 | ABL48: =YEAR(ABL4) -> 1900 | ABM48: =YEAR(ABM4) -> 1900 | ABN48: =YEAR(ABN4) -> 1900 | ABO48: =YEAR(ABO4) -> 1900 | ABP48: =YEAR(ABP4) -> 1900 | ABQ48: =YEAR(ABQ4) -> 1900 | ABR48: =YEAR(ABR4) -> 1900 | ABS48: =YEAR(ABS4) -> 1900 | ABT48: =YEAR(ABT4) -> 1900 | ABU48: =YEAR(ABU4) -> 1900 | ABV48: =YEAR(ABV4) -> 1900 | ABW48: =YEAR(ABW4) -> 1900 | ABX48: =YEAR(ABX4) -> 1900 | ABY48: =YEAR(ABY4) -> 1900 | ABZ48: =YEAR(ABZ4) -> 1900
D49: Annual Inflation Rate | E49: % p.a.
D50: Inflation Rate - Periodic | E50: % p.a. | I50: % p.p. | K50: =(1+K49)^(1/(months/Months_Period))-1 -> 0 | L50: =(1+L49)^(1/(months/Months_Period))-1 -> 0 | M50: =(1+M49)^(1/(months/Months_Period))-1 -> 0 | N50: =(1+N49)^(1/(months/Months_Period))-1 -> 0 | O50: =(1+O49)^(1/(months/Months_Period))-1 -> 0 | P50: =(1+P49)^(1/(months/Months_Period))-1 -> 0 | Q50: =(1+Q49)^(1/(months/Months_Period))-1 -> 0 | R50: =(1+R49)^(1/(months/Months_Period))-1 -> 0 | S50: =(1+S49)^(1/(months/Months_Period))-1 -> 0 | T50: =(1+T49)^(1/(months/Months_Period))-1 -> 0 | U50: =(1+U49)^(1/(months/Months_Period))-1 -> 0 | V50: =(1+V49)^(1/(months/Months_Period))-1 -> 0 | W50: =(1+W49)^(1/(months/Months_Period))-1 -> 0 | X50: =(1+X49)^(1/(months/Months_Period))-1 -> 0 | Y50: =(1+Y49)^(1/(months/Months_Period))-1 -> 0 | Z50: =(1+Z49)^(1/(months/Months_Period))-1 -> 0 | AA50: =(1+AA49)^(1/(months/Months_Period))-1 -> 0 | AB50: =(1+AB49)^(1/(months/Months_Period))-1 -> 0 | AC50: =(1+AC49)^(1/(months/Months_Period))-1 -> 0 | AD50: =(1+AD49)^(1/(months/Months_Period))-1 -> 0 | AE50: =(1+AE49)^(1/(months/Months_Period))-1 -> 0 | AF50: =(1+AF49)^(1/(months/Months_Period))-1 -> 0 | AG50: =(1+AG49)^(1/(months/Months_Period))-1 -> 0 | AH50: =(1+AH49)^(1/(months/Months_Period))-1 -> 0 | AI50: =(1+AI49)^(1/(months/Months_Period))-1 -> 0 | AJ50: =(1+AJ49)^(1/(months/Months_Period))-1 -> 0 | AK50: =(1+AK49)^(1/(months/Months_Period))-1 -> 0 | AL50: =(1+AL49)^(1/(months/Months_Period))-1 -> 0 | AM50: =(1+AM49)^(1/(months/Months_Period))-1 -> 0 | AN50: =(1+AN49)^(1/(months/Months_Period))-1 -> 0 | AO50: =(1+AO49)^(1/(months/Months_Period))-1 -> 0 | AP50: =(1+AP49)^(1/(months/Months_Period))-1 -> 0 | AQ50: =(1+AQ49)^(1/(months/Months_Period))-1 -> 0 | AR50: =(1+AR49)^(1/(months/Months_Period))-1 -> 0 | AS50: =(1+AS49)^(1/(months/Months_Period))-1 -> 0 | AT50: =(1+AT49)^(1/(months/Months_Period))-1 -> 0 | AU50: =(1+AU49)^(1/(months/Months_Period))-1 -> 0 | AV50: =(1+AV49)^(1/(months/Months_Period))-1 -> 0 | AW50: =(1+AW49)^(1/(months/Months_Period))-1 -> 0 | AX50: =(1+AX49)^(1/(months/Months_Period))-1 -> 0 | AY50: =(1+AY49)^(1/(months/Months_Period))-1 -> 0 | AZ50: =(1+AZ49)^(1/(months/Months_Period))-1 -> 0 | BA50: =(1+BA49)^(1/(months/Months_Period))-1 -> 0 | BB50: =(1+BB49)^(1/(months/Months_Period))-1 -> 0 | BC50: =(1+BC49)^(1/(months/Months_Period))-1 -> 0 | BD50: =(1+BD49)^(1/(months/Months_Period))-1 -> 0 | BE50: =(1+BE49)^(1/(months/Months_Period))-1 -> 0 | BF50: =(1+BF49)^(1/(months/Months_Period))-1 -> 0 | BG50: =(1+BG49)^(1/(months/Months_Period))-1 -> 0 | BH50: =(1+BH49)^(1/(months/Months_Period))-1 -> 0 | BI50: =(1+BI49)^(1/(months/Months_Period))-1 -> 0 | BJ50: =(1+BJ49)^(1/(months/Months_Period))-1 -> 0 | BK50: =(1+BK49)^(1/(months/Months_Period))-1 -> 0 | BL50: =(1+BL49)^(1/(months/Months_Period))-1 -> 0 | BM50: =(1+BM49)^(1/(months/Months_Period))-1 -> 0 | BN50: =(1+BN49)^(1/(months/Months_Period))-1 -> 0 | BO50: =(1+BO49)^(1/(months/Months_Period))-1 -> 0 | BP50: =(1+BP49)^(1/(months/Months_Period))-1 -> 0 | BQ50: =(1+BQ49)^(1/(months/Months_Period))-1 -> 0 | BR50: =(1+BR49)^(1/(months/Months_Period))-1 -> 0 | BS50: =(1+BS49)^(1/(months/Months_Period))-1 -> 0 | BT50: =(1+BT49)^(1/(months/Months_Period))-1 -> 0 | BU50: =(1+BU49)^(1/(months/Months_Period))-1 -> 0 | BV50: =(1+BV49)^(1/(months/Months_Period))-1 -> 0 | BW50: =(1+BW49)^(1/(months/Months_Period))-1 -> 0 | BX50: =(1+BX49)^(1/(months/Months_Period))-1 -> 0 | BY50: =(1+BY49)^(1/(months/Months_Period))-1 -> 0 | BZ50: =(1+BZ49)^(1/(months/Months_Period))-1 -> 0 | CA50: =(1+CA49)^(1/(months/Months_Period))-1 -> 0 | CB50: =(1+CB49)^(1/(months/Months_Period))-1 -> 0 | CC50: =(1+CC49)^(1/(months/Months_Period))-1 -> 0 | CD50: =(1+CD49)^(1/(months/Months_Period))-1 -> 0 | CE50: =(1+CE49)^(1/(months/Months_Period))-1 -> 0 | CF50: =(1+CF49)^(1/(months/Months_Period))-1 -> 0 | CG50: =(1+CG49)^(1/(months/Months_Period))-1 -> 0 | CH50: =(1+CH49)^(1/(months/Months_Period))-1 -> 0 | CI50: =(1+CI49)^(1/(months/Months_Period))-1 -> 0 | CJ50: =(1+CJ49)^(1/(months/Months_Period))-1 -> 0 | CK50: =(1+CK49)^(1/(months/Months_Period))-1 -> 0 | CL50: =(1+CL49)^(1/(months/Months_Period))-1 -> 0 | CM50: =(1+CM49)^(1/(months/Months_Period))-1 -> 0 | CN50: =(1+CN49)^(1/(months/Months_Period))-1 -> 0 | CO50: =(1+CO49)^(1/(months/Months_Period))-1 -> 0 | CP50: =(1+CP49)^(1/(months/Months_Period))-1 -> 0 | CQ50: =(1+CQ49)^(1/(months/Months_Period))-1 -> 0 | CR50: =(1+CR49)^(1/(months/Months_Period))-1 -> 0 | CS50: =(1+CS49)^(1/(months/Months_Period))-1 -> 0 | CT50: =(1+CT49)^(1/(months/Months_Period))-1 -> 0 | CU50: =(1+CU49)^(1/(months/Months_Period))-1 -> 0 | CV50: =(1+CV49)^(1/(months/Months_Period))-1 -> 0 | CW50: =(1+CW49)^(1/(months/Months_Period))-1 -> 0 | CX50: =(1+CX49)^(1/(months/Months_Period))-1 -> 0 | CY50: =(1+CY49)^(1/(months/Months_Period))-1 -> 0 | CZ50: =(1+CZ49)^(1/(months/Months_Period))-1 -> 0 | DA50: =(1+DA49)^(1/(months/Months_Period))-1 -> 0 | DB50: =(1+DB49)^(1/(months/Months_Period))-1 -> 0 | DC50: =(1+DC49)^(1/(months/Months_Period))-1 -> 0 | DD50: =(1+DD49)^(1/(months/Months_Period))-1 -> 0 | DE50: =(1+DE49)^(1/(months/Months_Period))-1 -> 0 | DF50: =(1+DF49)^(1/(months/Months_Period))-1 -> 0 | DG50: =(1+DG49)^(1/(months/Months_Period))-1 -> 0 | DH50: =(1+DH49)^(1/(months/Months_Period))-1 -> 0 | DI50: =(1+DI49)^(1/(months/Months_Period))-1 -> 0 | DJ50: =(1+DJ49)^(1/(months/Months_Period))-1 -> 0 | DK50: =(1+DK49)^(1/(months/Months_Period))-1 -> 0 | DL50: =(1+DL49)^(1/(months/Months_Period))-1 -> 0 | DM50: =(1+DM49)^(1/(months/Months_Period))-1 -> 0 | DN50: =(1+DN49)^(1/(months/Months_Period))-1 -> 0 | DO50: =(1+DO49)^(1/(months/Months_Period))-1 -> 0 | DP50: =(1+DP49)^(1/(months/Months_Period))-1 -> 0 | DQ50: =(1+DQ49)^(1/(months/Months_Period))-1 -> 0 | DR50: =(1+DR49)^(1/(months/Months_Period))-1 -> 0 | DS50: =(1+DS49)^(1/(months/Months_Period))-1 -> 0 | DT50: =(1+DT49)^(1/(months/Months_Period))-1 -> 0 | DU50: =(1+DU49)^(1/(months/Months_Period))-1 -> 0 | DV50: =(1+DV49)^(1/(months/Months_Period))-1 -> 0 | DW50: =(1+DW49)^(1/(months/Months_Period))-1 -> 0 | DX50: =(1+DX49)^(1/(months/Months_Period))-1 -> 0 | DY50: =(1+DY49)^(1/(months/Months_Period))-1 -> 0 | DZ50: =(1+DZ49)^(1/(months/Months_Period))-1 -> 0 | EA50: =(1+EA49)^(1/(months/Months_Period))-1 -> 0 | EB50: =(1+EB49)^(1/(months/Months_Period))-1 -> 0 | EC50: =(1+EC49)^(1/(months/Months_Period))-1 -> 0 | ED50: =(1+ED49)^(1/(months/Months_Period))-1 -> 0 | EE50: =(1+EE49)^(1/(months/Months_Period))-1 -> 0 | EF50: =(1+EF49)^(1/(months/Months_Period))-1 -> 0 | EG50: =(1+EG49)^(1/(months/Months_Period))-1 -> 0 | EH50: =(1+EH49)^(1/(months/Months_Period))-1 -> 0 | EI50: =(1+EI49)^(1/(months/Months_Period))-1 -> 0 | EJ50: =(1+EJ49)^(1/(months/Months_Period))-1 -> 0 | EK50: =(1+EK49)^(1/(months/Months_Period))-1 -> 0 | EL50: =(1+EL49)^(1/(months/Months_Period))-1 -> 0 | EM50: =(1+EM49)^(1/(months/Months_Period))-1 -> 0 | EN50: =(1+EN49)^(1/(months/Months_Period))-1 -> 0 | EO50: =(1+EO49)^(1/(months/Months_Period))-1 -> 0 | EP50: =(1+EP49)^(1/(months/Months_Period))-1 -> 0 | EQ50: =(1+EQ49)^(1/(months/Months_Period))-1 -> 0 | ER50: =(1+ER49)^(1/(months/Months_Period))-1 -> 0 | ES50: =(1+ES49)^(1/(months/Months_Period))-1 -> 0 | ET50: =(1+ET49)^(1/(months/Months_Period))-1 -> 0 | EU50: =(1+EU49)^(1/(months/Months_Period))-1 -> 0 | EV50: =(1+EV49)^(1/(months/Months_Period))-1 -> 0 | EW50: =(1+EW49)^(1/(months/Months_Period))-1 -> 0 | EX50: =(1+EX49)^(1/(months/Months_Period))-1 -> 0 | EY50: =(1+EY49)^(1/(months/Months_Period))-1 -> 0 | EZ50: =(1+EZ49)^(1/(months/Months_Period))-1 -> 0 | FA50: =(1+FA49)^(1/(months/Months_Period))-1 -> 0 | FB50: =(1+FB49)^(1/(months/Months_Period))-1 -> 0 | FC50: =(1+FC49)^(1/(months/Months_Period))-1 -> 0 | FD50: =(1+FD49)^(1/(months/Months_Period))-1 -> 0 | FE50: =(1+FE49)^(1/(months/Months_Period))-1 -> 0 | FF50: =(1+FF49)^(1/(months/Months_Period))-1 -> 0 | FG50: =(1+FG49)^(1/(months/Months_Period))-1 -> 0 | FH50: =(1+FH49)^(1/(months/Months_Period))-1 -> 0 | FI50: =(1+FI49)^(1/(months/Months_Period))-1 -> 0 | FJ50: =(1+FJ49)^(1/(months/Months_Period))-1 -> 0 | FK50: =(1+FK49)^(1/(months/Months_Period))-1 -> 0 | FL50: =(1+FL49)^(1/(months/Months_Period))-1 -> 0 | FM50: =(1+FM49)^(1/(months/Months_Period))-1 -> 0 | FN50: =(1+FN49)^(1/(months/Months_Period))-1 -> 0 | FO50: =(1+FO49)^(1/(months/Months_Period))-1 -> 0 | FP50: =(1+FP49)^(1/(months/Months_Period))-1 -> 0 | FQ50: =(1+FQ49)^(1/(months/Months_Period))-1 -> 0 | FR50: =(1+FR49)^(1/(months/Months_Period))-1 -> 0 | FS50: =(1+FS49)^(1/(months/Months_Period))-1 -> 0 | FT50: =(1+FT49)^(1/(months/Months_Period))-1 -> 0 | FU50: =(1+FU49)^(1/(months/Months_Period))-1 -> 0 | FV50: =(1+FV49)^(1/(months/Months_Period))-1 -> 0 | FW50: =(1+FW49)^(1/(months/Months_Period))-1 -> 0 | FX50: =(1+FX49)^(1/(months/Months_Period))-1 -> 0 | FY50: =(1+FY49)^(1/(months/Months_Period))-1 -> 0 | FZ50: =(1+FZ49)^(1/(months/Months_Period))-1 -> 0 | GA50: =(1+GA49)^(1/(months/Months_Period))-1 -> 0 | GB50: =(1+GB49)^(1/(months/Months_Period))-1 -> 0 | GC50: =(1+GC49)^(1/(months/Months_Period))-1 -> 0 | GD50: =(1+GD49)^(1/(months/Months_Period))-1 -> 0 | GE50: =(1+GE49)^(1/(months/Months_Period))-1 -> 0 | GF50: =(1+GF49)^(1/(months/Months_Period))-1 -> 0 | GG50: =(1+GG49)^(1/(months/Months_Period))-1 -> 0 | GH50: =(1+GH49)^(1/(months/Months_Period))-1 -> 0 | GI50: =(1+GI49)^(1/(months/Months_Period))-1 -> 0 | GJ50: =(1+GJ49)^(1/(months/Months_Period))-1 -> 0 | GK50: =(1+GK49)^(1/(months/Months_Period))-1 -> 0 | GL50: =(1+GL49)^(1/(months/Months_Period))-1 -> 0 | GM50: =(1+GM49)^(1/(months/Months_Period))-1 -> 0 | GN50: =(1+GN49)^(1/(months/Months_Period))-1 -> 0 | GO50: =(1+GO49)^(1/(months/Months_Period))-1 -> 0 | GP50: =(1+GP49)^(1/(months/Months_Period))-1 -> 0 | GQ50: =(1+GQ49)^(1/(months/Months_Period))-1 -> 0 | GR50: =(1+GR49)^(1/(months/Months_Period))-1 -> 0 | GS50: =(1+GS49)^(1/(months/Months_Period))-1 -> 0 | GT50: =(1+GT49)^(1/(months/Months_Period))-1 -> 0 | GU50: =(1+GU49)^(1/(months/Months_Period))-1 -> 0 | GV50: =(1+GV49)^(1/(months/Months_Period))-1 -> 0 | GW50: =(1+GW49)^(1/(months/Months_Period))-1 -> 0 | GX50: =(1+GX49)^(1/(months/Months_Period))-1 -> 0 | GY50: =(1+GY49)^(1/(months/Months_Period))-1 -> 0 | GZ50: =(1+GZ49)^(1/(months/Months_Period))-1 -> 0 | HA50: =(1+HA49)^(1/(months/Months_Period))-1 -> 0 | HB50: =(1+HB49)^(1/(months/Months_Period))-1 -> 0 | HC50: =(1+HC49)^(1/(months/Months_Period))-1 -> 0 | HD50: =(1+HD49)^(1/(months/Months_Period))-1 -> 0 | HE50: =(1+HE49)^(1/(months/Months_Period))-1 -> 0 | HF50: =(1+HF49)^(1/(months/Months_Period))-1 -> 0 | HG50: =(1+HG49)^(1/(months/Months_Period))-1 -> 0 | HH50: =(1+HH49)^(1/(months/Months_Period))-1 -> 0 | HI50: =(1+HI49)^(1/(months/Months_Period))-1 -> 0 | HJ50: =(1+HJ49)^(1/(months/Months_Period))-1 -> 0 | HK50: =(1+HK49)^(1/(months/Months_Period))-1 -> 0 | HL50: =(1+HL49)^(1/(months/Months_Period))-1 -> 0 | HM50: =(1+HM49)^(1/(months/Months_Period))-1 -> 0 | HN50: =(1+HN49)^(1/(months/Months_Period))-1 -> 0 | HO50: =(1+HO49)^(1/(months/Months_Period))-1 -> 0 | HP50: =(1+HP49)^(1/(months/Months_Period))-1 -> 0 | HQ50: =(1+HQ49)^(1/(months/Months_Period))-1 -> 0 | HR50: =(1+HR49)^(1/(months/Months_Period))-1 -> 0 | HS50: =(1+HS49)^(1/(months/Months_Period))-1 -> 0 | HT50: =(1+HT49)^(1/(months/Months_Period))-1 -> 0 | HU50: =(1+HU49)^(1/(months/Months_Period))-1 -> 0 | HV50: =(1+HV49)^(1/(months/Months_Period))-1 -> 0 | HW50: =(1+HW49)^(1/(months/Months_Period))-1 -> 0 | HX50: =(1+HX49)^(1/(months/Months_Period))-1 -> 0 | HY50: =(1+HY49)^(1/(months/Months_Period))-1 -> 0 | HZ50: =(1+HZ49)^(1/(months/Months_Period))-1 -> 0 | IA50: =(1+IA49)^(1/(months/Months_Period))-1 -> 0 | IB50: =(1+IB49)^(1/(months/Months_Period))-1 -> 0 | IC50: =(1+IC49)^(1/(months/Months_Period))-1 -> 0 | ID50: =(1+ID49)^(1/(months/Months_Period))-1 -> 0 | IE50: =(1+IE49)^(1/(months/Months_Period))-1 -> 0 | IF50: =(1+IF49)^(1/(months/Months_Period))-1 -> 0 | IG50: =(1+IG49)^(1/(months/Months_Period))-1 -> 0 | IH50: =(1+IH49)^(1/(months/Months_Period))-1 -> 0 | II50: =(1+II49)^(1/(months/Months_Period))-1 -> 0 | IJ50: =(1+IJ49)^(1/(months/Months_Period))-1 -> 0 | IK50: =(1+IK49)^(1/(months/Months_Period))-1 -> 0 | IL50: =(1+IL49)^(1/(months/Months_Period))-1 -> 0 | IM50: =(1+IM49)^(1/(months/Months_Period))-1 -> 0 | IN50: =(1+IN49)^(1/(months/Months_Period))-1 -> 0 | IO50: =(1+IO49)^(1/(months/Months_Period))-1 -> 0 | IP50: =(1+IP49)^(1/(months/Months_Period))-1 -> 0 | IQ50: =(1+IQ49)^(1/(months/Months_Period))-1 -> 0 | IR50: =(1+IR49)^(1/(months/Months_Period))-1 -> 0 | IS50: =(1+IS49)^(1/(months/Months_Period))-1 -> 0 | IT50: =(1+IT49)^(1/(months/Months_Period))-1 -> 0 | IU50: =(1+IU49)^(1/(months/Months_Period))-1 -> 0 | IV50: =(1+IV49)^(1/(months/Months_Period))-1 -> 0 | IW50: =(1+IW49)^(1/(months/Months_Period))-1 -> 0 | IX50: =(1+IX49)^(1/(months/Months_Period))-1 -> 0 | IY50: =(1+IY49)^(1/(months/Months_Period))-1 -> 0 | IZ50: =(1+IZ49)^(1/(months/Months_Period))-1 -> 0 | JA50: =(1+JA49)^(1/(months/Months_Period))-1 -> 0 | JB50: =(1+JB49)^(1/(months/Months_Period))-1 -> 0 | JC50: =(1+JC49)^(1/(months/Months_Period))-1 -> 0 | JD50: =(1+JD49)^(1/(months/Months_Period))-1 -> 0 | JE50: =(1+JE49)^(1/(months/Months_Period))-1 -> 0 | JF50: =(1+JF49)^(1/(months/Months_Period))-1 -> 0 | JG50: =(1+JG49)^(1/(months/Months_Period))-1 -> 0 | JH50: =(1+JH49)^(1/(months/Months_Period))-1 -> 0 | JI50: =(1+JI49)^(1/(months/Months_Period))-1 -> 0 | JJ50: =(1+JJ49)^(1/(months/Months_Period))-1 -> 0 | JK50: =(1+JK49)^(1/(months/Months_Period))-1 -> 0 | JL50: =(1+JL49)^(1/(months/Months_Period))-1 -> 0 | JM50: =(1+JM49)^(1/(months/Months_Period))-1 -> 0 | JN50: =(1+JN49)^(1/(months/Months_Period))-1 -> 0 | JO50: =(1+JO49)^(1/(months/Months_Period))-1 -> 0 | JP50: =(1+JP49)^(1/(months/Months_Period))-1 -> 0 | JQ50: =(1+JQ49)^(1/(months/Months_Period))-1 -> 0 | JR50: =(1+JR49)^(1/(months/Months_Period))-1 -> 0 | JS50: =(1+JS49)^(1/(months/Months_Period))-1 -> 0 | JT50: =(1+JT49)^(1/(months/Months_Period))-1 -> 0 | JU50: =(1+JU49)^(1/(months/Months_Period))-1 -> 0 | JV50: =(1+JV49)^(1/(months/Months_Period))-1 -> 0 | JW50: =(1+JW49)^(1/(months/Months_Period))-1 -> 0 | JX50: =(1+JX49)^(1/(months/Months_Period))-1 -> 0 | JY50: =(1+JY49)^(1/(months/Months_Period))-1 -> 0 | JZ50: =(1+JZ49)^(1/(months/Months_Period))-1 -> 0 | KA50: =(1+KA49)^(1/(months/Months_Period))-1 -> 0 | KB50: =(1+KB49)^(1/(months/Months_Period))-1 -> 0 | KC50: =(1+KC49)^(1/(months/Months_Period))-1 -> 0 | KD50: =(1+KD49)^(1/(months/Months_Period))-1 -> 0 | KE50: =(1+KE49)^(1/(months/Months_Period))-1 -> 0 | KF50: =(1+KF49)^(1/(months/Months_Period))-1 -> 0 | KG50: =(1+KG49)^(1/(months/Months_Period))-1 -> 0 | KH50: =(1+KH49)^(1/(months/Months_Period))-1 -> 0 | KI50: =(1+KI49)^(1/(months/Months_Period))-1 -> 0 | KJ50: =(1+KJ49)^(1/(months/Months_Period))-1 -> 0 | KK50: =(1+KK49)^(1/(months/Months_Period))-1 -> 0 | KL50: =(1+KL49)^(1/(months/Months_Period))-1 -> 0 | KM50: =(1+KM49)^(1/(months/Months_Period))-1 -> 0 | KN50: =(1+KN49)^(1/(months/Months_Period))-1 -> 0 | KO50: =(1+KO49)^(1/(months/Months_Period))-1 -> 0 | KP50: =(1+KP49)^(1/(months/Months_Period))-1 -> 0 | KQ50: =(1+KQ49)^(1/(months/Months_Period))-1 -> 0 | KR50: =(1+KR49)^(1/(months/Months_Period))-1 -> 0 | KS50: =(1+KS49)^(1/(months/Months_Period))-1 -> 0 | KT50: =(1+KT49)^(1/(months/Months_Period))-1 -> 0 | KU50: =(1+KU49)^(1/(months/Months_Period))-1 -> 0 | KV50: =(1+KV49)^(1/(months/Months_Period))-1 -> 0 | KW50: =(1+KW49)^(1/(months/Months_Period))-1 -> 0 | KX50: =(1+KX49)^(1/(months/Months_Period))-1 -> 0 | KY50: =(1+KY49)^(1/(months/Months_Period))-1 -> 0 | KZ50: =(1+KZ49)^(1/(months/Months_Period))-1 -> 0 | LA50: =(1+LA49)^(1/(months/Months_Period))-1 -> 0 | LB50: =(1+LB49)^(1/(months/Months_Period))-1 -> 0 | LC50: =(1+LC49)^(1/(months/Months_Period))-1 -> 0 | LD50: =(1+LD49)^(1/(months/Months_Period))-1 -> 0 | LE50: =(1+LE49)^(1/(months/Months_Period))-1 -> 0 | LF50: =(1+LF49)^(1/(months/Months_Period))-1 -> 0 | LG50: =(1+LG49)^(1/(months/Months_Period))-1 -> 0 | LH50: =(1+LH49)^(1/(months/Months_Period))-1 -> 0 | LI50: =(1+LI49)^(1/(months/Months_Period))-1 -> 0 | LJ50: =(1+LJ49)^(1/(months/Months_Period))-1 -> 0 | LK50: =(1+LK49)^(1/(months/Months_Period))-1 -> 0 | LL50: =(1+LL49)^(1/(months/Months_Period))-1 -> 0 | LM50: =(1+LM49)^(1/(months/Months_Period))-1 -> 0 | LN50: =(1+LN49)^(1/(months/Months_Period))-1 -> 0 | LO50: =(1+LO49)^(1/(months/Months_Period))-1 -> 0 | LP50: =(1+LP49)^(1/(months/Months_Period))-1 -> 0 | LQ50: =(1+LQ49)^(1/(months/Months_Period))-1 -> 0 | LR50: =(1+LR49)^(1/(months/Months_Period))-1 -> 0 | LS50: =(1+LS49)^(1/(months/Months_Period))-1 -> 0 | LT50: =(1+LT49)^(1/(months/Months_Period))-1 -> 0 | LU50: =(1+LU49)^(1/(months/Months_Period))-1 -> 0 | LV50: =(1+LV49)^(1/(months/Months_Period))-1 -> 0 | LW50: =(1+LW49)^(1/(months/Months_Period))-1 -> 0 | LX50: =(1+LX49)^(1/(months/Months_Period))-1 -> 0 | LY50: =(1+LY49)^(1/(months/Months_Period))-1 -> 0 | LZ50: =(1+LZ49)^(1/(months/Months_Period))-1 -> 0 | MA50: =(1+MA49)^(1/(months/Months_Period))-1 -> 0 | MB50: =(1+MB49)^(1/(months/Months_Period))-1 -> 0 | MC50: =(1+MC49)^(1/(months/Months_Period))-1 -> 0 | MD50: =(1+MD49)^(1/(months/Months_Period))-1 -> 0 | ME50: =(1+ME49)^(1/(months/Months_Period))-1 -> 0 | MF50: =(1+MF49)^(1/(months/Months_Period))-1 -> 0 | MG50: =(1+MG49)^(1/(months/Months_Period))-1 -> 0 | MH50: =(1+MH49)^(1/(months/Months_Period))-1 -> 0 | MI50: =(1+MI49)^(1/(months/Months_Period))-1 -> 0 | MJ50: =(1+MJ49)^(1/(months/Months_Period))-1 -> 0 | MK50: =(1+MK49)^(1/(months/Months_Period))-1 -> 0 | ML50: =(1+ML49)^(1/(months/Months_Period))-1 -> 0 | MM50: =(1+MM49)^(1/(months/Months_Period))-1 -> 0 | MN50: =(1+MN49)^(1/(months/Months_Period))-1 -> 0 | MO50: =(1+MO49)^(1/(months/Months_Period))-1 -> 0 | MP50: =(1+MP49)^(1/(months/Months_Period))-1 -> 0 | MQ50: =(1+MQ49)^(1/(months/Months_Period))-1 -> 0 | MR50: =(1+MR49)^(1/(months/Months_Period))-1 -> 0 | MS50: =(1+MS49)^(1/(months/Months_Period))-1 -> 0 | MT50: =(1+MT49)^(1/(months/Months_Period))-1 -> 0 | MU50: =(1+MU49)^(1/(months/Months_Period))-1 -> 0 | MV50: =(1+MV49)^(1/(months/Months_Period))-1 -> 0 | MW50: =(1+MW49)^(1/(months/Months_Period))-1 -> 0 | MX50: =(1+MX49)^(1/(months/Months_Period))-1 -> 0 | MY50: =(1+MY49)^(1/(months/Months_Period))-1 -> 0 | MZ50: =(1+MZ49)^(1/(months/Months_Period))-1 -> 0 | NA50: =(1+NA49)^(1/(months/Months_Period))-1 -> 0 | NB50: =(1+NB49)^(1/(months/Months_Period))-1 -> 0 | NC50: =(1+NC49)^(1/(months/Months_Period))-1 -> 0 | ND50: =(1+ND49)^(1/(months/Months_Period))-1 -> 0 | NE50: =(1+NE49)^(1/(months/Months_Period))-1 -> 0 | NF50: =(1+NF49)^(1/(months/Months_Period))-1 -> 0 | NG50: =(1+NG49)^(1/(months/Months_Period))-1 -> 0 | NH50: =(1+NH49)^(1/(months/Months_Period))-1 -> 0 | NI50: =(1+NI49)^(1/(months/Months_Period))-1 -> 0 | NJ50: =(1+NJ49)^(1/(months/Months_Period))-1 -> 0 | NK50: =(1+NK49)^(1/(months/Months_Period))-1 -> 0 | NL50: =(1+NL49)^(1/(months/Months_Period))-1 -> 0 | NM50: =(1+NM49)^(1/(months/Months_Period))-1 -> 0 | NN50: =(1+NN49)^(1/(months/Months_Period))-1 -> 0 | NO50: =(1+NO49)^(1/(months/Months_Period))-1 -> 0 | NP50: =(1+NP49)^(1/(months/Months_Period))-1 -> 0 | NQ50: =(1+NQ49)^(1/(months/Months_Period))-1 -> 0 | NR50: =(1+NR49)^(1/(months/Months_Period))-1 -> 0 | NS50: =(1+NS49)^(1/(months/Months_Period))-1 -> 0 | NT50: =(1+NT49)^(1/(months/Months_Period))-1 -> 0 | NU50: =(1+NU49)^(1/(months/Months_Period))-1 -> 0 | NV50: =(1+NV49)^(1/(months/Months_Period))-1 -> 0 | NW50: =(1+NW49)^(1/(months/Months_Period))-1 -> 0 | NX50: =(1+NX49)^(1/(months/Months_Period))-1 -> 0 | NY50: =(1+NY49)^(1/(months/Months_Period))-1 -> 0 | NZ50: =(1+NZ49)^(1/(months/Months_Period))-1 -> 0 | OA50: =(1+OA49)^(1/(months/Months_Period))-1 -> 0 | OB50: =(1+OB49)^(1/(months/Months_Period))-1 -> 0 | OC50: =(1+OC49)^(1/(months/Months_Period))-1 -> 0 | OD50: =(1+OD49)^(1/(months/Months_Period))-1 -> 0 | OE50: =(1+OE49)^(1/(months/Months_Period))-1 -> 0 | OF50: =(1+OF49)^(1/(months/Months_Period))-1 -> 0 | OG50: =(1+OG49)^(1/(months/Months_Period))-1 -> 0 | OH50: =(1+OH49)^(1/(months/Months_Period))-1 -> 0 | OI50: =(1+OI49)^(1/(months/Months_Period))-1 -> 0 | OJ50: =(1+OJ49)^(1/(months/Months_Period))-1 -> 0 | OK50: =(1+OK49)^(1/(months/Months_Period))-1 -> 0 | OL50: =(1+OL49)^(1/(months/Months_Period))-1 -> 0 | OM50: =(1+OM49)^(1/(months/Months_Period))-1 -> 0 | ON50: =(1+ON49)^(1/(months/Months_Period))-1 -> 0 | OO50: =(1+OO49)^(1/(months/Months_Period))-1 -> 0 | OP50: =(1+OP49)^(1/(months/Months_Period))-1 -> 0 | OQ50: =(1+OQ49)^(1/(months/Months_Period))-1 -> 0 | OR50: =(1+OR49)^(1/(months/Months_Period))-1 -> 0 | OS50: =(1+OS49)^(1/(months/Months_Period))-1 -> 0 | OT50: =(1+OT49)^(1/(months/Months_Period))-1 -> 0 | OU50: =(1+OU49)^(1/(months/Months_Period))-1 -> 0 | OV50: =(1+OV49)^(1/(months/Months_Period))-1 -> 0 | OW50: =(1+OW49)^(1/(months/Months_Period))-1 -> 0 | OX50: =(1+OX49)^(1/(months/Months_Period))-1 -> 0 | OY50: =(1+OY49)^(1/(months/Months_Period))-1 -> 0 | OZ50: =(1+OZ49)^(1/(months/Months_Period))-1 -> 0 | PA50: =(1+PA49)^(1/(months/Months_Period))-1 -> 0 | PB50: =(1+PB49)^(1/(months/Months_Period))-1 -> 0 | PC50: =(1+PC49)^(1/(months/Months_Period))-1 -> 0 | PD50: =(1+PD49)^(1/(months/Months_Period))-1 -> 0 | PE50: =(1+PE49)^(1/(months/Months_Period))-1 -> 0 | PF50: =(1+PF49)^(1/(months/Months_Period))-1 -> 0 | PG50: =(1+PG49)^(1/(months/Months_Period))-1 -> 0 | PH50: =(1+PH49)^(1/(months/Months_Period))-1 -> 0 | PI50: =(1+PI49)^(1/(months/Months_Period))-1 -> 0 | PJ50: =(1+PJ49)^(1/(months/Months_Period))-1 -> 0 | PK50: =(1+PK49)^(1/(months/Months_Period))-1 -> 0 | PL50: =(1+PL49)^(1/(months/Months_Period))-1 -> 0 | PM50: =(1+PM49)^(1/(months/Months_Period))-1 -> 0 | PN50: =(1+PN49)^(1/(months/Months_Period))-1 -> 0 | PO50: =(1+PO49)^(1/(months/Months_Period))-1 -> 0 | PP50: =(1+PP49)^(1/(months/Months_Period))-1 -> 0 | PQ50: =(1+PQ49)^(1/(months/Months_Period))-1 -> 0 | PR50: =(1+PR49)^(1/(months/Months_Period))-1 -> 0 | PS50: =(1+PS49)^(1/(months/Months_Period))-1 -> 0 | PT50: =(1+PT49)^(1/(months/Months_Period))-1 -> 0 | PU50: =(1+PU49)^(1/(months/Months_Period))-1 -> 0 | PV50: =(1+PV49)^(1/(months/Months_Period))-1 -> 0 | PW50: =(1+PW49)^(1/(months/Months_Period))-1 -> 0 | PX50: =(1+PX49)^(1/(months/Months_Period))-1 -> 0 | PY50: =(1+PY49)^(1/(months/Months_Period))-1 -> 0 | PZ50: =(1+PZ49)^(1/(months/Months_Period))-1 -> 0 | QA50: =(1+QA49)^(1/(months/Months_Period))-1 -> 0 | QB50: =(1+QB49)^(1/(months/Months_Period))-1 -> 0 | QC50: =(1+QC49)^(1/(months/Months_Period))-1 -> 0 | QD50: =(1+QD49)^(1/(months/Months_Period))-1 -> 0 | QE50: =(1+QE49)^(1/(months/Months_Period))-1 -> 0 | QF50: =(1+QF49)^(1/(months/Months_Period))-1 -> 0 | QG50: =(1+QG49)^(1/(months/Months_Period))-1 -> 0 | QH50: =(1+QH49)^(1/(months/Months_Period))-1 -> 0 | QI50: =(1+QI49)^(1/(months/Months_Period))-1 -> 0 | QJ50: =(1+QJ49)^(1/(months/Months_Period))-1 -> 0 | QK50: =(1+QK49)^(1/(months/Months_Period))-1 -> 0 | QL50: =(1+QL49)^(1/(months/Months_Period))-1 -> 0 | QM50: =(1+QM49)^(1/(months/Months_Period))-1 -> 0 | QN50: =(1+QN49)^(1/(months/Months_Period))-1 -> 0 | QO50: =(1+QO49)^(1/(months/Months_Period))-1 -> 0 | QP50: =(1+QP49)^(1/(months/Months_Period))-1 -> 0 | QQ50: =(1+QQ49)^(1/(months/Months_Period))-1 -> 0 | QR50: =(1+QR49)^(1/(months/Months_Period))-1 -> 0 | QS50: =(1+QS49)^(1/(months/Months_Period))-1 -> 0 | QT50: =(1+QT49)^(1/(months/Months_Period))-1 -> 0 | QU50: =(1+QU49)^(1/(months/Months_Period))-1 -> 0 | QV50: =(1+QV49)^(1/(months/Months_Period))-1 -> 0 | QW50: =(1+QW49)^(1/(months/Months_Period))-1 -> 0 | QX50: =(1+QX49)^(1/(months/Months_Period))-1 -> 0 | QY50: =(1+QY49)^(1/(months/Months_Period))-1 -> 0 | QZ50: =(1+QZ49)^(1/(months/Months_Period))-1 -> 0 | RA50: =(1+RA49)^(1/(months/Months_Period))-1 -> 0 | RB50: =(1+RB49)^(1/(months/Months_Period))-1 -> 0 | RC50: =(1+RC49)^(1/(months/Months_Period))-1 -> 0 | RD50: =(1+RD49)^(1/(months/Months_Period))-1 -> 0 | RE50: =(1+RE49)^(1/(months/Months_Period))-1 -> 0 | RF50: =(1+RF49)^(1/(months/Months_Period))-1 -> 0 | RG50: =(1+RG49)^(1/(months/Months_Period))-1 -> 0 | RH50: =(1+RH49)^(1/(months/Months_Period))-1 -> 0 | RI50: =(1+RI49)^(1/(months/Months_Period))-1 -> 0 | RJ50: =(1+RJ49)^(1/(months/Months_Period))-1 -> 0 | RK50: =(1+RK49)^(1/(months/Months_Period))-1 -> 0 | RL50: =(1+RL49)^(1/(months/Months_Period))-1 -> 0 | RM50: =(1+RM49)^(1/(months/Months_Period))-1 -> 0 | RN50: =(1+RN49)^(1/(months/Months_Period))-1 -> 0 | RO50: =(1+RO49)^(1/(months/Months_Period))-1 -> 0 | RP50: =(1+RP49)^(1/(months/Months_Period))-1 -> 0 | RQ50: =(1+RQ49)^(1/(months/Months_Period))-1 -> 0 | RR50: =(1+RR49)^(1/(months/Months_Period))-1 -> 0 | RS50: =(1+RS49)^(1/(months/Months_Period))-1 -> 0 | RT50: =(1+RT49)^(1/(months/Months_Period))-1 -> 0 | RU50: =(1+RU49)^(1/(months/Months_Period))-1 -> 0 | RV50: =(1+RV49)^(1/(months/Months_Period))-1 -> 0 | RW50: =(1+RW49)^(1/(months/Months_Period))-1 -> 0 | RX50: =(1+RX49)^(1/(months/Months_Period))-1 -> 0 | RY50: =(1+RY49)^(1/(months/Months_Period))-1 -> 0 | RZ50: =(1+RZ49)^(1/(months/Months_Period))-1 -> 0 | SA50: =(1+SA49)^(1/(months/Months_Period))-1 -> 0 | SB50: =(1+SB49)^(1/(months/Months_Period))-1 -> 0 | SC50: =(1+SC49)^(1/(months/Months_Period))-1 -> 0 | SD50: =(1+SD49)^(1/(months/Months_Period))-1 -> 0 | SE50: =(1+SE49)^(1/(months/Months_Period))-1 -> 0 | SF50: =(1+SF49)^(1/(months/Months_Period))-1 -> 0 | SG50: =(1+SG49)^(1/(months/Months_Period))-1 -> 0 | SH50: =(1+SH49)^(1/(months/Months_Period))-1 -> 0 | SI50: =(1+SI49)^(1/(months/Months_Period))-1 -> 0 | SJ50: =(1+SJ49)^(1/(months/Months_Period))-1 -> 0 | SK50: =(1+SK49)^(1/(months/Months_Period))-1 -> 0 | SL50: =(1+SL49)^(1/(months/Months_Period))-1 -> 0 | SM50: =(1+SM49)^(1/(months/Months_Period))-1 -> 0 | SN50: =(1+SN49)^(1/(months/Months_Period))-1 -> 0 | SO50: =(1+SO49)^(1/(months/Months_Period))-1 -> 0 | SP50: =(1+SP49)^(1/(months/Months_Period))-1 -> 0 | SQ50: =(1+SQ49)^(1/(months/Months_Period))-1 -> 0 | SR50: =(1+SR49)^(1/(months/Months_Period))-1 -> 0 | SS50: =(1+SS49)^(1/(months/Months_Period))-1 -> 0 | ST50: =(1+ST49)^(1/(months/Months_Period))-1 -> 0 | SU50: =(1+SU49)^(1/(months/Months_Period))-1 -> 0 | SV50: =(1+SV49)^(1/(months/Months_Period))-1 -> 0 | SW50: =(1+SW49)^(1/(months/Months_Period))-1 -> 0 | SX50: =(1+SX49)^(1/(months/Months_Period))-1 -> 0 | SY50: =(1+SY49)^(1/(months/Months_Period))-1 -> 0 | SZ50: =(1+SZ49)^(1/(months/Months_Period))-1 -> 0 | TA50: =(1+TA49)^(1/(months/Months_Period))-1 -> 0 | TB50: =(1+TB49)^(1/(months/Months_Period))-1 -> 0 | TC50: =(1+TC49)^(1/(months/Months_Period))-1 -> 0 | TD50: =(1+TD49)^(1/(months/Months_Period))-1 -> 0 | TE50: =(1+TE49)^(1/(months/Months_Period))-1 -> 0 | TF50: =(1+TF49)^(1/(months/Months_Period))-1 -> 0 | TG50: =(1+TG49)^(1/(months/Months_Period))-1 -> 0 | TH50: =(1+TH49)^(1/(months/Months_Period))-1 -> 0 | TI50: =(1+TI49)^(1/(months/Months_Period))-1 -> 0 | TJ50: =(1+TJ49)^(1/(months/Months_Period))-1 -> 0 | TK50: =(1+TK49)^(1/(months/Months_Period))-1 -> 0 | TL50: =(1+TL49)^(1/(months/Months_Period))-1 -> 0 | TM50: =(1+TM49)^(1/(months/Months_Period))-1 -> 0 | TN50: =(1+TN49)^(1/(months/Months_Period))-1 -> 0 | TO50: =(1+TO49)^(1/(months/Months_Period))-1 -> 0 | TP50: =(1+TP49)^(1/(months/Months_Period))-1 -> 0 | TQ50: =(1+TQ49)^(1/(months/Months_Period))-1 -> 0 | TR50: =(1+TR49)^(1/(months/Months_Period))-1 -> 0 | TS50: =(1+TS49)^(1/(months/Months_Period))-1 -> 0 | TT50: =(1+TT49)^(1/(months/Months_Period))-1 -> 0 | TU50: =(1+TU49)^(1/(months/Months_Period))-1 -> 0 | TV50: =(1+TV49)^(1/(months/Months_Period))-1 -> 0 | TW50: =(1+TW49)^(1/(months/Months_Period))-1 -> 0 | TX50: =(1+TX49)^(1/(months/Months_Period))-1 -> 0 | TY50: =(1+TY49)^(1/(months/Months_Period))-1 -> 0 | TZ50: =(1+TZ49)^(1/(months/Months_Period))-1 -> 0 | UA50: =(1+UA49)^(1/(months/Months_Period))-1 -> 0 | UB50: =(1+UB49)^(1/(months/Months_Period))-1 -> 0 | UC50: =(1+UC49)^(1/(months/Months_Period))-1 -> 0 | UD50: =(1+UD49)^(1/(months/Months_Period))-1 -> 0 | UE50: =(1+UE49)^(1/(months/Months_Period))-1 -> 0 | UF50: =(1+UF49)^(1/(months/Months_Period))-1 -> 0 | UG50: =(1+UG49)^(1/(months/Months_Period))-1 -> 0 | UH50: =(1+UH49)^(1/(months/Months_Period))-1 -> 0 | UI50: =(1+UI49)^(1/(months/Months_Period))-1 -> 0 | UJ50: =(1+UJ49)^(1/(months/Months_Period))-1 -> 0 | UK50: =(1+UK49)^(1/(months/Months_Period))-1 -> 0 | UL50: =(1+UL49)^(1/(months/Months_Period))-1 -> 0 | UM50: =(1+UM49)^(1/(months/Months_Period))-1 -> 0 | UN50: =(1+UN49)^(1/(months/Months_Period))-1 -> 0 | UO50: =(1+UO49)^(1/(months/Months_Period))-1 -> 0 | UP50: =(1+UP49)^(1/(months/Months_Period))-1 -> 0 | UQ50: =(1+UQ49)^(1/(months/Months_Period))-1 -> 0 | UR50: =(1+UR49)^(1/(months/Months_Period))-1 -> 0 | US50: =(1+US49)^(1/(months/Months_Period))-1 -> 0 | UT50: =(1+UT49)^(1/(months/Months_Period))-1 -> 0 | UU50: =(1+UU49)^(1/(months/Months_Period))-1 -> 0 | UV50: =(1+UV49)^(1/(months/Months_Period))-1 -> 0 | UW50: =(1+UW49)^(1/(months/Months_Period))-1 -> 0 | UX50: =(1+UX49)^(1/(months/Months_Period))-1 -> 0 | UY50: =(1+UY49)^(1/(months/Months_Period))-1 -> 0 | UZ50: =(1+UZ49)^(1/(months/Months_Period))-1 -> 0 | VA50: =(1+VA49)^(1/(months/Months_Period))-1 -> 0 | VB50: =(1+VB49)^(1/(months/Months_Period))-1 -> 0 | VC50: =(1+VC49)^(1/(months/Months_Period))-1 -> 0 | VD50: =(1+VD49)^(1/(months/Months_Period))-1 -> 0 | VE50: =(1+VE49)^(1/(months/Months_Period))-1 -> 0 | VF50: =(1+VF49)^(1/(months/Months_Period))-1 -> 0 | VG50: =(1+VG49)^(1/(months/Months_Period))-1 -> 0 | VH50: =(1+VH49)^(1/(months/Months_Period))-1 -> 0 | VI50: =(1+VI49)^(1/(months/Months_Period))-1 -> 0 | VJ50: =(1+VJ49)^(1/(months/Months_Period))-1 -> 0 | VK50: =(1+VK49)^(1/(months/Months_Period))-1 -> 0 | VL50: =(1+VL49)^(1/(months/Months_Period))-1 -> 0 | VM50: =(1+VM49)^(1/(months/Months_Period))-1 -> 0 | VN50: =(1+VN49)^(1/(months/Months_Period))-1 -> 0 | VO50: =(1+VO49)^(1/(months/Months_Period))-1 -> 0 | VP50: =(1+VP49)^(1/(months/Months_Period))-1 -> 0 | VQ50: =(1+VQ49)^(1/(months/Months_Period))-1 -> 0 | VR50: =(1+VR49)^(1/(months/Months_Period))-1 -> 0 | VS50: =(1+VS49)^(1/(months/Months_Period))-1 -> 0 | VT50: =(1+VT49)^(1/(months/Months_Period))-1 -> 0 | VU50: =(1+VU49)^(1/(months/Months_Period))-1 -> 0 | VV50: =(1+VV49)^(1/(months/Months_Period))-1 -> 0 | VW50: =(1+VW49)^(1/(months/Months_Period))-1 -> 0 | VX50: =(1+VX49)^(1/(months/Months_Period))-1 -> 0 | VY50: =(1+VY49)^(1/(months/Months_Period))-1 -> 0 | VZ50: =(1+VZ49)^(1/(months/Months_Period))-1 -> 0 | WA50: =(1+WA49)^(1/(months/Months_Period))-1 -> 0 | WB50: =(1+WB49)^(1/(months/Months_Period))-1 -> 0 | WC50: =(1+WC49)^(1/(months/Months_Period))-1 -> 0 | WD50: =(1+WD49)^(1/(months/Months_Period))-1 -> 0 | WE50: =(1+WE49)^(1/(months/Months_Period))-1 -> 0 | WF50: =(1+WF49)^(1/(months/Months_Period))-1 -> 0 | WG50: =(1+WG49)^(1/(months/Months_Period))-1 -> 0 | WH50: =(1+WH49)^(1/(months/Months_Period))-1 -> 0 | WI50: =(1+WI49)^(1/(months/Months_Period))-1 -> 0 | WJ50: =(1+WJ49)^(1/(months/Months_Period))-1 -> 0 | WK50: =(1+WK49)^(1/(months/Months_Period))-1 -> 0 | WL50: =(1+WL49)^(1/(months/Months_Period))-1 -> 0 | WM50: =(1+WM49)^(1/(months/Months_Period))-1 -> 0 | WN50: =(1+WN49)^(1/(months/Months_Period))-1 -> 0 | WO50: =(1+WO49)^(1/(months/Months_Period))-1 -> 0 | WP50: =(1+WP49)^(1/(months/Months_Period))-1 -> 0 | WQ50: =(1+WQ49)^(1/(months/Months_Period))-1 -> 0 | WR50: =(1+WR49)^(1/(months/Months_Period))-1 -> 0 | WS50: =(1+WS49)^(1/(months/Months_Period))-1 -> 0 | WT50: =(1+WT49)^(1/(months/Months_Period))-1 -> 0 | WU50: =(1+WU49)^(1/(months/Months_Period))-1 -> 0 | WV50: =(1+WV49)^(1/(months/Months_Period))-1 -> 0 | WW50: =(1+WW49)^(1/(months/Months_Period))-1 -> 0 | WX50: =(1+WX49)^(1/(months/Months_Period))-1 -> 0 | WY50: =(1+WY49)^(1/(months/Months_Period))-1 -> 0 | WZ50: =(1+WZ49)^(1/(months/Months_Period))-1 -> 0 | XA50: =(1+XA49)^(1/(months/Months_Period))-1 -> 0 | XB50: =(1+XB49)^(1/(months/Months_Period))-1 -> 0 | XC50: =(1+XC49)^(1/(months/Months_Period))-1 -> 0 | XD50: =(1+XD49)^(1/(months/Months_Period))-1 -> 0 | XE50: =(1+XE49)^(1/(months/Months_Period))-1 -> 0 | XF50: =(1+XF49)^(1/(months/Months_Period))-1 -> 0 | XG50: =(1+XG49)^(1/(months/Months_Period))-1 -> 0 | XH50: =(1+XH49)^(1/(months/Months_Period))-1 -> 0 | XI50: =(1+XI49)^(1/(months/Months_Period))-1 -> 0 | XJ50: =(1+XJ49)^(1/(months/Months_Period))-1 -> 0 | XK50: =(1+XK49)^(1/(months/Months_Period))-1 -> 0 | XL50: =(1+XL49)^(1/(months/Months_Period))-1 -> 0 | XM50: =(1+XM49)^(1/(months/Months_Period))-1 -> 0 | XN50: =(1+XN49)^(1/(months/Months_Period))-1 -> 0 | XO50: =(1+XO49)^(1/(months/Months_Period))-1 -> 0 | XP50: =(1+XP49)^(1/(months/Months_Period))-1 -> 0 | XQ50: =(1+XQ49)^(1/(months/Months_Period))-1 -> 0 | XR50: =(1+XR49)^(1/(months/Months_Period))-1 -> 0 | XS50: =(1+XS49)^(1/(months/Months_Period))-1 -> 0 | XT50: =(1+XT49)^(1/(months/Months_Period))-1 -> 0 | XU50: =(1+XU49)^(1/(months/Months_Period))-1 -> 0 | XV50: =(1+XV49)^(1/(months/Months_Period))-1 -> 0 | XW50: =(1+XW49)^(1/(months/Months_Period))-1 -> 0 | XX50: =(1+XX49)^(1/(months/Months_Period))-1 -> 0 | XY50: =(1+XY49)^(1/(months/Months_Period))-1 -> 0 | XZ50: =(1+XZ49)^(1/(months/Months_Period))-1 -> 0 | YA50: =(1+YA49)^(1/(months/Months_Period))-1 -> 0 | YB50: =(1+YB49)^(1/(months/Months_Period))-1 -> 0 | YC50: =(1+YC49)^(1/(months/Months_Period))-1 -> 0 | YD50: =(1+YD49)^(1/(months/Months_Period))-1 -> 0 | YE50: =(1+YE49)^(1/(months/Months_Period))-1 -> 0 | YF50: =(1+YF49)^(1/(months/Months_Period))-1 -> 0 | YG50: =(1+YG49)^(1/(months/Months_Period))-1 -> 0 | YH50: =(1+YH49)^(1/(months/Months_Period))-1 -> 0 | YI50: =(1+YI49)^(1/(months/Months_Period))-1 -> 0 | YJ50: =(1+YJ49)^(1/(months/Months_Period))-1 -> 0 | YK50: =(1+YK49)^(1/(months/Months_Period))-1 -> 0 | YL50: =(1+YL49)^(1/(months/Months_Period))-1 -> 0 | YM50: =(1+YM49)^(1/(months/Months_Period))-1 -> 0 | YN50: =(1+YN49)^(1/(months/Months_Period))-1 -> 0 | YO50: =(1+YO49)^(1/(months/Months_Period))-1 -> 0 | YP50: =(1+YP49)^(1/(months/Months_Period))-1 -> 0 | YQ50: =(1+YQ49)^(1/(months/Months_Period))-1 -> 0 | YR50: =(1+YR49)^(1/(months/Months_Period))-1 -> 0 | YS50: =(1+YS49)^(1/(months/Months_Period))-1 -> 0 | YT50: =(1+YT49)^(1/(months/Months_Period))-1 -> 0 | YU50: =(1+YU49)^(1/(months/Months_Period))-1 -> 0 | YV50: =(1+YV49)^(1/(months/Months_Period))-1 -> 0 | YW50: =(1+YW49)^(1/(months/Months_Period))-1 -> 0 | YX50: =(1+YX49)^(1/(months/Months_Period))-1 -> 0 | YY50: =(1+YY49)^(1/(months/Months_Period))-1 -> 0 | YZ50: =(1+YZ49)^(1/(months/Months_Period))-1 -> 0 | ZA50: =(1+ZA49)^(1/(months/Months_Period))-1 -> 0 | ZB50: =(1+ZB49)^(1/(months/Months_Period))-1 -> 0 | ZC50: =(1+ZC49)^(1/(months/Months_Period))-1 -> 0 | ZD50: =(1+ZD49)^(1/(months/Months_Period))-1 -> 0 | ZE50: =(1+ZE49)^(1/(months/Months_Period))-1 -> 0 | ZF50: =(1+ZF49)^(1/(months/Months_Period))-1 -> 0 | ZG50: =(1+ZG49)^(1/(months/Months_Period))-1 -> 0 | ZH50: =(1+ZH49)^(1/(months/Months_Period))-1 -> 0 | ZI50: =(1+ZI49)^(1/(months/Months_Period))-1 -> 0 | ZJ50: =(1+ZJ49)^(1/(months/Months_Period))-1 -> 0 | ZK50: =(1+ZK49)^(1/(months/Months_Period))-1 -> 0 | ZL50: =(1+ZL49)^(1/(months/Months_Period))-1 -> 0 | ZM50: =(1+ZM49)^(1/(months/Months_Period))-1 -> 0 | ZN50: =(1+ZN49)^(1/(months/Months_Period))-1 -> 0 | ZO50: =(1+ZO49)^(1/(months/Months_Period))-1 -> 0 | ZP50: =(1+ZP49)^(1/(months/Months_Period))-1 -> 0 | ZQ50: =(1+ZQ49)^(1/(months/Months_Period))-1 -> 0 | ZR50: =(1+ZR49)^(1/(months/Months_Period))-1 -> 0 | ZS50: =(1+ZS49)^(1/(months/Months_Period))-1 -> 0 | ZT50: =(1+ZT49)^(1/(months/Months_Period))-1 -> 0 | ZU50: =(1+ZU49)^(1/(months/Months_Period))-1 -> 0 | ZV50: =(1+ZV49)^(1/(months/Months_Period))-1 -> 0 | ZW50: =(1+ZW49)^(1/(months/Months_Period))-1 -> 0 | ZX50: =(1+ZX49)^(1/(months/Months_Period))-1 -> 0 | ZY50: =(1+ZY49)^(1/(months/Months_Period))-1 -> 0 | ZZ50: =(1+ZZ49)^(1/(months/Months_Period))-1 -> 0 | AAA50: =(1+AAA49)^(1/(months/Months_Period))-1 -> 0 | AAB50: =(1+AAB49)^(1/(months/Months_Period))-1 -> 0 | AAC50: =(1+AAC49)^(1/(months/Months_Period))-1 -> 0 | AAD50: =(1+AAD49)^(1/(months/Months_Period))-1 -> 0 | AAE50: =(1+AAE49)^(1/(months/Months_Period))-1 -> 0 | AAF50: =(1+AAF49)^(1/(months/Months_Period))-1 -> 0 | AAG50: =(1+AAG49)^(1/(months/Months_Period))-1 -> 0 | AAH50: =(1+AAH49)^(1/(months/Months_Period))-1 -> 0 | AAI50: =(1+AAI49)^(1/(months/Months_Period))-1 -> 0 | AAJ50: =(1+AAJ49)^(1/(months/Months_Period))-1 -> 0 | AAK50: =(1+AAK49)^(1/(months/Months_Period))-1 -> 0 | AAL50: =(1+AAL49)^(1/(months/Months_Period))-1 -> 0 | AAM50: =(1+AAM49)^(1/(months/Months_Period))-1 -> 0 | AAN50: =(1+AAN49)^(1/(months/Months_Period))-1 -> 0 | AAO50: =(1+AAO49)^(1/(months/Months_Period))-1 -> 0 | AAP50: =(1+AAP49)^(1/(months/Months_Period))-1 -> 0 | AAQ50: =(1+AAQ49)^(1/(months/Months_Period))-1 -> 0 | AAR50: =(1+AAR49)^(1/(months/Months_Period))-1 -> 0 | AAS50: =(1+AAS49)^(1/(months/Months_Period))-1 -> 0 | AAT50: =(1+AAT49)^(1/(months/Months_Period))-1 -> 0 | AAU50: =(1+AAU49)^(1/(months/Months_Period))-1 -> 0 | AAV50: =(1+AAV49)^(1/(months/Months_Period))-1 -> 0 | AAW50: =(1+AAW49)^(1/(months/Months_Period))-1 -> 0 | AAX50: =(1+AAX49)^(1/(months/Months_Period))-1 -> 0 | AAY50: =(1+AAY49)^(1/(months/Months_Period))-1 -> 0 | AAZ50: =(1+AAZ49)^(1/(months/Months_Period))-1 -> 0 | ABA50: =(1+ABA49)^(1/(months/Months_Period))-1 -> 0 | ABB50: =(1+ABB49)^(1/(months/Months_Period))-1 -> 0 | ABC50: =(1+ABC49)^(1/(months/Months_Period))-1 -> 0 | ABD50: =(1+ABD49)^(1/(months/Months_Period))-1 -> 0 | ABE50: =(1+ABE49)^(1/(months/Months_Period))-1 -> 0 | ABF50: =(1+ABF49)^(1/(months/Months_Period))-1 -> 0 | ABG50: =(1+ABG49)^(1/(months/Months_Period))-1 -> 0 | ABH50: =(1+ABH49)^(1/(months/Months_Period))-1 -> 0 | ABI50: =(1+ABI49)^(1/(months/Months_Period))-1 -> 0 | ABJ50: =(1+ABJ49)^(1/(months/Months_Period))-1 -> 0 | ABK50: =(1+ABK49)^(1/(months/Months_Period))-1 -> 0 | ABL50: =(1+ABL49)^(1/(months/Months_Period))-1 -> 0 | ABM50: =(1+ABM49)^(1/(months/Months_Period))-1 -> 0 | ABN50: =(1+ABN49)^(1/(months/Months_Period))-1 -> 0 | ABO50: =(1+ABO49)^(1/(months/Months_Period))-1 -> 0 | ABP50: =(1+ABP49)^(1/(months/Months_Period))-1 -> 0 | ABQ50: =(1+ABQ49)^(1/(months/Months_Period))-1 -> 0 | ABR50: =(1+ABR49)^(1/(months/Months_Period))-1 -> 0 | ABS50: =(1+ABS49)^(1/(months/Months_Period))-1 -> 0 | ABT50: =(1+ABT49)^(1/(months/Months_Period))-1 -> 0 | ABU50: =(1+ABU49)^(1/(months/Months_Period))-1 -> 0 | ABV50: =(1+ABV49)^(1/(months/Months_Period))-1 -> 0 | ABW50: =(1+ABW49)^(1/(months/Months_Period))-1 -> 0 | ABX50: =(1+ABX49)^(1/(months/Months_Period))-1 -> 0 | ABY50: =(1+ABY49)^(1/(months/Months_Period))-1 -> 0 | ABZ50: =(1+ABZ49)^(1/(months/Months_Period))-1 -> 0
D51: Inflation Index | I51: Index | J51: =One -> 1 | K51: =J51*(1+K50*K7) -> 1 | L51: =K51*(1+L50*L7) -> 1 | M51: =L51*(1+M50*M7) -> 1 | N51: =M51*(1+N50*N7) -> 1 | O51: =N51*(1+O50*O7) -> 1 | P51: =O51*(1+P50*P7) -> 1 | Q51: =P51*(1+Q50*Q7) -> 1 | R51: =Q51*(1+R50*R7) -> 1 | S51: =R51*(1+S50*S7) -> 1 | T51: =S51*(1+T50*T7) -> 1 | U51: =T51*(1+U50*U7) -> 1 | V51: =U51*(1+V50*V7) -> 1 | W51: =V51*(1+W50*W7) -> 1 | X51: =W51*(1+X50*X7) -> 1 | Y51: =X51*(1+Y50*Y7) -> 1 | Z51: =Y51*(1+Z50*Z7) -> 1 | AA51: =Z51*(1+AA50*AA7) -> 1 | AB51: =AA51*(1+AB50*AB7) -> 1 | AC51: =AB51*(1+AC50*AC7) -> 1 | AD51: =AC51*(1+AD50*AD7) -> 1 | AE51: =AD51*(1+AE50*AE7) -> 1 | AF51: =AE51*(1+AF50*AF7) -> 1 | AG51: =AF51*(1+AG50*AG7) -> 1 | AH51: =AG51*(1+AH50*AH7) -> 1 | AI51: =AH51*(1+AI50*AI7) -> 1 | AJ51: =AI51*(1+AJ50*AJ7) -> 1 | AK51: =AJ51*(1+AK50*AK7) -> 1 | AL51: =AK51*(1+AL50*AL7) -> 1 | AM51: =AL51*(1+AM50*AM7) -> 1 | AN51: =AM51*(1+AN50*AN7) -> 1 | AO51: =AN51*(1+AO50*AO7) -> 1 | AP51: =AO51*(1+AP50*AP7) -> 1 | AQ51: =AP51*(1+AQ50*AQ7) -> 1 | AR51: =AQ51*(1+AR50*AR7) -> 1 | AS51: =AR51*(1+AS50*AS7) -> 1 | AT51: =AS51*(1+AT50*AT7) -> 1 | AU51: =AT51*(1+AU50*AU7) -> 1 | AV51: =AU51*(1+AV50*AV7) -> 1 | AW51: =AV51*(1+AW50*AW7) -> 1 | AX51: =AW51*(1+AX50*AX7) -> 1 | AY51: =AX51*(1+AY50*AY7) -> 1 | AZ51: =AY51*(1+AZ50*AZ7) -> 1 | BA51: =AZ51*(1+BA50*BA7) -> 1 | BB51: =BA51*(1+BB50*BB7) -> 1 | BC51: =BB51*(1+BC50*BC7) -> 1 | BD51: =BC51*(1+BD50*BD7) -> 1 | BE51: =BD51*(1+BE50*BE7) -> 1 | BF51: =BE51*(1+BF50*BF7) -> 1 | BG51: =BF51*(1+BG50*BG7) -> 1 | BH51: =BG51*(1+BH50*BH7) -> 1 | BI51: =BH51*(1+BI50*BI7) -> 1 | BJ51: =BI51*(1+BJ50*BJ7) -> 1 | BK51: =BJ51*(1+BK50*BK7) -> 1 | BL51: =BK51*(1+BL50*BL7) -> 1 | BM51: =BL51*(1+BM50*BM7) -> 1 | BN51: =BM51*(1+BN50*BN7) -> 1 | BO51: =BN51*(1+BO50*BO7) -> 1 | BP51: =BO51*(1+BP50*BP7) -> 1 | BQ51: =BP51*(1+BQ50*BQ7) -> 1 | BR51: =BQ51*(1+BR50*BR7) -> 1 | BS51: =BR51*(1+BS50*BS7) -> 1 | BT51: =BS51*(1+BT50*BT7) -> 1 | BU51: =BT51*(1+BU50*BU7) -> 1 | BV51: =BU51*(1+BV50*BV7) -> 1 | BW51: =BV51*(1+BW50*BW7) -> 1 | BX51: =BW51*(1+BX50*BX7) -> 1 | BY51: =BX51*(1+BY50*BY7) -> 1 | BZ51: =BY51*(1+BZ50*BZ7) -> 1 | CA51: =BZ51*(1+CA50*CA7) -> 1 | CB51: =CA51*(1+CB50*CB7) -> 1 | CC51: =CB51*(1+CC50*CC7) -> 1 | CD51: =CC51*(1+CD50*CD7) -> 1 | CE51: =CD51*(1+CE50*CE7) -> 1 | CF51: =CE51*(1+CF50*CF7) -> 1 | CG51: =CF51*(1+CG50*CG7) -> 1 | CH51: =CG51*(1+CH50*CH7) -> 1 | CI51: =CH51*(1+CI50*CI7) -> 1 | CJ51: =CI51*(1+CJ50*CJ7) -> 1 | CK51: =CJ51*(1+CK50*CK7) -> 1 | CL51: =CK51*(1+CL50*CL7) -> 1 | CM51: =CL51*(1+CM50*CM7) -> 1 | CN51: =CM51*(1+CN50*CN7) -> 1 | CO51: =CN51*(1+CO50*CO7) -> 1 | CP51: =CO51*(1+CP50*CP7) -> 1 | CQ51: =CP51*(1+CQ50*CQ7) -> 1 | CR51: =CQ51*(1+CR50*CR7) -> 1 | CS51: =CR51*(1+CS50*CS7) -> 1 | CT51: =CS51*(1+CT50*CT7) -> 1 | CU51: =CT51*(1+CU50*CU7) -> 1 | CV51: =CU51*(1+CV50*CV7) -> 1 | CW51: =CV51*(1+CW50*CW7) -> 1 | CX51: =CW51*(1+CX50*CX7) -> 1 | CY51: =CX51*(1+CY50*CY7) -> 1 | CZ51: =CY51*(1+CZ50*CZ7) -> 1 | DA51: =CZ51*(1+DA50*DA7) -> 1 | DB51: =DA51*(1+DB50*DB7) -> 1 | DC51: =DB51*(1+DC50*DC7) -> 1 | DD51: =DC51*(1+DD50*DD7) -> 1 | DE51: =DD51*(1+DE50*DE7) -> 1 | DF51: =DE51*(1+DF50*DF7) -> 1 | DG51: =DF51*(1+DG50*DG7) -> 1 | DH51: =DG51*(1+DH50*DH7) -> 1 | DI51: =DH51*(1+DI50*DI7) -> 1 | DJ51: =DI51*(1+DJ50*DJ7) -> 1 | DK51: =DJ51*(1+DK50*DK7) -> 1 | DL51: =DK51*(1+DL50*DL7) -> 1 | DM51: =DL51*(1+DM50*DM7) -> 1 | DN51: =DM51*(1+DN50*DN7) -> 1 | DO51: =DN51*(1+DO50*DO7) -> 1 | DP51: =DO51*(1+DP50*DP7) -> 1 | DQ51: =DP51*(1+DQ50*DQ7) -> 1 | DR51: =DQ51*(1+DR50*DR7) -> 1 | DS51: =DR51*(1+DS50*DS7) -> 1 | DT51: =DS51*(1+DT50*DT7) -> 1 | DU51: =DT51*(1+DU50*DU7) -> 1 | DV51: =DU51*(1+DV50*DV7) -> 1 | DW51: =DV51*(1+DW50*DW7) -> 1 | DX51: =DW51*(1+DX50*DX7) -> 1 | DY51: =DX51*(1+DY50*DY7) -> 1 | DZ51: =DY51*(1+DZ50*DZ7) -> 1 | EA51: =DZ51*(1+EA50*EA7) -> 1 | EB51: =EA51*(1+EB50*EB7) -> 1 | EC51: =EB51*(1+EC50*EC7) -> 1 | ED51: =EC51*(1+ED50*ED7) -> 1 | EE51: =ED51*(1+EE50*EE7) -> 1 | EF51: =EE51*(1+EF50*EF7) -> 1 | EG51: =EF51*(1+EG50*EG7) -> 1 | EH51: =EG51*(1+EH50*EH7) -> 1 | EI51: =EH51*(1+EI50*EI7) -> 1 | EJ51: =EI51*(1+EJ50*EJ7) -> 1 | EK51: =EJ51*(1+EK50*EK7) -> 1 | EL51: =EK51*(1+EL50*EL7) -> 1 | EM51: =EL51*(1+EM50*EM7) -> 1 | EN51: =EM51*(1+EN50*EN7) -> 1 | EO51: =EN51*(1+EO50*EO7) -> 1 | EP51: =EO51*(1+EP50*EP7) -> 1 | EQ51: =EP51*(1+EQ50*EQ7) -> 1 | ER51: =EQ51*(1+ER50*ER7) -> 1 | ES51: =ER51*(1+ES50*ES7) -> 1 | ET51: =ES51*(1+ET50*ET7) -> 1 | EU51: =ET51*(1+EU50*EU7) -> 1 | EV51: =EU51*(1+EV50*EV7) -> 1 | EW51: =EV51*(1+EW50*EW7) -> 1 | EX51: =EW51*(1+EX50*EX7) -> 1 | EY51: =EX51*(1+EY50*EY7) -> 1 | EZ51: =EY51*(1+EZ50*EZ7) -> 1 | FA51: =EZ51*(1+FA50*FA7) -> 1 | FB51: =FA51*(1+FB50*FB7) -> 1 | FC51: =FB51*(1+FC50*FC7) -> 1 | FD51: =FC51*(1+FD50*FD7) -> 1 | FE51: =FD51*(1+FE50*FE7) -> 1 | FF51: =FE51*(1+FF50*FF7) -> 1 | FG51: =FF51*(1+FG50*FG7) -> 1 | FH51: =FG51*(1+FH50*FH7) -> 1 | FI51: =FH51*(1+FI50*FI7) -> 1 | FJ51: =FI51*(1+FJ50*FJ7) -> 1 | FK51: =FJ51*(1+FK50*FK7) -> 1 | FL51: =FK51*(1+FL50*FL7) -> 1 | FM51: =FL51*(1+FM50*FM7) -> 1 | FN51: =FM51*(1+FN50*FN7) -> 1 | FO51: =FN51*(1+FO50*FO7) -> 1 | FP51: =FO51*(1+FP50*FP7) -> 1 | FQ51: =FP51*(1+FQ50*FQ7) -> 1 | FR51: =FQ51*(1+FR50*FR7) -> 1 | FS51: =FR51*(1+FS50*FS7) -> 1 | FT51: =FS51*(1+FT50*FT7) -> 1 | FU51: =FT51*(1+FU50*FU7) -> 1 | FV51: =FU51*(1+FV50*FV7) -> 1 | FW51: =FV51*(1+FW50*FW7) -> 1 | FX51: =FW51*(1+FX50*FX7) -> 1 | FY51: =FX51*(1+FY50*FY7) -> 1 | FZ51: =FY51*(1+FZ50*FZ7) -> 1 | GA51: =FZ51*(1+GA50*GA7) -> 1 | GB51: =GA51*(1+GB50*GB7) -> 1 | GC51: =GB51*(1+GC50*GC7) -> 1 | GD51: =GC51*(1+GD50*GD7) -> 1 | GE51: =GD51*(1+GE50*GE7) -> 1 | GF51: =GE51*(1+GF50*GF7) -> 1 | GG51: =GF51*(1+GG50*GG7) -> 1 | GH51: =GG51*(1+GH50*GH7) -> 1 | GI51: =GH51*(1+GI50*GI7) -> 1 | GJ51: =GI51*(1+GJ50*GJ7) -> 1 | GK51: =GJ51*(1+GK50*GK7) -> 1 | GL51: =GK51*(1+GL50*GL7) -> 1 | GM51: =GL51*(1+GM50*GM7) -> 1 | GN51: =GM51*(1+GN50*GN7) -> 1 | GO51: =GN51*(1+GO50*GO7) -> 1 | GP51: =GO51*(1+GP50*GP7) -> 1 | GQ51: =GP51*(1+GQ50*GQ7) -> 1 | GR51: =GQ51*(1+GR50*GR7) -> 1 | GS51: =GR51*(1+GS50*GS7) -> 1 | GT51: =GS51*(1+GT50*GT7) -> 1 | GU51: =GT51*(1+GU50*GU7) -> 1 | GV51: =GU51*(1+GV50*GV7) -> 1 | GW51: =GV51*(1+GW50*GW7) -> 1 | GX51: =GW51*(1+GX50*GX7) -> 1 | GY51: =GX51*(1+GY50*GY7) -> 1 | GZ51: =GY51*(1+GZ50*GZ7) -> 1 | HA51: =GZ51*(1+HA50*HA7) -> 1 | HB51: =HA51*(1+HB50*HB7) -> 1 | HC51: =HB51*(1+HC50*HC7) -> 1 | HD51: =HC51*(1+HD50*HD7) -> 1 | HE51: =HD51*(1+HE50*HE7) -> 1 | HF51: =HE51*(1+HF50*HF7) -> 1 | HG51: =HF51*(1+HG50*HG7) -> 1 | HH51: =HG51*(1+HH50*HH7) -> 1 | HI51: =HH51*(1+HI50*HI7) -> 1 | HJ51: =HI51*(1+HJ50*HJ7) -> 1 | HK51: =HJ51*(1+HK50*HK7) -> 1 | HL51: =HK51*(1+HL50*HL7) -> 1 | HM51: =HL51*(1+HM50*HM7) -> 1 | HN51: =HM51*(1+HN50*HN7) -> 1 | HO51: =HN51*(1+HO50*HO7) -> 1 | HP51: =HO51*(1+HP50*HP7) -> 1 | HQ51: =HP51*(1+HQ50*HQ7) -> 1 | HR51: =HQ51*(1+HR50*HR7) -> 1 | HS51: =HR51*(1+HS50*HS7) -> 1 | HT51: =HS51*(1+HT50*HT7) -> 1 | HU51: =HT51*(1+HU50*HU7) -> 1 | HV51: =HU51*(1+HV50*HV7) -> 1 | HW51: =HV51*(1+HW50*HW7) -> 1 | HX51: =HW51*(1+HX50*HX7) -> 1 | HY51: =HX51*(1+HY50*HY7) -> 1 | HZ51: =HY51*(1+HZ50*HZ7) -> 1 | IA51: =HZ51*(1+IA50*IA7) -> 1 | IB51: =IA51*(1+IB50*IB7) -> 1 | IC51: =IB51*(1+IC50*IC7) -> 1 | ID51: =IC51*(1+ID50*ID7) -> 1 | IE51: =ID51*(1+IE50*IE7) -> 1 | IF51: =IE51*(1+IF50*IF7) -> 1 | IG51: =IF51*(1+IG50*IG7) -> 1 | IH51: =IG51*(1+IH50*IH7) -> 1 | II51: =IH51*(1+II50*II7) -> 1 | IJ51: =II51*(1+IJ50*IJ7) -> 1 | IK51: =IJ51*(1+IK50*IK7) -> 1 | IL51: =IK51*(1+IL50*IL7) -> 1 | IM51: =IL51*(1+IM50*IM7) -> 1 | IN51: =IM51*(1+IN50*IN7) -> 1 | IO51: =IN51*(1+IO50*IO7) -> 1 | IP51: =IO51*(1+IP50*IP7) -> 1 | IQ51: =IP51*(1+IQ50*IQ7) -> 1 | IR51: =IQ51*(1+IR50*IR7) -> 1 | IS51: =IR51*(1+IS50*IS7) -> 1 | IT51: =IS51*(1+IT50*IT7) -> 1 | IU51: =IT51*(1+IU50*IU7) -> 1 | IV51: =IU51*(1+IV50*IV7) -> 1 | IW51: =IV51*(1+IW50*IW7) -> 1 | IX51: =IW51*(1+IX50*IX7) -> 1 | IY51: =IX51*(1+IY50*IY7) -> 1 | IZ51: =IY51*(1+IZ50*IZ7) -> 1 | JA51: =IZ51*(1+JA50*JA7) -> 1 | JB51: =JA51*(1+JB50*JB7) -> 1 | JC51: =JB51*(1+JC50*JC7) -> 1 | JD51: =JC51*(1+JD50*JD7) -> 1 | JE51: =JD51*(1+JE50*JE7) -> 1 | JF51: =JE51*(1+JF50*JF7) -> 1 | JG51: =JF51*(1+JG50*JG7) -> 1 | JH51: =JG51*(1+JH50*JH7) -> 1 | JI51: =JH51*(1+JI50*JI7) -> 1 | JJ51: =JI51*(1+JJ50*JJ7) -> 1 | JK51: =JJ51*(1+JK50*JK7) -> 1 | JL51: =JK51*(1+JL50*JL7) -> 1 | JM51: =JL51*(1+JM50*JM7) -> 1 | JN51: =JM51*(1+JN50*JN7) -> 1 | JO51: =JN51*(1+JO50*JO7) -> 1 | JP51: =JO51*(1+JP50*JP7) -> 1 | JQ51: =JP51*(1+JQ50*JQ7) -> 1 | JR51: =JQ51*(1+JR50*JR7) -> 1 | JS51: =JR51*(1+JS50*JS7) -> 1 | JT51: =JS51*(1+JT50*JT7) -> 1 | JU51: =JT51*(1+JU50*JU7) -> 1 | JV51: =JU51*(1+JV50*JV7) -> 1 | JW51: =JV51*(1+JW50*JW7) -> 1 | JX51: =JW51*(1+JX50*JX7) -> 1 | JY51: =JX51*(1+JY50*JY7) -> 1 | JZ51: =JY51*(1+JZ50*JZ7) -> 1 | KA51: =JZ51*(1+KA50*KA7) -> 1 | KB51: =KA51*(1+KB50*KB7) -> 1 | KC51: =KB51*(1+KC50*KC7) -> 1 | KD51: =KC51*(1+KD50*KD7) -> 1 | KE51: =KD51*(1+KE50*KE7) -> 1 | KF51: =KE51*(1+KF50*KF7) -> 1 | KG51: =KF51*(1+KG50*KG7) -> 1 | KH51: =KG51*(1+KH50*KH7) -> 1 | KI51: =KH51*(1+KI50*KI7) -> 1 | KJ51: =KI51*(1+KJ50*KJ7) -> 1 | KK51: =KJ51*(1+KK50*KK7) -> 1 | KL51: =KK51*(1+KL50*KL7) -> 1 | KM51: =KL51*(1+KM50*KM7) -> 1 | KN51: =KM51*(1+KN50*KN7) -> 1 | KO51: =KN51*(1+KO50*KO7) -> 1 | KP51: =KO51*(1+KP50*KP7) -> 1 | KQ51: =KP51*(1+KQ50*KQ7) -> 1 | KR51: =KQ51*(1+KR50*KR7) -> 1 | KS51: =KR51*(1+KS50*KS7) -> 1 | KT51: =KS51*(1+KT50*KT7) -> 1 | KU51: =KT51*(1+KU50*KU7) -> 1 | KV51: =KU51*(1+KV50*KV7) -> 1 | KW51: =KV51*(1+KW50*KW7) -> 1 | KX51: =KW51*(1+KX50*KX7) -> 1 | KY51: =KX51*(1+KY50*KY7) -> 1 | KZ51: =KY51*(1+KZ50*KZ7) -> 1 | LA51: =KZ51*(1+LA50*LA7) -> 1 | LB51: =LA51*(1+LB50*LB7) -> 1 | LC51: =LB51*(1+LC50*LC7) -> 1 | LD51: =LC51*(1+LD50*LD7) -> 1 | LE51: =LD51*(1+LE50*LE7) -> 1 | LF51: =LE51*(1+LF50*LF7) -> 1 | LG51: =LF51*(1+LG50*LG7) -> 1 | LH51: =LG51*(1+LH50*LH7) -> 1 | LI51: =LH51*(1+LI50*LI7) -> 1 | LJ51: =LI51*(1+LJ50*LJ7) -> 1 | LK51: =LJ51*(1+LK50*LK7) -> 1 | LL51: =LK51*(1+LL50*LL7) -> 1 | LM51: =LL51*(1+LM50*LM7) -> 1 | LN51: =LM51*(1+LN50*LN7) -> 1 | LO51: =LN51*(1+LO50*LO7) -> 1 | LP51: =LO51*(1+LP50*LP7) -> 1 | LQ51: =LP51*(1+LQ50*LQ7) -> 1 | LR51: =LQ51*(1+LR50*LR7) -> 1 | LS51: =LR51*(1+LS50*LS7) -> 1 | LT51: =LS51*(1+LT50*LT7) -> 1 | LU51: =LT51*(1+LU50*LU7) -> 1 | LV51: =LU51*(1+LV50*LV7) -> 1 | LW51: =LV51*(1+LW50*LW7) -> 1 | LX51: =LW51*(1+LX50*LX7) -> 1 | LY51: =LX51*(1+LY50*LY7) -> 1 | LZ51: =LY51*(1+LZ50*LZ7) -> 1 | MA51: =LZ51*(1+MA50*MA7) -> 1 | MB51: =MA51*(1+MB50*MB7) -> 1 | MC51: =MB51*(1+MC50*MC7) -> 1 | MD51: =MC51*(1+MD50*MD7) -> 1 | ME51: =MD51*(1+ME50*ME7) -> 1 | MF51: =ME51*(1+MF50*MF7) -> 1 | MG51: =MF51*(1+MG50*MG7) -> 1 | MH51: =MG51*(1+MH50*MH7) -> 1 | MI51: =MH51*(1+MI50*MI7) -> 1 | MJ51: =MI51*(1+MJ50*MJ7) -> 1 | MK51: =MJ51*(1+MK50*MK7) -> 1 | ML51: =MK51*(1+ML50*ML7) -> 1 | MM51: =ML51*(1+MM50*MM7) -> 1 | MN51: =MM51*(1+MN50*MN7) -> 1 | MO51: =MN51*(1+MO50*MO7) -> 1 | MP51: =MO51*(1+MP50*MP7) -> 1 | MQ51: =MP51*(1+MQ50*MQ7) -> 1 | MR51: =MQ51*(1+MR50*MR7) -> 1 | MS51: =MR51*(1+MS50*MS7) -> 1 | MT51: =MS51*(1+MT50*MT7) -> 1 | MU51: =MT51*(1+MU50*MU7) -> 1 | MV51: =MU51*(1+MV50*MV7) -> 1 | MW51: =MV51*(1+MW50*MW7) -> 1 | MX51: =MW51*(1+MX50*MX7) -> 1 | MY51: =MX51*(1+MY50*MY7) -> 1 | MZ51: =MY51*(1+MZ50*MZ7) -> 1 | NA51: =MZ51*(1+NA50*NA7) -> 1 | NB51: =NA51*(1+NB50*NB7) -> 1 | NC51: =NB51*(1+NC50*NC7) -> 1 | ND51: =NC51*(1+ND50*ND7) -> 1 | NE51: =ND51*(1+NE50*NE7) -> 1 | NF51: =NE51*(1+NF50*NF7) -> 1 | NG51: =NF51*(1+NG50*NG7) -> 1 | NH51: =NG51*(1+NH50*NH7) -> 1 | NI51: =NH51*(1+NI50*NI7) -> 1 | NJ51: =NI51*(1+NJ50*NJ7) -> 1 | NK51: =NJ51*(1+NK50*NK7) -> 1 | NL51: =NK51*(1+NL50*NL7) -> 1 | NM51: =NL51*(1+NM50*NM7) -> 1 | NN51: =NM51*(1+NN50*NN7) -> 1 | NO51: =NN51*(1+NO50*NO7) -> 1 | NP51: =NO51*(1+NP50*NP7) -> 1 | NQ51: =NP51*(1+NQ50*NQ7) -> 1 | NR51: =NQ51*(1+NR50*NR7) -> 1 | NS51: =NR51*(1+NS50*NS7) -> 1 | NT51: =NS51*(1+NT50*NT7) -> 1 | NU51: =NT51*(1+NU50*NU7) -> 1 | NV51: =NU51*(1+NV50*NV7) -> 1 | NW51: =NV51*(1+NW50*NW7) -> 1 | NX51: =NW51*(1+NX50*NX7) -> 1 | NY51: =NX51*(1+NY50*NY7) -> 1 | NZ51: =NY51*(1+NZ50*NZ7) -> 1 | OA51: =NZ51*(1+OA50*OA7) -> 1 | OB51: =OA51*(1+OB50*OB7) -> 1 | OC51: =OB51*(1+OC50*OC7) -> 1 | OD51: =OC51*(1+OD50*OD7) -> 1 | OE51: =OD51*(1+OE50*OE7) -> 1 | OF51: =OE51*(1+OF50*OF7) -> 1 | OG51: =OF51*(1+OG50*OG7) -> 1 | OH51: =OG51*(1+OH50*OH7) -> 1 | OI51: =OH51*(1+OI50*OI7) -> 1 | OJ51: =OI51*(1+OJ50*OJ7) -> 1 | OK51: =OJ51*(1+OK50*OK7) -> 1 | OL51: =OK51*(1+OL50*OL7) -> 1 | OM51: =OL51*(1+OM50*OM7) -> 1 | ON51: =OM51*(1+ON50*ON7) -> 1 | OO51: =ON51*(1+OO50*OO7) -> 1 | OP51: =OO51*(1+OP50*OP7) -> 1 | OQ51: =OP51*(1+OQ50*OQ7) -> 1 | OR51: =OQ51*(1+OR50*OR7) -> 1 | OS51: =OR51*(1+OS50*OS7) -> 1 | OT51: =OS51*(1+OT50*OT7) -> 1 | OU51: =OT51*(1+OU50*OU7) -> 1 | OV51: =OU51*(1+OV50*OV7) -> 1 | OW51: =OV51*(1+OW50*OW7) -> 1 | OX51: =OW51*(1+OX50*OX7) -> 1 | OY51: =OX51*(1+OY50*OY7) -> 1 | OZ51: =OY51*(1+OZ50*OZ7) -> 1 | PA51: =OZ51*(1+PA50*PA7) -> 1 | PB51: =PA51*(1+PB50*PB7) -> 1 | PC51: =PB51*(1+PC50*PC7) -> 1 | PD51: =PC51*(1+PD50*PD7) -> 1 | PE51: =PD51*(1+PE50*PE7) -> 1 | PF51: =PE51*(1+PF50*PF7) -> 1 | PG51: =PF51*(1+PG50*PG7) -> 1 | PH51: =PG51*(1+PH50*PH7) -> 1 | PI51: =PH51*(1+PI50*PI7) -> 1 | PJ51: =PI51*(1+PJ50*PJ7) -> 1 | PK51: =PJ51*(1+PK50*PK7) -> 1 | PL51: =PK51*(1+PL50*PL7) -> 1 | PM51: =PL51*(1+PM50*PM7) -> 1 | PN51: =PM51*(1+PN50*PN7) -> 1 | PO51: =PN51*(1+PO50*PO7) -> 1 | PP51: =PO51*(1+PP50*PP7) -> 1 | PQ51: =PP51*(1+PQ50*PQ7) -> 1 | PR51: =PQ51*(1+PR50*PR7) -> 1 | PS51: =PR51*(1+PS50*PS7) -> 1 | PT51: =PS51*(1+PT50*PT7) -> 1 | PU51: =PT51*(1+PU50*PU7) -> 1 | PV51: =PU51*(1+PV50*PV7) -> 1 | PW51: =PV51*(1+PW50*PW7) -> 1 | PX51: =PW51*(1+PX50*PX7) -> 1 | PY51: =PX51*(1+PY50*PY7) -> 1 | PZ51: =PY51*(1+PZ50*PZ7) -> 1 | QA51: =PZ51*(1+QA50*QA7) -> 1 | QB51: =QA51*(1+QB50*QB7) -> 1 | QC51: =QB51*(1+QC50*QC7) -> 1 | QD51: =QC51*(1+QD50*QD7) -> 1 | QE51: =QD51*(1+QE50*QE7) -> 1 | QF51: =QE51*(1+QF50*QF7) -> 1 | QG51: =QF51*(1+QG50*QG7) -> 1 | QH51: =QG51*(1+QH50*QH7) -> 1 | QI51: =QH51*(1+QI50*QI7) -> 1 | QJ51: =QI51*(1+QJ50*QJ7) -> 1 | QK51: =QJ51*(1+QK50*QK7) -> 1 | QL51: =QK51*(1+QL50*QL7) -> 1 | QM51: =QL51*(1+QM50*QM7) -> 1 | QN51: =QM51*(1+QN50*QN7) -> 1 | QO51: =QN51*(1+QO50*QO7) -> 1 | QP51: =QO51*(1+QP50*QP7) -> 1 | QQ51: =QP51*(1+QQ50*QQ7) -> 1 | QR51: =QQ51*(1+QR50*QR7) -> 1 | QS51: =QR51*(1+QS50*QS7) -> 1 | QT51: =QS51*(1+QT50*QT7) -> 1 | QU51: =QT51*(1+QU50*QU7) -> 1 | QV51: =QU51*(1+QV50*QV7) -> 1 | QW51: =QV51*(1+QW50*QW7) -> 1 | QX51: =QW51*(1+QX50*QX7) -> 1 | QY51: =QX51*(1+QY50*QY7) -> 1 | QZ51: =QY51*(1+QZ50*QZ7) -> 1 | RA51: =QZ51*(1+RA50*RA7) -> 1 | RB51: =RA51*(1+RB50*RB7) -> 1 | RC51: =RB51*(1+RC50*RC7) -> 1 | RD51: =RC51*(1+RD50*RD7) -> 1 | RE51: =RD51*(1+RE50*RE7) -> 1 | RF51: =RE51*(1+RF50*RF7) -> 1 | RG51: =RF51*(1+RG50*RG7) -> 1 | RH51: =RG51*(1+RH50*RH7) -> 1 | RI51: =RH51*(1+RI50*RI7) -> 1 | RJ51: =RI51*(1+RJ50*RJ7) -> 1 | RK51: =RJ51*(1+RK50*RK7) -> 1 | RL51: =RK51*(1+RL50*RL7) -> 1 | RM51: =RL51*(1+RM50*RM7) -> 1 | RN51: =RM51*(1+RN50*RN7) -> 1 | RO51: =RN51*(1+RO50*RO7) -> 1 | RP51: =RO51*(1+RP50*RP7) -> 1 | RQ51: =RP51*(1+RQ50*RQ7) -> 1 | RR51: =RQ51*(1+RR50*RR7) -> 1 | RS51: =RR51*(1+RS50*RS7) -> 1 | RT51: =RS51*(1+RT50*RT7) -> 1 | RU51: =RT51*(1+RU50*RU7) -> 1 | RV51: =RU51*(1+RV50*RV7) -> 1 | RW51: =RV51*(1+RW50*RW7) -> 1 | RX51: =RW51*(1+RX50*RX7) -> 1 | RY51: =RX51*(1+RY50*RY7) -> 1 | RZ51: =RY51*(1+RZ50*RZ7) -> 1 | SA51: =RZ51*(1+SA50*SA7) -> 1 | SB51: =SA51*(1+SB50*SB7) -> 1 | SC51: =SB51*(1+SC50*SC7) -> 1 | SD51: =SC51*(1+SD50*SD7) -> 1 | SE51: =SD51*(1+SE50*SE7) -> 1 | SF51: =SE51*(1+SF50*SF7) -> 1 | SG51: =SF51*(1+SG50*SG7) -> 1 | SH51: =SG51*(1+SH50*SH7) -> 1 | SI51: =SH51*(1+SI50*SI7) -> 1 | SJ51: =SI51*(1+SJ50*SJ7) -> 1 | SK51: =SJ51*(1+SK50*SK7) -> 1 | SL51: =SK51*(1+SL50*SL7) -> 1 | SM51: =SL51*(1+SM50*SM7) -> 1 | SN51: =SM51*(1+SN50*SN7) -> 1 | SO51: =SN51*(1+SO50*SO7) -> 1 | SP51: =SO51*(1+SP50*SP7) -> 1 | SQ51: =SP51*(1+SQ50*SQ7) -> 1 | SR51: =SQ51*(1+SR50*SR7) -> 1 | SS51: =SR51*(1+SS50*SS7) -> 1 | ST51: =SS51*(1+ST50*ST7) -> 1 | SU51: =ST51*(1+SU50*SU7) -> 1 | SV51: =SU51*(1+SV50*SV7) -> 1 | SW51: =SV51*(1+SW50*SW7) -> 1 | SX51: =SW51*(1+SX50*SX7) -> 1 | SY51: =SX51*(1+SY50*SY7) -> 1 | SZ51: =SY51*(1+SZ50*SZ7) -> 1 | TA51: =SZ51*(1+TA50*TA7) -> 1 | TB51: =TA51*(1+TB50*TB7) -> 1 | TC51: =TB51*(1+TC50*TC7) -> 1 | TD51: =TC51*(1+TD50*TD7) -> 1 | TE51: =TD51*(1+TE50*TE7) -> 1 | TF51: =TE51*(1+TF50*TF7) -> 1 | TG51: =TF51*(1+TG50*TG7) -> 1 | TH51: =TG51*(1+TH50*TH7) -> 1 | TI51: =TH51*(1+TI50*TI7) -> 1 | TJ51: =TI51*(1+TJ50*TJ7) -> 1 | TK51: =TJ51*(1+TK50*TK7) -> 1 | TL51: =TK51*(1+TL50*TL7) -> 1 | TM51: =TL51*(1+TM50*TM7) -> 1 | TN51: =TM51*(1+TN50*TN7) -> 1 | TO51: =TN51*(1+TO50*TO7) -> 1 | TP51: =TO51*(1+TP50*TP7) -> 1 | TQ51: =TP51*(1+TQ50*TQ7) -> 1 | TR51: =TQ51*(1+TR50*TR7) -> 1 | TS51: =TR51*(1+TS50*TS7) -> 1 | TT51: =TS51*(1+TT50*TT7) -> 1 | TU51: =TT51*(1+TU50*TU7) -> 1 | TV51: =TU51*(1+TV50*TV7) -> 1 | TW51: =TV51*(1+TW50*TW7) -> 1 | TX51: =TW51*(1+TX50*TX7) -> 1 | TY51: =TX51*(1+TY50*TY7) -> 1 | TZ51: =TY51*(1+TZ50*TZ7) -> 1 | UA51: =TZ51*(1+UA50*UA7) -> 1 | UB51: =UA51*(1+UB50*UB7) -> 1 | UC51: =UB51*(1+UC50*UC7) -> 1 | UD51: =UC51*(1+UD50*UD7) -> 1 | UE51: =UD51*(1+UE50*UE7) -> 1 | UF51: =UE51*(1+UF50*UF7) -> 1 | UG51: =UF51*(1+UG50*UG7) -> 1 | UH51: =UG51*(1+UH50*UH7) -> 1 | UI51: =UH51*(1+UI50*UI7) -> 1 | UJ51: =UI51*(1+UJ50*UJ7) -> 1 | UK51: =UJ51*(1+UK50*UK7) -> 1 | UL51: =UK51*(1+UL50*UL7) -> 1 | UM51: =UL51*(1+UM50*UM7) -> 1 | UN51: =UM51*(1+UN50*UN7) -> 1 | UO51: =UN51*(1+UO50*UO7) -> 1 | UP51: =UO51*(1+UP50*UP7) -> 1 | UQ51: =UP51*(1+UQ50*UQ7) -> 1 | UR51: =UQ51*(1+UR50*UR7) -> 1 | US51: =UR51*(1+US50*US7) -> 1 | UT51: =US51*(1+UT50*UT7) -> 1 | UU51: =UT51*(1+UU50*UU7) -> 1 | UV51: =UU51*(1+UV50*UV7) -> 1 | UW51: =UV51*(1+UW50*UW7) -> 1 | UX51: =UW51*(1+UX50*UX7) -> 1 | UY51: =UX51*(1+UY50*UY7) -> 1 | UZ51: =UY51*(1+UZ50*UZ7) -> 1 | VA51: =UZ51*(1+VA50*VA7) -> 1 | VB51: =VA51*(1+VB50*VB7) -> 1 | VC51: =VB51*(1+VC50*VC7) -> 1 | VD51: =VC51*(1+VD50*VD7) -> 1 | VE51: =VD51*(1+VE50*VE7) -> 1 | VF51: =VE51*(1+VF50*VF7) -> 1 | VG51: =VF51*(1+VG50*VG7) -> 1 | VH51: =VG51*(1+VH50*VH7) -> 1 | VI51: =VH51*(1+VI50*VI7) -> 1 | VJ51: =VI51*(1+VJ50*VJ7) -> 1 | VK51: =VJ51*(1+VK50*VK7) -> 1 | VL51: =VK51*(1+VL50*VL7) -> 1 | VM51: =VL51*(1+VM50*VM7) -> 1 | VN51: =VM51*(1+VN50*VN7) -> 1 | VO51: =VN51*(1+VO50*VO7) -> 1 | VP51: =VO51*(1+VP50*VP7) -> 1 | VQ51: =VP51*(1+VQ50*VQ7) -> 1 | VR51: =VQ51*(1+VR50*VR7) -> 1 | VS51: =VR51*(1+VS50*VS7) -> 1 | VT51: =VS51*(1+VT50*VT7) -> 1 | VU51: =VT51*(1+VU50*VU7) -> 1 | VV51: =VU51*(1+VV50*VV7) -> 1 | VW51: =VV51*(1+VW50*VW7) -> 1 | VX51: =VW51*(1+VX50*VX7) -> 1 | VY51: =VX51*(1+VY50*VY7) -> 1 | VZ51: =VY51*(1+VZ50*VZ7) -> 1 | WA51: =VZ51*(1+WA50*WA7) -> 1 | WB51: =WA51*(1+WB50*WB7) -> 1 | WC51: =WB51*(1+WC50*WC7) -> 1 | WD51: =WC51*(1+WD50*WD7) -> 1 | WE51: =WD51*(1+WE50*WE7) -> 1 | WF51: =WE51*(1+WF50*WF7) -> 1 | WG51: =WF51*(1+WG50*WG7) -> 1 | WH51: =WG51*(1+WH50*WH7) -> 1 | WI51: =WH51*(1+WI50*WI7) -> 1 | WJ51: =WI51*(1+WJ50*WJ7) -> 1 | WK51: =WJ51*(1+WK50*WK7) -> 1 | WL51: =WK51*(1+WL50*WL7) -> 1 | WM51: =WL51*(1+WM50*WM7) -> 1 | WN51: =WM51*(1+WN50*WN7) -> 1 | WO51: =WN51*(1+WO50*WO7) -> 1 | WP51: =WO51*(1+WP50*WP7) -> 1 | WQ51: =WP51*(1+WQ50*WQ7) -> 1 | WR51: =WQ51*(1+WR50*WR7) -> 1 | WS51: =WR51*(1+WS50*WS7) -> 1 | WT51: =WS51*(1+WT50*WT7) -> 1 | WU51: =WT51*(1+WU50*WU7) -> 1 | WV51: =WU51*(1+WV50*WV7) -> 1 | WW51: =WV51*(1+WW50*WW7) -> 1 | WX51: =WW51*(1+WX50*WX7) -> 1 | WY51: =WX51*(1+WY50*WY7) -> 1 | WZ51: =WY51*(1+WZ50*WZ7) -> 1 | XA51: =WZ51*(1+XA50*XA7) -> 1 | XB51: =XA51*(1+XB50*XB7) -> 1 | XC51: =XB51*(1+XC50*XC7) -> 1 | XD51: =XC51*(1+XD50*XD7) -> 1 | XE51: =XD51*(1+XE50*XE7) -> 1 | XF51: =XE51*(1+XF50*XF7) -> 1 | XG51: =XF51*(1+XG50*XG7) -> 1 | XH51: =XG51*(1+XH50*XH7) -> 1 | XI51: =XH51*(1+XI50*XI7) -> 1 | XJ51: =XI51*(1+XJ50*XJ7) -> 1 | XK51: =XJ51*(1+XK50*XK7) -> 1 | XL51: =XK51*(1+XL50*XL7) -> 1 | XM51: =XL51*(1+XM50*XM7) -> 1 | XN51: =XM51*(1+XN50*XN7) -> 1 | XO51: =XN51*(1+XO50*XO7) -> 1 | XP51: =XO51*(1+XP50*XP7) -> 1 | XQ51: =XP51*(1+XQ50*XQ7) -> 1 | XR51: =XQ51*(1+XR50*XR7) -> 1 | XS51: =XR51*(1+XS50*XS7) -> 1 | XT51: =XS51*(1+XT50*XT7) -> 1 | XU51: =XT51*(1+XU50*XU7) -> 1 | XV51: =XU51*(1+XV50*XV7) -> 1 | XW51: =XV51*(1+XW50*XW7) -> 1 | XX51: =XW51*(1+XX50*XX7) -> 1 | XY51: =XX51*(1+XY50*XY7) -> 1 | XZ51: =XY51*(1+XZ50*XZ7) -> 1 | YA51: =XZ51*(1+YA50*YA7) -> 1 | YB51: =YA51*(1+YB50*YB7) -> 1 | YC51: =YB51*(1+YC50*YC7) -> 1 | YD51: =YC51*(1+YD50*YD7) -> 1 | YE51: =YD51*(1+YE50*YE7) -> 1 | YF51: =YE51*(1+YF50*YF7) -> 1 | YG51: =YF51*(1+YG50*YG7) -> 1 | YH51: =YG51*(1+YH50*YH7) -> 1 | YI51: =YH51*(1+YI50*YI7) -> 1 | YJ51: =YI51*(1+YJ50*YJ7) -> 1 | YK51: =YJ51*(1+YK50*YK7) -> 1 | YL51: =YK51*(1+YL50*YL7) -> 1 | YM51: =YL51*(1+YM50*YM7) -> 1 | YN51: =YM51*(1+YN50*YN7) -> 1 | YO51: =YN51*(1+YO50*YO7) -> 1 | YP51: =YO51*(1+YP50*YP7) -> 1 | YQ51: =YP51*(1+YQ50*YQ7) -> 1 | YR51: =YQ51*(1+YR50*YR7) -> 1 | YS51: =YR51*(1+YS50*YS7) -> 1 | YT51: =YS51*(1+YT50*YT7) -> 1 | YU51: =YT51*(1+YU50*YU7) -> 1 | YV51: =YU51*(1+YV50*YV7) -> 1 | YW51: =YV51*(1+YW50*YW7) -> 1 | YX51: =YW51*(1+YX50*YX7) -> 1 | YY51: =YX51*(1+YY50*YY7) -> 1 | YZ51: =YY51*(1+YZ50*YZ7) -> 1 | ZA51: =YZ51*(1+ZA50*ZA7) -> 1 | ZB51: =ZA51*(1+ZB50*ZB7) -> 1 | ZC51: =ZB51*(1+ZC50*ZC7) -> 1 | ZD51: =ZC51*(1+ZD50*ZD7) -> 1 | ZE51: =ZD51*(1+ZE50*ZE7) -> 1 | ZF51: =ZE51*(1+ZF50*ZF7) -> 1 | ZG51: =ZF51*(1+ZG50*ZG7) -> 1 | ZH51: =ZG51*(1+ZH50*ZH7) -> 1 | ZI51: =ZH51*(1+ZI50*ZI7) -> 1 | ZJ51: =ZI51*(1+ZJ50*ZJ7) -> 1 | ZK51: =ZJ51*(1+ZK50*ZK7) -> 1 | ZL51: =ZK51*(1+ZL50*ZL7) -> 1 | ZM51: =ZL51*(1+ZM50*ZM7) -> 1 | ZN51: =ZM51*(1+ZN50*ZN7) -> 1 | ZO51: =ZN51*(1+ZO50*ZO7) -> 1 | ZP51: =ZO51*(1+ZP50*ZP7) -> 1 | ZQ51: =ZP51*(1+ZQ50*ZQ7) -> 1 | ZR51: =ZQ51*(1+ZR50*ZR7) -> 1 | ZS51: =ZR51*(1+ZS50*ZS7) -> 1 | ZT51: =ZS51*(1+ZT50*ZT7) -> 1 | ZU51: =ZT51*(1+ZU50*ZU7) -> 1 | ZV51: =ZU51*(1+ZV50*ZV7) -> 1 | ZW51: =ZV51*(1+ZW50*ZW7) -> 1 | ZX51: =ZW51*(1+ZX50*ZX7) -> 1 | ZY51: =ZX51*(1+ZY50*ZY7) -> 1 | ZZ51: =ZY51*(1+ZZ50*ZZ7) -> 1 | AAA51: =ZZ51*(1+AAA50*AAA7) -> 1 | AAB51: =AAA51*(1+AAB50*AAB7) -> 1 | AAC51: =AAB51*(1+AAC50*AAC7) -> 1 | AAD51: =AAC51*(1+AAD50*AAD7) -> 1 | AAE51: =AAD51*(1+AAE50*AAE7) -> 1 | AAF51: =AAE51*(1+AAF50*AAF7) -> 1 | AAG51: =AAF51*(1+AAG50*AAG7) -> 1 | AAH51: =AAG51*(1+AAH50*AAH7) -> 1 | AAI51: =AAH51*(1+AAI50*AAI7) -> 1 | AAJ51: =AAI51*(1+AAJ50*AAJ7) -> 1 | AAK51: =AAJ51*(1+AAK50*AAK7) -> 1 | AAL51: =AAK51*(1+AAL50*AAL7) -> 1 | AAM51: =AAL51*(1+AAM50*AAM7) -> 1 | AAN51: =AAM51*(1+AAN50*AAN7) -> 1 | AAO51: =AAN51*(1+AAO50*AAO7) -> 1 | AAP51: =AAO51*(1+AAP50*AAP7) -> 1 | AAQ51: =AAP51*(1+AAQ50*AAQ7) -> 1 | AAR51: =AAQ51*(1+AAR50*AAR7) -> 1 | AAS51: =AAR51*(1+AAS50*AAS7) -> 1 | AAT51: =AAS51*(1+AAT50*AAT7) -> 1 | AAU51: =AAT51*(1+AAU50*AAU7) -> 1 | AAV51: =AAU51*(1+AAV50*AAV7) -> 1 | AAW51: =AAV51*(1+AAW50*AAW7) -> 1 | AAX51: =AAW51*(1+AAX50*AAX7) -> 1 | AAY51: =AAX51*(1+AAY50*AAY7) -> 1 | AAZ51: =AAY51*(1+AAZ50*AAZ7) -> 1 | ABA51: =AAZ51*(1+ABA50*ABA7) -> 1 | ABB51: =ABA51*(1+ABB50*ABB7) -> 1 | ABC51: =ABB51*(1+ABC50*ABC7) -> 1 | ABD51: =ABC51*(1+ABD50*ABD7) -> 1 | ABE51: =ABD51*(1+ABE50*ABE7) -> 1 | ABF51: =ABE51*(1+ABF50*ABF7) -> 1 | ABG51: =ABF51*(1+ABG50*ABG7) -> 1 | ABH51: =ABG51*(1+ABH50*ABH7) -> 1 | ABI51: =ABH51*(1+ABI50*ABI7) -> 1 | ABJ51: =ABI51*(1+ABJ50*ABJ7) -> 1 | ABK51: =ABJ51*(1+ABK50*ABK7) -> 1 | ABL51: =ABK51*(1+ABL50*ABL7) -> 1 | ABM51: =ABL51*(1+ABM50*ABM7) -> 1 | ABN51: =ABM51*(1+ABN50*ABN7) -> 1 | ABO51: =ABN51*(1+ABO50*ABO7) -> 1 | ABP51: =ABO51*(1+ABP50*ABP7) -> 1 | ABQ51: =ABP51*(1+ABQ50*ABQ7) -> 1 | ABR51: =ABQ51*(1+ABR50*ABR7) -> 1 | ABS51: =ABR51*(1+ABS50*ABS7) -> 1 | ABT51: =ABS51*(1+ABT50*ABT7) -> 1 | ABU51: =ABT51*(1+ABU50*ABU7) -> 1 | ABV51: =ABU51*(1+ABV50*ABV7) -> 1 | ABW51: =ABV51*(1+ABW50*ABW7) -> 1 | ABX51: =ABW51*(1+ABX50*ABX7) -> 1 | ABY51: =ABX51*(1+ABY50*ABY7) -> 1 | ABZ51: =ABY51*(1+ABZ50*ABZ7) -> 1
